Workbook

Sheet Year (hidden)
A1: SchoolYear
A2: 201617
A3: 201718
A4: 201819
A5: 201920
A6: 202021
A7: 202122

Sheet Model_Demonstration
A1: Tier 1 at Fidelity | E1: Tier 2 Fidelity | I1: Tier 3 Fielity
A2: School | B2: SchoolYear | C2: Tier1TotalRatio | E2: School | F2: SchoolYear | G2: Tier2TotalRatio | I2: School | J2: SchoolYear | K2: Tier3TotalRatio
A3: F Elementary | B3: 202122 | C3: 0.7333 | E3: B Elementary | F3: 202122 | G3: 1 | I3: A High | J3: 202122 | K3: 0.9118
A4: B High | B4: 202122 | C4: 0.7667 | E4: B Middle | F4: 202122 | G4: 1 | I4: B Elementary | J4: 202122 | K4: 1
A5: B Middle | B5: 202122 | C5: 0.9333 | E5: A High | F5: 202122 | G5: 1 | I5: B Middle | J5: 202122 | K5: 0.9706
A6: B Elementary | B6: 202122 | C6: 1 | E6: A Middle | F6: 202122 | G6: 1 | I6: E Elementary | J6: 202122 | K6: 0.8235
A7: C Middle | B7: 202122 | C7: 0.8333 | E7: B Middle | F7: 202122 | G7: 1 | I7: C Middle | J7: 202122 | K7: 0.7059
A8: A Middle | B8: 202122 | C8: 1 | E8: B Middle | F8: 202021 | G8: 1 | I8: B Middle | J8: 202122 | K8: 1
A9: A High | B9: 202122 | C9: 0.9667 | E9: B Elementary | F9: 202021 | G9: 1 | I9: C Middle | J9: 202021 | K9: 0.8235
A10: B Middle | B10: 202122 | C10: 1 | E10: F Elementary | F10: 202021 | G10: 0.9615 | I10: C Elementary | J10: 202021 | K10: 1
A11: B Middle | B11: 202021 | C11: 1 | E11: A High | F11: 202021 | G11: 0.9615 | I11: A High | J11: 202021 | K11: 0.8529
A12: A High | B12: 202021 | C12: 0.9667 | E12: A Middle | F12: 202021 | G12: 1 | I12: B Elementary | J12: 202021 | K12: 1
A13: F Elementary | B13: 202021 | C13: 0.8667 | E13: B High | F13: 202021 | G13: 0.9231 | I13: B Middle | J13: 202021 | K13: 1
A14: B Elementary | B14: 202021 | C14: 1 | E14: C Middle | F14: 202021 | G14: 0.8077 | I14: B Elementary | J14: 201920 | K14: 1
A15: E Elementary | B15: 202021 | C15: 0.7667 | E15: A Middle | F15: 201920 | G15: 0.9231 | I15: B Middle | J15: 201920 | K15: 1
A16: A Middle | B16: 202021 | C16: 1 | E16: A High | F16: 201920 | G16: 0.9231 | I16: B Elementary | J16: 201920 | K16: 0.9706
A17: A Elementary | B17: 202021 | C17: 0.8667 | E17: B Middle | F17: 201920 | G17: 1 | I17: C Elementary | J17: 201920 | K17: 0.8235
A18: C Middle | B18: 202021 | C18: 0.9333 | E18: B Elementary | F18: 201920 | G18: 0.8846 | I18: B Elementary | J18: 201819 | K18: 0.9706
A19: A Middle | B19: 201920 | C19: 0.9667 | E19: B Elementary | F19: 201920 | G19: 0.7692 | I19: C Middle | J19: 201819 | K19: 0.8824
A20: B Elementary | B20: 201920 | C20: 0.8 | E20: A Middle | F20: 201819 | G20: 0.9231
A21: A High | B21: 201920 | C21: 0.9 | E21: A High | F21: 201819 | G21: 0.8462
A22: B Middle | B22: 201920 | C22: 1 | E22: B Elementary | F22: 201819 | G22: 0.8846
A23: B Elementary | B23: 201920 | C23: 0.9 | E23: E Elementary | F23: 201819 | G23: 0.7308
A24: F Elementary | B24: 201920 | C24: 0.8667 | E24: C Middle | F24: 201819 | G24: 0.8846
A25: A High | B25: 201819 | C25: 0.8 | E25: B High | F25: 201819 | G25: 1
A26: A Middle | B26: 201819 | C26: 0.9667 | E26: A Elementary | F26: 201718 | G26: 0.7692
A27: B Elementary | B27: 201819 | C27: 0.9333 | E27: C Middle | F27: 201718 | G27: 0.9615
A28: F Elementary | B28: 201819 | C28: 0.8 | E28: B High | F28: 201718 | G28: 0.8077
A29: C Middle | B29: 201819 | C29: 1
A30: E Elementary | B30: 201819 | C30: 0.8667
A31: B High | B31: 201819 | C31: 1
A32: B Middle | B32: 201819 | C32: 1
A33: A Middle | B33: 201718 | C33: 0.7667
A34: A Elementary | B34: 201718 | C34: 0.7333
A35: A High | B35: 201718 | C35: 0.7667
A36: B High | B36: 201718 | C36: 0.8667
A37: C Middle | B37: 201718 | C37: 0.9667

Sheet KPI_Report
K1: Key Performance Indicators
C4: Outcome Data | U4: Implementation Data
T8: District Tiered Fidelity Inventory
T10: Stakeholder Engagement | V10: Funding & Alignment | X10: Policy | Z10: Workforce Capacity
T11: =COUNTIF(DSFI!K2:M4,"2")/COUNTIF(DSFI!K2:M4,"<>") -> 1 | V11: =COUNTIF(DSFI!N2:U4,"2")/COUNTIF(DSFI!N2:U4,"<>") -> 0.625 | X11: =COUNTIF(DSFI!V2:Z4,"2")/COUNTA(DSFI!V2:Z4) -> 0.6 | Z11: =COUNTIF(DSFI!AA2:AC4,"2")/COUNTA(DSFI!AA2:AC4) -> 0.6666666667
T13: Leadership Teaming
T14: =IF(DSFI!A:A,#REF!,COUNTIF(DSFI!B2:J4,"2")/IF(DSFI!A:A,#REF!,COUNTA(DSFI!B2:J4))) -> 0.4444444444
T16: Training | V16: Coaching & Technical Assistance | Z16: Evaluation
T17: =COUNTIF(DSFI!AD2:AI4,"2")/COUNTA(DSFI!AD2:AI4) -> 0.8333333333 | V17: =COUNTIF(DSFI!AJ2:AQ4,"2")/COUNTA(DSFI!AJ2:AQ4) -> 0.375 | Z17: =COUNTIF(DSFI!AR2:BB4,"2")/COUNTA(DSFI!AR2:BB4) -> 0.8181818182
T19: Local Implementation Demonstrations
T20: =COUNTIF(DSFI!BC2:BE4,"2")/COUNTA(DSFI!BC2:BE4) -> 0
L107: Equity Data

Sheet DSFI
A1: School_Year_(******, i.e., 202122) | B1: 1.1 Leadership Authority: | C1: 1.2 Team Membership: | D1: 1.3 Team Expertise: T | E1: 1.4 Team Leadership: | F1: 1.5 Team Operating Procedures: | G1: 1.6 Action Planning: | H1: 1.7 Communication with Executive Leadership: | I1: 1.8 Communication with Key Stakeholders: | J1: 1.9 Goal Identification: | K1: 2.1 Stakeholder Involvement: | L1: 2.2 Information Dissemination: | M1: 2.3 Stakeholder Participation: | N1: 3.1 Budget Plan: | O1: 3.2 Community Agency Alignment: | P1: 3.3. Alignment to District Outcomes: | Q1: 3.4 Alignment to Initiatives: | R1: 3.5 Initiative Adoption Procedures: | S1: 3.6 Options for Tiered Interventions: | T1: 3.7 Annual Alignment Review: | U1: 3.8 Operations for Tiered Interventions: | V1: 4.1 Vision/Mission Statement: | W1: 4.2 Instructional Approach: | X1: 4.3 Discipline Guides: | Y1: 4.4 Discipline Policy Review: | Z1: 4.5 Transition Systems: | AA1: 5.1 Personnel Selection Criteria: | AB1: 5.2 Job Descriptions: | AC1: 5.3 Performance Evaluation: | AD1: 6.1 District Professional Development Plan: | AE1: 6.2 District Professional Development Calendar: | AF1: 6.3 Professional Development Alignment: | AG1: 6.4 Ongoing Professional Development: | AH1: 6.5 Communities of Practice: | AI1: 6.6 Internal Professional Development: | AJ1: 7.1 Technical Assistance: | AK1: 7.2 Coaching: | AL1: 7.3 Implementation Process: | AM1: 7.4 Differentiated Coaching Support: | AN1: 7.5 District Coach Networks: | AO1: 7.6 Coaching Functions: | AP1: 7.7 Local Coaching Capacity: | AQ1: 7.8 Classroom Implementation: | AR1: 8.1 Evaluation Plan: | AS1: 8.2 Data Collection Systems: | AT1: 8.3 Evaluation Feedback Loop: | AU1: 8.4 Differentiated Supports: | AV1: 8.5 Assessment and Evaluation Process: | AW1: 8.6 Student Identification Data: | AX1: 8.7 Level of Use: | AY1: 8.8 Student Performance Data: | AZ1: 8.9 Annual Evaluation: | BA1: 8.10 Acknowledgement of Progress: | BB1: 8.11 Internal Evaluation Capacity: | BC1: 9.1 Site Selection: | BD1: 9.2 Model Demonstrations: | BE1: 9.3 Scaling Up:
A2: 202122 | B2: 1 | C2: 1 | D2: 1 | E2: 2 | F2: 1 | G2: 2 | H2: 1 | I2: 2 | J2: 2 | K2: 2 | L2: 2 | M2: 2 | N2: 2 | O2: 2 | P2: 2 | Q2: 1 | R2: 0 | S2: 1 | T2: 2 | U2: 2 | V2: 2 | W2: 1 | X2: 2 | Y2: 2 | Z2: 1 | AA2: 2 | AB2: 2 | AC2: 1 | AD2: 2 | AE2: 2 | AF2: 2 | AG2: 2 | AH2: 2 | AI2: 1 | AJ2: 1 | AK2: 2 | AL2: 1 | AM2: 1 | AN2: 1 | AO2: 1 | AP2: 2 | AQ2: 2 | AR2: 2 | AS2: 1 | AT2: 2 | AU2: 2 | AV2: 1 | AW2: 2 | AX2: 2 | AY2: 2 | AZ2: 2 | BA2: 2 | BB2: 2 | BC2: 0 | BD2: 0 | BE2: 0
A3: 202021
A4: 201920

Sheet DSFI_Report
C3: Implementation Data
B7: District Tiered Fidelity Inventory
B9: Stakeholder Engagement | D9: Funding & Alignment | F9: Policy | H9: Workforce Capacity
B10: =COUNTIF(DSFI!#REF!,"2")/COUNTA(DSFI!#REF!) ->  | D10: =(COUNTIF(DSFI!#REF!,"2")/COUNTA(DSFI!#REF!)) ->  | F10: =COUNTIF(DSFI!D1:'DSFI'!H1,"2")/COUNTA(DSFI!D1:'DSFI'!H1) -> 0 | H10: =COUNTIF(DSFI!I1:K1,"2")/COUNTA(DSFI!I1:K1) -> 0
B12: Leadership Teaming
B13: =COUNTIF(DSFI!#REF!,"2")/COUNTA(DSFI!#REF!) -> 
B15: Training | D15: Coaching & Technical Assistance | H15: Evaluation
B16: =COUNTIF(DSFI!L1:Q1,"2")/COUNTA(DSFI!L1:Q1) -> 0 | D16: =COUNTIF(DSFI!R1:Y1,"2")/COUNTA(DSFI!R1:Y1) -> 0 | H16: =COUNTIF(DSFI!Z1:'DSFI'!AJ1,"2")/COUNTA(DSFI!Z1:'DSFI'!AJ1) -> 0
B18: Local Implementation Demonstrations
B19: =COUNTIF(DSFI!AK1:AM1,"2")/COUNTA(DSFI!AK1:AM1) -> 0

Sheet TFI_Items
A4: SchoolNCESId | B4: School | C4: DateCompleted | D4: SchoolYear | E4: TeamMembers | F4: TFIWalkthrough | G4: Tier1Assessed | H4: Tier2Assessed | I4: Tier3Assessed | J4: Tier1TeamComposition | K4: Tier1TeamOpProcedures | L4: Tier1ImplementBehaveExpect | M4: Tier1ImplementTeachExpect | N4: Tier1ImplementProbBehaveDef | O4: Tier1ImplementDisciplinePolicies | P4: Tier1ImplementProfessionalDev | Q4: Tier1ImplementClassProcedures | R4: Tier1ImplementFeedback | S4: Tier1ImplementFacultyInvolve | T4: Tier1ImplementFamilyInvolve | U4: Tier1EvaluationDisciplineData | V4: Tier1EvaluationDecisionMaking | W4: Tier1EvaluationFidelityData | X4: Tier1EvaluationAnnualEval | Y4: Tier2TeamComposition | Z4: Tier2TeamOpProcedures | AA4: Tier2TeamScreening | AB4: Tier2TeamRequestAssistance | AC4: Tier2InterventionSufficientArray | AD4: Tier2InterventionCriticalFeatures | AE4: Tier2InterventionPracticesMatched | AF4: Tier2InterventionAccessSupports | AG4: Tier2InterventionProfessionalDev | AH4: Tier2EvaluationLevelOfUse | AI4: Tier2EvaluationFidelityData | AJ4: Tier2EvaluationStudentPerformance | AK4: Tier2EvaluationAnnualEval | AL4: Tier3TeamComposition | AM4: Tier3TeamOpProcedures | AN4: Tier3TeamScreening | AO4: Tier3TeamStudentSupport | AP4: Tier3ResourcesStaffing | AQ4: Tier3ResourcesInvolvement | AR4: Tier3ResourcesProfessionalDev | AS4: Tier3SupportPlansQualityLife | AT4: Tier3SupportPlansIndicators | AU4: Tier3SupportPlansHypothesis | AV4: Tier3SupportPlansComprehensive | AW4: Tier3SupportPlansNaturalFormal | AX4: Tier3SupportPlansAccessSupport | AY4: Tier3EvaluationDataSystem | AZ4: Tier3EvaluationDecisionMaking | BA4: Tier3EvaluationLevelOfUse | BB4: Tier3EvaluationAnnualEval
A5: 99999999999 | B5: A Elementary | C5: 2019-03-04 | D5: 201819 | E5: Team without external coach | F5: TFI Walkthrough Tool not completed | G5: TRUE | H5: TRUE | I5: TRUE | J5: 1 | K5: 1 | L5: 2 | M5: 1 | N5: 1 | O5: 1 | P5: 1 | Q5: 1 | R5: 2 | S5: 1 | T5: 0 | U5: 1 | V5: 1 | W5: 2 | X5: 1 | Y5: 1 | Z5: 1 | AA5: 1 | AB5: 1 | AC5: 1 | AD5: 1 | AE5: 2 | AF5: 2 | AG5: 1 | AH5: 2 | AI5: 1 | AJ5: 0 | AK5: 2 | AL5: 1 | AM5: 1 | AN5: 1 | AO5: 2 | AP5: 2 | AQ5: 1 | AR5: 1 | AS5: 1 | AT5: 2 | AU5: 1 | AV5: 1 | AW5: 0 | AX5: 2 | AY5: 1 | AZ5: 0 | BA5: 0 | BB5: 0
A6: 99999999999 | B6: A Elementary | C6: 2021-01-25 | D6: 202021 | E6: Team without external coach | F6: Internal reviewer | G6: TRUE | H6: TRUE | I6: TRUE | J6: 2 | K6: 2 | L6: 2 | M6: 2 | N6: 2 | O6: 2 | P6: 2 | Q6: 1 | R6: 2 | S6: 1 | T6: 2 | U6: 1 | V6: 2 | W6: 2 | X6: 1 | Y6: 1 | Z6: 1 | AA6: 1 | AB6: 1 | AC6: 1 | AD6: 1 | AE6: 1 | AF6: 2 | AG6: 1 | AH6: 1 | AI6: 0 | AJ6: 1 | AK6: 1 | AL6: 1 | AM6: 1 | AN6: 2 | AO6: 2 | AP6: 2 | AQ6: 2 | AR6: 2 | AS6: 1 | AT6: 1 | AU6: 1 | AV6: 1 | AW6: 0 | AX6: 1 | AY6: 1 | AZ6: 1 | BA6: 1 | BB6: 1
A7: 99999999999 | B7: A Elementary | C7: 2018-03-05 | D7: 201718 | E7: Team without external coach | F7: TFI Walkthrough Tool not completed | G7: TRUE | H7: TRUE | I7: FALSE | J7: 2 | K7: 2 | L7: 2 | M7: 2 | N7: 2 | O7: 1 | P7: 2 | Q7: 2 | R7: 0 | S7: 1 | T7: 1 | U7: 2 | V7: 0 | W7: 2 | X7: 1 | Y7: 2 | Z7: 2 | AA7: 2 | AB7: 1 | AC7: 2 | AD7: 1 | AE7: 2 | AF7: 2 | AG7: 2 | AH7: 1 | AI7: 0 | AJ7: 2 | AK7: 1
A8: 99999999999 | B8: A Elementary | C8: 2022-04-14 | D8: 202122 | E8: Team without external coach | F8: Internal reviewer | G8: TRUE | H8: TRUE | I8: FALSE | J8: 1 | K8: 1 | L8: 1 | M8: 1 | N8: 1 | O8: 2 | P8: 1 | Q8: 1 | R8: 1 | S8: 1 | T8: 1 | U8: 1 | V8: 1 | W8: 1 | X8: 1 | Y8: 1 | Z8: 0 | AA8: 1 | AB8: 0 | AC8: 1 | AD8: 1 | AE8: 1 | AF8: 1 | AG8: 1 | AH8: 0 | AI8: 0 | AJ8: 0 | AK8: 1
A9: 99999999999 | B9: A High | C9: 2021-03-23 | D9: 202021 | E9: Team without external coach | F9: TFI Walkthrough Tool not completed | G9: TRUE | H9: TRUE | I9: TRUE | J9: 2 | K9: 2 | L9: 2 | M9: 1 | N9: 2 | O9: 2 | P9: 2 | Q9: 2 | R9: 2 | S9: 2 | T9: 2 | U9: 2 | V9: 2 | W9: 2 | X9: 2 | Y9: 2 | Z9: 1 | AA9: 2 | AB9: 2 | AC9: 2 | AD9: 2 | AE9: 2 | AF9: 2 | AG9: 2 | AH9: 2 | AI9: 2 | AJ9: 2 | AK9: 2 | AL9: 2 | AM9: 1 | AN9: 2 | AO9: 2 | AP9: 1 | AQ9: 2 | AR9: 2 | AS9: 2 | AT9: 2 | AU9: 1 | AV9: 2 | AW9: 2 | AX9: 2 | AY9: 1 | AZ9: 2 | BA9: 1 | BB9: 2
A10: 99999999999 | B10: A High | C10: 2019-03-06 | D10: 201819 | E10: Team without external coach | F10: Internal reviewer | G10: TRUE | H10: TRUE | I10: TRUE | J10: 1 | K10: 2 | L10: 2 | M10: 1 | N10: 2 | O10: 2 | P10: 2 | Q10: 1 | R10: 1 | S10: 2 | T10: 1 | U10: 2 | V10: 2 | W10: 2 | X10: 1 | Y10: 2 | Z10: 1 | AA10: 1 | AB10: 1 | AC10: 2 | AD10: 2 | AE10: 2 | AF10: 2 | AG10: 2 | AH10: 1 | AI10: 2 | AJ10: 2 | AK10: 2 | AL10: 1 | AM10: 1 | AN10: 1 | AO10: 0 | AP10: 1 | AQ10: 1 | AR10: 1 | AS10: 1 | AT10: 1 | AU10: 1 | AV10: 0 | AW10: 1 | AX10: 1 | AY10: 1 | AZ10: 0 | BA10: 0 | BB10: 1
A11: 99999999999 | B11: A High | C11: 2018-03-23 | D11: 201718 | E11: Team and external coach together | F11: TFI Walkthrough Tool not completed | G11: TRUE | H11: TRUE | I11: FALSE | J11: 1 | K11: 2 | L11: 2 | M11: 2 | N11: 2 | O11: 2 | P11: 2 | Q11: 2 | R11: 1 | S11: 1 | T11: 1 | U11: 1 | V11: 1 | W11: 2 | X11: 1 | Y11: 1 | Z11: 1 | AA11: 2 | AB11: 1 | AC11: 1 | AD11: 1 | AE11: 2 | AF11: 2 | AG11: 2 | AH11: 1 | AI11: 1 | AJ11: 1 | AK11: 1
A12: 99999999999 | B12: A High | C12: 2022-03-29 | D12: 202122 | E12: Team without external coach | F12: Internal reviewer | G12: TRUE | H12: TRUE | I12: TRUE | J12: 2 | K12: 2 | L12: 2 | M12: 2 | N12: 2 | O12: 2 | P12: 2 | Q12: 2 | R12: 2 | S12: 2 | T12: 1 | U12: 2 | V12: 2 | W12: 2 | X12: 2 | Y12: 2 | Z12: 2 | AA12: 2 | AB12: 2 | AC12: 2 | AD12: 2 | AE12: 2 | AF12: 2 | AG12: 2 | AH12: 2 | AI12: 2 | AJ12: 2 | AK12: 2 | AL12: 2 | AM12: 2 | AN12: 2 | AO12: 1 | AP12: 2 | AQ12: 2 | AR12: 2 | AS12: 2 | AT12: 2 | AU12: 2 | AV12: 2 | AW12: 2 | AX12: 2 | AY12: 1 | AZ12: 2 | BA12: 1 | BB12: 2
A13: 99999999999 | B13: A High | C13: 2020-03-03 | D13: 201920 | E13: Team without external coach | F13: Internal reviewer | G13: TRUE | H13: TRUE | I13: TRUE | J13: 2 | K13: 2 | L13: 2 | M13: 1 | N13: 2 | O13: 1 | P13: 2 | Q13: 2 | R13: 2 | S13: 2 | T13: 1 | U13: 2 | V13: 2 | W13: 2 | X13: 2 | Y13: 2 | Z13: 2 | AA13: 2 | AB13: 1 | AC13: 2 | AD13: 2 | AE13: 2 | AF13: 2 | AG13: 2 | AH13: 2 | AI13: 1 | AJ13: 2 | AK13: 2 | AL13: 1 | AM13: 1 | AN13: 1 | AO13: 0 | AP13: 0 | AQ13: 2 | AR13: 0 | AS13: 0 | AT13: 1 | AU13: 0 | AV13: 0 | AW13: 0 | AX13: 1 | AY13: 0 | AZ13: 1 | BA13: 1 | BB13: 0
A14: 99999999999 | B14: A Middle | C14: 2021-04-16 | D14: 202021 | E14: Team without external coach | F14: TFI Walkthrough Tool not completed | G14: TRUE | H14: TRUE | I14: TRUE | J14: 2 | K14: 2 | L14: 2 | M14: 2 | N14: 2 | O14: 2 | P14: 2 | Q14: 2 | R14: 2 | S14: 2 | T14: 2 | U14: 2 | V14: 2 | W14: 2 | X14: 2 | Y14: 2 | Z14: 2 | AA14: 2 | AB14: 2 | AC14: 2 | AD14: 2 | AE14: 2 | AF14: 2 | AG14: 2 | AH14: 2 | AI14: 2 | AJ14: 2 | AK14: 2 | AL14: 2 | AM14: 1 | AN14: 1 | AO14: 1 | AP14: 2 | AQ14: 2 | AR14: 1 | AS14: 1 | AT14: 2 | AU14: 2 | AV14: 1 | AW14: 1 | AX14: 2 | AY14: 1 | AZ14: 1 | BA14: 1 | BB14: 0
A15: 99999999999 | B15: A Middle | C15: 2020-05-21 | D15: 201920 | E15: Team without external coach | F15: Internal reviewer | G15: TRUE | H15: TRUE | I15: TRUE | J15: 2 | K15: 2 | L15: 2 | M15: 2 | N15: 2 | O15: 2 | P15: 2 | Q15: 2 | R15: 2 | S15: 2 | T15: 1 | U15: 2 | V15: 2 | W15: 2 | X15: 2 | Y15: 2 | Z15: 2 | AA15: 2 | AB15: 2 | AC15: 2 | AD15: 1 | AE15: 2 | AF15: 2 | AG15: 2 | AH15: 2 | AI15: 1 | AJ15: 2 | AK15: 2 | AL15: 1 | AM15: 1 | AN15: 1 | AO15: 1 | AP15: 1 | AQ15: 1 | AR15: 0 | AS15: 1 | AT15: 1 | AU15: 1 | AV15: 1 | AW15: 1 | AX15: 2 | AY15: 0 | AZ15: 0 | BA15: 0 | BB15: 0
A16: 99999999999 | B16: A Middle | C16: 2022-04-14 | D16: 202122 | E16: Team and external coach together | F16: Internal reviewer | G16: TRUE | H16: TRUE | I16: TRUE | J16: 2 | K16: 2 | L16: 2 | M16: 2 | N16: 2 | O16: 2 | P16: 2 | Q16: 2 | R16: 2 | S16: 2 | T16: 2 | U16: 2 | V16: 2 | W16: 2 | X16: 2 | Y16: 2 | Z16: 2 | AA16: 2 | AB16: 2 | AC16: 2 | AD16: 2 | AE16: 2 | AF16: 2 | AG16: 2 | AH16: 2 | AI16: 2 | AJ16: 2 | AK16: 2 | AL16: 2 | AM16: 1 | AN16: 1 | AO16: 1 | AP16: 2 | AQ16: 2 | AR16: 1 | AS16: 1 | AT16: 2 | AU16: 2 | AV16: 1 | AW16: 1 | AX16: 2 | AY16: 1 | AZ16: 1 | BA16: 1 | BB16: 0
A17: 99999999999 | B17: A Middle | C17: 2019-03-08 | D17: 201819 | E17: Team without external coach | F17: Internal reviewer | G17: TRUE | H17: TRUE | I17: TRUE | J17: 2 | K17: 2 | L17: 2 | M17: 2 | N17: 2 | O17: 2 | P17: 2 | Q17: 2 | R17: 2 | S17: 2 | T17: 1 | U17: 2 | V17: 2 | W17: 2 | X17: 2 | Y17: 2 | Z17: 2 | AA17: 2 | AB17: 2 | AC17: 2 | AD17: 1 | AE17: 2 | AF17: 2 | AG17: 2 | AH17: 2 | AI17: 1 | AJ17: 2 | AK17: 2 | AL17: 1 | AM17: 1 | AN17: 1 | AO17: 1 | AP17: 1 | AQ17: 2 | AR17: 0 | AS17: 0 | AT17: 1 | AU17: 0 | AV17: 1 | AW17: 0 | AX17: 2 | AY17: 0 | AZ17: 0 | BA17: 0 | BB17: 0
A18: 99999999999 | B18: A Middle | C18: 2018-03-13 | D18: 201718 | E18: Team and external coach together | F18: External reviewer | G18: TRUE | H18: TRUE | I18: TRUE | J18: 1 | K18: 2 | L18: 2 | M18: 2 | N18: 2 | O18: 1 | P18: 1 | Q18: 2 | R18: 1 | S18: 2 | T18: 1 | U18: 2 | V18: 1 | W18: 2 | X18: 1 | Y18: 2 | Z18: 2 | AA18: 2 | AB18: 2 | AC18: 1 | AD18: 1 | AE18: 1 | AF18: 2 | AG18: 2 | AH18: 1 | AI18: 0 | AJ18: 1 | AK18: 0 | AL18: 1 | AM18: 0 | AN18: 1 | AO18: 1 | AP18: 1 | AQ18: 2 | AR18: 1 | AS18: 1 | AT18: 1 | AU18: 1 | AV18: 0 | AW18: 0 | AX18: 2 | AY18: 0 | AZ18: 1 | BA18: 0 | BB18: 0
A19: 99999999999 | B19: B Elementary | C19: 2020-04-29 | D19: 201920 | E19: Team without external coach | F19: Internal reviewer | G19: TRUE | H19: TRUE | I19: TRUE | J19: 1 | K19: 1 | L19: 2 | M19: 2 | N19: 2 | O19: 2 | P19: 2 | Q19: 2 | R19: 2 | S19: 2 | T19: 0 | U19: 2 | V19: 1 | W19: 2 | X19: 1 | Y19: 2 | Z19: 1 | AA19: 2 | AB19: 2 | AC19: 2 | AD19: 2 | AE19: 2 | AF19: 2 | AG19: 2 | AH19: 2 | AI19: 1 | AJ19: 2 | AK19: 1 | AL19: 2 | AM19: 2 | AN19: 2 | AO19: 1 | AP19: 2 | AQ19: 2 | AR19: 2 | AS19: 2 | AT19: 2 | AU19: 2 | AV19: 2 | AW19: 2 | AX19: 2 | AY19: 2 | AZ19: 2 | BA19: 2 | BB19: 2
A20: 99999999999 | B20: B Elementary | C20: 2021-02-18 | D20: 202021 | E20: Team and external coach together | F20: Internal reviewer | G20: TRUE | H20: TRUE | I20: TRUE | J20: 2 | K20: 2 | L20: 2 | M20: 2 | N20: 2 | O20: 2 | P20: 2 | Q20: 2 | R20: 2 | S20: 2 | T20: 2 | U20: 2 | V20: 2 | W20: 2 | X20: 2 | Y20: 2 | Z20: 2 | AA20: 2 | AB20: 2 | AC20: 2 | AD20: 2 | AE20: 2 | AF20: 2 | AG20: 2 | AH20: 2 | AI20: 2 | AJ20: 2 | AK20: 2 | AL20: 2 | AM20: 2 | AN20: 2 | AO20: 2 | AP20: 2 | AQ20: 2 | AR20: 2 | AS20: 2 | AT20: 2 | AU20: 2 | AV20: 2 | AW20: 2 | AX20: 2 | AY20: 2 | AZ20: 2 | BA20: 2 | BB20: 2
A21: 99999999999 | B21: B Elementary | C21: 2022-01-27 | D21: 202122 | E21: Team without external coach | F21: Internal reviewer | G21: TRUE | H21: TRUE | I21: TRUE | J21: 2 | K21: 2 | L21: 2 | M21: 2 | N21: 2 | O21: 2 | P21: 2 | Q21: 2 | R21: 2 | S21: 2 | T21: 2 | U21: 2 | V21: 2 | W21: 2 | X21: 2 | Y21: 2 | Z21: 2 | AA21: 2 | AB21: 2 | AC21: 2 | AD21: 2 | AE21: 2 | AF21: 2 | AG21: 2 | AH21: 2 | AI21: 2 | AJ21: 2 | AK21: 2 | AL21: 2 | AM21: 2 | AN21: 2 | AO21: 2 | AP21: 2 | AQ21: 2 | AR21: 2 | AS21: 2 | AT21: 2 | AU21: 2 | AV21: 2 | AW21: 2 | AX21: 2 | AY21: 2 | AZ21: 2 | BA21: 2 | BB21: 2
A22: 99999999999 | B22: B Elementary | C22: 2019-02-21 | D22: 201819 | E22: External coach without team | F22: External reviewer | G22: TRUE | H22: TRUE | I22: TRUE | J22: 2 | K22: 2 | L22: 2 | M22: 2 | N22: 2 | O22: 2 | P22: 2 | Q22: 2 | R22: 2 | S22: 2 | T22: 1 | U22: 2 | V22: 2 | W22: 1 | X22: 2 | Y22: 2 | Z22: 2 | AA22: 2 | AB22: 1 | AC22: 2 | AD22: 2 | AE22: 2 | AF22: 1 | AG22: 2 | AH22: 2 | AI22: 2 | AJ22: 2 | AK22: 1 | AL22: 2 | AM22: 2 | AN22: 2 | AO22: 2 | AP22: 2 | AQ22: 2 | AR22: 2 | AS22: 2 | AT22: 2 | AU22: 2 | AV22: 2 | AW22: 2 | AX22: 1 | AY22: 2 | AZ22: 2 | BA22: 2 | BB22: 2
A23: 99999999999 | B23: B Elementary | C23: 2020-03-19 | D23: 201920 | E23: Team without external coach | F23: Internal reviewer | G23: TRUE | H23: TRUE | I23: TRUE | J23: 2 | K23: 2 | L23: 2 | M23: 2 | N23: 2 | O23: 2 | P23: 2 | Q23: 2 | R23: 2 | S23: 2 | T23: 0 | U23: 2 | V23: 2 | W23: 2 | X23: 1 | Y23: 2 | Z23: 0 | AA23: 0 | AB23: 0 | AC23: 2 | AD23: 2 | AE23: 2 | AF23: 2 | AG23: 2 | AH23: 2 | AI23: 2 | AJ23: 2 | AK23: 2 | AL23: 2 | AM23: 2 | AN23: 2 | AO23: 2 | AP23: 2 | AQ23: 2 | AR23: 2 | AS23: 2 | AT23: 2 | AU23: 2 | AV23: 2 | AW23: 2 | AX23: 2 | AY23: 2 | AZ23: 2 | BA23: 2 | BB23: 2
A24: 99999999999 | B24: B High | C24: 2021-03-31 | D24: 202021 | E24: Team without external coach | F24: TFI Walkthrough Tool not completed | G24: TRUE | H24: TRUE | I24: TRUE | J24: 1 | K24: 2 | L24: 2 | M24: 2 | N24: 2 | O24: 2 | P24: 2 | Q24: 2 | R24: 1 | S24: 0 | T24: 0 | U24: 1 | V24: 0 | W24: 1 | X24: 1 | Y24: 2 | Z24: 2 | AA24: 2 | AB24: 2 | AC24: 2 | AD24: 2 | AE24: 2 | AF24: 2 | AG24: 2 | AH24: 2 | AI24: 2 | AJ24: 2 | AK24: 0 | AL24: 1 | AM24: 2 | AN24: 2 | AO24: 0 | AP24: 2 | AQ24: 2 | AR24: 1 | AS24: 0 | AT24: 1 | AU24: 0 | AV24: 1 | AW24: 1 | AX24: 2 | AY24: 1 | AZ24: 1 | BA24: 1 | BB24: 1
A25: 99999999999 | B25: B High | C25: 2022-03-29 | D25: 202122 | E25: Team without external coach | F25: Internal reviewer | G25: TRUE | H25: FALSE | I25: FALSE | J25: 1 | K25: 1 | L25: 2 | M25: 1 | N25: 2 | O25: 2 | P25: 2 | Q25: 1 | R25: 1 | S25: 2 | T25: 0 | U25: 2 | V25: 2 | W25: 2 | X25: 2
A26: 99999999999 | B26: B High | C26: 2018-04-20 | D26: 201718 | E26: Team and external coach together | F26: Internal reviewer | G26: TRUE | H26: TRUE | I26: TRUE | J26: 2 | K26: 1 | L26: 2 | M26: 2 | N26: 2 | O26: 2 | P26: 1 | Q26: 2 | R26: 2 | S26: 2 | T26: 1 | U26: 2 | V26: 2 | W26: 2 | X26: 1 | Y26: 1 | Z26: 2 | AA26: 2 | AB26: 2 | AC26: 2 | AD26: 2 | AE26: 2 | AF26: 2 | AG26: 1 | AH26: 2 | AI26: 0 | AJ26: 1 | AK26: 2 | AL26: 1 | AM26: 1 | AN26: 1 | AO26: 1 | AP26: 1 | AQ26: 2 | AR26: 1 | AS26: 1 | AT26: 1 | AU26: 1 | AV26: 1 | AW26: 1 | AX26: 1 | AY26: 1 | AZ26: 1 | BA26: 1 | BB26: 1
A27: 99999999999 | B27: B High | C27: 2019-03-13 | D27: 201819 | E27: Team without external coach | F27: Internal reviewer | G27: TRUE | H27: TRUE | I27: TRUE | J27: 2 | K27: 2 | L27: 2 | M27: 2 | N27: 2 | O27: 2 | P27: 2 | Q27: 2 | R27: 2 | S27: 2 | T27: 2 | U27: 2 | V27: 2 | W27: 2 | X27: 2 | Y27: 2 | Z27: 2 | AA27: 2 | AB27: 2 | AC27: 2 | AD27: 2 | AE27: 2 | AF27: 2 | AG27: 2 | AH27: 2 | AI27: 2 | AJ27: 2 | AK27: 2 | AL27: 1 | AM27: 1 | AN27: 2 | AO27: 1 | AP27: 1 | AQ27: 2 | AR27: 0 | AS27: 0 | AT27: 0 | AU27: 0 | AV27: 0 | AW27: 0 | AX27: 1 | AY27: 1 | AZ27: 1 | BA27: 0 | BB27: 0
A28: 99999999999 | B28: B Middle | C28: 2020-02-12 | D28: 201920 | E28: Team without external coach | F28: Internal reviewer | G28: TRUE | H28: TRUE | I28: TRUE | J28: 2 | K28: 2 | L28: 2 | M28: 2 | N28: 2 | O28: 2 | P28: 2 | Q28: 2 | R28: 2 | S28: 2 | T28: 2 | U28: 2 | V28: 2 | W28: 2 | X28: 2 | Y28: 2 | Z28: 2 | AA28: 2 | AB28: 2 | AC28: 2 | AD28: 2 | AE28: 2 | AF28: 2 | AG28: 2 | AH28: 2 | AI28: 2 | AJ28: 2 | AK28: 2 | AL28: 2 | AM28: 2 | AN28: 2 | AO28: 2 | AP28: 2 | AQ28: 2 | AR28: 2 | AS28: 2 | AT28: 2 | AU28: 2 | AV28: 2 | AW28: 2 | AX28: 2 | AY28: 2 | AZ28: 2 | BA28: 2 | BB28: 2
A29: 99999999999 | B29: B Middle | C29: 2021-09-29 | D29: 202122 | E29: Team without external coach | F29: Internal reviewer | G29: TRUE | H29: TRUE | I29: TRUE | J29: 1 | K29: 2 | L29: 2 | M29: 2 | N29: 2 | O29: 2 | P29: 2 | Q29: 2 | R29: 2 | S29: 2 | T29: 1 | U29: 2 | V29: 2 | W29: 2 | X29: 2 | Y29: 2 | Z29: 2 | AA29: 2 | AB29: 2 | AC29: 2 | AD29: 2 | AE29: 2 | AF29: 2 | AG29: 2 | AH29: 2 | AI29: 2 | AJ29: 2 | AK29: 2 | AL29: 2 | AM29: 2 | AN29: 2 | AO29: 1 | AP29: 2 | AQ29: 2 | AR29: 2 | AS29: 2 | AT29: 2 | AU29: 2 | AV29: 2 | AW29: 2 | AX29: 2 | AY29: 2 | AZ29: 2 | BA29: 2 | BB29: 2
A30: 99999999999 | B30: B Middle | C30: 2022-03-29 | D30: 202122 | E30: Team without external coach | F30: Internal reviewer | G30: TRUE | H30: TRUE | I30: TRUE | J30: 2 | K30: 2 | L30: 2 | M30: 2 | N30: 2 | O30: 2 | P30: 2 | Q30: 2 | R30: 2 | S30: 2 | T30: 2 | U30: 2 | V30: 2 | W30: 2 | X30: 2 | Y30: 2 | Z30: 2 | AA30: 2 | AB30: 2 | AC30: 2 | AD30: 2 | AE30: 2 | AF30: 2 | AG30: 2 | AH30: 2 | AI30: 2 | AJ30: 2 | AK30: 2 | AL30: 2 | AM30: 2 | AN30: 2 | AO30: 2 | AP30: 2 | AQ30: 2 | AR30: 2 | AS30: 2 | AT30: 2 | AU30: 2 | AV30: 2 | AW30: 2 | AX30: 2 | AY30: 2 | AZ30: 2 | BA30: 2 | BB30: 2
A31: 99999999999 | B31: B Middle | C31: 2021-03-15 | D31: 202021 | E31: Team without external coach | F31: Internal reviewer | G31: TRUE | H31: TRUE | I31: TRUE | J31: 2 | K31: 2 | L31: 2 | M31: 2 | N31: 2 | O31: 2 | P31: 2 | Q31: 2 | R31: 2 | S31: 2 | T31: 2 | U31: 2 | V31: 2 | W31: 2 | X31: 2 | Y31: 2 | Z31: 2 | AA31: 2 | AB31: 2 | AC31: 2 | AD31: 2 | AE31: 2 | AF31: 2 | AG31: 2 | AH31: 2 | AI31: 2 | AJ31: 2 | AK31: 2 | AL31: 2 | AM31: 2 | AN31: 2 | AO31: 2 | AP31: 2 | AQ31: 2 | AR31: 2 | AS31: 2 | AT31: 2 | AU31: 2 | AV31: 2 | AW31: 2 | AX31: 2 | AY31: 2 | AZ31: 2 | BA31: 2 | BB31: 2
A32: 99999999999 | B32: B Middle | C32: 2019-03-27 | D32: 201819 | E32: Team without external coach | F32: External reviewer | G32: TRUE | H32: TRUE | I32: TRUE | J32: 2 | K32: 2 | L32: 2 | M32: 2 | N32: 2 | O32: 2 | P32: 2 | Q32: 2 | R32: 2 | S32: 2 | T32: 2 | U32: 2 | V32: 2 | W32: 2 | X32: 2 | Y32: 1 | Z32: 1 | AA32: 1 | AB32: 1 | AC32: 1 | AD32: 1 | AE32: 1 | AF32: 1 | AG32: 1 | AH32: 1 | AI32: 1 | AJ32: 1 | AK32: 1 | AL32: 1 | AM32: 1 | AN32: 1 | AO32: 1 | AP32: 1 | AQ32: 1 | AR32: 1 | AS32: 1 | AT32: 1 | AU32: 1 | AV32: 1 | AW32: 1 | AX32: 1 | AY32: 1 | AZ32: 1 | BA32: 1 | BB32: 1
A33: 99999999999 | B33: C Elementary | C33: 2022-03-17 | D33: 202122 | E33: Team without external coach | F33: TFI Walkthrough Tool not completed | G33: TRUE | H33: FALSE | I33: FALSE | J33: 2 | K33: 2 | L33: 2 | M33: 1 | N33: 1 | O33: 1 | P33: 1 | Q33: 1 | R33: 1 | S33: 1 | T33: 0 | U33: 2 | V33: 2 | W33: 1 | X33: 1
A34: 99999999999 | B34: C Elementary | C34: 2020-04-22 | D34: 201920 | E34: Team without external coach | F34: Internal reviewer | G34: TRUE | H34: FALSE | I34: TRUE | J34: 2 | K34: 1 | L34: 2 | M34: 2 | N34: 1 | O34: 2 | P34: 1 | Q34: 2 | R34: 1 | S34: 1 | T34: 1 | U34: 1 | V34: 1 | W34: 1 | X34: 1 | AL34: 2 | AM34: 2 | AN34: 2 | AO34: 1 | AP34: 2 | AQ34: 2 | AR34: 1 | AS34: 1 | AT34: 2 | AU34: 2 | AV34: 1 | AW34: 1 | AX34: 2 | AY34: 1 | AZ34: 2 | BA34: 2 | BB34: 2
A35: 99999999999 | B35: C Elementary | C35: 2021-03-30 | D35: 202021 | E35: Team without external coach | F35: Internal reviewer | G35: TRUE | H35: FALSE | I35: TRUE | J35: 1 | K35: 1 | L35: 1 | M35: 1 | N35: 1 | O35: 1 | P35: 1 | Q35: 2 | R35: 2 | S35: 1 | T35: 1 | U35: 2 | V35: 1 | W35: 1 | X35: 1 | AL35: 2 | AM35: 2 | AN35: 2 | AO35: 2 | AP35: 2 | AQ35: 2 | AR35: 2 | AS35: 2 | AT35: 2 | AU35: 2 | AV35: 2 | AW35: 2 | AX35: 2 | AY35: 2 | AZ35: 2 | BA35: 2 | BB35: 2
A36: 99999999999 | B36: C Middle | C36: 2018-03-13 | D36: 201718 | E36: Team and external coach together | F36: External reviewer | G36: TRUE | H36: TRUE | I36: FALSE | J36: 2 | K36: 2 | L36: 2 | M36: 2 | N36: 2 | O36: 2 | P36: 2 | Q36: 2 | R36: 2 | S36: 2 | T36: 1 | U36: 2 | V36: 2 | W36: 2 | X36: 2 | Y36: 2 | Z36: 2 | AA36: 2 | AB36: 2 | AC36: 2 | AD36: 2 | AE36: 2 | AF36: 2 | AG36: 2 | AH36: 1 | AI36: 2 | AJ36: 2 | AK36: 2
A37: 99999999999 | B37: C Middle | C37: 2022-03-31 | D37: 202122 | E37: Team without external coach | F37: Internal reviewer | G37: TRUE | H37: TRUE | I37: TRUE | J37: 2 | K37: 2 | L37: 2 | M37: 2 | N37: 2 | O37: 1 | P37: 1 | Q37: 2 | R37: 2 | S37: 2 | T37: 0 | U37: 2 | V37: 2 | W37: 2 | X37: 1 | Y37: 2 | Z37: 2 | AA37: 1 | AB37: 1 | AC37: 2 | AD37: 2 | AE37: 1 | AF37: 2 | AG37: 1 | AH37: 0 | AI37: 1 | AJ37: 0 | AK37: 1 | AL37: 2 | AM37: 2 | AN37: 2 | AO37: 1 | AP37: 1 | AQ37: 1 | AR37: 1 | AS37: 1 | AT37: 2 | AU37: 2 | AV37: 1 | AW37: 1 | AX37: 2 | AY37: 1 | AZ37: 2 | BA37: 1 | BB37: 1
A38: 99999999999 | B38: C Middle | C38: 2019-03-22 | D38: 201819 | E38: Team without external coach | F38: Internal reviewer | G38: TRUE | H38: TRUE | I38: TRUE | J38: 2 | K38: 2 | L38: 2 | M38: 2 | N38: 2 | O38: 2 | P38: 2 | Q38: 2 | R38: 2 | S38: 2 | T38: 2 | U38: 2 | V38: 2 | W38: 2 | X38: 2 | Y38: 2 | Z38: 2 | AA38: 2 | AB38: 2 | AC38: 2 | AD38: 2 | AE38: 2 | AF38: 2 | AG38: 2 | AH38: 1 | AI38: 1 | AJ38: 1 | AK38: 2 | AL38: 2 | AM38: 2 | AN38: 2 | AO38: 2 | AP38: 2 | AQ38: 2 | AR38: 2 | AS38: 0 | AT38: 2 | AU38: 2 | AV38: 2 | AW38: 1 | AX38: 2 | AY38: 2 | AZ38: 2 | BA38: 1 | BB38: 2
A39: 99999999999 | B39: C Middle | C39: 2021-03-24 | D39: 202021 | E39: Team without external coach | F39: Internal reviewer | G39: TRUE | H39: TRUE | I39: TRUE | J39: 2 | K39: 2 | L39: 2 | M39: 2 | N39: 2 | O39: 1 | P39: 2 | Q39: 2 | R39: 2 | S39: 2 | T39: 1 | U39: 2 | V39: 2 | W39: 2 | X39: 2 | Y39: 2 | Z39: 2 | AA39: 2 | AB39: 1 | AC39: 2 | AD39: 1 | AE39: 2 | AF39: 2 | AG39: 2 | AH39: 1 | AI39: 1 | AJ39: 1 | AK39: 2 | AL39: 2 | AM39: 2 | AN39: 2 | AO39: 2 | AP39: 2 | AQ39: 2 | AR39: 1 | AS39: 1 | AT39: 1 | AU39: 2 | AV39: 2 | AW39: 0 | AX39: 2 | AY39: 2 | AZ39: 2 | BA39: 2 | BB39: 1
A40: 99999999999 | B40: E Elementary | C40: 2019-04-10 | D40: 201819 | E40: Team without external coach | F40: Internal reviewer | G40: TRUE | H40: TRUE | I40: TRUE | J40: 2 | K40: 2 | L40: 2 | M40: 1 | N40: 2 | O40: 2 | P40: 1 | Q40: 2 | R40: 1 | S40: 1 | T40: 2 | U40: 2 | V40: 2 | W40: 2 | X40: 2 | Y40: 2 | Z40: 2 | AA40: 1 | AB40: 1 | AC40: 2 | AD40: 1 | AE40: 2 | AF40: 2 | AG40: 1 | AH40: 1 | AI40: 1 | AJ40: 2 | AK40: 1 | AL40: 1 | AM40: 1 | AN40: 2 | AO40: 2 | AP40: 2 | AQ40: 2 | AR40: 1 | AS40: 1 | AT40: 2 | AU40: 0 | AV40: 1 | AW40: 2 | AX40: 1 | AY40: 0 | AZ40: 1 | BA40: 2 | BB40: 1
A41: 99999999999 | B41: E Elementary | C41: 2021-03-30 | D41: 202021 | E41: Team without external coach | F41: TFI Walkthrough Tool not completed | G41: TRUE | H41: TRUE | I41: FALSE | J41: 1 | K41: 1 | L41: 2 | M41: 1 | N41: 2 | O41: 2 | P41: 1 | Q41: 2 | R41: 1 | S41: 2 | T41: 2 | U41: 2 | V41: 2 | W41: 1 | X41: 1 | Y41: 1 | Z41: 1 | AA41: 1 | AB41: 1 | AC41: 0 | AD41: 0 | AE41: 0 | AF41: 0 | AG41: 1 | AH41: 0 | AI41: 0 | AJ41: 1 | AK41: 1
A42: 99999999999 | B42: E Elementary | C42: 2022-04-15 | D42: 202122 | E42: Team without external coach | F42: TFI Walkthrough Tool not completed | G42: TRUE | H42: TRUE | I42: TRUE | J42: 2 | K42: 1 | L42: 1 | M42: 1 | N42: 1 | O42: 2 | P42: 0 | Q42: 1 | R42: 0 | S42: 1 | T42: 0 | U42: 2 | V42: 1 | W42: 0 | X42: 0 | Y42: 1 | Z42: 1 | AA42: 1 | AB42: 0 | AC42: 1 | AD42: 0 | AE42: 1 | AF42: 1 | AG42: 1 | AH42: 1 | AI42: 2 | AJ42: 1 | AK42: 1 | AL42: 2 | AM42: 2 | AN42: 1 | AO42: 2 | AP42: 2 | AQ42: 2 | AR42: 1 | AS42: 1 | AT42: 1 | AU42: 2 | AV42: 2 | AW42: 2 | AX42: 2 | AY42: 2 | AZ42: 1 | BA42: 1 | BB42: 2
A43: 99999999999 | B43: F Elementary | C43: 2022-03-16 | D43: 202122 | E43: Team without external coach | F43: TFI Walkthrough Tool not completed | G43: TRUE | H43: TRUE | I43: FALSE | J43: 1 | K43: 1 | L43: 2 | M43: 2 | N43: 2 | O43: 2 | P43: 1 | Q43: 2 | R43: 1 | S43: 1 | T43: 1 | U43: 2 | V43: 2 | W43: 1 | X43: 1 | Y43: 1 | Z43: 1 | AA43: 2 | AB43: 1 | AC43: 2 | AD43: 1 | AE43: 2 | AF43: 2 | AG43: 1 | AH43: 1 | AI43: 2 | AJ43: 1 | AK43: 1
A44: 99999999999 | B44: F Elementary | C44: 2019-02-21 | D44: 201819 | E44: Team without external coach | F44: TFI Walkthrough Tool not completed | G44: TRUE | H44: TRUE | I44: FALSE | J44: 2 | K44: 1 | L44: 2 | M44: 2 | N44: 2 | O44: 2 | P44: 2 | Q44: 2 | R44: 2 | S44: 1 | T44: 0 | U44: 2 | V44: 1 | W44: 2 | X44: 1 | Y44: 2 | Z44: 0 | AA44: 1 | AB44: 1 | AC44: 1 | AD44: 1 | AE44: 1 | AF44: 2 | AG44: 1 | AH44: 0 | AI44: 0 | AJ44: 0 | AK44: 0
A45: 99999999999 | B45: F Elementary | C45: 2021-02-12 | D45: 202021 | E45: Team without external coach | F45: TFI Walkthrough Tool not completed | G45: TRUE | H45: TRUE | I45: FALSE | J45: 1 | K45: 1 | L45: 2 | M45: 2 | N45: 2 | O45: 2 | P45: 2 | Q45: 2 | R45: 2 | S45: 1 | T45: 1 | U45: 2 | V45: 2 | W45: 2 | X45: 2 | Y45: 2 | Z45: 2 | AA45: 2 | AB45: 2 | AC45: 2 | AD45: 2 | AE45: 2 | AF45: 2 | AG45: 2 | AH45: 1 | AI45: 2 | AJ45: 2 | AK45: 2
A46: 99999999999 | B46: F Elementary | C46: 2020-03-11 | D46: 201920 | E46: Team without external coach | F46: TFI Walkthrough Tool not completed | G46: TRUE | H46: TRUE | I46: TRUE | J46: 1 | K46: 1 | L46: 2 | M46: 2 | N46: 2 | O46: 2 | P46: 2 | Q46: 2 | R46: 2 | S46: 2 | T46: 1 | U46: 2 | V46: 1 | W46: 2 | X46: 2 | Y46: 2 | Z46: 1 | AA46: 1 | AB46: 1 | AC46: 1 | AD46: 1 | AE46: 1 | AF46: 1 | AG46: 1 | AH46: 1 | AI46: 1 | AJ46: 1 | AK46: 1 | AL46: 0 | AM46: 1 | AN46: 1 | AO46: 1 | AP46: 1 | AQ46: 1 | AR46: 2 | AS46: 2 | AT46: 2 | AU46: 2 | AV46: 2 | AW46: 1 | AX46: 2 | AY46: 1 | AZ46: 1 | BA46: 1 | BB46: 1

Sheet Comparison
F1: TFI (Team Perceptions; only schools that took the TFI are included in this list) | J1: Self-Assessment Survey (Staff Perceptions; schools that did not take the TFI are excluded))
A2: School | B2: SchoolYear | C2: Tier1Assessed | D2: Tier2Assessed | E2: Tier3Assessed | F2: TotalRatio | G2: Tier1TotalRatio | H2: Tier2TotalRatio | I2: Tier3TotalRatio | J2: SAS_SW_In_Place | K2: SAS_NCR_In-Place | L2: SAS_CR_In_Place | M2: SAS_Indv_In_Place
A3: A Elementary | B3: 201819 | C3: TRUE | D3: TRUE | E3: TRUE | F3: 0.5556 | G3: 0.5667 | H3: 0.6154 | I3: 0.5 | J3: =SUMIFS(SAS_Table!C:C,SAS_Table!A:A,Comparison[[#This Row],[School]],SAS_Table!B:B,Comparison[[#This Row],[SchoolYear]])/SUMIFS(SAS_Table!D:D,SAS_Table!A:A,Comparison[[#This Row],[School]],SAS_Table!B:B,Comparison[[#This Row],[SchoolYear]]) -> 0.683982684 | K3: =SUMIFS(SAS_Table!E:E,SAS_Table!A:A,Comparison[[#This Row],[School]],SAS_Table!B:B,Comparison[[#This Row],[SchoolYear]])/SUMIFS(SAS_Table!F:F,SAS_Table!A:A,Comparison[[#This Row],[School]],SAS_Table!B:B,Comparison[[#This Row],[SchoolYear]]) -> 0.7264957265 | L3: =SUMIFS(SAS_Table!G:G,SAS_Table!A:A,Comparison[[#This Row],[School]],SAS_Table!B:B,Comparison[[#This Row],[SchoolYear]])/SUMIFS(SAS_Table!H:H,SAS_Table!A:A,Comparison[[#This Row],[School]],SAS_Table!B:B,Comparison[[#This Row],[SchoolYear]]) -> 0.5051546392 | M3: =SUMIFS(SAS_Table!I:I,SAS_Table!A:A,Comparison[[#This Row],[School]],SAS_Table!B:B,Comparison[[#This Row],[SchoolYear]])/SUMIFS(SAS_Table!J:J,SAS_Table!A:A,Comparison[[#This Row],[School]],SAS_Table!B:B,Comparison[[#This Row],[SchoolYear]]) -> 0.4540540541
A4: A Elementary | B4: 202021 | C4: TRUE | D4: TRUE | E4: TRUE | F4: 0.6667 | G4: 0.8667 | H4: 0.5 | I4: 0.6176 | J4: =SUMIFS(SAS_Table!C:C,SAS_Table!A:A,Comparison[[#This Row],[School]],SAS_Table!B:B,Comparison[[#This Row],[SchoolYear]])/SUMIFS(SAS_Table!D:D,SAS_Table!A:A,Comparison[[#This Row],[School]],SAS_Table!B:B,Comparison[[#This Row],[SchoolYear]]) -> 0.7034220532 | K4: =SUMIFS(SAS_Table!E:E,SAS_Table!A:A,Comparison[[#This Row],[School]],SAS_Table!B:B,Comparison[[#This Row],[SchoolYear]])/SUMIFS(SAS_Table!F:F,SAS_Table!A:A,Comparison[[#This Row],[School]],SAS_Table!B:B,Comparison[[#This Row],[SchoolYear]]) -> 0.768115942 | L4: =SUMIFS(SAS_Table!G:G,SAS_Table!A:A,Comparison[[#This Row],[School]],SAS_Table!B:B,Comparison[[#This Row],[SchoolYear]])/SUMIFS(SAS_Table!H:H,SAS_Table!A:A,Comparison[[#This Row],[School]],SAS_Table!B:B,Comparison[[#This Row],[SchoolYear]]) -> 0.6646706587 | M4: =SUMIFS(SAS_Table!I:I,SAS_Table!A:A,Comparison[[#This Row],[School]],SAS_Table!B:B,Comparison[[#This Row],[SchoolYear]])/SUMIFS(SAS_Table!J:J,SAS_Table!A:A,Comparison[[#This Row],[School]],SAS_Table!B:B,Comparison[[#This Row],[SchoolYear]]) -> 0.5740740741
A5: A Elementary | B5: 201718 | C5: TRUE | D5: TRUE | E5: FALSE | F5: 0.4667 | G5: 0.7333 | H5: 0.7692 | J5: =SUMIFS(SAS_Table!C:C,SAS_Table!A:A,Comparison[[#This Row],[School]],SAS_Table!B:B,Comparison[[#This Row],[SchoolYear]])/SUMIFS(SAS_Table!D:D,SAS_Table!A:A,Comparison[[#This Row],[School]],SAS_Table!B:B,Comparison[[#This Row],[SchoolYear]]) -> 0.8138801262 | K5: =SUMIFS(SAS_Table!E:E,SAS_Table!A:A,Comparison[[#This Row],[School]],SAS_Table!B:B,Comparison[[#This Row],[SchoolYear]])/SUMIFS(SAS_Table!F:F,SAS_Table!A:A,Comparison[[#This Row],[School]],SAS_Table!B:B,Comparison[[#This Row],[SchoolYear]]) -> 0.7870967742 | L5: =SUMIFS(SAS_Table!G:G,SAS_Table!A:A,Comparison[[#This Row],[School]],SAS_Table!B:B,Comparison[[#This Row],[SchoolYear]])/SUMIFS(SAS_Table!H:H,SAS_Table!A:A,Comparison[[#This Row],[School]],SAS_Table!B:B,Comparison[[#This Row],[SchoolYear]]) -> 0.76 | M5: =SUMIFS(SAS_Table!I:I,SAS_Table!A:A,Comparison[[#This Row],[School]],SAS_Table!B:B,Comparison[[#This Row],[SchoolYear]])/SUMIFS(SAS_Table!J:J,SAS_Table!A:A,Comparison[[#This Row],[School]],SAS_Table!B:B,Comparison[[#This Row],[SchoolYear]]) -> 0.6396396396
A6: A Elementary | B6: 202122 | C6: TRUE | D6: TRUE | E6: FALSE | F6: 0.2667 | G6: 0.5333 | H6: 0.3077 | J6: =SUMIFS(SAS_Table!C:C,SAS_Table!A:A,Comparison[[#This Row],[School]],SAS_Table!B:B,Comparison[[#This Row],[SchoolYear]])/SUMIFS(SAS_Table!D:D,SAS_Table!A:A,Comparison[[#This Row],[School]],SAS_Table!B:B,Comparison[[#This Row],[SchoolYear]]) -> 0.6206896552 | K6: =SUMIFS(SAS_Table!E:E,SAS_Table!A:A,Comparison[[#This Row],[School]],SAS_Table!B:B,Comparison[[#This Row],[SchoolYear]])/SUMIFS(SAS_Table!F:F,SAS_Table!A:A,Comparison[[#This Row],[School]],SAS_Table!B:B,Comparison[[#This Row],[SchoolYear]]) -> 0.6218487395 | L6: =SUMIFS(SAS_Table!G:G,SAS_Table!A:A,Comparison[[#This Row],[School]],SAS_Table!B:B,Comparison[[#This Row],[SchoolYear]])/SUMIFS(SAS_Table!H:H,SAS_Table!A:A,Comparison[[#This Row],[School]],SAS_Table!B:B,Comparison[[#This Row],[SchoolYear]]) -> 0.5816993464 | M6: =SUMIFS(SAS_Table!I:I,SAS_Table!A:A,Comparison[[#This Row],[School]],SAS_Table!B:B,Comparison[[#This Row],[SchoolYear]])/SUMIFS(SAS_Table!J:J,SAS_Table!A:A,Comparison[[#This Row],[School]],SAS_Table!B:B,Comparison[[#This Row],[SchoolYear]]) -> 0.5922330097
A7: A High | B7: 202021 | C7: TRUE | D7: TRUE | E7: TRUE | F7: 0.9222 | G7: 0.9667 | H7: 0.9615 | I7: 0.8529 | J7: =SUMIFS(SAS_Table!C:C,SAS_Table!A:A,Comparison[[#This Row],[School]],SAS_Table!B:B,Comparison[[#This Row],[SchoolYear]])/SUMIFS(SAS_Table!D:D,SAS_Table!A:A,Comparison[[#This Row],[School]],SAS_Table!B:B,Comparison[[#This Row],[SchoolYear]]) -> 0.8828956707 | K7: =SUMIFS(SAS_Table!E:E,SAS_Table!A:A,Comparison[[#This Row],[School]],SAS_Table!B:B,Comparison[[#This Row],[SchoolYear]])/SUMIFS(SAS_Table!F:F,SAS_Table!A:A,Comparison[[#This Row],[School]],SAS_Table!B:B,Comparison[[#This Row],[SchoolYear]]) -> 0.8673323823 | L7: =SUMIFS(SAS_Table!G:G,SAS_Table!A:A,Comparison[[#This Row],[School]],SAS_Table!B:B,Comparison[[#This Row],[SchoolYear]])/SUMIFS(SAS_Table!H:H,SAS_Table!A:A,Comparison[[#This Row],[School]],SAS_Table!B:B,Comparison[[#This Row],[SchoolYear]]) -> 0.8219339623 | M7: =SUMIFS(SAS_Table!I:I,SAS_Table!A:A,Comparison[[#This Row],[School]],SAS_Table!B:B,Comparison[[#This Row],[SchoolYear]])/SUMIFS(SAS_Table!J:J,SAS_Table!A:A,Comparison[[#This Row],[School]],SAS_Table!B:B,Comparison[[#This Row],[SchoolYear]]) -> 0.7560553633
A8: A High | B8: 201819 | C8: TRUE | D8: TRUE | E8: TRUE | F8: 0.6556 | G8: 0.8 | H8: 0.8462 | I8: 0.3824 | J8: =SUMIFS(SAS_Table!C:C,SAS_Table!A:A,Comparison[[#This Row],[School]],SAS_Table!B:B,Comparison[[#This Row],[SchoolYear]])/SUMIFS(SAS_Table!D:D,SAS_Table!A:A,Comparison[[#This Row],[School]],SAS_Table!B:B,Comparison[[#This Row],[SchoolYear]]) -> 0.9106783076 | K8: =SUMIFS(SAS_Table!E:E,SAS_Table!A:A,Comparison[[#This Row],[School]],SAS_Table!B:B,Comparison[[#This Row],[SchoolYear]])/SUMIFS(SAS_Table!F:F,SAS_Table!A:A,Comparison[[#This Row],[School]],SAS_Table!B:B,Comparison[[#This Row],[SchoolYear]]) -> 0.8891891892 | L8: =SUMIFS(SAS_Table!G:G,SAS_Table!A:A,Comparison[[#This Row],[School]],SAS_Table!B:B,Comparison[[#This Row],[SchoolYear]])/SUMIFS(SAS_Table!H:H,SAS_Table!A:A,Comparison[[#This Row],[School]],SAS_Table!B:B,Comparison[[#This Row],[SchoolYear]]) -> 0.9117647059 | M8: =SUMIFS(SAS_Table!I:I,SAS_Table!A:A,Comparison[[#This Row],[School]],SAS_Table!B:B,Comparison[[#This Row],[SchoolYear]])/SUMIFS(SAS_Table!J:J,SAS_Table!A:A,Comparison[[#This Row],[School]],SAS_Table!B:B,Comparison[[#This Row],[SchoolYear]]) -> 0.882725832
A9: A High | B9: 201718 | C9: TRUE | D9: TRUE | E9: FALSE | F9: 0.4444 | G9: 0.7667 | H9: 0.6538 | J9: =SUMIFS(SAS_Table!C:C,SAS_Table!A:A,Comparison[[#This Row],[School]],SAS_Table!B:B,Comparison[[#This Row],[SchoolYear]])/SUMIFS(SAS_Table!D:D,SAS_Table!A:A,Comparison[[#This Row],[School]],SAS_Table!B:B,Comparison[[#This Row],[SchoolYear]]) -> 0.5432835821 | K9: =SUMIFS(SAS_Table!E:E,SAS_Table!A:A,Comparison[[#This Row],[School]],SAS_Table!B:B,Comparison[[#This Row],[SchoolYear]])/SUMIFS(SAS_Table!F:F,SAS_Table!A:A,Comparison[[#This Row],[School]],SAS_Table!B:B,Comparison[[#This Row],[SchoolYear]]) -> 0.4063492063 | L9: =SUMIFS(SAS_Table!G:G,SAS_Table!A:A,Comparison[[#This Row],[School]],SAS_Table!B:B,Comparison[[#This Row],[SchoolYear]])/SUMIFS(SAS_Table!H:H,SAS_Table!A:A,Comparison[[#This Row],[School]],SAS_Table!B:B,Comparison[[#This Row],[SchoolYear]]) -> 0.4721485411 | M9: =SUMIFS(SAS_Table!I:I,SAS_Table!A:A,Comparison[[#This Row],[School]],SAS_Table!B:B,Comparison[[#This Row],[SchoolYear]])/SUMIFS(SAS_Table!J:J,SAS_Table!A:A,Comparison[[#This Row],[School]],SAS_Table!B:B,Comparison[[#This Row],[SchoolYear]]) -> 0.4402173913
A10: A High | B10: 202122 | C10: TRUE | D10: TRUE | E10: TRUE | F10: 0.9556 | G10: 0.9667 | H10: 1 | I10: 0.9118 | J10: =SUMIFS(SAS_Table!C:C,SAS_Table!A:A,Comparison[[#This Row],[School]],SAS_Table!B:B,Comparison[[#This Row],[SchoolYear]])/SUMIFS(SAS_Table!D:D,SAS_Table!A:A,Comparison[[#This Row],[School]],SAS_Table!B:B,Comparison[[#This Row],[SchoolYear]]) -> 0.8019246191 | K10: =SUMIFS(SAS_Table!E:E,SAS_Table!A:A,Comparison[[#This Row],[School]],SAS_Table!B:B,Comparison[[#This Row],[SchoolYear]])/SUMIFS(SAS_Table!F:F,SAS_Table!A:A,Comparison[[#This Row],[School]],SAS_Table!B:B,Comparison[[#This Row],[SchoolYear]]) -> 0.7232 | L10: =SUMIFS(SAS_Table!G:G,SAS_Table!A:A,Comparison[[#This Row],[School]],SAS_Table!B:B,Comparison[[#This Row],[SchoolYear]])/SUMIFS(SAS_Table!H:H,SAS_Table!A:A,Comparison[[#This Row],[School]],SAS_Table!B:B,Comparison[[#This Row],[SchoolYear]]) -> 0.7379400261 | M10: =SUMIFS(SAS_Table!I:I,SAS_Table!A:A,Comparison[[#This Row],[School]],SAS_Table!B:B,Comparison[[#This Row],[SchoolYear]])/SUMIFS(SAS_Table!J:J,SAS_Table!A:A,Comparison[[#This Row],[School]],SAS_Table!B:B,Comparison[[#This Row],[SchoolYear]]) -> 0.7145790554
A11: A High | B11: 201920 | C11: TRUE | D11: TRUE | E11: TRUE | F11: 0.6667 | G11: 0.9 | H11: 0.9231 | I11: 0.2647 | J11: =SUMIFS(SAS_Table!C:C,SAS_Table!A:A,Comparison[[#This Row],[School]],SAS_Table!B:B,Comparison[[#This Row],[SchoolYear]])/SUMIFS(SAS_Table!D:D,SAS_Table!A:A,Comparison[[#This Row],[School]],SAS_Table!B:B,Comparison[[#This Row],[SchoolYear]]) -> 0.8480161399 | K11: =SUMIFS(SAS_Table!E:E,SAS_Table!A:A,Comparison[[#This Row],[School]],SAS_Table!B:B,Comparison[[#This Row],[SchoolYear]])/SUMIFS(SAS_Table!F:F,SAS_Table!A:A,Comparison[[#This Row],[School]],SAS_Table!B:B,Comparison[[#This Row],[SchoolYear]]) -> 0.7753721245 | L11: =SUMIFS(SAS_Table!G:G,SAS_Table!A:A,Comparison[[#This Row],[School]],SAS_Table!B:B,Comparison[[#This Row],[SchoolYear]])/SUMIFS(SAS_Table!H:H,SAS_Table!A:A,Comparison[[#This Row],[School]],SAS_Table!B:B,Comparison[[#This Row],[SchoolYear]]) -> 0.7721661055 | M11: =SUMIFS(SAS_Table!I:I,SAS_Table!A:A,Comparison[[#This Row],[School]],SAS_Table!B:B,Comparison[[#This Row],[SchoolYear]])/SUMIFS(SAS_Table!J:J,SAS_Table!A:A,Comparison[[#This Row],[School]],SAS_Table!B:B,Comparison[[#This Row],[SchoolYear]]) -> 0.605815832
A12: A Middle | B12: 202021 | C12: TRUE | D12: TRUE | E12: TRUE | F12: 0.8667 | G12: 1 | H12: 1 | I12: 0.6471 | J12: =SUMIFS(SAS_Table!C:C,SAS_Table!A:A,Comparison[[#This Row],[School]],SAS_Table!B:B,Comparison[[#This Row],[SchoolYear]])/SUMIFS(SAS_Table!D:D,SAS_Table!A:A,Comparison[[#This Row],[School]],SAS_Table!B:B,Comparison[[#This Row],[SchoolYear]]) -> 0.8384146341 | K12: =SUMIFS(SAS_Table!E:E,SAS_Table!A:A,Comparison[[#This Row],[School]],SAS_Table!B:B,Comparison[[#This Row],[SchoolYear]])/SUMIFS(SAS_Table!F:F,SAS_Table!A:A,Comparison[[#This Row],[School]],SAS_Table!B:B,Comparison[[#This Row],[SchoolYear]]) -> 0.8547854785 | L12: =SUMIFS(SAS_Table!G:G,SAS_Table!A:A,Comparison[[#This Row],[School]],SAS_Table!B:B,Comparison[[#This Row],[SchoolYear]])/SUMIFS(SAS_Table!H:H,SAS_Table!A:A,Comparison[[#This Row],[School]],SAS_Table!B:B,Comparison[[#This Row],[SchoolYear]]) -> 0.812987013 | M12: =SUMIFS(SAS_Table!I:I,SAS_Table!A:A,Comparison[[#This Row],[School]],SAS_Table!B:B,Comparison[[#This Row],[SchoolYear]])/SUMIFS(SAS_Table!J:J,SAS_Table!A:A,Comparison[[#This Row],[School]],SAS_Table!B:B,Comparison[[#This Row],[SchoolYear]]) -> 0.7565217391
A13: A Middle | B13: 201920 | C13: TRUE | D13: TRUE | E13: TRUE | F13: 0.7333 | G13: 0.9667 | H13: 0.9231 | I13: 0.3824 | J13: =SUMIFS(SAS_Table!C:C,SAS_Table!A:A,Comparison[[#This Row],[School]],SAS_Table!B:B,Comparison[[#This Row],[SchoolYear]])/SUMIFS(SAS_Table!D:D,SAS_Table!A:A,Comparison[[#This Row],[School]],SAS_Table!B:B,Comparison[[#This Row],[SchoolYear]]) -> 0.7667161961 | K13: =SUMIFS(SAS_Table!E:E,SAS_Table!A:A,Comparison[[#This Row],[School]],SAS_Table!B:B,Comparison[[#This Row],[SchoolYear]])/SUMIFS(SAS_Table!F:F,SAS_Table!A:A,Comparison[[#This Row],[School]],SAS_Table!B:B,Comparison[[#This Row],[SchoolYear]]) -> 0.724340176 | L13: =SUMIFS(SAS_Table!G:G,SAS_Table!A:A,Comparison[[#This Row],[School]],SAS_Table!B:B,Comparison[[#This Row],[SchoolYear]])/SUMIFS(SAS_Table!H:H,SAS_Table!A:A,Comparison[[#This Row],[School]],SAS_Table!B:B,Comparison[[#This Row],[SchoolYear]]) -> 0.7326968974 | M13: =SUMIFS(SAS_Table!I:I,SAS_Table!A:A,Comparison[[#This Row],[School]],SAS_Table!B:B,Comparison[[#This Row],[SchoolYear]])/SUMIFS(SAS_Table!J:J,SAS_Table!A:A,Comparison[[#This Row],[School]],SAS_Table!B:B,Comparison[[#This Row],[SchoolYear]]) -> 0.6971830986
A14: A Middle | B14: 202122 | C14: TRUE | D14: TRUE | E14: TRUE | F14: 0.8667 | G14: 1 | H14: 1 | I14: 0.6471 | J14: =SUMIFS(SAS_Table!C:C,SAS_Table!A:A,Comparison[[#This Row],[School]],SAS_Table!B:B,Comparison[[#This Row],[SchoolYear]])/SUMIFS(SAS_Table!D:D,SAS_Table!A:A,Comparison[[#This Row],[School]],SAS_Table!B:B,Comparison[[#This Row],[SchoolYear]]) -> 0.7973333333 | K14: =SUMIFS(SAS_Table!E:E,SAS_Table!A:A,Comparison[[#This Row],[School]],SAS_Table!B:B,Comparison[[#This Row],[SchoolYear]])/SUMIFS(SAS_Table!F:F,SAS_Table!A:A,Comparison[[#This Row],[School]],SAS_Table!B:B,Comparison[[#This Row],[SchoolYear]]) -> 0.7493112948 | L14: =SUMIFS(SAS_Table!G:G,SAS_Table!A:A,Comparison[[#This Row],[School]],SAS_Table!B:B,Comparison[[#This Row],[SchoolYear]])/SUMIFS(SAS_Table!H:H,SAS_Table!A:A,Comparison[[#This Row],[School]],SAS_Table!B:B,Comparison[[#This Row],[SchoolYear]]) -> 0.7329059829 | M14: =SUMIFS(SAS_Table!I:I,SAS_Table!A:A,Comparison[[#This Row],[School]],SAS_Table!B:B,Comparison[[#This Row],[SchoolYear]])/SUMIFS(SAS_Table!J:J,SAS_Table!A:A,Comparison[[#This Row],[School]],SAS_Table!B:B,Comparison[[#This Row],[SchoolYear]]) -> 0.7721518987
A15: A Middle | B15: 201819 | C15: TRUE | D15: TRUE | E15: TRUE | F15: 0.7111 | G15: 0.9667 | H15: 0.9231 | I15: 0.3235 | J15: =SUMIFS(SAS_Table!C:C,SAS_Table!A:A,Comparison[[#This Row],[School]],SAS_Table!B:B,Comparison[[#This Row],[SchoolYear]])/SUMIFS(SAS_Table!D:D,SAS_Table!A:A,Comparison[[#This Row],[School]],SAS_Table!B:B,Comparison[[#This Row],[SchoolYear]]) -> 0.8217948718 | K15: =SUMIFS(SAS_Table!E:E,SAS_Table!A:A,Comparison[[#This Row],[School]],SAS_Table!B:B,Comparison[[#This Row],[SchoolYear]])/SUMIFS(SAS_Table!F:F,SAS_Table!A:A,Comparison[[#This Row],[School]],SAS_Table!B:B,Comparison[[#This Row],[SchoolYear]]) -> 0.7270341207 | L15: =SUMIFS(SAS_Table!G:G,SAS_Table!A:A,Comparison[[#This Row],[School]],SAS_Table!B:B,Comparison[[#This Row],[SchoolYear]])/SUMIFS(SAS_Table!H:H,SAS_Table!A:A,Comparison[[#This Row],[School]],SAS_Table!B:B,Comparison[[#This Row],[SchoolYear]]) -> 0.7022587269 | M15: =SUMIFS(SAS_Table!I:I,SAS_Table!A:A,Comparison[[#This Row],[School]],SAS_Table!B:B,Comparison[[#This Row],[SchoolYear]])/SUMIFS(SAS_Table!J:J,SAS_Table!A:A,Comparison[[#This Row],[School]],SAS_Table!B:B,Comparison[[#This Row],[SchoolYear]]) -> 0.6818181818
A16: A Middle | B16: 201718 | C16: TRUE | D16: TRUE | E16: TRUE | F16: 0.5889 | G16: 0.7667 | H16: 0.6538 | I16: 0.3824 | J16: =SUMIFS(SAS_Table!C:C,SAS_Table!A:A,Comparison[[#This Row],[School]],SAS_Table!B:B,Comparison[[#This Row],[SchoolYear]])/SUMIFS(SAS_Table!D:D,SAS_Table!A:A,Comparison[[#This Row],[School]],SAS_Table!B:B,Comparison[[#This Row],[SchoolYear]]) -> 0.6866566717 | K16: =SUMIFS(SAS_Table!E:E,SAS_Table!A:A,Comparison[[#This Row],[School]],SAS_Table!B:B,Comparison[[#This Row],[SchoolYear]])/SUMIFS(SAS_Table!F:F,SAS_Table!A:A,Comparison[[#This Row],[School]],SAS_Table!B:B,Comparison[[#This Row],[SchoolYear]]) -> 0.6592356688 | L16: =SUMIFS(SAS_Table!G:G,SAS_Table!A:A,Comparison[[#This Row],[School]],SAS_Table!B:B,Comparison[[#This Row],[SchoolYear]])/SUMIFS(SAS_Table!H:H,SAS_Table!A:A,Comparison[[#This Row],[School]],SAS_Table!B:B,Comparison[[#This Row],[SchoolYear]]) -> 0.6271186441 | M16: =SUMIFS(SAS_Table!I:I,SAS_Table!A:A,Comparison[[#This Row],[School]],SAS_Table!B:B,Comparison[[#This Row],[SchoolYear]])/SUMIFS(SAS_Table!J:J,SAS_Table!A:A,Comparison[[#This Row],[School]],SAS_Table!B:B,Comparison[[#This Row],[SchoolYear]]) -> 0.5518672199
A17: B Elementary | B17: 201920 | C17: TRUE | D17: TRUE | E17: TRUE | F17: 0.8889 | G17: 0.8 | H17: 0.8846 | I17: 0.9706 | J17: =SUMIFS(SAS_Table!C:C,SAS_Table!A:A,Comparison[[#This Row],[School]],SAS_Table!B:B,Comparison[[#This Row],[SchoolYear]])/SUMIFS(SAS_Table!D:D,SAS_Table!A:A,Comparison[[#This Row],[School]],SAS_Table!B:B,Comparison[[#This Row],[SchoolYear]]) -> 0.7872340426 | K17: =SUMIFS(SAS_Table!E:E,SAS_Table!A:A,Comparison[[#This Row],[School]],SAS_Table!B:B,Comparison[[#This Row],[SchoolYear]])/SUMIFS(SAS_Table!F:F,SAS_Table!A:A,Comparison[[#This Row],[School]],SAS_Table!B:B,Comparison[[#This Row],[SchoolYear]]) -> 0.7837837838 | L17: =SUMIFS(SAS_Table!G:G,SAS_Table!A:A,Comparison[[#This Row],[School]],SAS_Table!B:B,Comparison[[#This Row],[SchoolYear]])/SUMIFS(SAS_Table!H:H,SAS_Table!A:A,Comparison[[#This Row],[School]],SAS_Table!B:B,Comparison[[#This Row],[SchoolYear]]) -> 0.8279569892 | M17: =SUMIFS(SAS_Table!I:I,SAS_Table!A:A,Comparison[[#This Row],[School]],SAS_Table!B:B,Comparison[[#This Row],[SchoolYear]])/SUMIFS(SAS_Table!J:J,SAS_Table!A:A,Comparison[[#This Row],[School]],SAS_Table!B:B,Comparison[[#This Row],[SchoolYear]]) -> 0.7410714286
A18: B Elementary | B18: 202021 | C18: TRUE | D18: TRUE | E18: TRUE | F18: 1 | G18: 1 | H18: 1 | I18: 1 | J18: =SUMIFS(SAS_Table!C:C,SAS_Table!A:A,Comparison[[#This Row],[School]],SAS_Table!B:B,Comparison[[#This Row],[SchoolYear]])/SUMIFS(SAS_Table!D:D,SAS_Table!A:A,Comparison[[#This Row],[School]],SAS_Table!B:B,Comparison[[#This Row],[SchoolYear]]) -> 0.6847389558 | K18: =SUMIFS(SAS_Table!E:E,SAS_Table!A:A,Comparison[[#This Row],[School]],SAS_Table!B:B,Comparison[[#This Row],[SchoolYear]])/SUMIFS(SAS_Table!F:F,SAS_Table!A:A,Comparison[[#This Row],[School]],SAS_Table!B:B,Comparison[[#This Row],[SchoolYear]]) -> 0.8089430894 | L18: =SUMIFS(SAS_Table!G:G,SAS_Table!A:A,Comparison[[#This Row],[School]],SAS_Table!B:B,Comparison[[#This Row],[SchoolYear]])/SUMIFS(SAS_Table!H:H,SAS_Table!A:A,Comparison[[#This Row],[School]],SAS_Table!B:B,Comparison[[#This Row],[SchoolYear]]) -> 0.7431192661 | M18: =SUMIFS(SAS_Table!I:I,SAS_Table!A:A,Comparison[[#This Row],[School]],SAS_Table!B:B,Comparison[[#This Row],[SchoolYear]])/SUMIFS(SAS_Table!J:J,SAS_Table!A:A,Comparison[[#This Row],[School]],SAS_Table!B:B,Comparison[[#This Row],[SchoolYear]]) -> 0.612565445
A19: B Elementary | B19: 202122 | C19: TRUE | D19: TRUE | E19: TRUE | F19: 1 | G19: 1 | H19: 1 | I19: 1 | J19: =SUMIFS(SAS_Table!C:C,SAS_Table!A:A,Comparison[[#This Row],[School]],SAS_Table!B:B,Comparison[[#This Row],[SchoolYear]])/SUMIFS(SAS_Table!D:D,SAS_Table!A:A,Comparison[[#This Row],[School]],SAS_Table!B:B,Comparison[[#This Row],[SchoolYear]]) -> 0.7062937063 | K19: =SUMIFS(SAS_Table!E:E,SAS_Table!A:A,Comparison[[#This Row],[School]],SAS_Table!B:B,Comparison[[#This Row],[SchoolYear]])/SUMIFS(SAS_Table!F:F,SAS_Table!A:A,Comparison[[#This Row],[School]],SAS_Table!B:B,Comparison[[#This Row],[SchoolYear]]) -> 0.7659574468 | L19: =SUMIFS(SAS_Table!G:G,SAS_Table!A:A,Comparison[[#This Row],[School]],SAS_Table!B:B,Comparison[[#This Row],[SchoolYear]])/SUMIFS(SAS_Table!H:H,SAS_Table!A:A,Comparison[[#This Row],[School]],SAS_Table!B:B,Comparison[[#This Row],[SchoolYear]]) -> 0.7556818182 | M19: =SUMIFS(SAS_Table!I:I,SAS_Table!A:A,Comparison[[#This Row],[School]],SAS_Table!B:B,Comparison[[#This Row],[SchoolYear]])/SUMIFS(SAS_Table!J:J,SAS_Table!A:A,Comparison[[#This Row],[School]],SAS_Table!B:B,Comparison[[#This Row],[SchoolYear]]) -> 0.6074766355
A20: B Elementary | B20: 201819 | C20: TRUE | D20: TRUE | E20: TRUE | F20: 0.9333 | G20: 0.9333 | H20: 0.8846 | I20: 0.9706 | J20: =SUMIFS(SAS_Table!C:C,SAS_Table!A:A,Comparison[[#This Row],[School]],SAS_Table!B:B,Comparison[[#This Row],[SchoolYear]])/SUMIFS(SAS_Table!D:D,SAS_Table!A:A,Comparison[[#This Row],[School]],SAS_Table!B:B,Comparison[[#This Row],[SchoolYear]]) -> 0.6966666667 | K20: =SUMIFS(SAS_Table!E:E,SAS_Table!A:A,Comparison[[#This Row],[School]],SAS_Table!B:B,Comparison[[#This Row],[SchoolYear]])/SUMIFS(SAS_Table!F:F,SAS_Table!A:A,Comparison[[#This Row],[School]],SAS_Table!B:B,Comparison[[#This Row],[SchoolYear]]) -> 0.8410596026 | L20: =SUMIFS(SAS_Table!G:G,SAS_Table!A:A,Comparison[[#This Row],[School]],SAS_Table!B:B,Comparison[[#This Row],[SchoolYear]])/SUMIFS(SAS_Table!H:H,SAS_Table!A:A,Comparison[[#This Row],[School]],SAS_Table!B:B,Comparison[[#This Row],[SchoolYear]]) -> 0.8418367347 | M20: =SUMIFS(SAS_Table!I:I,SAS_Table!A:A,Comparison[[#This Row],[School]],SAS_Table!B:B,Comparison[[#This Row],[SchoolYear]])/SUMIFS(SAS_Table!J:J,SAS_Table!A:A,Comparison[[#This Row],[School]],SAS_Table!B:B,Comparison[[#This Row],[SchoolYear]]) -> 0.7067669173
A21: B Elementary | B21: 201920 | C21: TRUE | D21: TRUE | E21: TRUE | F21: 0.9 | G21: 0.9 | H21: 0.7692 | I21: 1 | J21: =SUMIFS(SAS_Table!C:C,SAS_Table!A:A,Comparison[[#This Row],[School]],SAS_Table!B:B,Comparison[[#This Row],[SchoolYear]])/SUMIFS(SAS_Table!D:D,SAS_Table!A:A,Comparison[[#This Row],[School]],SAS_Table!B:B,Comparison[[#This Row],[SchoolYear]]) -> 0.7872340426 | K21: =SUMIFS(SAS_Table!E:E,SAS_Table!A:A,Comparison[[#This Row],[School]],SAS_Table!B:B,Comparison[[#This Row],[SchoolYear]])/SUMIFS(SAS_Table!F:F,SAS_Table!A:A,Comparison[[#This Row],[School]],SAS_Table!B:B,Comparison[[#This Row],[SchoolYear]]) -> 0.7837837838 | L21: =SUMIFS(SAS_Table!G:G,SAS_Table!A:A,Comparison[[#This Row],[School]],SAS_Table!B:B,Comparison[[#This Row],[SchoolYear]])/SUMIFS(SAS_Table!H:H,SAS_Table!A:A,Comparison[[#This Row],[School]],SAS_Table!B:B,Comparison[[#This Row],[SchoolYear]]) -> 0.8279569892 | M21: =SUMIFS(SAS_Table!I:I,SAS_Table!A:A,Comparison[[#This Row],[School]],SAS_Table!B:B,Comparison[[#This Row],[SchoolYear]])/SUMIFS(SAS_Table!J:J,SAS_Table!A:A,Comparison[[#This Row],[School]],SAS_Table!B:B,Comparison[[#This Row],[SchoolYear]]) -> 0.7410714286
A22: B High | B22: 202021 | C22: TRUE | D22: TRUE | E22: TRUE | F22: 0.6889 | G22: 0.6333 | H22: 0.9231 | I22: 0.5588 | J22: =SUMIFS(SAS_Table!C:C,SAS_Table!A:A,Comparison[[#This Row],[School]],SAS_Table!B:B,Comparison[[#This Row],[SchoolYear]])/SUMIFS(SAS_Table!D:D,SAS_Table!A:A,Comparison[[#This Row],[School]],SAS_Table!B:B,Comparison[[#This Row],[SchoolYear]]) -> 0.7878787879 | K22: =SUMIFS(SAS_Table!E:E,SAS_Table!A:A,Comparison[[#This Row],[School]],SAS_Table!B:B,Comparison[[#This Row],[SchoolYear]])/SUMIFS(SAS_Table!F:F,SAS_Table!A:A,Comparison[[#This Row],[School]],SAS_Table!B:B,Comparison[[#This Row],[SchoolYear]]) -> 0.7106382979 | L22: =SUMIFS(SAS_Table!G:G,SAS_Table!A:A,Comparison[[#This Row],[School]],SAS_Table!B:B,Comparison[[#This Row],[SchoolYear]])/SUMIFS(SAS_Table!H:H,SAS_Table!A:A,Comparison[[#This Row],[School]],SAS_Table!B:B,Comparison[[#This Row],[SchoolYear]]) -> 0.7214765101 | M22: =SUMIFS(SAS_Table!I:I,SAS_Table!A:A,Comparison[[#This Row],[School]],SAS_Table!B:B,Comparison[[#This Row],[SchoolYear]])/SUMIFS(SAS_Table!J:J,SAS_Table!A:A,Comparison[[#This Row],[School]],SAS_Table!B:B,Comparison[[#This Row],[SchoolYear]]) -> 0.6987341772
A23: B High | B23: 202122 | C23: TRUE | D23: FALSE | E23: FALSE | F23: 0.2556 | G23: 0.7667 | J23: =SUMIFS(SAS_Table!C:C,SAS_Table!A:A,Comparison[[#This Row],[School]],SAS_Table!B:B,Comparison[[#This Row],[SchoolYear]])/SUMIFS(SAS_Table!D:D,SAS_Table!A:A,Comparison[[#This Row],[School]],SAS_Table!B:B,Comparison[[#This Row],[SchoolYear]]) -> 0.65 | K23: =SUMIFS(SAS_Table!E:E,SAS_Table!A:A,Comparison[[#This Row],[School]],SAS_Table!B:B,Comparison[[#This Row],[SchoolYear]])/SUMIFS(SAS_Table!F:F,SAS_Table!A:A,Comparison[[#This Row],[School]],SAS_Table!B:B,Comparison[[#This Row],[SchoolYear]]) -> 0.5463917526 | L23: =SUMIFS(SAS_Table!G:G,SAS_Table!A:A,Comparison[[#This Row],[School]],SAS_Table!B:B,Comparison[[#This Row],[SchoolYear]])/SUMIFS(SAS_Table!H:H,SAS_Table!A:A,Comparison[[#This Row],[School]],SAS_Table!B:B,Comparison[[#This Row],[SchoolYear]]) -> 0.5607287449 | M23: =SUMIFS(SAS_Table!I:I,SAS_Table!A:A,Comparison[[#This Row],[School]],SAS_Table!B:B,Comparison[[#This Row],[SchoolYear]])/SUMIFS(SAS_Table!J:J,SAS_Table!A:A,Comparison[[#This Row],[School]],SAS_Table!B:B,Comparison[[#This Row],[SchoolYear]]) -> 0.4768683274
A24: B High | B24: 201718 | C24: TRUE | D24: TRUE | E24: TRUE | F24: 0.7222 | G24: 0.8667 | H24: 0.8077 | I24: 0.5294 | J24: =SUMIFS(SAS_Table!C:C,SAS_Table!A:A,Comparison[[#This Row],[School]],SAS_Table!B:B,Comparison[[#This Row],[SchoolYear]])/SUMIFS(SAS_Table!D:D,SAS_Table!A:A,Comparison[[#This Row],[School]],SAS_Table!B:B,Comparison[[#This Row],[SchoolYear]]) -> 0.6581196581 | K24: =SUMIFS(SAS_Table!E:E,SAS_Table!A:A,Comparison[[#This Row],[School]],SAS_Table!B:B,Comparison[[#This Row],[SchoolYear]])/SUMIFS(SAS_Table!F:F,SAS_Table!A:A,Comparison[[#This Row],[School]],SAS_Table!B:B,Comparison[[#This Row],[SchoolYear]]) -> 0.6319018405 | L24: =SUMIFS(SAS_Table!G:G,SAS_Table!A:A,Comparison[[#This Row],[School]],SAS_Table!B:B,Comparison[[#This Row],[SchoolYear]])/SUMIFS(SAS_Table!H:H,SAS_Table!A:A,Comparison[[#This Row],[School]],SAS_Table!B:B,Comparison[[#This Row],[SchoolYear]]) -> 0.512195122 | M24: =SUMIFS(SAS_Table!I:I,SAS_Table!A:A,Comparison[[#This Row],[School]],SAS_Table!B:B,Comparison[[#This Row],[SchoolYear]])/SUMIFS(SAS_Table!J:J,SAS_Table!A:A,Comparison[[#This Row],[School]],SAS_Table!B:B,Comparison[[#This Row],[SchoolYear]]) -> 0.5546875
A25: B High | B25: 201819 | C25: TRUE | D25: TRUE | E25: TRUE | F25: 0.7444 | G25: 1 | H25: 1 | I25: 0.3235 | J25: =SUMIFS(SAS_Table!C:C,SAS_Table!A:A,Comparison[[#This Row],[School]],SAS_Table!B:B,Comparison[[#This Row],[SchoolYear]])/SUMIFS(SAS_Table!D:D,SAS_Table!A:A,Comparison[[#This Row],[School]],SAS_Table!B:B,Comparison[[#This Row],[SchoolYear]]) -> 0.8289962825 | K25: =SUMIFS(SAS_Table!E:E,SAS_Table!A:A,Comparison[[#This Row],[School]],SAS_Table!B:B,Comparison[[#This Row],[SchoolYear]])/SUMIFS(SAS_Table!F:F,SAS_Table!A:A,Comparison[[#This Row],[School]],SAS_Table!B:B,Comparison[[#This Row],[SchoolYear]]) -> 0.7526501767 | L25: =SUMIFS(SAS_Table!G:G,SAS_Table!A:A,Comparison[[#This Row],[School]],SAS_Table!B:B,Comparison[[#This Row],[SchoolYear]])/SUMIFS(SAS_Table!H:H,SAS_Table!A:A,Comparison[[#This Row],[School]],SAS_Table!B:B,Comparison[[#This Row],[SchoolYear]]) -> 0.7568345324 | M25: =SUMIFS(SAS_Table!I:I,SAS_Table!A:A,Comparison[[#This Row],[School]],SAS_Table!B:B,Comparison[[#This Row],[SchoolYear]])/SUMIFS(SAS_Table!J:J,SAS_Table!A:A,Comparison[[#This Row],[School]],SAS_Table!B:B,Comparison[[#This Row],[SchoolYear]]) -> 0.7423580786
A26: B Middle | B26: 201920 | C26: TRUE | D26: TRUE | E26: TRUE | F26: 1 | G26: 1 | H26: 1 | I26: 1 | J26: =SUMIFS(SAS_Table!C:C,SAS_Table!A:A,Comparison[[#This Row],[School]],SAS_Table!B:B,Comparison[[#This Row],[SchoolYear]])/SUMIFS(SAS_Table!D:D,SAS_Table!A:A,Comparison[[#This Row],[School]],SAS_Table!B:B,Comparison[[#This Row],[SchoolYear]]) -> 0.8027638191 | K26: =SUMIFS(SAS_Table!E:E,SAS_Table!A:A,Comparison[[#This Row],[School]],SAS_Table!B:B,Comparison[[#This Row],[SchoolYear]])/SUMIFS(SAS_Table!F:F,SAS_Table!A:A,Comparison[[#This Row],[School]],SAS_Table!B:B,Comparison[[#This Row],[SchoolYear]]) -> 0.7424242424 | L26: =SUMIFS(SAS_Table!G:G,SAS_Table!A:A,Comparison[[#This Row],[School]],SAS_Table!B:B,Comparison[[#This Row],[SchoolYear]])/SUMIFS(SAS_Table!H:H,SAS_Table!A:A,Comparison[[#This Row],[School]],SAS_Table!B:B,Comparison[[#This Row],[SchoolYear]]) -> 0.7797979798 | M26: =SUMIFS(SAS_Table!I:I,SAS_Table!A:A,Comparison[[#This Row],[School]],SAS_Table!B:B,Comparison[[#This Row],[SchoolYear]])/SUMIFS(SAS_Table!J:J,SAS_Table!A:A,Comparison[[#This Row],[School]],SAS_Table!B:B,Comparison[[#This Row],[SchoolYear]]) -> 0.7826086957
A27: B Middle | B27: 202122 | C27: TRUE | D27: TRUE | E27: TRUE | F27: 0.9667 | G27: 0.9333 | H27: 1 | I27: 0.9706 | J27: =SUMIFS(SAS_Table!C:C,SAS_Table!A:A,Comparison[[#This Row],[School]],SAS_Table!B:B,Comparison[[#This Row],[SchoolYear]])/SUMIFS(SAS_Table!D:D,SAS_Table!A:A,Comparison[[#This Row],[School]],SAS_Table!B:B,Comparison[[#This Row],[SchoolYear]]) -> 0.7711138311 | K27: =SUMIFS(SAS_Table!E:E,SAS_Table!A:A,Comparison[[#This Row],[School]],SAS_Table!B:B,Comparison[[#This Row],[SchoolYear]])/SUMIFS(SAS_Table!F:F,SAS_Table!A:A,Comparison[[#This Row],[School]],SAS_Table!B:B,Comparison[[#This Row],[SchoolYear]]) -> 0.7286432161 | L27: =SUMIFS(SAS_Table!G:G,SAS_Table!A:A,Comparison[[#This Row],[School]],SAS_Table!B:B,Comparison[[#This Row],[SchoolYear]])/SUMIFS(SAS_Table!H:H,SAS_Table!A:A,Comparison[[#This Row],[School]],SAS_Table!B:B,Comparison[[#This Row],[SchoolYear]]) -> 0.7151162791 | M27: =SUMIFS(SAS_Table!I:I,SAS_Table!A:A,Comparison[[#This Row],[School]],SAS_Table!B:B,Comparison[[#This Row],[SchoolYear]])/SUMIFS(SAS_Table!J:J,SAS_Table!A:A,Comparison[[#This Row],[School]],SAS_Table!B:B,Comparison[[#This Row],[SchoolYear]]) -> 0.6708074534
A28: B Middle | B28: 202122 | C28: TRUE | D28: TRUE | E28: TRUE | F28: 1 | G28: 1 | H28: 1 | I28: 1 | J28: =SUMIFS(SAS_Table!C:C,SAS_Table!A:A,Comparison[[#This Row],[School]],SAS_Table!B:B,Comparison[[#This Row],[SchoolYear]])/SUMIFS(SAS_Table!D:D,SAS_Table!A:A,Comparison[[#This Row],[School]],SAS_Table!B:B,Comparison[[#This Row],[SchoolYear]]) -> 0.7711138311 | K28: =SUMIFS(SAS_Table!E:E,SAS_Table!A:A,Comparison[[#This Row],[School]],SAS_Table!B:B,Comparison[[#This Row],[SchoolYear]])/SUMIFS(SAS_Table!F:F,SAS_Table!A:A,Comparison[[#This Row],[School]],SAS_Table!B:B,Comparison[[#This Row],[SchoolYear]]) -> 0.7286432161 | L28: =SUMIFS(SAS_Table!G:G,SAS_Table!A:A,Comparison[[#This Row],[School]],SAS_Table!B:B,Comparison[[#This Row],[SchoolYear]])/SUMIFS(SAS_Table!H:H,SAS_Table!A:A,Comparison[[#This Row],[School]],SAS_Table!B:B,Comparison[[#This Row],[SchoolYear]]) -> 0.7151162791 | M28: =SUMIFS(SAS_Table!I:I,SAS_Table!A:A,Comparison[[#This Row],[School]],SAS_Table!B:B,Comparison[[#This Row],[SchoolYear]])/SUMIFS(SAS_Table!J:J,SAS_Table!A:A,Comparison[[#This Row],[School]],SAS_Table!B:B,Comparison[[#This Row],[SchoolYear]]) -> 0.6708074534
A29: B Middle | B29: 202021 | C29: TRUE | D29: TRUE | E29: TRUE | F29: 1 | G29: 1 | H29: 1 | I29: 1 | J29: =SUMIFS(SAS_Table!C:C,SAS_Table!A:A,Comparison[[#This Row],[School]],SAS_Table!B:B,Comparison[[#This Row],[SchoolYear]])/SUMIFS(SAS_Table!D:D,SAS_Table!A:A,Comparison[[#This Row],[School]],SAS_Table!B:B,Comparison[[#This Row],[SchoolYear]]) -> 0.8255528256 | K29: =SUMIFS(SAS_Table!E:E,SAS_Table!A:A,Comparison[[#This Row],[School]],SAS_Table!B:B,Comparison[[#This Row],[SchoolYear]])/SUMIFS(SAS_Table!F:F,SAS_Table!A:A,Comparison[[#This Row],[School]],SAS_Table!B:B,Comparison[[#This Row],[SchoolYear]]) -> 0.7964824121 | L29: =SUMIFS(SAS_Table!G:G,SAS_Table!A:A,Comparison[[#This Row],[School]],SAS_Table!B:B,Comparison[[#This Row],[SchoolYear]])/SUMIFS(SAS_Table!H:H,SAS_Table!A:A,Comparison[[#This Row],[School]],SAS_Table!B:B,Comparison[[#This Row],[SchoolYear]]) -> 0.7893700787 | M29: =SUMIFS(SAS_Table!I:I,SAS_Table!A:A,Comparison[[#This Row],[School]],SAS_Table!B:B,Comparison[[#This Row],[SchoolYear]])/SUMIFS(SAS_Table!J:J,SAS_Table!A:A,Comparison[[#This Row],[School]],SAS_Table!B:B,Comparison[[#This Row],[SchoolYear]]) -> 0.7852564103
A30: B Middle | B30: 201819 | C30: TRUE | D30: TRUE | E30: TRUE | F30: 0.6667 | G30: 1 | H30: 0.5 | I30: 0.5 | J30: =SUMIFS(SAS_Table!C:C,SAS_Table!A:A,Comparison[[#This Row],[School]],SAS_Table!B:B,Comparison[[#This Row],[SchoolYear]])/SUMIFS(SAS_Table!D:D,SAS_Table!A:A,Comparison[[#This Row],[School]],SAS_Table!B:B,Comparison[[#This Row],[SchoolYear]]) -> 0.7076537014 | K30: =SUMIFS(SAS_Table!E:E,SAS_Table!A:A,Comparison[[#This Row],[School]],SAS_Table!B:B,Comparison[[#This Row],[SchoolYear]])/SUMIFS(SAS_Table!F:F,SAS_Table!A:A,Comparison[[#This Row],[School]],SAS_Table!B:B,Comparison[[#This Row],[SchoolYear]]) -> 0.6624685139 | L30: =SUMIFS(SAS_Table!G:G,SAS_Table!A:A,Comparison[[#This Row],[School]],SAS_Table!B:B,Comparison[[#This Row],[SchoolYear]])/SUMIFS(SAS_Table!H:H,SAS_Table!A:A,Comparison[[#This Row],[School]],SAS_Table!B:B,Comparison[[#This Row],[SchoolYear]]) -> 0.6393762183 | M30: =SUMIFS(SAS_Table!I:I,SAS_Table!A:A,Comparison[[#This Row],[School]],SAS_Table!B:B,Comparison[[#This Row],[SchoolYear]])/SUMIFS(SAS_Table!J:J,SAS_Table!A:A,Comparison[[#This Row],[School]],SAS_Table!B:B,Comparison[[#This Row],[SchoolYear]]) -> 0.5681063123
A31: C Elementary | B31: 202122 | C31: TRUE | D31: FALSE | E31: FALSE | F31: 0.2111 | G31: 0.6333 | J31: =SUMIFS(SAS_Table!C:C,SAS_Table!A:A,Comparison[[#This Row],[School]],SAS_Table!B:B,Comparison[[#This Row],[SchoolYear]])/SUMIFS(SAS_Table!D:D,SAS_Table!A:A,Comparison[[#This Row],[School]],SAS_Table!B:B,Comparison[[#This Row],[SchoolYear]]) -> 0.7466666667 | K31: =SUMIFS(SAS_Table!E:E,SAS_Table!A:A,Comparison[[#This Row],[School]],SAS_Table!B:B,Comparison[[#This Row],[SchoolYear]])/SUMIFS(SAS_Table!F:F,SAS_Table!A:A,Comparison[[#This Row],[School]],SAS_Table!B:B,Comparison[[#This Row],[SchoolYear]]) -> 0.7262569832 | L31: =SUMIFS(SAS_Table!G:G,SAS_Table!A:A,Comparison[[#This Row],[School]],SAS_Table!B:B,Comparison[[#This Row],[SchoolYear]])/SUMIFS(SAS_Table!H:H,SAS_Table!A:A,Comparison[[#This Row],[School]],SAS_Table!B:B,Comparison[[#This Row],[SchoolYear]]) -> 0.7336065574 | M31: =SUMIFS(SAS_Table!I:I,SAS_Table!A:A,Comparison[[#This Row],[School]],SAS_Table!B:B,Comparison[[#This Row],[SchoolYear]])/SUMIFS(SAS_Table!J:J,SAS_Table!A:A,Comparison[[#This Row],[School]],SAS_Table!B:B,Comparison[[#This Row],[SchoolYear]]) -> 0.7635135135
A32: C Elementary | B32: 201920 | C32: TRUE | D32: FALSE | E32: TRUE | F32: 0.5333 | G32: 0.6667 | I32: 0.8235 | J32: =SUMIFS(SAS_Table!C:C,SAS_Table!A:A,Comparison[[#This Row],[School]],SAS_Table!B:B,Comparison[[#This Row],[SchoolYear]])/SUMIFS(SAS_Table!D:D,SAS_Table!A:A,Comparison[[#This Row],[School]],SAS_Table!B:B,Comparison[[#This Row],[SchoolYear]]) -> 0.7191919192 | K32: =SUMIFS(SAS_Table!E:E,SAS_Table!A:A,Comparison[[#This Row],[School]],SAS_Table!B:B,Comparison[[#This Row],[SchoolYear]])/SUMIFS(SAS_Table!F:F,SAS_Table!A:A,Comparison[[#This Row],[School]],SAS_Table!B:B,Comparison[[#This Row],[SchoolYear]]) -> 0.7567567568 | L32: =SUMIFS(SAS_Table!G:G,SAS_Table!A:A,Comparison[[#This Row],[School]],SAS_Table!B:B,Comparison[[#This Row],[SchoolYear]])/SUMIFS(SAS_Table!H:H,SAS_Table!A:A,Comparison[[#This Row],[School]],SAS_Table!B:B,Comparison[[#This Row],[SchoolYear]]) -> 0.7909090909 | M32: =SUMIFS(SAS_Table!I:I,SAS_Table!A:A,Comparison[[#This Row],[School]],SAS_Table!B:B,Comparison[[#This Row],[SchoolYear]])/SUMIFS(SAS_Table!J:J,SAS_Table!A:A,Comparison[[#This Row],[School]],SAS_Table!B:B,Comparison[[#This Row],[SchoolYear]]) -> 0.6918918919
A33: C Elementary | B33: 202021 | C33: TRUE | D33: FALSE | E33: TRUE | F33: 0.5778 | G33: 0.6 | I33: 1 | J33: =SUMIFS(SAS_Table!C:C,SAS_Table!A:A,Comparison[[#This Row],[School]],SAS_Table!B:B,Comparison[[#This Row],[SchoolYear]])/SUMIFS(SAS_Table!D:D,SAS_Table!A:A,Comparison[[#This Row],[School]],SAS_Table!B:B,Comparison[[#This Row],[SchoolYear]]) -> 0.5272206304 | K33: =SUMIFS(SAS_Table!E:E,SAS_Table!A:A,Comparison[[#This Row],[School]],SAS_Table!B:B,Comparison[[#This Row],[SchoolYear]])/SUMIFS(SAS_Table!F:F,SAS_Table!A:A,Comparison[[#This Row],[School]],SAS_Table!B:B,Comparison[[#This Row],[SchoolYear]]) -> 0.5029239766 | L33: =SUMIFS(SAS_Table!G:G,SAS_Table!A:A,Comparison[[#This Row],[School]],SAS_Table!B:B,Comparison[[#This Row],[SchoolYear]])/SUMIFS(SAS_Table!H:H,SAS_Table!A:A,Comparison[[#This Row],[School]],SAS_Table!B:B,Comparison[[#This Row],[SchoolYear]]) -> 0.5821596244 | M33: =SUMIFS(SAS_Table!I:I,SAS_Table!A:A,Comparison[[#This Row],[School]],SAS_Table!B:B,Comparison[[#This Row],[SchoolYear]])/SUMIFS(SAS_Table!J:J,SAS_Table!A:A,Comparison[[#This Row],[School]],SAS_Table!B:B,Comparison[[#This Row],[SchoolYear]]) -> 0.5350877193
A34: C Middle | B34: 201718 | C34: TRUE | D34: TRUE | E34: FALSE | F34: 0.6 | G34: 0.9667 | H34: 0.9615 | J34: =SUMIFS(SAS_Table!C:C,SAS_Table!A:A,Comparison[[#This Row],[School]],SAS_Table!B:B,Comparison[[#This Row],[SchoolYear]])/SUMIFS(SAS_Table!D:D,SAS_Table!A:A,Comparison[[#This Row],[School]],SAS_Table!B:B,Comparison[[#This Row],[SchoolYear]]) -> 0.733420026 | K34: =SUMIFS(SAS_Table!E:E,SAS_Table!A:A,Comparison[[#This Row],[School]],SAS_Table!B:B,Comparison[[#This Row],[SchoolYear]])/SUMIFS(SAS_Table!F:F,SAS_Table!A:A,Comparison[[#This Row],[School]],SAS_Table!B:B,Comparison[[#This Row],[SchoolYear]]) -> 0.6744791667 | L34: =SUMIFS(SAS_Table!G:G,SAS_Table!A:A,Comparison[[#This Row],[School]],SAS_Table!B:B,Comparison[[#This Row],[SchoolYear]])/SUMIFS(SAS_Table!H:H,SAS_Table!A:A,Comparison[[#This Row],[School]],SAS_Table!B:B,Comparison[[#This Row],[SchoolYear]]) -> 0.6554621849 | M34: =SUMIFS(SAS_Table!I:I,SAS_Table!A:A,Comparison[[#This Row],[School]],SAS_Table!B:B,Comparison[[#This Row],[SchoolYear]])/SUMIFS(SAS_Table!J:J,SAS_Table!A:A,Comparison[[#This Row],[School]],SAS_Table!B:B,Comparison[[#This Row],[SchoolYear]]) -> 0.6161616162
A35: C Middle | B35: 202122 | C35: TRUE | D35: TRUE | E35: TRUE | F35: 0.7222 | G35: 0.8333 | H35: 0.6154 | I35: 0.7059 | J35: =SUMIFS(SAS_Table!C:C,SAS_Table!A:A,Comparison[[#This Row],[School]],SAS_Table!B:B,Comparison[[#This Row],[SchoolYear]])/SUMIFS(SAS_Table!D:D,SAS_Table!A:A,Comparison[[#This Row],[School]],SAS_Table!B:B,Comparison[[#This Row],[SchoolYear]]) -> 0.7191129884 | K35: =SUMIFS(SAS_Table!E:E,SAS_Table!A:A,Comparison[[#This Row],[School]],SAS_Table!B:B,Comparison[[#This Row],[SchoolYear]])/SUMIFS(SAS_Table!F:F,SAS_Table!A:A,Comparison[[#This Row],[School]],SAS_Table!B:B,Comparison[[#This Row],[SchoolYear]]) -> 0.6198704104 | L35: =SUMIFS(SAS_Table!G:G,SAS_Table!A:A,Comparison[[#This Row],[School]],SAS_Table!B:B,Comparison[[#This Row],[SchoolYear]])/SUMIFS(SAS_Table!H:H,SAS_Table!A:A,Comparison[[#This Row],[School]],SAS_Table!B:B,Comparison[[#This Row],[SchoolYear]]) -> 0.615640599 | M35: =SUMIFS(SAS_Table!I:I,SAS_Table!A:A,Comparison[[#This Row],[School]],SAS_Table!B:B,Comparison[[#This Row],[SchoolYear]])/SUMIFS(SAS_Table!J:J,SAS_Table!A:A,Comparison[[#This Row],[School]],SAS_Table!B:B,Comparison[[#This Row],[SchoolYear]]) -> 0.5754475703
A36: C Middle | B36: 201819 | C36: TRUE | D36: TRUE | E36: TRUE | F36: 0.9222 | G36: 1 | H36: 0.8846 | I36: 0.8824 | J36: =SUMIFS(SAS_Table!C:C,SAS_Table!A:A,Comparison[[#This Row],[School]],SAS_Table!B:B,Comparison[[#This Row],[SchoolYear]])/SUMIFS(SAS_Table!D:D,SAS_Table!A:A,Comparison[[#This Row],[School]],SAS_Table!B:B,Comparison[[#This Row],[SchoolYear]]) -> 0.8603773585 | K36: =SUMIFS(SAS_Table!E:E,SAS_Table!A:A,Comparison[[#This Row],[School]],SAS_Table!B:B,Comparison[[#This Row],[SchoolYear]])/SUMIFS(SAS_Table!F:F,SAS_Table!A:A,Comparison[[#This Row],[School]],SAS_Table!B:B,Comparison[[#This Row],[SchoolYear]]) -> 0.8592964824 | L36: =SUMIFS(SAS_Table!G:G,SAS_Table!A:A,Comparison[[#This Row],[School]],SAS_Table!B:B,Comparison[[#This Row],[SchoolYear]])/SUMIFS(SAS_Table!H:H,SAS_Table!A:A,Comparison[[#This Row],[School]],SAS_Table!B:B,Comparison[[#This Row],[SchoolYear]]) -> 0.8950617284 | M36: =SUMIFS(SAS_Table!I:I,SAS_Table!A:A,Comparison[[#This Row],[School]],SAS_Table!B:B,Comparison[[#This Row],[SchoolYear]])/SUMIFS(SAS_Table!J:J,SAS_Table!A:A,Comparison[[#This Row],[School]],SAS_Table!B:B,Comparison[[#This Row],[SchoolYear]]) -> 0.8846153846
A37: C Middle | B37: 202021 | C37: TRUE | D37: TRUE | E37: TRUE | F37: 0.8556 | G37: 0.9333 | H37: 0.8077 | I37: 0.8235 | J37: =SUMIFS(SAS_Table!C:C,SAS_Table!A:A,Comparison[[#This Row],[School]],SAS_Table!B:B,Comparison[[#This Row],[SchoolYear]])/SUMIFS(SAS_Table!D:D,SAS_Table!A:A,Comparison[[#This Row],[School]],SAS_Table!B:B,Comparison[[#This Row],[SchoolYear]]) -> 0.8239921337 | K37: =SUMIFS(SAS_Table!E:E,SAS_Table!A:A,Comparison[[#This Row],[School]],SAS_Table!B:B,Comparison[[#This Row],[SchoolYear]])/SUMIFS(SAS_Table!F:F,SAS_Table!A:A,Comparison[[#This Row],[School]],SAS_Table!B:B,Comparison[[#This Row],[SchoolYear]]) -> 0.8072289157 | L37: =SUMIFS(SAS_Table!G:G,SAS_Table!A:A,Comparison[[#This Row],[School]],SAS_Table!B:B,Comparison[[#This Row],[SchoolYear]])/SUMIFS(SAS_Table!H:H,SAS_Table!A:A,Comparison[[#This Row],[School]],SAS_Table!B:B,Comparison[[#This Row],[SchoolYear]]) -> 0.7740384615 | M37: =SUMIFS(SAS_Table!I:I,SAS_Table!A:A,Comparison[[#This Row],[School]],SAS_Table!B:B,Comparison[[#This Row],[SchoolYear]])/SUMIFS(SAS_Table!J:J,SAS_Table!A:A,Comparison[[#This Row],[School]],SAS_Table!B:B,Comparison[[#This Row],[SchoolYear]]) -> 0.7183770883
A38: E Elementary | B38: 201819 | C38: TRUE | D38: TRUE | E38: TRUE | F38: 0.7444 | G38: 0.8667 | H38: 0.7308 | I38: 0.6471 | J38: =SUMIFS(SAS_Table!C:C,SAS_Table!A:A,Comparison[[#This Row],[School]],SAS_Table!B:B,Comparison[[#This Row],[SchoolYear]])/SUMIFS(SAS_Table!D:D,SAS_Table!A:A,Comparison[[#This Row],[School]],SAS_Table!B:B,Comparison[[#This Row],[SchoolYear]]) -> 0.64 | K38: =SUMIFS(SAS_Table!E:E,SAS_Table!A:A,Comparison[[#This Row],[School]],SAS_Table!B:B,Comparison[[#This Row],[SchoolYear]])/SUMIFS(SAS_Table!F:F,SAS_Table!A:A,Comparison[[#This Row],[School]],SAS_Table!B:B,Comparison[[#This Row],[SchoolYear]]) -> 0.7182320442 | L38: =SUMIFS(SAS_Table!G:G,SAS_Table!A:A,Comparison[[#This Row],[School]],SAS_Table!B:B,Comparison[[#This Row],[SchoolYear]])/SUMIFS(SAS_Table!H:H,SAS_Table!A:A,Comparison[[#This Row],[School]],SAS_Table!B:B,Comparison[[#This Row],[SchoolYear]]) -> 0.6176470588 | M38: =SUMIFS(SAS_Table!I:I,SAS_Table!A:A,Comparison[[#This Row],[School]],SAS_Table!B:B,Comparison[[#This Row],[SchoolYear]])/SUMIFS(SAS_Table!J:J,SAS_Table!A:A,Comparison[[#This Row],[School]],SAS_Table!B:B,Comparison[[#This Row],[SchoolYear]]) -> 0.3308270677
A39: E Elementary | B39: 202021 | C39: TRUE | D39: TRUE | E39: FALSE | F39: 0.3333 | G39: 0.7667 | H39: 0.2692 | J39: =SUMIFS(SAS_Table!C:C,SAS_Table!A:A,Comparison[[#This Row],[School]],SAS_Table!B:B,Comparison[[#This Row],[SchoolYear]])/SUMIFS(SAS_Table!D:D,SAS_Table!A:A,Comparison[[#This Row],[School]],SAS_Table!B:B,Comparison[[#This Row],[SchoolYear]]) -> 0.7710843373 | K39: =SUMIFS(SAS_Table!E:E,SAS_Table!A:A,Comparison[[#This Row],[School]],SAS_Table!B:B,Comparison[[#This Row],[SchoolYear]])/SUMIFS(SAS_Table!F:F,SAS_Table!A:A,Comparison[[#This Row],[School]],SAS_Table!B:B,Comparison[[#This Row],[SchoolYear]]) -> 0.8246445498 | L39: =SUMIFS(SAS_Table!G:G,SAS_Table!A:A,Comparison[[#This Row],[School]],SAS_Table!B:B,Comparison[[#This Row],[SchoolYear]])/SUMIFS(SAS_Table!H:H,SAS_Table!A:A,Comparison[[#This Row],[School]],SAS_Table!B:B,Comparison[[#This Row],[SchoolYear]]) -> 0.8122743682 | M39: =SUMIFS(SAS_Table!I:I,SAS_Table!A:A,Comparison[[#This Row],[School]],SAS_Table!B:B,Comparison[[#This Row],[SchoolYear]])/SUMIFS(SAS_Table!J:J,SAS_Table!A:A,Comparison[[#This Row],[School]],SAS_Table!B:B,Comparison[[#This Row],[SchoolYear]]) -> 0.7931034483
A40: E Elementary | B40: 202122 | C40: TRUE | D40: TRUE | E40: TRUE | F40: 0.5889 | G40: 0.4333 | H40: 0.4615 | I40: 0.8235 | J40: =SUMIFS(SAS_Table!C:C,SAS_Table!A:A,Comparison[[#This Row],[School]],SAS_Table!B:B,Comparison[[#This Row],[SchoolYear]])/SUMIFS(SAS_Table!D:D,SAS_Table!A:A,Comparison[[#This Row],[School]],SAS_Table!B:B,Comparison[[#This Row],[SchoolYear]]) -> 0.7875647668 | K40: =SUMIFS(SAS_Table!E:E,SAS_Table!A:A,Comparison[[#This Row],[School]],SAS_Table!B:B,Comparison[[#This Row],[SchoolYear]])/SUMIFS(SAS_Table!F:F,SAS_Table!A:A,Comparison[[#This Row],[School]],SAS_Table!B:B,Comparison[[#This Row],[SchoolYear]]) -> 0.8446601942 | L40: =SUMIFS(SAS_Table!G:G,SAS_Table!A:A,Comparison[[#This Row],[School]],SAS_Table!B:B,Comparison[[#This Row],[SchoolYear]])/SUMIFS(SAS_Table!H:H,SAS_Table!A:A,Comparison[[#This Row],[School]],SAS_Table!B:B,Comparison[[#This Row],[SchoolYear]]) -> 0.7928571429 | M40: =SUMIFS(SAS_Table!I:I,SAS_Table!A:A,Comparison[[#This Row],[School]],SAS_Table!B:B,Comparison[[#This Row],[SchoolYear]])/SUMIFS(SAS_Table!J:J,SAS_Table!A:A,Comparison[[#This Row],[School]],SAS_Table!B:B,Comparison[[#This Row],[SchoolYear]]) -> 0.8636363636
A41: F Elementary | B41: 202122 | C41: TRUE | D41: TRUE | E41: FALSE | F41: 0.4444 | G41: 0.7333 | H41: 0.6923 | J41: =SUMIFS(SAS_Table!C:C,SAS_Table!A:A,Comparison[[#This Row],[School]],SAS_Table!B:B,Comparison[[#This Row],[SchoolYear]])/SUMIFS(SAS_Table!D:D,SAS_Table!A:A,Comparison[[#This Row],[School]],SAS_Table!B:B,Comparison[[#This Row],[SchoolYear]]) ->  | K41: =SUMIFS(SAS_Table!E:E,SAS_Table!A:A,Comparison[[#This Row],[School]],SAS_Table!B:B,Comparison[[#This Row],[SchoolYear]])/SUMIFS(SAS_Table!F:F,SAS_Table!A:A,Comparison[[#This Row],[School]],SAS_Table!B:B,Comparison[[#This Row],[SchoolYear]]) ->  | L41: =SUMIFS(SAS_Table!G:G,SAS_Table!A:A,Comparison[[#This Row],[School]],SAS_Table!B:B,Comparison[[#This Row],[SchoolYear]])/SUMIFS(SAS_Table!H:H,SAS_Table!A:A,Comparison[[#This Row],[School]],SAS_Table!B:B,Comparison[[#This Row],[SchoolYear]]) ->  | M41: =SUMIFS(SAS_Table!I:I,SAS_Table!A:A,Comparison[[#This Row],[School]],SAS_Table!B:B,Comparison[[#This Row],[SchoolYear]])/SUMIFS(SAS_Table!J:J,SAS_Table!A:A,Comparison[[#This Row],[School]],SAS_Table!B:B,Comparison[[#This Row],[SchoolYear]]) -> 
A42: F Elementary | B42: 201819 | C42: TRUE | D42: TRUE | E42: FALSE | F42: 0.3778 | G42: 0.8 | H42: 0.3846 | J42: =SUMIFS(SAS_Table!C:C,SAS_Table!A:A,Comparison[[#This Row],[School]],SAS_Table!B:B,Comparison[[#This Row],[SchoolYear]])/SUMIFS(SAS_Table!D:D,SAS_Table!A:A,Comparison[[#This Row],[School]],SAS_Table!B:B,Comparison[[#This Row],[SchoolYear]]) ->  | K42: =SUMIFS(SAS_Table!E:E,SAS_Table!A:A,Comparison[[#This Row],[School]],SAS_Table!B:B,Comparison[[#This Row],[SchoolYear]])/SUMIFS(SAS_Table!F:F,SAS_Table!A:A,Comparison[[#This Row],[School]],SAS_Table!B:B,Comparison[[#This Row],[SchoolYear]]) ->  | L42: =SUMIFS(SAS_Table!G:G,SAS_Table!A:A,Comparison[[#This Row],[School]],SAS_Table!B:B,Comparison[[#This Row],[SchoolYear]])/SUMIFS(SAS_Table!H:H,SAS_Table!A:A,Comparison[[#This Row],[School]],SAS_Table!B:B,Comparison[[#This Row],[SchoolYear]]) ->  | M42: =SUMIFS(SAS_Table!I:I,SAS_Table!A:A,Comparison[[#This Row],[School]],SAS_Table!B:B,Comparison[[#This Row],[SchoolYear]])/SUMIFS(SAS_Table!J:J,SAS_Table!A:A,Comparison[[#This Row],[School]],SAS_Table!B:B,Comparison[[#This Row],[SchoolYear]]) -> 
A43: F Elementary | B43: 202021 | C43: TRUE | D43: TRUE | E43: FALSE | F43: 0.5667 | G43: 0.8667 | H43: 0.9615 | J43: =SUMIFS(SAS_Table!C:C,SAS_Table!A:A,Comparison[[#This Row],[School]],SAS_Table!B:B,Comparison[[#This Row],[SchoolYear]])/SUMIFS(SAS_Table!D:D,SAS_Table!A:A,Comparison[[#This Row],[School]],SAS_Table!B:B,Comparison[[#This Row],[SchoolYear]]) ->  | K43: =SUMIFS(SAS_Table!E:E,SAS_Table!A:A,Comparison[[#This Row],[School]],SAS_Table!B:B,Comparison[[#This Row],[SchoolYear]])/SUMIFS(SAS_Table!F:F,SAS_Table!A:A,Comparison[[#This Row],[School]],SAS_Table!B:B,Comparison[[#This Row],[SchoolYear]]) ->  | L43: =SUMIFS(SAS_Table!G:G,SAS_Table!A:A,Comparison[[#This Row],[School]],SAS_Table!B:B,Comparison[[#This Row],[SchoolYear]])/SUMIFS(SAS_Table!H:H,SAS_Table!A:A,Comparison[[#This Row],[School]],SAS_Table!B:B,Comparison[[#This Row],[SchoolYear]]) ->  | M43: =SUMIFS(SAS_Table!I:I,SAS_Table!A:A,Comparison[[#This Row],[School]],SAS_Table!B:B,Comparison[[#This Row],[SchoolYear]])/SUMIFS(SAS_Table!J:J,SAS_Table!A:A,Comparison[[#This Row],[School]],SAS_Table!B:B,Comparison[[#This Row],[SchoolYear]]) -> 
A44: F Elementary | B44: 201920 | C44: TRUE | D44: TRUE | E44: TRUE | F44: 0.6889 | G44: 0.8667 | H44: 0.5385 | I44: 0.6471 | J44: =SUMIFS(SAS_Table!C:C,SAS_Table!A:A,Comparison[[#This Row],[School]],SAS_Table!B:B,Comparison[[#This Row],[SchoolYear]])/SUMIFS(SAS_Table!D:D,SAS_Table!A:A,Comparison[[#This Row],[School]],SAS_Table!B:B,Comparison[[#This Row],[SchoolYear]]) ->  | K44: =SUMIFS(SAS_Table!E:E,SAS_Table!A:A,Comparison[[#This Row],[School]],SAS_Table!B:B,Comparison[[#This Row],[SchoolYear]])/SUMIFS(SAS_Table!F:F,SAS_Table!A:A,Comparison[[#This Row],[School]],SAS_Table!B:B,Comparison[[#This Row],[SchoolYear]]) ->  | L44: =SUMIFS(SAS_Table!G:G,SAS_Table!A:A,Comparison[[#This Row],[School]],SAS_Table!B:B,Comparison[[#This Row],[SchoolYear]])/SUMIFS(SAS_Table!H:H,SAS_Table!A:A,Comparison[[#This Row],[School]],SAS_Table!B:B,Comparison[[#This Row],[SchoolYear]]) ->  | M44: =SUMIFS(SAS_Table!I:I,SAS_Table!A:A,Comparison[[#This Row],[School]],SAS_Table!B:B,Comparison[[#This Row],[SchoolYear]])/SUMIFS(SAS_Table!J:J,SAS_Table!A:A,Comparison[[#This Row],[School]],SAS_Table!B:B,Comparison[[#This Row],[SchoolYear]]) -> 

Sheet TFI_Scale_&_Total
B3: Column Labels
A4: Values | B4: 202021 | C4: (blank) | D4: 201718 | E4: 201819 | F4: 201920 | G4: 202122 | H4: Grand Total
A5: Tier 1 Scale | B5: 0.86334 | D5: 0.82002 | E5: 0.8814888889 | F5: 0.8714428571 | G5: 0.8030181818 | H5: 0.8476238095
A6: Tier 2 Scale | B6: 0.8247777778 | D6: 0.7692 | E6: 0.7521444444 | F6: 0.83975 | G6: 0.7863222222 | H6: 0.7935184211
A7: Tier 3 Total | B7: 0.8124875 | D7: 0.4559 | E7: 0.5661875 | F7: 0.7269 | G7: 0.8655571429 | H7: 0.7215125

Sheet School_Info&Outcomes
A2: NCES_Number | B2: School_Name | C2: School_Year (****** i.e. 202122) | D2: Training_Tier | E2: Implementation_Tier | F2: Grade_Configuration | G2: Student_Enrollment_(Oct) | H2: Enrollment_Afr_Amer | I2: Percentage_Afr_Amer | J2: Enrollment_Asian | K2: Percentage_Asian | L2: Enrollment_Hispanic | M2: Percentage_Hispanic | N2: Enrollment_Multi-Rac | O2: Percentage_Multi-Rac | P2: Enrollment_Nat_Amer | Q2: Percentage_Nat_Amer | R2: Enrollment_Pac._Islan | S2: Percentage_Pac._Islan | T2: Enrollment_White | U2: Percentage_White | V2: Enrollment_Students_with_IEPs | W2: Percentage_Students_With_IEPs | X2: End_of_Year_ADA_Totals | Y2: Total Number of ODRs | Z2: Number_Students_With_0_ODRs | AA2: Number_of_Students_with_1_ODR | AB2: Number_of_Students_with_0-1_ODRs | AC2: Number_of_Students_with_2-5_ODRs | AD2: Number_of_Students_with_6+_ODRs | AE2: Percentage_0-1 | AF2: Percentage_2-5 | AG2: Percentage_6+ | AH2: End_of_Year_ISS_Total_Days_Totals | AI2: End_of_Year_OSS_Total_Days_Totals | AJ2: Number_Afr_Amer_One_or_More_ODR | AK2: Number_Asian_One_or_More_ODR | AL2: Number_Hispanic_One_or_More_ODR | AM2: Number_Multi-Rac_One_or_More_ODR | AN2: Number_Nat_Amer_One_or_More_ODR | AO2: Number_Pac_Islan_One_or_More_ODR | AP2: Number_White_One_or_More_ODR | AQ2: Number_IEP_one _or_More_ODR | AR2: ODR_Totals | AS2: Number_Afr_Amer_One_or_More_ISS | AT2: Number_Asian_One_or_More_ISS | AU2: Number_Hispanic_One_or_More_ISS | AV2: Number_Multi-Rac_One_or_More_ISS | AW2: Number_Nat_Amer_One_or_More_ISS | AX2: Number_Pac_Islan_One_or_More_ISS | AY2: Number_White_One_or_More_ISS | AZ2: Number_IEP_one _or_More_ISS | BA2: Total ISS | BB2: Number_Afr_Amer_One_or_More_OSS | BC2: Number_Asian_One_or_More_OSS | BD2: Number_Hispanic_One_or_More_OSS | BE2: Number_Multi-Rac_One_or_More_OSS | BF2: Number_Nat_Amer_One_or_More_OSS | BG2: Number_Pac_Islan_One_or_More_OSS | BH2: Number_White_One_or_More_OSS | BI2: Number_Students_With_IEP_One_or_More_OSS | BJ2: Total OSS | BK2: 4_Year_Graduation_Rate | BL2: Afr_Amer_ODR_Risk_Ind | BM2: Afr_Amer_ODR_Risk_Rat | BN2: Afr_Amer_ODR_RDR | BO2: Asian_ODR_Risk_Ind | BP2: Asian_ODR_Risk_Rat | BQ2: Asian_ODR_RDR | BR2: Hispanic_ODR_Risk_Ind | BS2: Hispanic_ODR_Risk_Rat | BT2: Hispanic_ODR_RDR | BU2: Multi-Rac_ODR_Risk_Index | BV2: Multi-Rac_ODR_Risk_Rat | BW2: Multi-Rac_ODR_RDR | BX2: Nat_Amer_ODR_Risk_Ind | BY2: Nat_Amer_ODR_Risk_Rat | BZ2: Nat_Amer_ODR_RDR | CA2: Pac_Islan_ODR_Risk_Ind | CB2: Pac_Islan_ODR_Risk_Rat | CC2: Pac_Islan_ODR_RDR | CD2: White_ODR_Risk_Ind | CE2: White_ODR_Risk_Rat | CF2: White_ODR_RDR | CG2: Students_With_IEP_ODR_Risk_Index | CH2: Students_With_IEP_ODR_Risk_Ratio | CI2: IEP_ODR_RDR | CJ2: Afr_Amer_ISS_Risk_Ind | CK2: Afr_Amer_ISS_Risk_Rat | CL2: Afr_Amer_ISS_RDR | CM2: Asian_ISS_Risk_Ind | CN2: Asian_ISS_Risk_Rat | CO2: Asian_ISS_RDR | CP2: Hispanic_ISS_Risk_Ind | CQ2: Hispanic_ISS_Risk_Rat | CR2: Hispanic_ISS_RDR | CS2: Multi-Rac_ISS_Risk_Index | CT2: Multi-Rac_ISS_Risk_Rat | CU2: Multi-Rac_ISS_RDR | CV2: Nat_Amer_ISS_Risk_Ind | CW2: Nat_Amer_ISS_Risk_Rat | CX2: Nat_Amer_ISS_RDR | CY2: Pac_Islan_ISS_Risk_Ind | CZ2: Pac_Islan_ISS_Risk_Rat | DA2: Pac_Islan_ISS_RDR | DB2: White_ISS_Risk_Ind | DC2: White_ISS_Risk_Rat | DD2: White_ISS_RDR | DE2: Students_With_IEP_ISS_Risk_Index | DF2: Students_With_IEP_ISS_Risk_Ratio | DG2: IEP_ISS_RDR | DH2: Afr_Amer_OSS_Risk_Ind | DI2: Afr_Amer_OSS_Risk_Rat | DJ2: Afr_Amer_OSS_RDR | DK2: Asian_OSS_Risk_Ind | DL2: Asian_OSS_Risk_Rat | DM2: Asian_OSS_RDR | DN2: Hispanic_OSS_Risk_Ind | DO2: Hispanic_OSS_Risk_Rat | DP2: Hispanic_OSS_RDR | DQ2: Multi-Rac_OSS_Risk_Index | DR2: Multi-Rac_OSS_Risk_Rat | DS2: Multi-Rac_OSS_RDR | DT2: Nat_Amer_OSS_Risk_Ind | DU2: Nat_Amer_OSS_Risk_Rat | DV2: Nat_Amer_OSS_RDR | DW2: Pac_Islan_OSS_Risk_Ind | DX2: Pac_Islan_OSS_Risk_Rat | DY2: Pac_Islan_RDR | DZ2: White_OSS_Risk_Ind | EA2: White_OSS_Risk_Rat | EB2: White_OSS_RDR | EC2: Students_With_IEP_OSS_Risk_Index | ED2: Students_With_IEP_OSS_Risk_Ratio | EE2: Students_With_IEP_RDR
A3: 99999999 | B3: A Elementary | C3: 202122 | D3: Tier 3 | E3: Tier 3 | F3: Elementary | G3: 500 | H3: 450 | I3: =IF(Table4[Student_Enrollment_(Oct)]="","",Table4[Enrollment_Afr_Amer]/Table4[Student_Enrollment_(Oct)]) -> 0.9 | J3: 0 | K3: =IF(Table4[Student_Enrollment_(Oct)]="","",Table4[Enrollment_Asian]/Table4[Student_Enrollment_(Oct)]) -> 0 | L3: 25 | M3: =IF(Table4[Student_Enrollment_(Oct)]="","",Table4[Enrollment_Hispanic]/Table4[Student_Enrollment_(Oct)]) -> 0.05 | N3: 0 | O3: =IF(Table4[Student_Enrollment_(Oct)]="","",Table4[Enrollment_Multi-Rac]/Table4[Student_Enrollment_(Oct)]) -> 0 | P3: 0 | Q3: =IF(Table4[Student_Enrollment_(Oct)]="","",Table4[Enrollment_Nat_Amer]/Table4[Student_Enrollment_(Oct)]) -> 0 | R3: 0 | S3: =IF(Table4[Student_Enrollment_(Oct)]="","",Table4[Enrollment_Pac._Islan]/Table4[Student_Enrollment_(Oct)]) -> 0 | T3: 25 | U3: =IF(Table4[Student_Enrollment_(Oct)]="","",Table4[Enrollment_White]/Table4[Student_Enrollment_(Oct)]) -> 0.05 | V3: 60 | W3: =IF(Table4[Enrollment_Students_with_IEPs]="","",Table4[Enrollment_Students_with_IEPs]/Table4[Student_Enrollment_(Oct)]) -> 0.12 | X3: 93 | Y3: 300 | Z3: 300 | AA3: 100 | AB3: =IF(Table4[Number_of_Students_with_1_ODR]+Table4[Number_Students_With_0_ODRs]=0,"",Table4[Number_of_Students_with_1_ODR]+Table4[Number_Students_With_0_ODRs]) -> 400 | AC3: 50 | AD3: 50 | AE3: =IF(Table4[Number_of_Students_with_0-1_ODRs]="","",Table4[Number_of_Students_with_0-1_ODRs]/(Table4[Number_of_Students_with_0-1_ODRs]+Table4[Number_of_Students_with_2-5_ODRs]+Table4[Number_of_Students_with_6+_ODRs])) -> 0.8 | AF3: =IF(Table4[Number_of_Students_with_2-5_ODRs]="","",Table4[Number_of_Students_with_2-5_ODRs]/(Table4[Number_of_Students_with_0-1_ODRs]+Table4[Number_of_Students_with_2-5_ODRs]+Table4[Number_of_Students_with_6+_ODRs])) -> 0.1 | AG3: =IF(Table4[Number_of_Students_with_6+_ODRs]="","",Table4[Number_of_Students_with_6+_ODRs]/(Table4[Number_of_Students_with_0-1_ODRs]+Table4[Number_of_Students_with_2-5_ODRs]+Table4[Number_of_Students_with_6+_ODRs])) -> 0.1 | AH3: 700 | AI3: 25 | AJ3: 350 | AK3: 0 | AL3: 20 | AM3: 0 | AN3: 0 | AO3: 0 | AP3: 5 | AQ3: 20 | AR3: =IF(Table4[Number_Afr_Amer_One_or_More_ODR]+Table4[Number_Asian_One_or_More_ODR]+Table4[Number_Hispanic_One_or_More_ODR]+Table4[Number_Multi-Rac_One_or_More_ODR]+Table4[Number_Nat_Amer_One_or_More_ODR]+Table4[Number_Pac_Islan_One_or_More_ODR]+Table4[Number_White_One_or_More_ODR]=0,"",Table4[Number_Afr_Amer_One_or_More_ODR]+Table4[Number_Asian_One_or_More_ODR]+Table4[Number_Hispanic_One_or_More_ODR]+Table4[Number_Multi-Rac_One_or_More_ODR]+Table4[Number_Nat_Amer_One_or_More_ODR]+Table4[Number_Pac_Islan_One_or_More_ODR]+Table4[Number_White_One_or_More_ODR]) -> 375 | AS3: 350 | AT3: 0 | AU3: 20 | AV3: 0 | AW3: 0 | AX3: 0 | AY3: 5 | AZ3: 20 | BA3: =IF(Table4[Number_Afr_Amer_One_or_More_ISS]+Table4[Number_Asian_One_or_More_ISS]+Table4[Number_Hispanic_One_or_More_ISS]+Table4[Number_Multi-Rac_One_or_More_ISS]+Table4[Number_Nat_Amer_One_or_More_ISS]+Table4[Number_Pac_Islan_One_or_More_ISS]+Table4[Number_White_One_or_More_ISS]=0,"",Table4[Number_Afr_Amer_One_or_More_ISS]+Table4[Number_Asian_One_or_More_ISS]+Table4[Number_Hispanic_One_or_More_ISS]+Table4[Number_Multi-Rac_One_or_More_ISS]+Table4[Number_Nat_Amer_One_or_More_ISS]+Table4[Number_Pac_Islan_One_or_More_ISS]+Table4[Number_White_One_or_More_ISS]) -> 375 | BB3: 350 | BC3: 0 | BD3: 20 | BE3: 0 | BF3: 0 | BG3: 0 | BH3: 5 | BI3: 20 | BJ3: =IF(Table4[Number_Afr_Amer_One_or_More_OSS]+Table4[Number_Asian_One_or_More_OSS]+Table4[Number_Hispanic_One_or_More_OSS]+Table4[Number_Multi-Rac_One_or_More_OSS]+Table4[Number_Nat_Amer_One_or_More_OSS]+Table4[Number_Pac_Islan_One_or_More_OSS]+Table4[Number_White_One_or_More_OSS]=0,"",Table4[Number_Afr_Amer_One_or_More_OSS]+Table4[Number_Asian_One_or_More_OSS]+Table4[Number_Hispanic_One_or_More_OSS]+Table4[Number_Multi-Rac_One_or_More_OSS]+Table4[Number_Nat_Amer_One_or_More_OSS]+Table4[Number_Pac_Islan_One_or_More_OSS]+Table4[Number_White_One_or_More_OSS]) -> 375 | BL3: =IF(Table4[Number_Afr_Amer_One_or_More_ODR]="","",Table4[Number_Afr_Amer_One_or_More_ODR]/Table4[Enrollment_Afr_Amer]) -> 0.7777777778 | BM3: =IF(Table4[Afr_Amer_ODR_Risk_Ind]="","",Table4[Afr_Amer_ODR_Risk_Ind]/((SUM(Table4[Number_Afr_Amer_One_or_More_ODR]:Table4[Number_White_One_or_More_ODR])-Table4[Number_Afr_Amer_One_or_More_ODR])/(Table4[Student_Enrollment_(Oct)]-Table4[Enrollment_Afr_Amer]))) -> 0.01268391679 | BN3: =IF(Table4[Number_Afr_Amer_One_or_More_ODR]="","",(Table4[Number_Afr_Amer_One_or_More_ODR])-(Table4[Number_Afr_Amer_One_or_More_ODR]/Table4[Afr_Amer_ODR_Risk_Rat])) -> -27244 | BO3: =IF(Table4[Number_Asian_One_or_More_ODR]="","",Table4[Number_Asian_One_or_More_ODR]/Table4[Enrollment_Asian]) ->  | BP3: =IF(Table4[Asian_ODR_Risk_Ind]="","",Table4[Asian_ODR_Risk_Ind]/((SUM(Table4[Number_Afr_Amer_One_or_More_ODR]:Table4[Number_White_One_or_More_ODR])-Table4[Number_Asian_One_or_More_ODR])/(Table4[Student_Enrollment_(Oct)]-Table4[Enrollment_Asian]))) ->  | BQ3: =IF(Table4[Number_Asian_One_or_More_ODR]="","",(Table4[Number_Asian_One_or_More_ODR])-(Table4[Number_Asian_One_or_More_ODR]/Table4[Asian_ODR_Risk_Rat])) ->  | BR3: =IF(Table4[Number_Hispanic_One_or_More_ODR]="","",Table4[Number_Hispanic_One_or_More_ODR]/Table4[Enrollment_Hispanic]) -> 0.8 | BS3: =IF(Table4[Hispanic_ODR_Risk_Ind]="","",Table4[Hispanic_ODR_Risk_Ind]/((SUM(Table4[Number_Afr_Amer_One_or_More_ODR]:Table4[Number_White_One_or_More_ODR])-Table4[Number_Hispanic_One_or_More_ODR])/(Table4[Student_Enrollment_(Oct)]-Table4[Enrollment_Hispanic]))) -> 0.1118963486 | BT3: =IF(Table4[Number_Hispanic_One_or_More_ODR]="","",(Table4[Number_Hispanic_One_or_More_ODR])-(Table4[Number_Hispanic_One_or_More_ODR]/Table4[Hispanic_ODR_Risk_Rat])) -> -158.7368421 | BU3: =IF(Table4[Number_Multi-Rac_One_or_More_ODR]="","",Table4[Number_Multi-Rac_One_or_More_ODR]/Table4[Enrollment_Multi-Rac]) ->  | BV3: =IF(Table4[Multi-Rac_ODR_Risk_Index]="","",Table4[Multi-Rac_ODR_Risk_Index]/((SUM(Table4[Number_Afr_Amer_One_or_More_ODR]:Table4[Number_White_One_or_More_ODR])-Table4[Number_Multi-Rac_One_or_More_ODR])/(Table4[Student_Enrollment_(Oct)]-Table4[Enrollment_Multi-Rac]))) ->  | BW3: =IF(Table4[Number_Multi-Rac_One_or_More_ODR]="","",(Table4[Number_Multi-Rac_One_or_More_ODR])-(Table4[Number_Multi-Rac_One_or_More_ODR]/Table4[Multi-Rac_ODR_Risk_Rat])) ->  | BX3: =IF(Table4[Number_Nat_Amer_One_or_More_ODR]="","",Table4[Number_Nat_Amer_One_or_More_ODR]/Table4[Enrollment_Nat_Amer]) ->  | BY3: =IF(Table4[Nat_Amer_ODR_Risk_Ind]="","",Table4[Nat_Amer_ODR_Risk_Ind]/((SUM(Table4[Number_Afr_Amer_One_or_More_ODR]:Table4[Number_White_One_or_More_ODR])-Table4[Number_Nat_Amer_One_or_More_ODR])/(Table4[Student_Enrollment_(Oct)]-Table4[Enrollment_Nat_Amer]))) ->  | BZ3: =IF(Table4[Number_Nat_Amer_One_or_More_ODR]="","",(Table4[Number_Nat_Amer_One_or_More_ODR])-(Table4[Number_Nat_Amer_One_or_More_ODR]/Table4[Nat_Amer_ODR_Risk_Rat])) ->  | CA3: =IF(Table4[Number_Pac_Islan_One_or_More_ODR]="","",Table4[Number_Pac_Islan_One_or_More_ODR]/Table4[Enrollment_Pac._Islan]) ->  | CB3: =IF(Table4[Pac_Islan_ODR_Risk_Ind]="","",Table4[Pac_Islan_ODR_Risk_Ind]/((SUM(Table4[Number_Afr_Amer_One_or_More_ODR]:Table4[Number_White_One_or_More_ODR])-Table4[Number_Pac_Islan_One_or_More_ODR])/(Table4[Student_Enrollment_(Oct)]-Table4[Enrollment_Pac._Islan]))) ->  | CC3: =IF(Table4[Number_Pac_Islan_One_or_More_ODR]="","",(Table4[Number_Pac_Islan_One_or_More_ODR])-(Table4[Number_Pac_Islan_One_or_More_ODR]/Table4[Pac_Islan_ODR_Risk_Rat])) ->  | CD3: =IF(Table4[Number_White_One_or_More_ODR]="","",Table4[Number_White_One_or_More_ODR]/Table4[Enrollment_White]) -> 0.2 | CE3: =IF(Table4[White_ODR_Risk_Ind]="","",Table4[White_ODR_Risk_Ind]/((SUM(Table4[Number_Afr_Amer_One_or_More_ODR]:Table4[Number_White_One_or_More_ODR])-Table4[Number_White_One_or_More_ODR])/(Table4[Student_Enrollment_(Oct)]-Table4[Enrollment_White]))) -> 0.02785107007 | CF3: =IF(Table4[Number_White_One_or_More_ODR]="","",(Table4[Number_White_One_or_More_ODR])-(Table4[Number_White_One_or_More_ODR]/Table4[White_ODR_Risk_Rat])) -> -174.5263158 | CG3: =IF(Table4[Number_IEP_one _or_More_ODR]="","",Table4[Number_IEP_one _or_More_ODR]/Table4[Enrollment_Students_with_IEPs]) -> 0.3333333333 | CH3: =IF(Table4[Students_With_IEP_ODR_Risk_Index]="","",Table4[Students_With_IEP_ODR_Risk_Index]/((SUM(Table4[Number_Afr_Amer_One_or_More_ODR]:Table4[Number_White_One_or_More_ODR])-Table4[Number_IEP_one _or_More_ODR])/(Table4[Student_Enrollment_(Oct)]-Table4[Enrollment_Students_with_IEPs]))) -> 0.04318806439 | CI3: =IF(Table4[Number_IEP_one _or_More_ODR]="","",(Table4[Number_IEP_one _or_More_ODR])-(Table4[Number_IEP_one _or_More_ODR]/Table4[Students_With_IEP_ODR_Risk_Ratio])) -> -443.0909091 | CJ3: =IF(Table4[Number_Afr_Amer_One_or_More_ISS]="","",Table4[Number_Afr_Amer_One_or_More_ISS]/Table4[Enrollment_Afr_Amer]) -> 0.7777777778 | CK3: =IF(Table4[Afr_Amer_ISS_Risk_Ind]="","",Table4[Afr_Amer_ODR_Risk_Ind]/((SUM(Table4[Number_Afr_Amer_One_or_More_ISS]:Table4[Number_White_One_or_More_ISS])-Table4[Number_Afr_Amer_One_or_More_ISS])/(Table4[Student_Enrollment_(Oct)]-Table4[Enrollment_Afr_Amer]))) -> 0.01268391679 | CL3: =IF(Table4[Number_Afr_Amer_One_or_More_ISS]="","",(Table4[Number_Afr_Amer_One_or_More_ISS])-(Table4[Number_Afr_Amer_One_or_More_ISS]/Table4[Afr_Amer_ISS_Risk_Rat])) -> -27244 | CM3: =IF(Table4[Number_Asian_One_or_More_ISS]="","",Table4[Number_Asian_One_or_More_ISS]/Table4[Enrollment_Asian]) ->  | CN3: =IF(Table4[Asian_ISS_Risk_Ind]="","",Table4[Asian_ISS_Risk_Ind]/((SUM(Table4[Number_Afr_Amer_One_or_More_ISS]:Table4[Number_White_One_or_More_ISS])-Table4[Number_Asian_One_or_More_ISS])/(Table4[Student_Enrollment_(Oct)]-Table4[Enrollment_Asian]))) ->  | CO3: =IF(Table4[Number_Asian_One_or_More_ISS]="","",(Table4[Number_Asian_One_or_More_ISS])-(Table4[Number_Asian_One_or_More_ISS]/Table4[Asian_ISS_Risk_Rat])) ->  | CP3: =IF(Table4[Number_Hispanic_One_or_More_ISS]="","",Table4[Number_Hispanic_One_or_More_ISS]/Table4[Enrollment_Hispanic]) -> 0.8 | CQ3: =IF(Table4[Hispanic_ISS_Risk_Ind]="","",Table4[Hispanic_ISS_Risk_Ind]/((SUM(Table4[Number_Afr_Amer_One_or_More_ISS]:Table4[Number_White_One_or_More_ISS])-Table4[Number_Hispanic_One_or_More_ISS])/(Table4[Student_Enrollment_(Oct)]-Table4[Enrollment_Hispanic]))) -> 0.1118963486 | CR3: =IF(Table4[Number_Hispanic_One_or_More_ISS]="","",(Table4[Number_Hispanic_One_or_More_ISS])-(Table4[Number_Hispanic_One_or_More_ISS]/Table4[Hispanic_ISS_Risk_Rat])) -> -158.7368421 | CS3: =IF(Table4[Number_Multi-Rac_One_or_More_ISS]="","",Table4[Number_Multi-Rac_One_or_More_ISS]/Table4[Enrollment_Multi-Rac]) ->  | CT3: =IF(Table4[Multi-Rac_ISS_Risk_Index]="","",Table4[Multi-Rac_ISS_Risk_Index]/((SUM(Table4[Number_Afr_Amer_One_or_More_ISS]:Table4[Number_White_One_or_More_ISS])-Table4[Number_Multi-Rac_One_or_More_ISS])/(Table4[Student_Enrollment_(Oct)]-Table4[Enrollment_Multi-Rac]))) ->  | CU3: =IF(Table4[Number_Multi-Rac_One_or_More_ISS]="","",(Table4[Number_Multi-Rac_One_or_More_ISS])-(Table4[Number_Multi-Rac_One_or_More_ISS]/Table4[Multi-Rac_ISS_Risk_Rat])) ->  | CV3: =IF(Table4[Number_Nat_Amer_One_or_More_ISS]="","",Table4[Number_Nat_Amer_One_or_More_ISS]/Table4[Enrollment_Nat_Amer]) ->  | CW3: =IF(Table4[Nat_Amer_ISS_Risk_Ind]="","",Table4[Nat_Amer_ISS_Risk_Ind]/((SUM(Table4[Number_Afr_Amer_One_or_More_ISS]:Table4[Number_White_One_or_More_ISS])-Table4[Number_Nat_Amer_One_or_More_ISS])/(Table4[Student_Enrollment_(Oct)]-Table4[Enrollment_Nat_Amer]))) ->  | CX3: =IF(Table4[Number_Nat_Amer_One_or_More_ISS]="","",(Table4[Number_Nat_Amer_One_or_More_ISS])-(Table4[Number_Nat_Amer_One_or_More_ISS]/Table4[Nat_Amer_ISS_Risk_Rat])) ->  | CY3: =IF(Table4[Number_Pac_Islan_One_or_More_ISS]="","",Table4[Number_Pac_Islan_One_or_More_ISS]/Table4[Enrollment_Pac._Islan]) ->  | CZ3: =IF(Table4[Pac_Islan_ISS_Risk_Ind]="","",Table4[Pac_Islan_ISS_Risk_Ind]/((SUM(Table4[Number_Afr_Amer_One_or_More_ISS]:Table4[Number_White_One_or_More_ISS])-Table4[Number_Pac_Islan_One_or_More_ISS])/(Table4[Student_Enrollment_(Oct)]-Table4[Enrollment_Pac._Islan]))) ->  | DA3: =IF(Table4[Number_Pac_Islan_One_or_More_ISS]="","",(Table4[Number_Pac_Islan_One_or_More_ISS])-(Table4[Number_Pac_Islan_One_or_More_ISS]/Table4[Pac_Islan_ISS_Risk_Rat])) ->  | DB3: =IF(Table4[Number_White_One_or_More_ISS]="","",Table4[Number_White_One_or_More_ISS]/Table4[Enrollment_White]) -> 0.2 | DC3: =IF(Table4[White_ISS_Risk_Ind]="","",Table4[White_ISS_Risk_Ind]/((SUM(Table4[Number_Afr_Amer_One_or_More_ISS]:Table4[Number_White_One_or_More_ISS])-Table4[Number_White_One_or_More_ISS])/(Table4[Student_Enrollment_(Oct)]-Table4[Enrollment_Pac._Islan]))) -> 0.02931691586 | DD3: =IF(Table4[Number_White_One_or_More_ISS]="","",(Table4[Number_White_One_or_More_ISS])-(Table4[Number_White_One_or_More_ISS]/Table4[White_ISS_Risk_Rat])) -> -165.55 | DE3: =IF(Table4[Number_IEP_one _or_More_ISS]="","",Table4[Number_IEP_one _or_More_ISS]/Table4[Enrollment_Students_with_IEPs]) -> 0.3333333333 | DF3: =IF(Table4[Students_With_IEP_ODR_Risk_Index]="","",Table4[Students_With_IEP_ODR_Risk_Index]/((SUM(Table4[Number_Afr_Amer_One_or_More_ISS]:Table4[Number_White_One_or_More_ISS])-Table4[Number_IEP_one _or_More_ODR])/(Table4[Student_Enrollment_(Oct)]-Table4[Enrollment_Students_with_IEPs]))) -> 0.04318806439 | DG3: =IF(Table4[Number_IEP_one _or_More_ODR]="","",(Table4[Number_IEP_one _or_More_ODR])-(Table4[Number_IEP_one _or_More_ODR]/Table4[Students_With_IEP_ODR_Risk_Ratio])) -> -443.0909091 | DH3: =IF(Table4[Number_Afr_Amer_One_or_More_OSS]="","",Table4[Number_Afr_Amer_One_or_More_OSS]/Table4[Enrollment_Afr_Amer]) -> 0.7777777778 | DI3: =IF(Table4[Afr_Amer_OSS_Risk_Ind]="","",Table4[Afr_Amer_OSS_Risk_Ind]/((SUM(Table4[Number_Afr_Amer_One_or_More_OSS]:Table4[Number_White_One_or_More_OSS])-Table4[Number_Afr_Amer_One_or_More_OSS])/(Table4[Student_Enrollment_(Oct)]-Table4[Enrollment_Afr_Amer]))) -> 0.01268391679 | DJ3: =IF(Table4[Number_Afr_Amer_One_or_More_OSS]="","",(Table4[Number_Afr_Amer_One_or_More_OSS])-(Table4[Number_Afr_Amer_One_or_More_OSS]/Table4[Afr_Amer_OSS_Risk_Rat])) -> -27244 | DK3: =IF(Table4[Number_Asian_One_or_More_OSS]="","",Table4[Number_Asian_One_or_More_OSS]/Table4[Enrollment_Asian]) ->  | DL3: =IF(Table4[Asian_OSS_Risk_Ind]="","",Table4[Asian_OSS_Risk_Ind]/((SUM(Table4[Number_Afr_Amer_One_or_More_OSS]:Table4[Number_White_One_or_More_OSS])-Table4[Number_Asian_One_or_More_OSS])/(Table4[Student_Enrollment_(Oct)]-Table4[Enrollment_Asian]))) ->  | DM3: =IF(Table4[Number_Asian_One_or_More_OSS]="","",(Table4[Number_Asian_One_or_More_OSS])-(Table4[Number_Asian_One_or_More_OSS]/Table4[Asian_OSS_Risk_Rat])) ->  | DN3: =IF(Table4[Number_Hispanic_One_or_More_OSS]="","",Table4[Number_Hispanic_One_or_More_OSS]/Table4[Enrollment_Hispanic]) -> 0.8 | DO3: =IF(Table4[Hispanic_OSS_Risk_Ind]="","",Table4[Hispanic_OSS_Risk_Ind]/((SUM(Table4[Number_Afr_Amer_One_or_More_OSS]:Table4[Number_White_One_or_More_OSS])-Table4[Number_Hispanic_One_or_More_OSS])/(Table4[Student_Enrollment_(Oct)]-Table4[Enrollment_Hispanic]))) -> 0.1118963486 | DP3: =IF(Table4[Number_Hispanic_One_or_More_OSS]="","",(Table4[Number_Hispanic_One_or_More_OSS])-(Table4[Number_Hispanic_One_or_More_OSS]/Table4[Hispanic_ODR_Risk_Rat])) -> -158.7368421 | DQ3: =IF(Table4[Number_Multi-Rac_One_or_More_OSS]="","",Table4[Number_Multi-Rac_One_or_More_OSS]/Table4[Enrollment_Multi-Rac]) ->  | DR3: =IF(Table4[Multi-Rac_ODR_Risk_Index]="","",Table4[Multi-Rac_ODR_Risk_Index]/((SUM(Table4[Number_Afr_Amer_One_or_More_OSS]:Table4[Number_White_One_or_More_OSS])-Table4[Number_Multi-Rac_One_or_More_OSS])/(Table4[Student_Enrollment_(Oct)]-Table4[Enrollment_Multi-Rac]))) ->  | DS3: =IF(Table4[Number_Multi-Rac_One_or_More_OSS]="","",(Table4[Number_Multi-Rac_One_or_More_OSS])-(Table4[Number_Multi-Rac_One_or_More_OSS]/Table4[Multi-Rac_OSS_Risk_Rat])) ->  | DT3: =IF(Table4[Number_Nat_Amer_One_or_More_OSS]="","",Table4[Number_Nat_Amer_One_or_More_OSS]/Table4[Enrollment_Nat_Amer]) ->  | DU3: =IF(Table4[Nat_Amer_OSS_Risk_Ind]="","",Table4[Nat_Amer_OSS_Risk_Ind]/((SUM(Table4[Number_Afr_Amer_One_or_More_OSS]:Table4[Number_White_One_or_More_OSS])-Table4[Number_Nat_Amer_One_or_More_OSS])/(Table4[Student_Enrollment_(Oct)]-Table4[Enrollment_Nat_Amer]))) ->  | DV3: =IF(Table4[Number_Nat_Amer_One_or_More_OSS]="","",(Table4[Number_Nat_Amer_One_or_More_OSS])-(Table4[Number_Nat_Amer_One_or_More_OSS]/Table4[Nat_Amer_OSS_Risk_Rat])) ->  | DW3: =IF(Table4[Number_Pac_Islan_One_or_More_OSS]="","",Table4[Number_Pac_Islan_One_or_More_OSS]/Table4[Enrollment_Pac._Islan]) ->  | DX3: =IF(Table4[Pac_Islan_OSS_Risk_Ind]="","",Table4[Pac_Islan_OSS_Risk_Ind]/((SUM(Table4[Number_Afr_Amer_One_or_More_OSS]:Table4[Number_White_One_or_More_OSS])-Table4[Number_Pac_Islan_One_or_More_OSS])/(Table4[Student_Enrollment_(Oct)]-Table4[Enrollment_Pac._Islan]))) ->  | DY3: =IF(Table4[Number_Pac_Islan_One_or_More_OSS]="","",(Table4[Number_Pac_Islan_One_or_More_OSS])-(Table4[Number_Pac_Islan_One_or_More_OSS]/Table4[Pac_Islan_OSS_Risk_Rat])) ->  | DZ3: =IF(Table4[Number_White_One_or_More_OSS]="","",Table4[Number_White_One_or_More_OSS]/Table4[Enrollment_White]) -> 0.2 | EA3: =IF(Table4[White_OSS_Risk_Ind]="","",Table4[White_OSS_Risk_Ind]/((SUM(Table4[Number_Afr_Amer_One_or_More_OSS]:Table4[Number_White_One_or_More_OSS])-Table4[Number_White_One_or_More_OSS])/(Table4[Student_Enrollment_(Oct)]-Table4[Enrollment_White]))) -> 0.02785107007 | EB3: =IF(Table4[Number_White_One_or_More_OSS]="","",(Table4[Number_White_One_or_More_OSS])-(Table4[Number_White_One_or_More_OSS]/Table4[White_OSS_Risk_Rat])) -> -174.5263158 | EC3: =IF(Table4[Number_Students_With_IEP_One_or_More_OSS]="","",Table4[Number_Students_With_IEP_One_or_More_OSS]/Table4[Enrollment_Students_with_IEPs]) -> 0.3333333333 | ED3: =IF(Table4[Students_With_IEP_OSS_Risk_Index]="","",Table4[Students_With_IEP_OSS_Risk_Index]/((SUM(Table4[Number_Afr_Amer_One_or_More_OSS]:Table4[Number_White_One_or_More_OSS])-Table4[Number_Students_With_IEP_One_or_More_OSS])/(Table4[Student_Enrollment_(Oct)]-Table4[Enrollment_Students_with_IEPs]))) -> 0.04318806439 | EE3: =IF(Table4[Number_Students_With_IEP_One_or_More_OSS]="","",Table4[Number_Students_With_IEP_One_or_More_OSS]-(Table4[Number_Students_With_IEP_One_or_More_OSS]/Table4[Students_With_IEP_OSS_Risk_Ratio])) -> -443.0909091
A4: 999999 | B4: A Middle | C4: 202122 | D4: Tier 2 | E4: Tier 1 | F4: Middle/Jr. High | G4: 800 | H4: 400 | I4: =IF(Table4[Student_Enrollment_(Oct)]="","",Table4[Enrollment_Afr_Amer]/Table4[Student_Enrollment_(Oct)]) -> 0.5 | J4: 50 | K4: =IF(Table4[Student_Enrollment_(Oct)]="","",Table4[Enrollment_Asian]/Table4[Student_Enrollment_(Oct)]) -> 0.0625 | L4: 100 | M4: =IF(Table4[Student_Enrollment_(Oct)]="","",Table4[Enrollment_Hispanic]/Table4[Student_Enrollment_(Oct)]) -> 0.125 | N4: 50 | O4: =IF(Table4[Student_Enrollment_(Oct)]="","",Table4[Enrollment_Multi-Rac]/Table4[Student_Enrollment_(Oct)]) -> 0.0625 | P4: 25 | Q4: =IF(Table4[Student_Enrollment_(Oct)]="","",Table4[Enrollment_Nat_Amer]/Table4[Student_Enrollment_(Oct)]) -> 0.03125 | R4: 25 | S4: =IF(Table4[Student_Enrollment_(Oct)]="","",Table4[Enrollment_Pac._Islan]/Table4[Student_Enrollment_(Oct)]) -> 0.03125 | T4: 150 | U4: =IF(Table4[Student_Enrollment_(Oct)]="","",Table4[Enrollment_White]/Table4[Student_Enrollment_(Oct)]) -> 0.1875 | V4: 80 | W4: =IF(Table4[Enrollment_Students_with_IEPs]="","",Table4[Enrollment_Students_with_IEPs]/Table4[Student_Enrollment_(Oct)]) -> 0.1 | X4: 91 | Y4: 3000 | Z4: 500 | AA4: 200 | AB4: =IF(Table4[Number_of_Students_with_1_ODR]+Table4[Number_Students_With_0_ODRs]=0,"",Table4[Number_of_Students_with_1_ODR]+Table4[Number_Students_With_0_ODRs]) -> 700 | AC4: 50 | AD4: 50 | AE4: =IF(Table4[Number_of_Students_with_0-1_ODRs]="","",Table4[Number_of_Students_with_0-1_ODRs]/(Table4[Number_of_Students_with_0-1_ODRs]+Table4[Number_of_Students_with_2-5_ODRs]+Table4[Number_of_Students_with_6+_ODRs])) -> 0.875 | AF4: =IF(Table4[Number_of_Students_with_2-5_ODRs]="","",Table4[Number_of_Students_with_2-5_ODRs]/(Table4[Number_of_Students_with_0-1_ODRs]+Table4[Number_of_Students_with_2-5_ODRs]+Table4[Number_of_Students_with_6+_ODRs])) -> 0.0625 | AG4: =IF(Table4[Number_of_Students_with_6+_ODRs]="","",Table4[Number_of_Students_with_6+_ODRs]/(Table4[Number_of_Students_with_0-1_ODRs]+Table4[Number_of_Students_with_2-5_ODRs]+Table4[Number_of_Students_with_6+_ODRs])) -> 0.0625 | AH4: 950 | AI4: 90 | AJ4: 375 | AK4: 2 | AL4: 75 | AM4: 45 | AN4: 25 | AO4: 2 | AP4: 15 | AQ4: 53 | AR4: =IF(Table4[Number_Afr_Amer_One_or_More_ODR]+Table4[Number_Asian_One_or_More_ODR]+Table4[Number_Hispanic_One_or_More_ODR]+Table4[Number_Multi-Rac_One_or_More_ODR]+Table4[Number_Nat_Amer_One_or_More_ODR]+Table4[Number_Pac_Islan_One_or_More_ODR]+Table4[Number_White_One_or_More_ODR]=0,"",Table4[Number_Afr_Amer_One_or_More_ODR]+Table4[Number_Asian_One_or_More_ODR]+Table4[Number_Hispanic_One_or_More_ODR]+Table4[Number_Multi-Rac_One_or_More_ODR]+Table4[Number_Nat_Amer_One_or_More_ODR]+Table4[Number_Pac_Islan_One_or_More_ODR]+Table4[Number_White_One_or_More_ODR]) -> 539 | AS4: 375 | AT4: 2 | AU4: 75 | AV4: 45 | AW4: 25 | AX4: 2 | AY4: 15 | AZ4: 53 | BA4: =IF(Table4[Number_Afr_Amer_One_or_More_ISS]+Table4[Number_Asian_One_or_More_ISS]+Table4[Number_Hispanic_One_or_More_ISS]+Table4[Number_Multi-Rac_One_or_More_ISS]+Table4[Number_Nat_Amer_One_or_More_ISS]+Table4[Number_Pac_Islan_One_or_More_ISS]+Table4[Number_White_One_or_More_ISS]=0,"",Table4[Number_Afr_Amer_One_or_More_ISS]+Table4[Number_Asian_One_or_More_ISS]+Table4[Number_Hispanic_One_or_More_ISS]+Table4[Number_Multi-Rac_One_or_More_ISS]+Table4[Number_Nat_Amer_One_or_More_ISS]+Table4[Number_Pac_Islan_One_or_More_ISS]+Table4[Number_White_One_or_More_ISS]) -> 539 | BB4: 375 | BC4: 2 | BD4: 75 | BE4: 45 | BF4: 25 | BG4: 2 | BH4: 15 | BI4: 53 | BJ4: =IF(Table4[Number_Afr_Amer_One_or_More_OSS]+Table4[Number_Asian_One_or_More_OSS]+Table4[Number_Hispanic_One_or_More_OSS]+Table4[Number_Multi-Rac_One_or_More_OSS]+Table4[Number_Nat_Amer_One_or_More_OSS]+Table4[Number_Pac_Islan_One_or_More_OSS]+Table4[Number_White_One_or_More_OSS]=0,"",Table4[Number_Afr_Amer_One_or_More_OSS]+Table4[Number_Asian_One_or_More_OSS]+Table4[Number_Hispanic_One_or_More_OSS]+Table4[Number_Multi-Rac_One_or_More_OSS]+Table4[Number_Nat_Amer_One_or_More_OSS]+Table4[Number_Pac_Islan_One_or_More_OSS]+Table4[Number_White_One_or_More_OSS]) -> 539 | BL4: =IF(Table4[Number_Afr_Amer_One_or_More_ODR]="","",Table4[Number_Afr_Amer_One_or_More_ODR]/Table4[Enrollment_Afr_Amer]) -> 0.9375 | BM4: =IF(Table4[Afr_Amer_ODR_Risk_Ind]="","",Table4[Afr_Amer_ODR_Risk_Ind]/((SUM(Table4[Number_Afr_Amer_One_or_More_ODR]:Table4[Number_White_One_or_More_ODR])-Table4[Number_Afr_Amer_One_or_More_ODR])/(Table4[Student_Enrollment_(Oct)]-Table4[Enrollment_Afr_Amer]))) -> 0.1233146991 | BN4: =IF(Table4[Number_Afr_Amer_One_or_More_ODR]="","",(Table4[Number_Afr_Amer_One_or_More_ODR])-(Table4[Number_Afr_Amer_One_or_More_ODR]/Table4[Afr_Amer_ODR_Risk_Rat])) -> -2666 | BO4: =IF(Table4[Number_Asian_One_or_More_ODR]="","",Table4[Number_Asian_One_or_More_ODR]/Table4[Enrollment_Asian]) -> 0.04 | BP4: =IF(Table4[Asian_ODR_Risk_Ind]="","",Table4[Asian_ODR_Risk_Ind]/((SUM(Table4[Number_Afr_Amer_One_or_More_ODR]:Table4[Number_White_One_or_More_ODR])-Table4[Number_Asian_One_or_More_ODR])/(Table4[Student_Enrollment_(Oct)]-Table4[Enrollment_Asian]))) -> 0.008787346221 | BQ4: =IF(Table4[Number_Asian_One_or_More_ODR]="","",(Table4[Number_Asian_One_or_More_ODR])-(Table4[Number_Asian_One_or_More_ODR]/Table4[Asian_ODR_Risk_Rat])) -> -225.6 | BR4: =IF(Table4[Number_Hispanic_One_or_More_ODR]="","",Table4[Number_Hispanic_One_or_More_ODR]/Table4[Enrollment_Hispanic]) -> 0.75 | BS4: =IF(Table4[Hispanic_ODR_Risk_Ind]="","",Table4[Hispanic_ODR_Risk_Ind]/((SUM(Table4[Number_Afr_Amer_One_or_More_ODR]:Table4[Number_White_One_or_More_ODR])-Table4[Number_Hispanic_One_or_More_ODR])/(Table4[Student_Enrollment_(Oct)]-Table4[Enrollment_Hispanic]))) -> 0.1571385813 | BT4: =IF(Table4[Number_Hispanic_One_or_More_ODR]="","",(Table4[Number_Hispanic_One_or_More_ODR])-(Table4[Number_Hispanic_One_or_More_ODR]/Table4[Hispanic_ODR_Risk_Rat])) -> -402.2857143 | BU4: =IF(Table4[Number_Multi-Rac_One_or_More_ODR]="","",Table4[Number_Multi-Rac_One_or_More_ODR]/Table4[Enrollment_Multi-Rac]) -> 0.9 | BV4: =IF(Table4[Multi-Rac_ODR_Risk_Index]="","",Table4[Multi-Rac_ODR_Risk_Index]/((SUM(Table4[Number_Afr_Amer_One_or_More_ODR]:Table4[Number_White_One_or_More_ODR])-Table4[Number_Multi-Rac_One_or_More_ODR])/(Table4[Student_Enrollment_(Oct)]-Table4[Enrollment_Multi-Rac]))) -> 0.2002373183 | BW4: =IF(Table4[Number_Multi-Rac_One_or_More_ODR]="","",(Table4[Number_Multi-Rac_One_or_More_ODR])-(Table4[Number_Multi-Rac_One_or_More_ODR]/Table4[Multi-Rac_ODR_Risk_Rat])) -> -179.7333333 | BX4: =IF(Table4[Number_Nat_Amer_One_or_More_ODR]="","",Table4[Number_Nat_Amer_One_or_More_ODR]/Table4[Enrollment_Nat_Amer]) -> 1 | BY4: =IF(Table4[Nat_Amer_ODR_Risk_Ind]="","",Table4[Nat_Amer_ODR_Risk_Ind]/((SUM(Table4[Number_Afr_Amer_One_or_More_ODR]:Table4[Number_White_One_or_More_ODR])-Table4[Number_Nat_Amer_One_or_More_ODR])/(Table4[Student_Enrollment_(Oct)]-Table4[Enrollment_Nat_Amer]))) -> 0.2285461516 | BZ4: =IF(Table4[Number_Nat_Amer_One_or_More_ODR]="","",(Table4[Number_Nat_Amer_One_or_More_ODR])-(Table4[Number_Nat_Amer_One_or_More_ODR]/Table4[Nat_Amer_ODR_Risk_Rat])) -> -84.38709677 | CA4: =IF(Table4[Number_Pac_Islan_One_or_More_ODR]="","",Table4[Number_Pac_Islan_One_or_More_ODR]/Table4[Enrollment_Pac._Islan]) -> 0.08 | CB4: =IF(Table4[Pac_Islan_ODR_Risk_Ind]="","",Table4[Pac_Islan_ODR_Risk_Ind]/((SUM(Table4[Number_Afr_Amer_One_or_More_ODR]:Table4[Number_White_One_or_More_ODR])-Table4[Number_Pac_Islan_One_or_More_ODR])/(Table4[Student_Enrollment_(Oct)]-Table4[Enrollment_Pac._Islan]))) -> 0.01816051552 | CC4: =IF(Table4[Number_Pac_Islan_One_or_More_ODR]="","",(Table4[Number_Pac_Islan_One_or_More_ODR])-(Table4[Number_Pac_Islan_One_or_More_ODR]/Table4[Pac_Islan_ODR_Risk_Rat])) -> -108.1290323 | CD4: =IF(Table4[Number_White_One_or_More_ODR]="","",Table4[Number_White_One_or_More_ODR]/Table4[Enrollment_White]) -> 0.1 | CE4: =IF(Table4[White_ODR_Risk_Ind]="","",Table4[White_ODR_Risk_Ind]/((SUM(Table4[Number_Afr_Amer_One_or_More_ODR]:Table4[Number_White_One_or_More_ODR])-Table4[Number_White_One_or_More_ODR])/(Table4[Student_Enrollment_(Oct)]-Table4[Enrollment_White]))) -> 0.01911202587 | CF4: =IF(Table4[Number_White_One_or_More_ODR]="","",(Table4[Number_White_One_or_More_ODR])-(Table4[Number_White_One_or_More_ODR]/Table4[White_ODR_Risk_Rat])) -> -769.8461538 | CG4: =IF(Table4[Number_IEP_one _or_More_ODR]="","",Table4[Number_IEP_one _or_More_ODR]/Table4[Enrollment_Students_with_IEPs]) -> 0.6625 | CH4: =IF(Table4[Students_With_IEP_ODR_Risk_Index]="","",Table4[Students_With_IEP_ODR_Risk_Index]/((SUM(Table4[Number_Afr_Amer_One_or_More_ODR]:Table4[Number_White_One_or_More_ODR])-Table4[Number_IEP_one _or_More_ODR])/(Table4[Student_Enrollment_(Oct)]-Table4[Enrollment_Students_with_IEPs]))) -> 0.141837645 | CI4: =IF(Table4[Number_IEP_one _or_More_ODR]="","",(Table4[Number_IEP_one _or_More_ODR])-(Table4[Number_IEP_one _or_More_ODR]/Table4[Students_With_IEP_ODR_Risk_Ratio])) -> -320.6666667 | CJ4: =IF(Table4[Number_Afr_Amer_One_or_More_ISS]="","",Table4[Number_Afr_Amer_One_or_More_ISS]/Table4[Enrollment_Afr_Amer]) -> 0.9375 | CK4: =IF(Table4[Afr_Amer_ISS_Risk_Ind]="","",Table4[Afr_Amer_ODR_Risk_Ind]/((SUM(Table4[Number_Afr_Amer_One_or_More_ISS]:Table4[Number_White_One_or_More_ISS])-Table4[Number_Afr_Amer_One_or_More_ISS])/(Table4[Student_Enrollment_(Oct)]-Table4[Enrollment_Afr_Amer]))) -> 0.1233146991 | CL4: =IF(Table4[Number_Afr_Amer_One_or_More_ISS]="","",(Table4[Number_Afr_Amer_One_or_More_ISS])-(Table4[Number_Afr_Amer_One_or_More_ISS]/Table4[Afr_Amer_ISS_Risk_Rat])) -> -2666 | CM4: =IF(Table4[Number_Asian_One_or_More_ISS]="","",Table4[Number_Asian_One_or_More_ISS]/Table4[Enrollment_Asian]) -> 0.04 | CN4: =IF(Table4[Asian_ISS_Risk_Ind]="","",Table4[Asian_ISS_Risk_Ind]/((SUM(Table4[Number_Afr_Amer_One_or_More_ISS]:Table4[Number_White_One_or_More_ISS])-Table4[Number_Asian_One_or_More_ISS])/(Table4[Student_Enrollment_(Oct)]-Table4[Enrollment_Asian]))) -> 0.008787346221 | CO4: =IF(Table4[Number_Asian_One_or_More_ISS]="","",(Table4[Number_Asian_One_or_More_ISS])-(Table4[Number_Asian_One_or_More_ISS]/Table4[Asian_ISS_Risk_Rat])) -> -225.6 | CP4: =IF(Table4[Number_Hispanic_One_or_More_ISS]="","",Table4[Number_Hispanic_One_or_More_ISS]/Table4[Enrollment_Hispanic]) -> 0.75 | CQ4: =IF(Table4[Hispanic_ISS_Risk_Ind]="","",Table4[Hispanic_ISS_Risk_Ind]/((SUM(Table4[Number_Afr_Amer_One_or_More_ISS]:Table4[Number_White_One_or_More_ISS])-Table4[Number_Hispanic_One_or_More_ISS])/(Table4[Student_Enrollment_(Oct)]-Table4[Enrollment_Hispanic]))) -> 0.1571385813 | CR4: =IF(Table4[Number_Hispanic_One_or_More_ISS]="","",(Table4[Number_Hispanic_One_or_More_ISS])-(Table4[Number_Hispanic_One_or_More_ISS]/Table4[Hispanic_ISS_Risk_Rat])) -> -402.2857143 | CS4: =IF(Table4[Number_Multi-Rac_One_or_More_ISS]="","",Table4[Number_Multi-Rac_One_or_More_ISS]/Table4[Enrollment_Multi-Rac]) -> 0.9 | CT4: =IF(Table4[Multi-Rac_ISS_Risk_Index]="","",Table4[Multi-Rac_ISS_Risk_Index]/((SUM(Table4[Number_Afr_Amer_One_or_More_ISS]:Table4[Number_White_One_or_More_ISS])-Table4[Number_Multi-Rac_One_or_More_ISS])/(Table4[Student_Enrollment_(Oct)]-Table4[Enrollment_Multi-Rac]))) -> 0.2002373183 | CU4: =IF(Table4[Number_Multi-Rac_One_or_More_ISS]="","",(Table4[Number_Multi-Rac_One_or_More_ISS])-(Table4[Number_Multi-Rac_One_or_More_ISS]/Table4[Multi-Rac_ISS_Risk_Rat])) -> -179.7333333 | CV4: =IF(Table4[Number_Nat_Amer_One_or_More_ISS]="","",Table4[Number_Nat_Amer_One_or_More_ISS]/Table4[Enrollment_Nat_Amer]) -> 1 | CW4: =IF(Table4[Nat_Amer_ISS_Risk_Ind]="","",Table4[Nat_Amer_ISS_Risk_Ind]/((SUM(Table4[Number_Afr_Amer_One_or_More_ISS]:Table4[Number_White_One_or_More_ISS])-Table4[Number_Nat_Amer_One_or_More_ISS])/(Table4[Student_Enrollment_(Oct)]-Table4[Enrollment_Nat_Amer]))) -> 0.2285461516 | CX4: =IF(Table4[Number_Nat_Amer_One_or_More_ISS]="","",(Table4[Number_Nat_Amer_One_or_More_ISS])-(Table4[Number_Nat_Amer_One_or_More_ISS]/Table4[Nat_Amer_ISS_Risk_Rat])) -> -84.38709677 | CY4: =IF(Table4[Number_Pac_Islan_One_or_More_ISS]="","",Table4[Number_Pac_Islan_One_or_More_ISS]/Table4[Enrollment_Pac._Islan]) -> 0.08 | CZ4: =IF(Table4[Pac_Islan_ISS_Risk_Ind]="","",Table4[Pac_Islan_ISS_Risk_Ind]/((SUM(Table4[Number_Afr_Amer_One_or_More_ISS]:Table4[Number_White_One_or_More_ISS])-Table4[Number_Pac_Islan_One_or_More_ISS])/(Table4[Student_Enrollment_(Oct)]-Table4[Enrollment_Pac._Islan]))) -> 0.01816051552 | DA4: =IF(Table4[Number_Pac_Islan_One_or_More_ISS]="","",(Table4[Number_Pac_Islan_One_or_More_ISS])-(Table4[Number_Pac_Islan_One_or_More_ISS]/Table4[Pac_Islan_ISS_Risk_Rat])) -> -108.1290323 | DB4: =IF(Table4[Number_White_One_or_More_ISS]="","",Table4[Number_White_One_or_More_ISS]/Table4[Enrollment_White]) -> 0.1 | DC4: =IF(Table4[White_ISS_Risk_Ind]="","",Table4[White_ISS_Risk_Ind]/((SUM(Table4[Number_Afr_Amer_One_or_More_ISS]:Table4[Number_White_One_or_More_ISS])-Table4[Number_White_One_or_More_ISS])/(Table4[Student_Enrollment_(Oct)]-Table4[Enrollment_Pac._Islan]))) -> 0.02278741547 | DD4: =IF(Table4[Number_White_One_or_More_ISS]="","",(Table4[Number_White_One_or_More_ISS])-(Table4[Number_White_One_or_More_ISS]/Table4[White_ISS_Risk_Rat])) -> -643.2580645 | DE4: =IF(Table4[Number_IEP_one _or_More_ISS]="","",Table4[Number_IEP_one _or_More_ISS]/Table4[Enrollment_Students_with_IEPs]) -> 0.6625 | DF4: =IF(Table4[Students_With_IEP_ODR_Risk_Index]="","",Table4[Students_With_IEP_ODR_Risk_Index]/((SUM(Table4[Number_Afr_Amer_One_or_More_ISS]:Table4[Number_White_One_or_More_ISS])-Table4[Number_IEP_one _or_More_ODR])/(Table4[Student_Enrollment_(Oct)]-Table4[Enrollment_Students_with_IEPs]))) -> 0.141837645 | DG4: =IF(Table4[Number_IEP_one _or_More_ODR]="","",(Table4[Number_IEP_one _or_More_ODR])-(Table4[Number_IEP_one _or_More_ODR]/Table4[Students_With_IEP_ODR_Risk_Ratio])) -> -320.6666667 | DH4: =IF(Table4[Number_Afr_Amer_One_or_More_OSS]="","",Table4[Number_Afr_Amer_One_or_More_OSS]/Table4[Enrollment_Afr_Amer]) -> 0.9375 | DI4: =IF(Table4[Afr_Amer_OSS_Risk_Ind]="","",Table4[Afr_Amer_OSS_Risk_Ind]/((SUM(Table4[Number_Afr_Amer_One_or_More_OSS]:Table4[Number_White_One_or_More_OSS])-Table4[Number_Afr_Amer_One_or_More_OSS])/(Table4[Student_Enrollment_(Oct)]-Table4[Enrollment_Afr_Amer]))) -> 0.1233146991 | DJ4: =IF(Table4[Number_Afr_Amer_One_or_More_OSS]="","",(Table4[Number_Afr_Amer_One_or_More_OSS])-(Table4[Number_Afr_Amer_One_or_More_OSS]/Table4[Afr_Amer_OSS_Risk_Rat])) -> -2666 | DK4: =IF(Table4[Number_Asian_One_or_More_OSS]="","",Table4[Number_Asian_One_or_More_OSS]/Table4[Enrollment_Asian]) -> 0.04 | DL4: =IF(Table4[Asian_OSS_Risk_Ind]="","",Table4[Asian_OSS_Risk_Ind]/((SUM(Table4[Number_Afr_Amer_One_or_More_OSS]:Table4[Number_White_One_or_More_OSS])-Table4[Number_Asian_One_or_More_OSS])/(Table4[Student_Enrollment_(Oct)]-Table4[Enrollment_Asian]))) -> 0.008787346221 | DM4: =IF(Table4[Number_Asian_One_or_More_OSS]="","",(Table4[Number_Asian_One_or_More_OSS])-(Table4[Number_Asian_One_or_More_OSS]/Table4[Asian_OSS_Risk_Rat])) -> -225.6 | DN4: =IF(Table4[Number_Hispanic_One_or_More_OSS]="","",Table4[Number_Hispanic_One_or_More_OSS]/Table4[Enrollment_Hispanic]) -> 0.75 | DO4: =IF(Table4[Hispanic_OSS_Risk_Ind]="","",Table4[Hispanic_OSS_Risk_Ind]/((SUM(Table4[Number_Afr_Amer_One_or_More_OSS]:Table4[Number_White_One_or_More_OSS])-Table4[Number_Hispanic_One_or_More_OSS])/(Table4[Student_Enrollment_(Oct)]-Table4[Enrollment_Hispanic]))) -> 0.1571385813 | DP4: =IF(Table4[Number_Hispanic_One_or_More_OSS]="","",(Table4[Number_Hispanic_One_or_More_OSS])-(Table4[Number_Hispanic_One_or_More_OSS]/Table4[Hispanic_ODR_Risk_Rat])) -> -402.2857143 | DQ4: =IF(Table4[Number_Multi-Rac_One_or_More_OSS]="","",Table4[Number_Multi-Rac_One_or_More_OSS]/Table4[Enrollment_Multi-Rac]) -> 0.9 | DR4: =IF(Table4[Multi-Rac_ODR_Risk_Index]="","",Table4[Multi-Rac_ODR_Risk_Index]/((SUM(Table4[Number_Afr_Amer_One_or_More_OSS]:Table4[Number_White_One_or_More_OSS])-Table4[Number_Multi-Rac_One_or_More_OSS])/(Table4[Student_Enrollment_(Oct)]-Table4[Enrollment_Multi-Rac]))) -> 0.2002373183 | DS4: =IF(Table4[Number_Multi-Rac_One_or_More_OSS]="","",(Table4[Number_Multi-Rac_One_or_More_OSS])-(Table4[Number_Multi-Rac_One_or_More_OSS]/Table4[Multi-Rac_OSS_Risk_Rat])) -> -179.7333333 | DT4: =IF(Table4[Number_Nat_Amer_One_or_More_OSS]="","",Table4[Number_Nat_Amer_One_or_More_OSS]/Table4[Enrollment_Nat_Amer]) -> 1 | DU4: =IF(Table4[Nat_Amer_OSS_Risk_Ind]="","",Table4[Nat_Amer_OSS_Risk_Ind]/((SUM(Table4[Number_Afr_Amer_One_or_More_OSS]:Table4[Number_White_One_or_More_OSS])-Table4[Number_Nat_Amer_One_or_More_OSS])/(Table4[Student_Enrollment_(Oct)]-Table4[Enrollment_Nat_Amer]))) -> 0.2285461516 | DV4: =IF(Table4[Number_Nat_Amer_One_or_More_OSS]="","",(Table4[Number_Nat_Amer_One_or_More_OSS])-(Table4[Number_Nat_Amer_One_or_More_OSS]/Table4[Nat_Amer_OSS_Risk_Rat])) -> -84.38709677 | DW4: =IF(Table4[Number_Pac_Islan_One_or_More_OSS]="","",Table4[Number_Pac_Islan_One_or_More_OSS]/Table4[Enrollment_Pac._Islan]) -> 0.08 | DX4: =IF(Table4[Pac_Islan_OSS_Risk_Ind]="","",Table4[Pac_Islan_OSS_Risk_Ind]/((SUM(Table4[Number_Afr_Amer_One_or_More_OSS]:Table4[Number_White_One_or_More_OSS])-Table4[Number_Pac_Islan_One_or_More_OSS])/(Table4[Student_Enrollment_(Oct)]-Table4[Enrollment_Pac._Islan]))) -> 0.01816051552 | DY4: =IF(Table4[Number_Pac_Islan_One_or_More_OSS]="","",(Table4[Number_Pac_Islan_One_or_More_OSS])-(Table4[Number_Pac_Islan_One_or_More_OSS]/Table4[Pac_Islan_OSS_Risk_Rat])) -> -108.1290323 | DZ4: =IF(Table4[Number_White_One_or_More_OSS]="","",Table4[Number_White_One_or_More_OSS]/Table4[Enrollment_White]) -> 0.1 | EA4: =IF(Table4[White_OSS_Risk_Ind]="","",Table4[White_OSS_Risk_Ind]/((SUM(Table4[Number_Afr_Amer_One_or_More_OSS]:Table4[Number_White_One_or_More_OSS])-Table4[Number_White_One_or_More_OSS])/(Table4[Student_Enrollment_(Oct)]-Table4[Enrollment_White]))) -> 0.01911202587 | EB4: =IF(Table4[Number_White_One_or_More_OSS]="","",(Table4[Number_White_One_or_More_OSS])-(Table4[Number_White_One_or_More_OSS]/Table4[White_OSS_Risk_Rat])) -> -769.8461538 | EC4: =IF(Table4[Number_Students_With_IEP_One_or_More_OSS]="","",Table4[Number_Students_With_IEP_One_or_More_OSS]/Table4[Enrollment_Students_with_IEPs]) -> 0.6625 | ED4: =IF(Table4[Students_With_IEP_OSS_Risk_Index]="","",Table4[Students_With_IEP_OSS_Risk_Index]/((SUM(Table4[Number_Afr_Amer_One_or_More_OSS]:Table4[Number_White_One_or_More_OSS])-Table4[Number_Students_With_IEP_One_or_More_OSS])/(Table4[Student_Enrollment_(Oct)]-Table4[Enrollment_Students_with_IEPs]))) -> 0.141837645 | EE4: =IF(Table4[Number_Students_With_IEP_One_or_More_OSS]="","",Table4[Number_Students_With_IEP_One_or_More_OSS]-(Table4[Number_Students_With_IEP_One_or_More_OSS]/Table4[Students_With_IEP_OSS_Risk_Ratio])) -> -320.6666667
A5: 999999 | B5: A High | C5: 202122 | D5: Tier 1 | E5: Tier 1 | F5: High | G5: 2000 | H5: 100 | I5: =IF(Table4[Student_Enrollment_(Oct)]="","",Table4[Enrollment_Afr_Amer]/Table4[Student_Enrollment_(Oct)]) -> 0.05 | J5: 100 | K5: =IF(Table4[Student_Enrollment_(Oct)]="","",Table4[Enrollment_Asian]/Table4[Student_Enrollment_(Oct)]) -> 0.05 | L5: 100 | M5: =IF(Table4[Student_Enrollment_(Oct)]="","",Table4[Enrollment_Hispanic]/Table4[Student_Enrollment_(Oct)]) -> 0.05 | N5: 100 | O5: =IF(Table4[Student_Enrollment_(Oct)]="","",Table4[Enrollment_Multi-Rac]/Table4[Student_Enrollment_(Oct)]) -> 0.05 | P5: 10 | Q5: =IF(Table4[Student_Enrollment_(Oct)]="","",Table4[Enrollment_Nat_Amer]/Table4[Student_Enrollment_(Oct)]) -> 0.005 | R5: 90 | S5: =IF(Table4[Student_Enrollment_(Oct)]="","",Table4[Enrollment_Pac._Islan]/Table4[Student_Enrollment_(Oct)]) -> 0.045 | T5: 1500 | U5: =IF(Table4[Student_Enrollment_(Oct)]="","",Table4[Enrollment_White]/Table4[Student_Enrollment_(Oct)]) -> 0.75 | V5: 250 | W5: =IF(Table4[Enrollment_Students_with_IEPs]="","",Table4[Enrollment_Students_with_IEPs]/Table4[Student_Enrollment_(Oct)]) -> 0.125 | X5: 90 | Y5: 2000 | Z5: 1000 | AA5: 400 | AB5: =IF(Table4[Number_of_Students_with_1_ODR]+Table4[Number_Students_With_0_ODRs]=0,"",Table4[Number_of_Students_with_1_ODR]+Table4[Number_Students_With_0_ODRs]) -> 1400 | AC5: 300 | AD5: 300 | AE5: =IF(Table4[Number_of_Students_with_0-1_ODRs]="","",Table4[Number_of_Students_with_0-1_ODRs]/(Table4[Number_of_Students_with_0-1_ODRs]+Table4[Number_of_Students_with_2-5_ODRs]+Table4[Number_of_Students_with_6+_ODRs])) -> 0.7 | AF5: =IF(Table4[Number_of_Students_with_2-5_ODRs]="","",Table4[Number_of_Students_with_2-5_ODRs]/(Table4[Number_of_Students_with_0-1_ODRs]+Table4[Number_of_Students_with_2-5_ODRs]+Table4[Number_of_Students_with_6+_ODRs])) -> 0.15 | AG5: =IF(Table4[Number_of_Students_with_6+_ODRs]="","",Table4[Number_of_Students_with_6+_ODRs]/(Table4[Number_of_Students_with_0-1_ODRs]+Table4[Number_of_Students_with_2-5_ODRs]+Table4[Number_of_Students_with_6+_ODRs])) -> 0.15 | AH5: 6000 | AI5: 100 | AJ5: 50 | AK5: 15 | AL5: 50 | AM5: 50 | AN5: 8 | AO5: 15 | AP5: 200 | AQ5: 52 | AR5: =IF(Table4[Number_Afr_Amer_One_or_More_ODR]+Table4[Number_Asian_One_or_More_ODR]+Table4[Number_Hispanic_One_or_More_ODR]+Table4[Number_Multi-Rac_One_or_More_ODR]+Table4[Number_Nat_Amer_One_or_More_ODR]+Table4[Number_Pac_Islan_One_or_More_ODR]+Table4[Number_White_One_or_More_ODR]=0,"",Table4[Number_Afr_Amer_One_or_More_ODR]+Table4[Number_Asian_One_or_More_ODR]+Table4[Number_Hispanic_One_or_More_ODR]+Table4[Number_Multi-Rac_One_or_More_ODR]+Table4[Number_Nat_Amer_One_or_More_ODR]+Table4[Number_Pac_Islan_One_or_More_ODR]+Table4[Number_White_One_or_More_ODR]) -> 388 | AS5: 50 | AT5: 15 | AU5: 50 | AV5: 50 | AW5: 8 | AX5: 15 | AY5: 200 | AZ5: 52 | BA5: =IF(Table4[Number_Afr_Amer_One_or_More_ISS]+Table4[Number_Asian_One_or_More_ISS]+Table4[Number_Hispanic_One_or_More_ISS]+Table4[Number_Multi-Rac_One_or_More_ISS]+Table4[Number_Nat_Amer_One_or_More_ISS]+Table4[Number_Pac_Islan_One_or_More_ISS]+Table4[Number_White_One_or_More_ISS]=0,"",Table4[Number_Afr_Amer_One_or_More_ISS]+Table4[Number_Asian_One_or_More_ISS]+Table4[Number_Hispanic_One_or_More_ISS]+Table4[Number_Multi-Rac_One_or_More_ISS]+Table4[Number_Nat_Amer_One_or_More_ISS]+Table4[Number_Pac_Islan_One_or_More_ISS]+Table4[Number_White_One_or_More_ISS]) -> 388 | BB5: 50 | BC5: 15 | BD5: 50 | BE5: 50 | BF5: 8 | BG5: 15 | BH5: 200 | BI5: 52 | BJ5: =IF(Table4[Number_Afr_Amer_One_or_More_OSS]+Table4[Number_Asian_One_or_More_OSS]+Table4[Number_Hispanic_One_or_More_OSS]+Table4[Number_Multi-Rac_One_or_More_OSS]+Table4[Number_Nat_Amer_One_or_More_OSS]+Table4[Number_Pac_Islan_One_or_More_OSS]+Table4[Number_White_One_or_More_OSS]=0,"",Table4[Number_Afr_Amer_One_or_More_OSS]+Table4[Number_Asian_One_or_More_OSS]+Table4[Number_Hispanic_One_or_More_OSS]+Table4[Number_Multi-Rac_One_or_More_OSS]+Table4[Number_Nat_Amer_One_or_More_OSS]+Table4[Number_Pac_Islan_One_or_More_OSS]+Table4[Number_White_One_or_More_OSS]) -> 388 | BL5: =IF(Table4[Number_Afr_Amer_One_or_More_ODR]="","",Table4[Number_Afr_Amer_One_or_More_ODR]/Table4[Enrollment_Afr_Amer]) -> 0.5 | BM5: =IF(Table4[Afr_Amer_ODR_Risk_Ind]="","",Table4[Afr_Amer_ODR_Risk_Ind]/((SUM(Table4[Number_Afr_Amer_One_or_More_ODR]:Table4[Number_White_One_or_More_ODR])-Table4[Number_Afr_Amer_One_or_More_ODR])/(Table4[Student_Enrollment_(Oct)]-Table4[Enrollment_Afr_Amer]))) -> 0.2822341058 | BN5: =IF(Table4[Number_Afr_Amer_One_or_More_ODR]="","",(Table4[Number_Afr_Amer_One_or_More_ODR])-(Table4[Number_Afr_Amer_One_or_More_ODR]/Table4[Afr_Amer_ODR_Risk_Rat])) -> -127.1578947 | BO5: =IF(Table4[Number_Asian_One_or_More_ODR]="","",Table4[Number_Asian_One_or_More_ODR]/Table4[Enrollment_Asian]) -> 0.15 | BP5: =IF(Table4[Asian_ODR_Risk_Ind]="","",Table4[Asian_ODR_Risk_Ind]/((SUM(Table4[Number_Afr_Amer_One_or_More_ODR]:Table4[Number_White_One_or_More_ODR])-Table4[Number_Asian_One_or_More_ODR])/(Table4[Student_Enrollment_(Oct)]-Table4[Enrollment_Asian]))) -> 0.08379888268 | BQ5: =IF(Table4[Number_Asian_One_or_More_ODR]="","",(Table4[Number_Asian_One_or_More_ODR])-(Table4[Number_Asian_One_or_More_ODR]/Table4[Asian_ODR_Risk_Rat])) -> -164 | BR5: =IF(Table4[Number_Hispanic_One_or_More_ODR]="","",Table4[Number_Hispanic_One_or_More_ODR]/Table4[Enrollment_Hispanic]) -> 0.5 | BS5: =IF(Table4[Hispanic_ODR_Risk_Ind]="","",Table4[Hispanic_ODR_Risk_Ind]/((SUM(Table4[Number_Afr_Amer_One_or_More_ODR]:Table4[Number_White_One_or_More_ODR])-Table4[Number_Hispanic_One_or_More_ODR])/(Table4[Student_Enrollment_(Oct)]-Table4[Enrollment_Hispanic]))) -> 0.2822341058 | BT5: =IF(Table4[Number_Hispanic_One_or_More_ODR]="","",(Table4[Number_Hispanic_One_or_More_ODR])-(Table4[Number_Hispanic_One_or_More_ODR]/Table4[Hispanic_ODR_Risk_Rat])) -> -127.1578947 | BU5: =IF(Table4[Number_Multi-Rac_One_or_More_ODR]="","",Table4[Number_Multi-Rac_One_or_More_ODR]/Table4[Enrollment_Multi-Rac]) -> 0.5 | BV5: =IF(Table4[Multi-Rac_ODR_Risk_Index]="","",Table4[Multi-Rac_ODR_Risk_Index]/((SUM(Table4[Number_Afr_Amer_One_or_More_ODR]:Table4[Number_White_One_or_More_ODR])-Table4[Number_Multi-Rac_One_or_More_ODR])/(Table4[Student_Enrollment_(Oct)]-Table4[Enrollment_Multi-Rac]))) -> 0.2822341058 | BW5: =IF(Table4[Number_Multi-Rac_One_or_More_ODR]="","",(Table4[Number_Multi-Rac_One_or_More_ODR])-(Table4[Number_Multi-Rac_One_or_More_ODR]/Table4[Multi-Rac_ODR_Risk_Rat])) -> -127.1578947 | BX5: =IF(Table4[Number_Nat_Amer_One_or_More_ODR]="","",Table4[Number_Nat_Amer_One_or_More_ODR]/Table4[Enrollment_Nat_Amer]) -> 0.8 | BY5: =IF(Table4[Nat_Amer_ODR_Risk_Ind]="","",Table4[Nat_Amer_ODR_Risk_Ind]/((SUM(Table4[Number_Afr_Amer_One_or_More_ODR]:Table4[Number_White_One_or_More_ODR])-Table4[Number_Nat_Amer_One_or_More_ODR])/(Table4[Student_Enrollment_(Oct)]-Table4[Enrollment_Nat_Amer]))) -> 0.4671361502 | BZ5: =IF(Table4[Number_Nat_Amer_One_or_More_ODR]="","",(Table4[Number_Nat_Amer_One_or_More_ODR])-(Table4[Number_Nat_Amer_One_or_More_ODR]/Table4[Nat_Amer_ODR_Risk_Rat])) -> -9.125628141 | CA5: =IF(Table4[Number_Pac_Islan_One_or_More_ODR]="","",Table4[Number_Pac_Islan_One_or_More_ODR]/Table4[Enrollment_Pac._Islan]) -> 0.1666666667 | CB5: =IF(Table4[Pac_Islan_ODR_Risk_Ind]="","",Table4[Pac_Islan_ODR_Risk_Ind]/((SUM(Table4[Number_Afr_Amer_One_or_More_ODR]:Table4[Number_White_One_or_More_ODR])-Table4[Number_Pac_Islan_One_or_More_ODR])/(Table4[Student_Enrollment_(Oct)]-Table4[Enrollment_Pac._Islan]))) -> 0.09359992159 | CC5: =IF(Table4[Number_Pac_Islan_One_or_More_ODR]="","",(Table4[Number_Pac_Islan_One_or_More_ODR])-(Table4[Number_Pac_Islan_One_or_More_ODR]/Table4[Pac_Islan_ODR_Risk_Rat])) -> -145.2565445 | CD5: =IF(Table4[Number_White_One_or_More_ODR]="","",Table4[Number_White_One_or_More_ODR]/Table4[Enrollment_White]) -> 0.1333333333 | CE5: =IF(Table4[White_ODR_Risk_Ind]="","",Table4[White_ODR_Risk_Ind]/((SUM(Table4[Number_Afr_Amer_One_or_More_ODR]:Table4[Number_White_One_or_More_ODR])-Table4[Number_White_One_or_More_ODR])/(Table4[Student_Enrollment_(Oct)]-Table4[Enrollment_White]))) -> 0.02072968491 | CF5: =IF(Table4[Number_White_One_or_More_ODR]="","",(Table4[Number_White_One_or_More_ODR])-(Table4[Number_White_One_or_More_ODR]/Table4[White_ODR_Risk_Rat])) -> -9448 | CG5: =IF(Table4[Number_IEP_one _or_More_ODR]="","",Table4[Number_IEP_one _or_More_ODR]/Table4[Enrollment_Students_with_IEPs]) -> 0.208 | CH5: =IF(Table4[Students_With_IEP_ODR_Risk_Index]="","",Table4[Students_With_IEP_ODR_Risk_Index]/((SUM(Table4[Number_Afr_Amer_One_or_More_ODR]:Table4[Number_White_One_or_More_ODR])-Table4[Number_IEP_one _or_More_ODR])/(Table4[Student_Enrollment_(Oct)]-Table4[Enrollment_Students_with_IEPs]))) -> 0.1082045184 | CI5: =IF(Table4[Number_IEP_one _or_More_ODR]="","",(Table4[Number_IEP_one _or_More_ODR])-(Table4[Number_IEP_one _or_More_ODR]/Table4[Students_With_IEP_ODR_Risk_Ratio])) -> -428.5714286 | CJ5: =IF(Table4[Number_Afr_Amer_One_or_More_ISS]="","",Table4[Number_Afr_Amer_One_or_More_ISS]/Table4[Enrollment_Afr_Amer]) -> 0.5 | CK5: =IF(Table4[Afr_Amer_ISS_Risk_Ind]="","",Table4[Afr_Amer_ODR_Risk_Ind]/((SUM(Table4[Number_Afr_Amer_One_or_More_ISS]:Table4[Number_White_One_or_More_ISS])-Table4[Number_Afr_Amer_One_or_More_ISS])/(Table4[Student_Enrollment_(Oct)]-Table4[Enrollment_Afr_Amer]))) -> 0.2822341058 | CL5: =IF(Table4[Number_Afr_Amer_One_or_More_ISS]="","",(Table4[Number_Afr_Amer_One_or_More_ISS])-(Table4[Number_Afr_Amer_One_or_More_ISS]/Table4[Afr_Amer_ISS_Risk_Rat])) -> -127.1578947 | CM5: =IF(Table4[Number_Asian_One_or_More_ISS]="","",Table4[Number_Asian_One_or_More_ISS]/Table4[Enrollment_Asian]) -> 0.15 | CN5: =IF(Table4[Asian_ISS_Risk_Ind]="","",Table4[Asian_ISS_Risk_Ind]/((SUM(Table4[Number_Afr_Amer_One_or_More_ISS]:Table4[Number_White_One_or_More_ISS])-Table4[Number_Asian_One_or_More_ISS])/(Table4[Student_Enrollment_(Oct)]-Table4[Enrollment_Asian]))) -> 0.08379888268 | CO5: =IF(Table4[Number_Asian_One_or_More_ISS]="","",(Table4[Number_Asian_One_or_More_ISS])-(Table4[Number_Asian_One_or_More_ISS]/Table4[Asian_ISS_Risk_Rat])) -> -164 | CP5: =IF(Table4[Number_Hispanic_One_or_More_ISS]="","",Table4[Number_Hispanic_One_or_More_ISS]/Table4[Enrollment_Hispanic]) -> 0.5 | CQ5: =IF(Table4[Hispanic_ISS_Risk_Ind]="","",Table4[Hispanic_ISS_Risk_Ind]/((SUM(Table4[Number_Afr_Amer_One_or_More_ISS]:Table4[Number_White_One_or_More_ISS])-Table4[Number_Hispanic_One_or_More_ISS])/(Table4[Student_Enrollment_(Oct)]-Table4[Enrollment_Hispanic]))) -> 0.2822341058 | CR5: =IF(Table4[Number_Hispanic_One_or_More_ISS]="","",(Table4[Number_Hispanic_One_or_More_ISS])-(Table4[Number_Hispanic_One_or_More_ISS]/Table4[Hispanic_ISS_Risk_Rat])) -> -127.1578947 | CS5: =IF(Table4[Number_Multi-Rac_One_or_More_ISS]="","",Table4[Number_Multi-Rac_One_or_More_ISS]/Table4[Enrollment_Multi-Rac]) -> 0.5 | CT5: =IF(Table4[Multi-Rac_ISS_Risk_Index]="","",Table4[Multi-Rac_ISS_Risk_Index]/((SUM(Table4[Number_Afr_Amer_One_or_More_ISS]:Table4[Number_White_One_or_More_ISS])-Table4[Number_Multi-Rac_One_or_More_ISS])/(Table4[Student_Enrollment_(Oct)]-Table4[Enrollment_Multi-Rac]))) -> 0.2822341058 | CU5: =IF(Table4[Number_Multi-Rac_One_or_More_ISS]="","",(Table4[Number_Multi-Rac_One_or_More_ISS])-(Table4[Number_Multi-Rac_One_or_More_ISS]/Table4[Multi-Rac_ISS_Risk_Rat])) -> -127.1578947 | CV5: =IF(Table4[Number_Nat_Amer_One_or_More_ISS]="","",Table4[Number_Nat_Amer_One_or_More_ISS]/Table4[Enrollment_Nat_Amer]) -> 0.8 | CW5: =IF(Table4[Nat_Amer_ISS_Risk_Ind]="","",Table4[Nat_Amer_ISS_Risk_Ind]/((SUM(Table4[Number_Afr_Amer_One_or_More_ISS]:Table4[Number_White_One_or_More_ISS])-Table4[Number_Nat_Amer_One_or_More_ISS])/(Table4[Student_Enrollment_(Oct)]-Table4[Enrollment_Nat_Amer]))) -> 0.4671361502 | CX5: =IF(Table4[Number_Nat_Amer_One_or_More_ISS]="","",(Table4[Number_Nat_Amer_One_or_More_ISS])-(Table4[Number_Nat_Amer_One_or_More_ISS]/Table4[Nat_Amer_ISS_Risk_Rat])) -> -9.125628141 | CY5: =IF(Table4[Number_Pac_Islan_One_or_More_ISS]="","",Table4[Number_Pac_Islan_One_or_More_ISS]/Table4[Enrollment_Pac._Islan]) -> 0.1666666667 | CZ5: =IF(Table4[Pac_Islan_ISS_Risk_Ind]="","",Table4[Pac_Islan_ISS_Risk_Ind]/((SUM(Table4[Number_Afr_Amer_One_or_More_ISS]:Table4[Number_White_One_or_More_ISS])-Table4[Number_Pac_Islan_One_or_More_ISS])/(Table4[Student_Enrollment_(Oct)]-Table4[Enrollment_Pac._Islan]))) -> 0.09359992159 | DA5: =IF(Table4[Number_Pac_Islan_One_or_More_ISS]="","",(Table4[Number_Pac_Islan_One_or_More_ISS])-(Table4[Number_Pac_Islan_One_or_More_ISS]/Table4[Pac_Islan_ISS_Risk_Rat])) -> -145.2565445 | DB5: =IF(Table4[Number_White_One_or_More_ISS]="","",Table4[Number_White_One_or_More_ISS]/Table4[Enrollment_White]) -> 0.1333333333 | DC5: =IF(Table4[White_ISS_Risk_Ind]="","",Table4[White_ISS_Risk_Ind]/((SUM(Table4[Number_Afr_Amer_One_or_More_ISS]:Table4[Number_White_One_or_More_ISS])-Table4[Number_White_One_or_More_ISS])/(Table4[Student_Enrollment_(Oct)]-Table4[Enrollment_Pac._Islan]))) -> 0.07918739635 | DD5: =IF(Table4[Number_White_One_or_More_ISS]="","",(Table4[Number_White_One_or_More_ISS])-(Table4[Number_White_One_or_More_ISS]/Table4[White_ISS_Risk_Rat])) -> -2325.65445 | DE5: =IF(Table4[Number_IEP_one _or_More_ISS]="","",Table4[Number_IEP_one _or_More_ISS]/Table4[Enrollment_Students_with_IEPs]) -> 0.208 | DF5: =IF(Table4[Students_With_IEP_ODR_Risk_Index]="","",Table4[Students_With_IEP_ODR_Risk_Index]/((SUM(Table4[Number_Afr_Amer_One_or_More_ISS]:Table4[Number_White_One_or_More_ISS])-Table4[Number_IEP_one _or_More_ODR])/(Table4[Student_Enrollment_(Oct)]-Table4[Enrollment_Students_with_IEPs]))) -> 0.1082045184 | DG5: =IF(Table4[Number_IEP_one _or_More_ODR]="","",(Table4[Number_IEP_one _or_More_ODR])-(Table4[Number_IEP_one _or_More_ODR]/Table4[Students_With_IEP_ODR_Risk_Ratio])) -> -428.5714286 | DH5: =IF(Table4[Number_Afr_Amer_One_or_More_OSS]="","",Table4[Number_Afr_Amer_One_or_More_OSS]/Table4[Enrollment_Afr_Amer]) -> 0.5 | DI5: =IF(Table4[Afr_Amer_OSS_Risk_Ind]="","",Table4[Afr_Amer_OSS_Risk_Ind]/((SUM(Table4[Number_Afr_Amer_One_or_More_OSS]:Table4[Number_White_One_or_More_OSS])-Table4[Number_Afr_Amer_One_or_More_OSS])/(Table4[Student_Enrollment_(Oct)]-Table4[Enrollment_Afr_Amer]))) -> 0.2822341058 | DJ5: =IF(Table4[Number_Afr_Amer_One_or_More_OSS]="","",(Table4[Number_Afr_Amer_One_or_More_OSS])-(Table4[Number_Afr_Amer_One_or_More_OSS]/Table4[Afr_Amer_OSS_Risk_Rat])) -> -127.1578947 | DK5: =IF(Table4[Number_Asian_One_or_More_OSS]="","",Table4[Number_Asian_One_or_More_OSS]/Table4[Enrollment_Asian]) -> 0.15 | DL5: =IF(Table4[Asian_OSS_Risk_Ind]="","",Table4[Asian_OSS_Risk_Ind]/((SUM(Table4[Number_Afr_Amer_One_or_More_OSS]:Table4[Number_White_One_or_More_OSS])-Table4[Number_Asian_One_or_More_OSS])/(Table4[Student_Enrollment_(Oct)]-Table4[Enrollment_Asian]))) -> 0.08379888268 | DM5: =IF(Table4[Number_Asian_One_or_More_OSS]="","",(Table4[Number_Asian_One_or_More_OSS])-(Table4[Number_Asian_One_or_More_OSS]/Table4[Asian_OSS_Risk_Rat])) -> -164 | DN5: =IF(Table4[Number_Hispanic_One_or_More_OSS]="","",Table4[Number_Hispanic_One_or_More_OSS]/Table4[Enrollment_Hispanic]) -> 0.5 | DO5: =IF(Table4[Hispanic_OSS_Risk_Ind]="","",Table4[Hispanic_OSS_Risk_Ind]/((SUM(Table4[Number_Afr_Amer_One_or_More_OSS]:Table4[Number_White_One_or_More_OSS])-Table4[Number_Hispanic_One_or_More_OSS])/(Table4[Student_Enrollment_(Oct)]-Table4[Enrollment_Hispanic]))) -> 0.2822341058 | DP5: =IF(Table4[Number_Hispanic_One_or_More_OSS]="","",(Table4[Number_Hispanic_One_or_More_OSS])-(Table4[Number_Hispanic_One_or_More_OSS]/Table4[Hispanic_ODR_Risk_Rat])) -> -127.1578947 | DQ5: =IF(Table4[Number_Multi-Rac_One_or_More_OSS]="","",Table4[Number_Multi-Rac_One_or_More_OSS]/Table4[Enrollment_Multi-Rac]) -> 0.5 | DR5: =IF(Table4[Multi-Rac_ODR_Risk_Index]="","",Table4[Multi-Rac_ODR_Risk_Index]/((SUM(Table4[Number_Afr_Amer_One_or_More_OSS]:Table4[Number_White_One_or_More_OSS])-Table4[Number_Multi-Rac_One_or_More_OSS])/(Table4[Student_Enrollment_(Oct)]-Table4[Enrollment_Multi-Rac]))) -> 0.2822341058 | DS5: =IF(Table4[Number_Multi-Rac_One_or_More_OSS]="","",(Table4[Number_Multi-Rac_One_or_More_OSS])-(Table4[Number_Multi-Rac_One_or_More_OSS]/Table4[Multi-Rac_OSS_Risk_Rat])) -> -127.1578947 | DT5: =IF(Table4[Number_Nat_Amer_One_or_More_OSS]="","",Table4[Number_Nat_Amer_One_or_More_OSS]/Table4[Enrollment_Nat_Amer]) -> 0.8 | DU5: =IF(Table4[Nat_Amer_OSS_Risk_Ind]="","",Table4[Nat_Amer_OSS_Risk_Ind]/((SUM(Table4[Number_Afr_Amer_One_or_More_OSS]:Table4[Number_White_One_or_More_OSS])-Table4[Number_Nat_Amer_One_or_More_OSS])/(Table4[Student_Enrollment_(Oct)]-Table4[Enrollment_Nat_Amer]))) -> 0.4671361502 | DV5: =IF(Table4[Number_Nat_Amer_One_or_More_OSS]="","",(Table4[Number_Nat_Amer_One_or_More_OSS])-(Table4[Number_Nat_Amer_One_or_More_OSS]/Table4[Nat_Amer_OSS_Risk_Rat])) -> -9.125628141 | DW5: =IF(Table4[Number_Pac_Islan_One_or_More_OSS]="","",Table4[Number_Pac_Islan_One_or_More_OSS]/Table4[Enrollment_Pac._Islan]) -> 0.1666666667 | DX5: =IF(Table4[Pac_Islan_OSS_Risk_Ind]="","",Table4[Pac_Islan_OSS_Risk_Ind]/((SUM(Table4[Number_Afr_Amer_One_or_More_OSS]:Table4[Number_White_One_or_More_OSS])-Table4[Number_Pac_Islan_One_or_More_OSS])/(Table4[Student_Enrollment_(Oct)]-Table4[Enrollment_Pac._Islan]))) -> 0.09359992159 | DY5: =IF(Table4[Number_Pac_Islan_One_or_More_OSS]="","",(Table4[Number_Pac_Islan_One_or_More_OSS])-(Table4[Number_Pac_Islan_One_or_More_OSS]/Table4[Pac_Islan_OSS_Risk_Rat])) -> -145.2565445 | DZ5: =IF(Table4[Number_White_One_or_More_OSS]="","",Table4[Number_White_One_or_More_OSS]/Table4[Enrollment_White]) -> 0.1333333333 | EA5: =IF(Table4[White_OSS_Risk_Ind]="","",Table4[White_OSS_Risk_Ind]/((SUM(Table4[Number_Afr_Amer_One_or_More_OSS]:Table4[Number_White_One_or_More_OSS])-Table4[Number_White_One_or_More_OSS])/(Table4[Student_Enrollment_(Oct)]-Table4[Enrollment_White]))) -> 0.02072968491 | EB5: =IF(Table4[Number_White_One_or_More_OSS]="","",(Table4[Number_White_One_or_More_OSS])-(Table4[Number_White_One_or_More_OSS]/Table4[White_OSS_Risk_Rat])) -> -9448 | EC5: =IF(Table4[Number_Students_With_IEP_One_or_More_OSS]="","",Table4[Number_Students_With_IEP_One_or_More_OSS]/Table4[Enrollment_Students_with_IEPs]) -> 0.208 | ED5: =IF(Table4[Students_With_IEP_OSS_Risk_Index]="","",Table4[Students_With_IEP_OSS_Risk_Index]/((SUM(Table4[Number_Afr_Amer_One_or_More_OSS]:Table4[Number_White_One_or_More_OSS])-Table4[Number_Students_With_IEP_One_or_More_OSS])/(Table4[Student_Enrollment_(Oct)]-Table4[Enrollment_Students_with_IEPs]))) -> 0.1082045184 | EE5: =IF(Table4[Number_Students_With_IEP_One_or_More_OSS]="","",Table4[Number_Students_With_IEP_One_or_More_OSS]-(Table4[Number_Students_With_IEP_One_or_More_OSS]/Table4[Students_With_IEP_OSS_Risk_Ratio])) -> -428.5714286
A6: 999999 | B6: C Middle | C6: 202122 | D6: Tier 3 | E6: Tier 3 | F6: Middle/Jr. High | G6: 500 | H6: 100 | I6: =IF(Table4[Student_Enrollment_(Oct)]="","",Table4[Enrollment_Afr_Amer]/Table4[Student_Enrollment_(Oct)]) -> 0.2 | J6: 75 | K6: =IF(Table4[Student_Enrollment_(Oct)]="","",Table4[Enrollment_Asian]/Table4[Student_Enrollment_(Oct)]) -> 0.15 | L6: 25 | M6: =IF(Table4[Student_Enrollment_(Oct)]="","",Table4[Enrollment_Hispanic]/Table4[Student_Enrollment_(Oct)]) -> 0.05 | N6: 150 | O6: =IF(Table4[Student_Enrollment_(Oct)]="","",Table4[Enrollment_Multi-Rac]/Table4[Student_Enrollment_(Oct)]) -> 0.3 | P6: 50 | Q6: =IF(Table4[Student_Enrollment_(Oct)]="","",Table4[Enrollment_Nat_Amer]/Table4[Student_Enrollment_(Oct)]) -> 0.1 | R6: 0 | S6: =IF(Table4[Student_Enrollment_(Oct)]="","",Table4[Enrollment_Pac._Islan]/Table4[Student_Enrollment_(Oct)]) -> 0 | T6: 100 | U6: =IF(Table4[Student_Enrollment_(Oct)]="","",Table4[Enrollment_White]/Table4[Student_Enrollment_(Oct)]) -> 0.2 | V6: 50 | W6: =IF(Table4[Enrollment_Students_with_IEPs]="","",Table4[Enrollment_Students_with_IEPs]/Table4[Student_Enrollment_(Oct)]) -> 0.1 | X6: 98 | Y6: 800 | Z6: 300 | AA6: 50 | AB6: =IF(Table4[Number_of_Students_with_1_ODR]+Table4[Number_Students_With_0_ODRs]=0,"",Table4[Number_of_Students_with_1_ODR]+Table4[Number_Students_With_0_ODRs]) -> 350 | AC6: 100 | AD6: 50 | AE6: =IF(Table4[Number_of_Students_with_0-1_ODRs]="","",Table4[Number_of_Students_with_0-1_ODRs]/(Table4[Number_of_Students_with_0-1_ODRs]+Table4[Number_of_Students_with_2-5_ODRs]+Table4[Number_of_Students_with_6+_ODRs])) -> 0.7 | AF6: =IF(Table4[Number_of_Students_with_2-5_ODRs]="","",Table4[Number_of_Students_with_2-5_ODRs]/(Table4[Number_of_Students_with_0-1_ODRs]+Table4[Number_of_Students_with_2-5_ODRs]+Table4[Number_of_Students_with_6+_ODRs])) -> 0.2 | AG6: =IF(Table4[Number_of_Students_with_6+_ODRs]="","",Table4[Number_of_Students_with_6+_ODRs]/(Table4[Number_of_Students_with_0-1_ODRs]+Table4[Number_of_Students_with_2-5_ODRs]+Table4[Number_of_Students_with_6+_ODRs])) -> 0.1 | AH6: 450 | AI6: 50 | AJ6: 75 | AK6: 2 | AL6: 12 | AM6: 50 | AN6: 25 | AO6: 0 | AP6: 25 | AQ6: 10 | AR6: =IF(Table4[Number_Afr_Amer_One_or_More_ODR]+Table4[Number_Asian_One_or_More_ODR]+Table4[Number_Hispanic_One_or_More_ODR]+Table4[Number_Multi-Rac_One_or_More_ODR]+Table4[Number_Nat_Amer_One_or_More_ODR]+Table4[Number_Pac_Islan_One_or_More_ODR]+Table4[Number_White_One_or_More_ODR]=0,"",Table4[Number_Afr_Amer_One_or_More_ODR]+Table4[Number_Asian_One_or_More_ODR]+Table4[Number_Hispanic_One_or_More_ODR]+Table4[Number_Multi-Rac_One_or_More_ODR]+Table4[Number_Nat_Amer_One_or_More_ODR]+Table4[Number_Pac_Islan_One_or_More_ODR]+Table4[Number_White_One_or_More_ODR]) -> 189 | AS6: 75 | AT6: 2 | AU6: 12 | AV6: 50 | AW6: 25 | AX6: 0 | AY6: 25 | AZ6: 10 | BA6: =IF(Table4[Number_Afr_Amer_One_or_More_ISS]+Table4[Number_Asian_One_or_More_ISS]+Table4[Number_Hispanic_One_or_More_ISS]+Table4[Number_Multi-Rac_One_or_More_ISS]+Table4[Number_Nat_Amer_One_or_More_ISS]+Table4[Number_Pac_Islan_One_or_More_ISS]+Table4[Number_White_One_or_More_ISS]=0,"",Table4[Number_Afr_Amer_One_or_More_ISS]+Table4[Number_Asian_One_or_More_ISS]+Table4[Number_Hispanic_One_or_More_ISS]+Table4[Number_Multi-Rac_One_or_More_ISS]+Table4[Number_Nat_Amer_One_or_More_ISS]+Table4[Number_Pac_Islan_One_or_More_ISS]+Table4[Number_White_One_or_More_ISS]) -> 189 | BB6: 75 | BC6: 2 | BD6: 12 | BE6: 50 | BF6: 25 | BG6: 0 | BH6: 25 | BI6: 10 | BJ6: =IF(Table4[Number_Afr_Amer_One_or_More_OSS]+Table4[Number_Asian_One_or_More_OSS]+Table4[Number_Hispanic_One_or_More_OSS]+Table4[Number_Multi-Rac_One_or_More_OSS]+Table4[Number_Nat_Amer_One_or_More_OSS]+Table4[Number_Pac_Islan_One_or_More_OSS]+Table4[Number_White_One_or_More_OSS]=0,"",Table4[Number_Afr_Amer_One_or_More_OSS]+Table4[Number_Asian_One_or_More_OSS]+Table4[Number_Hispanic_One_or_More_OSS]+Table4[Number_Multi-Rac_One_or_More_OSS]+Table4[Number_Nat_Amer_One_or_More_OSS]+Table4[Number_Pac_Islan_One_or_More_OSS]+Table4[Number_White_One_or_More_OSS]) -> 189 | BL6: =IF(Table4[Number_Afr_Amer_One_or_More_ODR]="","",Table4[Number_Afr_Amer_One_or_More_ODR]/Table4[Enrollment_Afr_Amer]) -> 0.75 | BM6: =IF(Table4[Afr_Amer_ODR_Risk_Ind]="","",Table4[Afr_Amer_ODR_Risk_Ind]/((SUM(Table4[Number_Afr_Amer_One_or_More_ODR]:Table4[Number_White_One_or_More_ODR])-Table4[Number_Afr_Amer_One_or_More_ODR])/(Table4[Student_Enrollment_(Oct)]-Table4[Enrollment_Afr_Amer]))) -> 0.08979347501 | BN6: =IF(Table4[Number_Afr_Amer_One_or_More_ODR]="","",(Table4[Number_Afr_Amer_One_or_More_ODR])-(Table4[Number_Afr_Amer_One_or_More_ODR]/Table4[Afr_Amer_ODR_Risk_Rat])) -> -760.25 | BO6: =IF(Table4[Number_Asian_One_or_More_ODR]="","",Table4[Number_Asian_One_or_More_ODR]/Table4[Enrollment_Asian]) -> 0.02666666667 | BP6: =IF(Table4[Asian_ODR_Risk_Ind]="","",Table4[Asian_ODR_Risk_Ind]/((SUM(Table4[Number_Afr_Amer_One_or_More_ODR]:Table4[Number_White_One_or_More_ODR])-Table4[Number_Asian_One_or_More_ODR])/(Table4[Student_Enrollment_(Oct)]-Table4[Enrollment_Asian]))) -> 0.003319664128 | BQ6: =IF(Table4[Number_Asian_One_or_More_ODR]="","",(Table4[Number_Asian_One_or_More_ODR])-(Table4[Number_Asian_One_or_More_ODR]/Table4[Asian_ODR_Risk_Rat])) -> -600.4705882 | BR6: =IF(Table4[Number_Hispanic_One_or_More_ODR]="","",Table4[Number_Hispanic_One_or_More_ODR]/Table4[Enrollment_Hispanic]) -> 0.48 | BS6: =IF(Table4[Hispanic_ODR_Risk_Ind]="","",Table4[Hispanic_ODR_Risk_Ind]/((SUM(Table4[Number_Afr_Amer_One_or_More_ODR]:Table4[Number_White_One_or_More_ODR])-Table4[Number_Hispanic_One_or_More_ODR])/(Table4[Student_Enrollment_(Oct)]-Table4[Enrollment_Hispanic]))) -> 0.0669800235 | BT6: =IF(Table4[Number_Hispanic_One_or_More_ODR]="","",(Table4[Number_Hispanic_One_or_More_ODR])-(Table4[Number_Hispanic_One_or_More_ODR]/Table4[Hispanic_ODR_Risk_Rat])) -> -167.1578947 | BU6: =IF(Table4[Number_Multi-Rac_One_or_More_ODR]="","",Table4[Number_Multi-Rac_One_or_More_ODR]/Table4[Enrollment_Multi-Rac]) -> 0.3333333333 | BV6: =IF(Table4[Multi-Rac_ODR_Risk_Index]="","",Table4[Multi-Rac_ODR_Risk_Index]/((SUM(Table4[Number_Afr_Amer_One_or_More_ODR]:Table4[Number_White_One_or_More_ODR])-Table4[Number_Multi-Rac_One_or_More_ODR])/(Table4[Student_Enrollment_(Oct)]-Table4[Enrollment_Multi-Rac]))) -> 0.03466032878 | BW6: =IF(Table4[Number_Multi-Rac_One_or_More_ODR]="","",(Table4[Number_Multi-Rac_One_or_More_ODR])-(Table4[Number_Multi-Rac_One_or_More_ODR]/Table4[Multi-Rac_ODR_Risk_Rat])) -> -1392.571429 | BX6: =IF(Table4[Number_Nat_Amer_One_or_More_ODR]="","",Table4[Number_Nat_Amer_One_or_More_ODR]/Table4[Enrollment_Nat_Amer]) -> 0.5 | BY6: =IF(Table4[Nat_Amer_ODR_Risk_Ind]="","",Table4[Nat_Amer_ODR_Risk_Ind]/((SUM(Table4[Number_Afr_Amer_One_or_More_ODR]:Table4[Number_White_One_or_More_ODR])-Table4[Number_Nat_Amer_One_or_More_ODR])/(Table4[Student_Enrollment_(Oct)]-Table4[Enrollment_Nat_Amer]))) -> 0.06635210852 | BZ6: =IF(Table4[Number_Nat_Amer_One_or_More_ODR]="","",(Table4[Number_Nat_Amer_One_or_More_ODR])-(Table4[Number_Nat_Amer_One_or_More_ODR]/Table4[Nat_Amer_ODR_Risk_Rat])) -> -351.7777778 | CA6: =IF(Table4[Number_Pac_Islan_One_or_More_ODR]="","",Table4[Number_Pac_Islan_One_or_More_ODR]/Table4[Enrollment_Pac._Islan]) ->  | CB6: =IF(Table4[Pac_Islan_ODR_Risk_Ind]="","",Table4[Pac_Islan_ODR_Risk_Ind]/((SUM(Table4[Number_Afr_Amer_One_or_More_ODR]:Table4[Number_White_One_or_More_ODR])-Table4[Number_Pac_Islan_One_or_More_ODR])/(Table4[Student_Enrollment_(Oct)]-Table4[Enrollment_Pac._Islan]))) ->  | CC6: =IF(Table4[Number_Pac_Islan_One_or_More_ODR]="","",(Table4[Number_Pac_Islan_One_or_More_ODR])-(Table4[Number_Pac_Islan_One_or_More_ODR]/Table4[Pac_Islan_ODR_Risk_Rat])) ->  | CD6: =IF(Table4[Number_White_One_or_More_ODR]="","",Table4[Number_White_One_or_More_ODR]/Table4[Enrollment_White]) -> 0.25 | CE6: =IF(Table4[White_ODR_Risk_Ind]="","",Table4[White_ODR_Risk_Ind]/((SUM(Table4[Number_Afr_Amer_One_or_More_ODR]:Table4[Number_White_One_or_More_ODR])-Table4[Number_White_One_or_More_ODR])/(Table4[Student_Enrollment_(Oct)]-Table4[Enrollment_White]))) -> 0.02948982601 | CF6: =IF(Table4[Number_White_One_or_More_ODR]="","",(Table4[Number_White_One_or_More_ODR])-(Table4[Number_White_One_or_More_ODR]/Table4[White_ODR_Risk_Rat])) -> -822.75 | CG6: =IF(Table4[Number_IEP_one _or_More_ODR]="","",Table4[Number_IEP_one _or_More_ODR]/Table4[Enrollment_Students_with_IEPs]) -> 0.2 | CH6: =IF(Table4[Students_With_IEP_ODR_Risk_Index]="","",Table4[Students_With_IEP_ODR_Risk_Index]/((SUM(Table4[Number_Afr_Amer_One_or_More_ODR]:Table4[Number_White_One_or_More_ODR])-Table4[Number_IEP_one _or_More_ODR])/(Table4[Student_Enrollment_(Oct)]-Table4[Enrollment_Students_with_IEPs]))) -> 0.02642395772 | CI6: =IF(Table4[Number_IEP_one _or_More_ODR]="","",(Table4[Number_IEP_one _or_More_ODR])-(Table4[Number_IEP_one _or_More_ODR]/Table4[Students_With_IEP_ODR_Risk_Ratio])) -> -368.4444444 | CJ6: =IF(Table4[Number_Afr_Amer_One_or_More_ISS]="","",Table4[Number_Afr_Amer_One_or_More_ISS]/Table4[Enrollment_Afr_Amer]) -> 0.75 | CK6: =IF(Table4[Afr_Amer_ISS_Risk_Ind]="","",Table4[Afr_Amer_ODR_Risk_Ind]/((SUM(Table4[Number_Afr_Amer_One_or_More_ISS]:Table4[Number_White_One_or_More_ISS])-Table4[Number_Afr_Amer_One_or_More_ISS])/(Table4[Student_Enrollment_(Oct)]-Table4[Enrollment_Afr_Amer]))) -> 0.08979347501 | CL6: =IF(Table4[Number_Afr_Amer_One_or_More_ISS]="","",(Table4[Number_Afr_Amer_One_or_More_ISS])-(Table4[Number_Afr_Amer_One_or_More_ISS]/Table4[Afr_Amer_ISS_Risk_Rat])) -> -760.25 | CM6: =IF(Table4[Number_Asian_One_or_More_ISS]="","",Table4[Number_Asian_One_or_More_ISS]/Table4[Enrollment_Asian]) -> 0.02666666667 | CN6: =IF(Table4[Asian_ISS_Risk_Ind]="","",Table4[Asian_ISS_Risk_Ind]/((SUM(Table4[Number_Afr_Amer_One_or_More_ISS]:Table4[Number_White_One_or_More_ISS])-Table4[Number_Asian_One_or_More_ISS])/(Table4[Student_Enrollment_(Oct)]-Table4[Enrollment_Asian]))) -> 0.003319664128 | CO6: =IF(Table4[Number_Asian_One_or_More_ISS]="","",(Table4[Number_Asian_One_or_More_ISS])-(Table4[Number_Asian_One_or_More_ISS]/Table4[Asian_ISS_Risk_Rat])) -> -600.4705882 | CP6: =IF(Table4[Number_Hispanic_One_or_More_ISS]="","",Table4[Number_Hispanic_One_or_More_ISS]/Table4[Enrollment_Hispanic]) -> 0.48 | CQ6: =IF(Table4[Hispanic_ISS_Risk_Ind]="","",Table4[Hispanic_ISS_Risk_Ind]/((SUM(Table4[Number_Afr_Amer_One_or_More_ISS]:Table4[Number_White_One_or_More_ISS])-Table4[Number_Hispanic_One_or_More_ISS])/(Table4[Student_Enrollment_(Oct)]-Table4[Enrollment_Hispanic]))) -> 0.0669800235 | CR6: =IF(Table4[Number_Hispanic_One_or_More_ISS]="","",(Table4[Number_Hispanic_One_or_More_ISS])-(Table4[Number_Hispanic_One_or_More_ISS]/Table4[Hispanic_ISS_Risk_Rat])) -> -167.1578947 | CS6: =IF(Table4[Number_Multi-Rac_One_or_More_ISS]="","",Table4[Number_Multi-Rac_One_or_More_ISS]/Table4[Enrollment_Multi-Rac]) -> 0.3333333333 | CT6: =IF(Table4[Multi-Rac_ISS_Risk_Index]="","",Table4[Multi-Rac_ISS_Risk_Index]/((SUM(Table4[Number_Afr_Amer_One_or_More_ISS]:Table4[Number_White_One_or_More_ISS])-Table4[Number_Multi-Rac_One_or_More_ISS])/(Table4[Student_Enrollment_(Oct)]-Table4[Enrollment_Multi-Rac]))) -> 0.03466032878 | CU6: =IF(Table4[Number_Multi-Rac_One_or_More_ISS]="","",(Table4[Number_Multi-Rac_One_or_More_ISS])-(Table4[Number_Multi-Rac_One_or_More_ISS]/Table4[Multi-Rac_ISS_Risk_Rat])) -> -1392.571429 | CV6: =IF(Table4[Number_Nat_Amer_One_or_More_ISS]="","",Table4[Number_Nat_Amer_One_or_More_ISS]/Table4[Enrollment_Nat_Amer]) -> 0.5 | CW6: =IF(Table4[Nat_Amer_ISS_Risk_Ind]="","",Table4[Nat_Amer_ISS_Risk_Ind]/((SUM(Table4[Number_Afr_Amer_One_or_More_ISS]:Table4[Number_White_One_or_More_ISS])-Table4[Number_Nat_Amer_One_or_More_ISS])/(Table4[Student_Enrollment_(Oct)]-Table4[Enrollment_Nat_Amer]))) -> 0.06635210852 | CX6: =IF(Table4[Number_Nat_Amer_One_or_More_ISS]="","",(Table4[Number_Nat_Amer_One_or_More_ISS])-(Table4[Number_Nat_Amer_One_or_More_ISS]/Table4[Nat_Amer_ISS_Risk_Rat])) -> -351.7777778 | CY6: =IF(Table4[Number_Pac_Islan_One_or_More_ISS]="","",Table4[Number_Pac_Islan_One_or_More_ISS]/Table4[Enrollment_Pac._Islan]) ->  | CZ6: =IF(Table4[Pac_Islan_ISS_Risk_Ind]="","",Table4[Pac_Islan_ISS_Risk_Ind]/((SUM(Table4[Number_Afr_Amer_One_or_More_ISS]:Table4[Number_White_One_or_More_ISS])-Table4[Number_Pac_Islan_One_or_More_ISS])/(Table4[Student_Enrollment_(Oct)]-Table4[Enrollment_Pac._Islan]))) ->  | DA6: =IF(Table4[Number_Pac_Islan_One_or_More_ISS]="","",(Table4[Number_Pac_Islan_One_or_More_ISS])-(Table4[Number_Pac_Islan_One_or_More_ISS]/Table4[Pac_Islan_ISS_Risk_Rat])) ->  | DB6: =IF(Table4[Number_White_One_or_More_ISS]="","",Table4[Number_White_One_or_More_ISS]/Table4[Enrollment_White]) -> 0.25 | DC6: =IF(Table4[White_ISS_Risk_Ind]="","",Table4[White_ISS_Risk_Ind]/((SUM(Table4[Number_Afr_Amer_One_or_More_ISS]:Table4[Number_White_One_or_More_ISS])-Table4[Number_White_One_or_More_ISS])/(Table4[Student_Enrollment_(Oct)]-Table4[Enrollment_Pac._Islan]))) -> 0.03686228251 | DD6: =IF(Table4[Number_White_One_or_More_ISS]="","",(Table4[Number_White_One_or_More_ISS])-(Table4[Number_White_One_or_More_ISS]/Table4[White_ISS_Risk_Rat])) -> -653.2 | DE6: =IF(Table4[Number_IEP_one _or_More_ISS]="","",Table4[Number_IEP_one _or_More_ISS]/Table4[Enrollment_Students_with_IEPs]) -> 0.2 | DF6: =IF(Table4[Students_With_IEP_ODR_Risk_Index]="","",Table4[Students_With_IEP_ODR_Risk_Index]/((SUM(Table4[Number_Afr_Amer_One_or_More_ISS]:Table4[Number_White_One_or_More_ISS])-Table4[Number_IEP_one _or_More_ODR])/(Table4[Student_Enrollment_(Oct)]-Table4[Enrollment_Students_with_IEPs]))) -> 0.02642395772 | DG6: =IF(Table4[Number_IEP_one _or_More_ODR]="","",(Table4[Number_IEP_one _or_More_ODR])-(Table4[Number_IEP_one _or_More_ODR]/Table4[Students_With_IEP_ODR_Risk_Ratio])) -> -368.4444444 | DH6: =IF(Table4[Number_Afr_Amer_One_or_More_OSS]="","",Table4[Number_Afr_Amer_One_or_More_OSS]/Table4[Enrollment_Afr_Amer]) -> 0.75 | DI6: =IF(Table4[Afr_Amer_OSS_Risk_Ind]="","",Table4[Afr_Amer_OSS_Risk_Ind]/((SUM(Table4[Number_Afr_Amer_One_or_More_OSS]:Table4[Number_White_One_or_More_OSS])-Table4[Number_Afr_Amer_One_or_More_OSS])/(Table4[Student_Enrollment_(Oct)]-Table4[Enrollment_Afr_Amer]))) -> 0.08979347501 | DJ6: =IF(Table4[Number_Afr_Amer_One_or_More_OSS]="","",(Table4[Number_Afr_Amer_One_or_More_OSS])-(Table4[Number_Afr_Amer_One_or_More_OSS]/Table4[Afr_Amer_OSS_Risk_Rat])) -> -760.25 | DK6: =IF(Table4[Number_Asian_One_or_More_OSS]="","",Table4[Number_Asian_One_or_More_OSS]/Table4[Enrollment_Asian]) -> 0.02666666667 | DL6: =IF(Table4[Asian_OSS_Risk_Ind]="","",Table4[Asian_OSS_Risk_Ind]/((SUM(Table4[Number_Afr_Amer_One_or_More_OSS]:Table4[Number_White_One_or_More_OSS])-Table4[Number_Asian_One_or_More_OSS])/(Table4[Student_Enrollment_(Oct)]-Table4[Enrollment_Asian]))) -> 0.003319664128 | DM6: =IF(Table4[Number_Asian_One_or_More_OSS]="","",(Table4[Number_Asian_One_or_More_OSS])-(Table4[Number_Asian_One_or_More_OSS]/Table4[Asian_OSS_Risk_Rat])) -> -600.4705882 | DN6: =IF(Table4[Number_Hispanic_One_or_More_OSS]="","",Table4[Number_Hispanic_One_or_More_OSS]/Table4[Enrollment_Hispanic]) -> 0.48 | DO6: =IF(Table4[Hispanic_OSS_Risk_Ind]="","",Table4[Hispanic_OSS_Risk_Ind]/((SUM(Table4[Number_Afr_Amer_One_or_More_OSS]:Table4[Number_White_One_or_More_OSS])-Table4[Number_Hispanic_One_or_More_OSS])/(Table4[Student_Enrollment_(Oct)]-Table4[Enrollment_Hispanic]))) -> 0.0669800235 | DP6: =IF(Table4[Number_Hispanic_One_or_More_OSS]="","",(Table4[Number_Hispanic_One_or_More_OSS])-(Table4[Number_Hispanic_One_or_More_OSS]/Table4[Hispanic_ODR_Risk_Rat])) -> -167.1578947 | DQ6: =IF(Table4[Number_Multi-Rac_One_or_More_OSS]="","",Table4[Number_Multi-Rac_One_or_More_OSS]/Table4[Enrollment_Multi-Rac]) -> 0.3333333333 | DR6: =IF(Table4[Multi-Rac_ODR_Risk_Index]="","",Table4[Multi-Rac_ODR_Risk_Index]/((SUM(Table4[Number_Afr_Amer_One_or_More_OSS]:Table4[Number_White_One_or_More_OSS])-Table4[Number_Multi-Rac_One_or_More_OSS])/(Table4[Student_Enrollment_(Oct)]-Table4[Enrollment_Multi-Rac]))) -> 0.03466032878 | DS6: =IF(Table4[Number_Multi-Rac_One_or_More_OSS]="","",(Table4[Number_Multi-Rac_One_or_More_OSS])-(Table4[Number_Multi-Rac_One_or_More_OSS]/Table4[Multi-Rac_OSS_Risk_Rat])) -> -1392.571429 | DT6: =IF(Table4[Number_Nat_Amer_One_or_More_OSS]="","",Table4[Number_Nat_Amer_One_or_More_OSS]/Table4[Enrollment_Nat_Amer]) -> 0.5 | DU6: =IF(Table4[Nat_Amer_OSS_Risk_Ind]="","",Table4[Nat_Amer_OSS_Risk_Ind]/((SUM(Table4[Number_Afr_Amer_One_or_More_OSS]:Table4[Number_White_One_or_More_OSS])-Table4[Number_Nat_Amer_One_or_More_OSS])/(Table4[Student_Enrollment_(Oct)]-Table4[Enrollment_Nat_Amer]))) -> 0.06635210852 | DV6: =IF(Table4[Number_Nat_Amer_One_or_More_OSS]="","",(Table4[Number_Nat_Amer_One_or_More_OSS])-(Table4[Number_Nat_Amer_One_or_More_OSS]/Table4[Nat_Amer_OSS_Risk_Rat])) -> -351.7777778 | DW6: =IF(Table4[Number_Pac_Islan_One_or_More_OSS]="","",Table4[Number_Pac_Islan_One_or_More_OSS]/Table4[Enrollment_Pac._Islan]) ->  | DX6: =IF(Table4[Pac_Islan_OSS_Risk_Ind]="","",Table4[Pac_Islan_OSS_Risk_Ind]/((SUM(Table4[Number_Afr_Amer_One_or_More_OSS]:Table4[Number_White_One_or_More_OSS])-Table4[Number_Pac_Islan_One_or_More_OSS])/(Table4[Student_Enrollment_(Oct)]-Table4[Enrollment_Pac._Islan]))) ->  | DY6: =IF(Table4[Number_Pac_Islan_One_or_More_OSS]="","",(Table4[Number_Pac_Islan_One_or_More_OSS])-(Table4[Number_Pac_Islan_One_or_More_OSS]/Table4[Pac_Islan_OSS_Risk_Rat])) ->  | DZ6: =IF(Table4[Number_White_One_or_More_OSS]="","",Table4[Number_White_One_or_More_OSS]/Table4[Enrollment_White]) -> 0.25 | EA6: =IF(Table4[White_OSS_Risk_Ind]="","",Table4[White_OSS_Risk_Ind]/((SUM(Table4[Number_Afr_Amer_One_or_More_OSS]:Table4[Number_White_One_or_More_OSS])-Table4[Number_White_One_or_More_OSS])/(Table4[Student_Enrollment_(Oct)]-Table4[Enrollment_White]))) -> 0.02948982601 | EB6: =IF(Table4[Number_White_One_or_More_OSS]="","",(Table4[Number_White_One_or_More_OSS])-(Table4[Number_White_One_or_More_OSS]/Table4[White_OSS_Risk_Rat])) -> -822.75 | EC6: =IF(Table4[Number_Students_With_IEP_One_or_More_OSS]="","",Table4[Number_Students_With_IEP_One_or_More_OSS]/Table4[Enrollment_Students_with_IEPs]) -> 0.2 | ED6: =IF(Table4[Students_With_IEP_OSS_Risk_Index]="","",Table4[Students_With_IEP_OSS_Risk_Index]/((SUM(Table4[Number_Afr_Amer_One_or_More_OSS]:Table4[Number_White_One_or_More_OSS])-Table4[Number_Students_With_IEP_One_or_More_OSS])/(Table4[Student_Enrollment_(Oct)]-Table4[Enrollment_Students_with_IEPs]))) -> 0.02642395772 | EE6: =IF(Table4[Number_Students_With_IEP_One_or_More_OSS]="","",Table4[Number_Students_With_IEP_One_or_More_OSS]-(Table4[Number_Students_With_IEP_One_or_More_OSS]/Table4[Students_With_IEP_OSS_Risk_Ratio])) -> -368.4444444
A7: 999999 | B7: B High | C7: 202122 | D7: Tier 2 | E7: Tier 2 | F7: High | G7: 1500 | H7: 800 | I7: =IF(Table4[Student_Enrollment_(Oct)]="","",Table4[Enrollment_Afr_Amer]/Table4[Student_Enrollment_(Oct)]) -> 0.5333333333 | J7: 50 | K7: =IF(Table4[Student_Enrollment_(Oct)]="","",Table4[Enrollment_Asian]/Table4[Student_Enrollment_(Oct)]) -> 0.03333333333 | L7: 400 | M7: =IF(Table4[Student_Enrollment_(Oct)]="","",Table4[Enrollment_Hispanic]/Table4[Student_Enrollment_(Oct)]) -> 0.2666666667 | N7: 100 | O7: =IF(Table4[Student_Enrollment_(Oct)]="","",Table4[Enrollment_Multi-Rac]/Table4[Student_Enrollment_(Oct)]) -> 0.06666666667 | P7: 50 | Q7: =IF(Table4[Student_Enrollment_(Oct)]="","",Table4[Enrollment_Nat_Amer]/Table4[Student_Enrollment_(Oct)]) -> 0.03333333333 | R7: 50 | S7: =IF(Table4[Student_Enrollment_(Oct)]="","",Table4[Enrollment_Pac._Islan]/Table4[Student_Enrollment_(Oct)]) -> 0.03333333333 | T7: 50 | U7: =IF(Table4[Student_Enrollment_(Oct)]="","",Table4[Enrollment_White]/Table4[Student_Enrollment_(Oct)]) -> 0.03333333333 | V7: 180 | W7: =IF(Table4[Enrollment_Students_with_IEPs]="","",Table4[Enrollment_Students_with_IEPs]/Table4[Student_Enrollment_(Oct)]) -> 0.12 | X7: 94 | Y7: 400 | Z7: 400 | AA7: 300 | AB7: =IF(Table4[Number_of_Students_with_1_ODR]+Table4[Number_Students_With_0_ODRs]=0,"",Table4[Number_of_Students_with_1_ODR]+Table4[Number_Students_With_0_ODRs]) -> 700 | AC7: 600 | AD7: 200 | AE7: =IF(Table4[Number_of_Students_with_0-1_ODRs]="","",Table4[Number_of_Students_with_0-1_ODRs]/(Table4[Number_of_Students_with_0-1_ODRs]+Table4[Number_of_Students_with_2-5_ODRs]+Table4[Number_of_Students_with_6+_ODRs])) -> 0.4666666667 | AF7: =IF(Table4[Number_of_Students_with_2-5_ODRs]="","",Table4[Number_of_Students_with_2-5_ODRs]/(Table4[Number_of_Students_with_0-1_ODRs]+Table4[Number_of_Students_with_2-5_ODRs]+Table4[Number_of_Students_with_6+_ODRs])) -> 0.4 | AG7: =IF(Table4[Number_of_Students_with_6+_ODRs]="","",Table4[Number_of_Students_with_6+_ODRs]/(Table4[Number_of_Students_with_0-1_ODRs]+Table4[Number_of_Students_with_2-5_ODRs]+Table4[Number_of_Students_with_6+_ODRs])) -> 0.1333333333 | AH7: 900 | AI7: 90 | AJ7: 700 | AK7: 2 | AL7: 250 | AM7: 25 | AN7: 35 | AO7: 3 | AP7: 10 | AQ7: 26 | AR7: =IF(Table4[Number_Afr_Amer_One_or_More_ODR]+Table4[Number_Asian_One_or_More_ODR]+Table4[Number_Hispanic_One_or_More_ODR]+Table4[Number_Multi-Rac_One_or_More_ODR]+Table4[Number_Nat_Amer_One_or_More_ODR]+Table4[Number_Pac_Islan_One_or_More_ODR]+Table4[Number_White_One_or_More_ODR]=0,"",Table4[Number_Afr_Amer_One_or_More_ODR]+Table4[Number_Asian_One_or_More_ODR]+Table4[Number_Hispanic_One_or_More_ODR]+Table4[Number_Multi-Rac_One_or_More_ODR]+Table4[Number_Nat_Amer_One_or_More_ODR]+Table4[Number_Pac_Islan_One_or_More_ODR]+Table4[Number_White_One_or_More_ODR]) -> 1025 | AS7: 700 | AT7: 2 | AU7: 250 | AV7: 25 | AW7: 35 | AX7: 3 | AY7: 10 | AZ7: 26 | BA7: =IF(Table4[Number_Afr_Amer_One_or_More_ISS]+Table4[Number_Asian_One_or_More_ISS]+Table4[Number_Hispanic_One_or_More_ISS]+Table4[Number_Multi-Rac_One_or_More_ISS]+Table4[Number_Nat_Amer_One_or_More_ISS]+Table4[Number_Pac_Islan_One_or_More_ISS]+Table4[Number_White_One_or_More_ISS]=0,"",Table4[Number_Afr_Amer_One_or_More_ISS]+Table4[Number_Asian_One_or_More_ISS]+Table4[Number_Hispanic_One_or_More_ISS]+Table4[Number_Multi-Rac_One_or_More_ISS]+Table4[Number_Nat_Amer_One_or_More_ISS]+Table4[Number_Pac_Islan_One_or_More_ISS]+Table4[Number_White_One_or_More_ISS]) -> 1025 | BB7: 700 | BC7: 2 | BD7: 250 | BE7: 25 | BF7: 35 | BG7: 3 | BH7: 10 | BI7: 26 | BJ7: =IF(Table4[Number_Afr_Amer_One_or_More_OSS]+Table4[Number_Asian_One_or_More_OSS]+Table4[Number_Hispanic_One_or_More_OSS]+Table4[Number_Multi-Rac_One_or_More_OSS]+Table4[Number_Nat_Amer_One_or_More_OSS]+Table4[Number_Pac_Islan_One_or_More_OSS]+Table4[Number_White_One_or_More_OSS]=0,"",Table4[Number_Afr_Amer_One_or_More_OSS]+Table4[Number_Asian_One_or_More_OSS]+Table4[Number_Hispanic_One_or_More_OSS]+Table4[Number_Multi-Rac_One_or_More_OSS]+Table4[Number_Nat_Amer_One_or_More_OSS]+Table4[Number_Pac_Islan_One_or_More_OSS]+Table4[Number_White_One_or_More_OSS]) -> 1025 | BL7: =IF(Table4[Number_Afr_Amer_One_or_More_ODR]="","",Table4[Number_Afr_Amer_One_or_More_ODR]/Table4[Enrollment_Afr_Amer]) -> 0.875 | BM7: =IF(Table4[Afr_Amer_ODR_Risk_Ind]="","",Table4[Afr_Amer_ODR_Risk_Ind]/((SUM(Table4[Number_Afr_Amer_One_or_More_ODR]:Table4[Number_White_One_or_More_ODR])-Table4[Number_Afr_Amer_One_or_More_ODR])/(Table4[Student_Enrollment_(Oct)]-Table4[Enrollment_Afr_Amer]))) -> 0.2255154639 | BN7: =IF(Table4[Number_Afr_Amer_One_or_More_ODR]="","",(Table4[Number_Afr_Amer_One_or_More_ODR])-(Table4[Number_Afr_Amer_One_or_More_ODR]/Table4[Afr_Amer_ODR_Risk_Rat])) -> -2404 | BO7: =IF(Table4[Number_Asian_One_or_More_ODR]="","",Table4[Number_Asian_One_or_More_ODR]/Table4[Enrollment_Asian]) -> 0.04 | BP7: =IF(Table4[Asian_ODR_Risk_Ind]="","",Table4[Asian_ODR_Risk_Ind]/((SUM(Table4[Number_Afr_Amer_One_or_More_ODR]:Table4[Number_White_One_or_More_ODR])-Table4[Number_Asian_One_or_More_ODR])/(Table4[Student_Enrollment_(Oct)]-Table4[Enrollment_Asian]))) -> 0.01698886936 | BQ7: =IF(Table4[Number_Asian_One_or_More_ODR]="","",(Table4[Number_Asian_One_or_More_ODR])-(Table4[Number_Asian_One_or_More_ODR]/Table4[Asian_ODR_Risk_Rat])) -> -115.7241379 | BR7: =IF(Table4[Number_Hispanic_One_or_More_ODR]="","",Table4[Number_Hispanic_One_or_More_ODR]/Table4[Enrollment_Hispanic]) -> 0.625 | BS7: =IF(Table4[Hispanic_ODR_Risk_Ind]="","",Table4[Hispanic_ODR_Risk_Ind]/((SUM(Table4[Number_Afr_Amer_One_or_More_ODR]:Table4[Number_White_One_or_More_ODR])-Table4[Number_Hispanic_One_or_More_ODR])/(Table4[Student_Enrollment_(Oct)]-Table4[Enrollment_Hispanic]))) -> 0.2171509792 | BT7: =IF(Table4[Number_Hispanic_One_or_More_ODR]="","",(Table4[Number_Hispanic_One_or_More_ODR])-(Table4[Number_Hispanic_One_or_More_ODR]/Table4[Hispanic_ODR_Risk_Rat])) -> -901.2727273 | BU7: =IF(Table4[Number_Multi-Rac_One_or_More_ODR]="","",Table4[Number_Multi-Rac_One_or_More_ODR]/Table4[Enrollment_Multi-Rac]) -> 0.25 | BV7: =IF(Table4[Multi-Rac_ODR_Risk_Index]="","",Table4[Multi-Rac_ODR_Risk_Index]/((SUM(Table4[Number_Afr_Amer_One_or_More_ODR]:Table4[Number_White_One_or_More_ODR])-Table4[Number_Multi-Rac_One_or_More_ODR])/(Table4[Student_Enrollment_(Oct)]-Table4[Enrollment_Multi-Rac]))) -> 0.103214391 | BW7: =IF(Table4[Number_Multi-Rac_One_or_More_ODR]="","",(Table4[Number_Multi-Rac_One_or_More_ODR])-(Table4[Number_Multi-Rac_One_or_More_ODR]/Table4[Multi-Rac_ODR_Risk_Rat])) -> -217.2142857 | BX7: =IF(Table4[Number_Nat_Amer_One_or_More_ODR]="","",Table4[Number_Nat_Amer_One_or_More_ODR]/Table4[Enrollment_Nat_Amer]) -> 0.7 | BY7: =IF(Table4[Nat_Amer_ODR_Risk_Ind]="","",Table4[Nat_Amer_ODR_Risk_Ind]/((SUM(Table4[Number_Afr_Amer_One_or_More_ODR]:Table4[Number_White_One_or_More_ODR])-Table4[Number_Nat_Amer_One_or_More_ODR])/(Table4[Student_Enrollment_(Oct)]-Table4[Enrollment_Nat_Amer]))) -> 0.3002070393 | BZ7: =IF(Table4[Number_Nat_Amer_One_or_More_ODR]="","",(Table4[Number_Nat_Amer_One_or_More_ODR])-(Table4[Number_Nat_Amer_One_or_More_ODR]/Table4[Nat_Amer_ODR_Risk_Rat])) -> -81.5862069 | CA7: =IF(Table4[Number_Pac_Islan_One_or_More_ODR]="","",Table4[Number_Pac_Islan_One_or_More_ODR]/Table4[Enrollment_Pac._Islan]) -> 0.06 | CB7: =IF(Table4[Pac_Islan_ODR_Risk_Ind]="","",Table4[Pac_Islan_ODR_Risk_Ind]/((SUM(Table4[Number_Afr_Amer_One_or_More_ODR]:Table4[Number_White_One_or_More_ODR])-Table4[Number_Pac_Islan_One_or_More_ODR])/(Table4[Student_Enrollment_(Oct)]-Table4[Enrollment_Pac._Islan]))) -> 0.02549077058 | CC7: =IF(Table4[Number_Pac_Islan_One_or_More_ODR]="","",(Table4[Number_Pac_Islan_One_or_More_ODR])-(Table4[Number_Pac_Islan_One_or_More_ODR]/Table4[Pac_Islan_ODR_Risk_Rat])) -> -114.6896552 | CD7: =IF(Table4[Number_White_One_or_More_ODR]="","",Table4[Number_White_One_or_More_ODR]/Table4[Enrollment_White]) -> 0.2 | CE7: =IF(Table4[White_ODR_Risk_Ind]="","",Table4[White_ODR_Risk_Ind]/((SUM(Table4[Number_Afr_Amer_One_or_More_ODR]:Table4[Number_White_One_or_More_ODR])-Table4[Number_White_One_or_More_ODR])/(Table4[Student_Enrollment_(Oct)]-Table4[Enrollment_White]))) -> 0.08514386377 | CF7: =IF(Table4[Number_White_One_or_More_ODR]="","",(Table4[Number_White_One_or_More_ODR])-(Table4[Number_White_One_or_More_ODR]/Table4[White_ODR_Risk_Rat])) -> -107.4482759 | CG7: =IF(Table4[Number_IEP_one _or_More_ODR]="","",Table4[Number_IEP_one _or_More_ODR]/Table4[Enrollment_Students_with_IEPs]) -> 0.1444444444 | CH7: =IF(Table4[Students_With_IEP_ODR_Risk_Index]="","",Table4[Students_With_IEP_ODR_Risk_Index]/((SUM(Table4[Number_Afr_Amer_One_or_More_ODR]:Table4[Number_White_One_or_More_ODR])-Table4[Number_IEP_one _or_More_ODR])/(Table4[Student_Enrollment_(Oct)]-Table4[Enrollment_Students_with_IEPs]))) -> 0.05624385447 | CI7: =IF(Table4[Number_IEP_one _or_More_ODR]="","",(Table4[Number_IEP_one _or_More_ODR])-(Table4[Number_IEP_one _or_More_ODR]/Table4[Students_With_IEP_ODR_Risk_Ratio])) -> -436.2727273 | CJ7: =IF(Table4[Number_Afr_Amer_One_or_More_ISS]="","",Table4[Number_Afr_Amer_One_or_More_ISS]/Table4[Enrollment_Afr_Amer]) -> 0.875 | CK7: =IF(Table4[Afr_Amer_ISS_Risk_Ind]="","",Table4[Afr_Amer_ODR_Risk_Ind]/((SUM(Table4[Number_Afr_Amer_One_or_More_ISS]:Table4[Number_White_One_or_More_ISS])-Table4[Number_Afr_Amer_One_or_More_ISS])/(Table4[Student_Enrollment_(Oct)]-Table4[Enrollment_Afr_Amer]))) -> 0.2255154639 | CL7: =IF(Table4[Number_Afr_Amer_One_or_More_ISS]="","",(Table4[Number_Afr_Amer_One_or_More_ISS])-(Table4[Number_Afr_Amer_One_or_More_ISS]/Table4[Afr_Amer_ISS_Risk_Rat])) -> -2404 | CM7: =IF(Table4[Number_Asian_One_or_More_ISS]="","",Table4[Number_Asian_One_or_More_ISS]/Table4[Enrollment_Asian]) -> 0.04 | CN7: =IF(Table4[Asian_ISS_Risk_Ind]="","",Table4[Asian_ISS_Risk_Ind]/((SUM(Table4[Number_Afr_Amer_One_or_More_ISS]:Table4[Number_White_One_or_More_ISS])-Table4[Number_Asian_One_or_More_ISS])/(Table4[Student_Enrollment_(Oct)]-Table4[Enrollment_Asian]))) -> 0.01698886936 | CO7: =IF(Table4[Number_Asian_One_or_More_ISS]="","",(Table4[Number_Asian_One_or_More_ISS])-(Table4[Number_Asian_One_or_More_ISS]/Table4[Asian_ISS_Risk_Rat])) -> -115.7241379 | CP7: =IF(Table4[Number_Hispanic_One_or_More_ISS]="","",Table4[Number_Hispanic_One_or_More_ISS]/Table4[Enrollment_Hispanic]) -> 0.625 | CQ7: =IF(Table4[Hispanic_ISS_Risk_Ind]="","",Table4[Hispanic_ISS_Risk_Ind]/((SUM(Table4[Number_Afr_Amer_One_or_More_ISS]:Table4[Number_White_One_or_More_ISS])-Table4[Number_Hispanic_One_or_More_ISS])/(Table4[Student_Enrollment_(Oct)]-Table4[Enrollment_Hispanic]))) -> 0.2171509792 | CR7: =IF(Table4[Number_Hispanic_One_or_More_ISS]="","",(Table4[Number_Hispanic_One_or_More_ISS])-(Table4[Number_Hispanic_One_or_More_ISS]/Table4[Hispanic_ISS_Risk_Rat])) -> -901.2727273 | CS7: =IF(Table4[Number_Multi-Rac_One_or_More_ISS]="","",Table4[Number_Multi-Rac_One_or_More_ISS]/Table4[Enrollment_Multi-Rac]) -> 0.25 | CT7: =IF(Table4[Multi-Rac_ISS_Risk_Index]="","",Table4[Multi-Rac_ISS_Risk_Index]/((SUM(Table4[Number_Afr_Amer_One_or_More_ISS]:Table4[Number_White_One_or_More_ISS])-Table4[Number_Multi-Rac_One_or_More_ISS])/(Table4[Student_Enrollment_(Oct)]-Table4[Enrollment_Multi-Rac]))) -> 0.103214391 | CU7: =IF(Table4[Number_Multi-Rac_One_or_More_ISS]="","",(Table4[Number_Multi-Rac_One_or_More_ISS])-(Table4[Number_Multi-Rac_One_or_More_ISS]/Table4[Multi-Rac_ISS_Risk_Rat])) -> -217.2142857 | CV7: =IF(Table4[Number_Nat_Amer_One_or_More_ISS]="","",Table4[Number_Nat_Amer_One_or_More_ISS]/Table4[Enrollment_Nat_Amer]) -> 0.7 | CW7: =IF(Table4[Nat_Amer_ISS_Risk_Ind]="","",Table4[Nat_Amer_ISS_Risk_Ind]/((SUM(Table4[Number_Afr_Amer_One_or_More_ISS]:Table4[Number_White_One_or_More_ISS])-Table4[Number_Nat_Amer_One_or_More_ISS])/(Table4[Student_Enrollment_(Oct)]-Table4[Enrollment_Nat_Amer]))) -> 0.3002070393 | CX7: =IF(Table4[Number_Nat_Amer_One_or_More_ISS]="","",(Table4[Number_Nat_Amer_One_or_More_ISS])-(Table4[Number_Nat_Amer_One_or_More_ISS]/Table4[Nat_Amer_ISS_Risk_Rat])) -> -81.5862069 | CY7: =IF(Table4[Number_Pac_Islan_One_or_More_ISS]="","",Table4[Number_Pac_Islan_One_or_More_ISS]/Table4[Enrollment_Pac._Islan]) -> 0.06 | CZ7: =IF(Table4[Pac_Islan_ISS_Risk_Ind]="","",Table4[Pac_Islan_ISS_Risk_Ind]/((SUM(Table4[Number_Afr_Amer_One_or_More_ISS]:Table4[Number_White_One_or_More_ISS])-Table4[Number_Pac_Islan_One_or_More_ISS])/(Table4[Student_Enrollment_(Oct)]-Table4[Enrollment_Pac._Islan]))) -> 0.02549077058 | DA7: =IF(Table4[Number_Pac_Islan_One_or_More_ISS]="","",(Table4[Number_Pac_Islan_One_or_More_ISS])-(Table4[Number_Pac_Islan_One_or_More_ISS]/Table4[Pac_Islan_ISS_Risk_Rat])) -> -114.6896552 | DB7: =IF(Table4[Number_White_One_or_More_ISS]="","",Table4[Number_White_One_or_More_ISS]/Table4[Enrollment_White]) -> 0.2 | DC7: =IF(Table4[White_ISS_Risk_Ind]="","",Table4[White_ISS_Risk_Ind]/((SUM(Table4[Number_Afr_Amer_One_or_More_ISS]:Table4[Number_White_One_or_More_ISS])-Table4[Number_White_One_or_More_ISS])/(Table4[Student_Enrollment_(Oct)]-Table4[Enrollment_Pac._Islan]))) -> 0.08514386377 | DD7: =IF(Table4[Number_White_One_or_More_ISS]="","",(Table4[Number_White_One_or_More_ISS])-(Table4[Number_White_One_or_More_ISS]/Table4[White_ISS_Risk_Rat])) -> -107.4482759 | DE7: =IF(Table4[Number_IEP_one _or_More_ISS]="","",Table4[Number_IEP_one _or_More_ISS]/Table4[Enrollment_Students_with_IEPs]) -> 0.1444444444 | DF7: =IF(Table4[Students_With_IEP_ODR_Risk_Index]="","",Table4[Students_With_IEP_ODR_Risk_Index]/((SUM(Table4[Number_Afr_Amer_One_or_More_ISS]:Table4[Number_White_One_or_More_ISS])-Table4[Number_IEP_one _or_More_ODR])/(Table4[Student_Enrollment_(Oct)]-Table4[Enrollment_Students_with_IEPs]))) -> 0.05624385447 | DG7: =IF(Table4[Number_IEP_one _or_More_ODR]="","",(Table4[Number_IEP_one _or_More_ODR])-(Table4[Number_IEP_one _or_More_ODR]/Table4[Students_With_IEP_ODR_Risk_Ratio])) -> -436.2727273 | DH7: =IF(Table4[Number_Afr_Amer_One_or_More_OSS]="","",Table4[Number_Afr_Amer_One_or_More_OSS]/Table4[Enrollment_Afr_Amer]) -> 0.875 | DI7: =IF(Table4[Afr_Amer_OSS_Risk_Ind]="","",Table4[Afr_Amer_OSS_Risk_Ind]/((SUM(Table4[Number_Afr_Amer_One_or_More_OSS]:Table4[Number_White_One_or_More_OSS])-Table4[Number_Afr_Amer_One_or_More_OSS])/(Table4[Student_Enrollment_(Oct)]-Table4[Enrollment_Afr_Amer]))) -> 0.2255154639 | DJ7: =IF(Table4[Number_Afr_Amer_One_or_More_OSS]="","",(Table4[Number_Afr_Amer_One_or_More_OSS])-(Table4[Number_Afr_Amer_One_or_More_OSS]/Table4[Afr_Amer_OSS_Risk_Rat])) -> -2404 | DK7: =IF(Table4[Number_Asian_One_or_More_OSS]="","",Table4[Number_Asian_One_or_More_OSS]/Table4[Enrollment_Asian]) -> 0.04 | DL7: =IF(Table4[Asian_OSS_Risk_Ind]="","",Table4[Asian_OSS_Risk_Ind]/((SUM(Table4[Number_Afr_Amer_One_or_More_OSS]:Table4[Number_White_One_or_More_OSS])-Table4[Number_Asian_One_or_More_OSS])/(Table4[Student_Enrollment_(Oct)]-Table4[Enrollment_Asian]))) -> 0.01698886936 | DM7: =IF(Table4[Number_Asian_One_or_More_OSS]="","",(Table4[Number_Asian_One_or_More_OSS])-(Table4[Number_Asian_One_or_More_OSS]/Table4[Asian_OSS_Risk_Rat])) -> -115.7241379 | DN7: =IF(Table4[Number_Hispanic_One_or_More_OSS]="","",Table4[Number_Hispanic_One_or_More_OSS]/Table4[Enrollment_Hispanic]) -> 0.625 | DO7: =IF(Table4[Hispanic_OSS_Risk_Ind]="","",Table4[Hispanic_OSS_Risk_Ind]/((SUM(Table4[Number_Afr_Amer_One_or_More_OSS]:Table4[Number_White_One_or_More_OSS])-Table4[Number_Hispanic_One_or_More_OSS])/(Table4[Student_Enrollment_(Oct)]-Table4[Enrollment_Hispanic]))) -> 0.2171509792 | DP7: =IF(Table4[Number_Hispanic_One_or_More_OSS]="","",(Table4[Number_Hispanic_One_or_More_OSS])-(Table4[Number_Hispanic_One_or_More_OSS]/Table4[Hispanic_ODR_Risk_Rat])) -> -901.2727273 | DQ7: =IF(Table4[Number_Multi-Rac_One_or_More_OSS]="","",Table4[Number_Multi-Rac_One_or_More_OSS]/Table4[Enrollment_Multi-Rac]) -> 0.25 | DR7: =IF(Table4[Multi-Rac_ODR_Risk_Index]="","",Table4[Multi-Rac_ODR_Risk_Index]/((SUM(Table4[Number_Afr_Amer_One_or_More_OSS]:Table4[Number_White_One_or_More_OSS])-Table4[Number_Multi-Rac_One_or_More_OSS])/(Table4[Student_Enrollment_(Oct)]-Table4[Enrollment_Multi-Rac]))) -> 0.103214391 | DS7: =IF(Table4[Number_Multi-Rac_One_or_More_OSS]="","",(Table4[Number_Multi-Rac_One_or_More_OSS])-(Table4[Number_Multi-Rac_One_or_More_OSS]/Table4[Multi-Rac_OSS_Risk_Rat])) -> -217.2142857 | DT7: =IF(Table4[Number_Nat_Amer_One_or_More_OSS]="","",Table4[Number_Nat_Amer_One_or_More_OSS]/Table4[Enrollment_Nat_Amer]) -> 0.7 | DU7: =IF(Table4[Nat_Amer_OSS_Risk_Ind]="","",Table4[Nat_Amer_OSS_Risk_Ind]/((SUM(Table4[Number_Afr_Amer_One_or_More_OSS]:Table4[Number_White_One_or_More_OSS])-Table4[Number_Nat_Amer_One_or_More_OSS])/(Table4[Student_Enrollment_(Oct)]-Table4[Enrollment_Nat_Amer]))) -> 0.3002070393 | DV7: =IF(Table4[Number_Nat_Amer_One_or_More_OSS]="","",(Table4[Number_Nat_Amer_One_or_More_OSS])-(Table4[Number_Nat_Amer_One_or_More_OSS]/Table4[Nat_Amer_OSS_Risk_Rat])) -> -81.5862069 | DW7: =IF(Table4[Number_Pac_Islan_One_or_More_OSS]="","",Table4[Number_Pac_Islan_One_or_More_OSS]/Table4[Enrollment_Pac._Islan]) -> 0.06 | DX7: =IF(Table4[Pac_Islan_OSS_Risk_Ind]="","",Table4[Pac_Islan_OSS_Risk_Ind]/((SUM(Table4[Number_Afr_Amer_One_or_More_OSS]:Table4[Number_White_One_or_More_OSS])-Table4[Number_Pac_Islan_One_or_More_OSS])/(Table4[Student_Enrollment_(Oct)]-Table4[Enrollment_Pac._Islan]))) -> 0.02549077058 | DY7: =IF(Table4[Number_Pac_Islan_One_or_More_OSS]="","",(Table4[Number_Pac_Islan_One_or_More_OSS])-(Table4[Number_Pac_Islan_One_or_More_OSS]/Table4[Pac_Islan_OSS_Risk_Rat])) -> -114.6896552 | DZ7: =IF(Table4[Number_White_One_or_More_OSS]="","",Table4[Number_White_One_or_More_OSS]/Table4[Enrollment_White]) -> 0.2 | EA7: =IF(Table4[White_OSS_Risk_Ind]="","",Table4[White_OSS_Risk_Ind]/((SUM(Table4[Number_Afr_Amer_One_or_More_OSS]:Table4[Number_White_One_or_More_OSS])-Table4[Number_White_One_or_More_OSS])/(Table4[Student_Enrollment_(Oct)]-Table4[Enrollment_White]))) -> 0.08514386377 | EB7: =IF(Table4[Number_White_One_or_More_OSS]="","",(Table4[Number_White_One_or_More_OSS])-(Table4[Number_White_One_or_More_OSS]/Table4[White_OSS_Risk_Rat])) -> -107.4482759 | EC7: =IF(Table4[Number_Students_With_IEP_One_or_More_OSS]="","",Table4[Number_Students_With_IEP_One_or_More_OSS]/Table4[Enrollment_Students_with_IEPs]) -> 0.1444444444 | ED7: =IF(Table4[Students_With_IEP_OSS_Risk_Index]="","",Table4[Students_With_IEP_OSS_Risk_Index]/((SUM(Table4[Number_Afr_Amer_One_or_More_OSS]:Table4[Number_White_One_or_More_OSS])-Table4[Number_Students_With_IEP_One_or_More_OSS])/(Table4[Student_Enrollment_(Oct)]-Table4[Enrollment_Students_with_IEPs]))) -> 0.05624385447 | EE7: =IF(Table4[Number_Students_With_IEP_One_or_More_OSS]="","",Table4[Number_Students_With_IEP_One_or_More_OSS]-(Table4[Number_Students_With_IEP_One_or_More_OSS]/Table4[Students_With_IEP_OSS_Risk_Ratio])) -> -436.2727273
A8: 999999 | B8: B Elementary | C8: 202122 | D8: Tier 2 | E8: Tier 2 | F8: Elementary | G8: 200 | H8: 75 | I8: =IF(Table4[Student_Enrollment_(Oct)]="","",Table4[Enrollment_Afr_Amer]/Table4[Student_Enrollment_(Oct)]) -> 0.375 | J8: 20 | K8: =IF(Table4[Student_Enrollment_(Oct)]="","",Table4[Enrollment_Asian]/Table4[Student_Enrollment_(Oct)]) -> 0.1 | L8: 75 | M8: =IF(Table4[Student_Enrollment_(Oct)]="","",Table4[Enrollment_Hispanic]/Table4[Student_Enrollment_(Oct)]) -> 0.375 | N8: 0 | O8: =IF(Table4[Student_Enrollment_(Oct)]="","",Table4[Enrollment_Multi-Rac]/Table4[Student_Enrollment_(Oct)]) -> 0 | P8: 0 | Q8: =IF(Table4[Student_Enrollment_(Oct)]="","",Table4[Enrollment_Nat_Amer]/Table4[Student_Enrollment_(Oct)]) -> 0 | R8: 0 | S8: =IF(Table4[Student_Enrollment_(Oct)]="","",Table4[Enrollment_Pac._Islan]/Table4[Student_Enrollment_(Oct)]) -> 0 | T8: 30 | U8: =IF(Table4[Student_Enrollment_(Oct)]="","",Table4[Enrollment_White]/Table4[Student_Enrollment_(Oct)]) -> 0.15 | V8: 25 | W8: =IF(Table4[Enrollment_Students_with_IEPs]="","",Table4[Enrollment_Students_with_IEPs]/Table4[Student_Enrollment_(Oct)]) -> 0.125 | X8: 93 | Y8: 300 | Z8: 100 | AA8: 25 | AB8: =IF(Table4[Number_of_Students_with_1_ODR]+Table4[Number_Students_With_0_ODRs]=0,"",Table4[Number_of_Students_with_1_ODR]+Table4[Number_Students_With_0_ODRs]) -> 125 | AC8: 50 | AD8: 25 | AE8: =IF(Table4[Number_of_Students_with_0-1_ODRs]="","",Table4[Number_of_Students_with_0-1_ODRs]/(Table4[Number_of_Students_with_0-1_ODRs]+Table4[Number_of_Students_with_2-5_ODRs]+Table4[Number_of_Students_with_6+_ODRs])) -> 0.625 | AF8: =IF(Table4[Number_of_Students_with_2-5_ODRs]="","",Table4[Number_of_Students_with_2-5_ODRs]/(Table4[Number_of_Students_with_0-1_ODRs]+Table4[Number_of_Students_with_2-5_ODRs]+Table4[Number_of_Students_with_6+_ODRs])) -> 0.25 | AG8: =IF(Table4[Number_of_Students_with_6+_ODRs]="","",Table4[Number_of_Students_with_6+_ODRs]/(Table4[Number_of_Students_with_0-1_ODRs]+Table4[Number_of_Students_with_2-5_ODRs]+Table4[Number_of_Students_with_6+_ODRs])) -> 0.125 | AH8: 50 | AI8: 25 | AJ8: 25 | AK8: 0 | AL8: 10 | AM8: 0 | AN8: 0 | AO8: 0 | AP8: 5 | AQ8: 19 | AR8: =IF(Table4[Number_Afr_Amer_One_or_More_ODR]+Table4[Number_Asian_One_or_More_ODR]+Table4[Number_Hispanic_One_or_More_ODR]+Table4[Number_Multi-Rac_One_or_More_ODR]+Table4[Number_Nat_Amer_One_or_More_ODR]+Table4[Number_Pac_Islan_One_or_More_ODR]+Table4[Number_White_One_or_More_ODR]=0,"",Table4[Number_Afr_Amer_One_or_More_ODR]+Table4[Number_Asian_One_or_More_ODR]+Table4[Number_Hispanic_One_or_More_ODR]+Table4[Number_Multi-Rac_One_or_More_ODR]+Table4[Number_Nat_Amer_One_or_More_ODR]+Table4[Number_Pac_Islan_One_or_More_ODR]+Table4[Number_White_One_or_More_ODR]) -> 40 | AS8: 25 | AT8: 0 | AU8: 10 | AV8: 0 | AW8: 0 | AX8: 0 | AY8: 5 | AZ8: 19 | BA8: =IF(Table4[Number_Afr_Amer_One_or_More_ISS]+Table4[Number_Asian_One_or_More_ISS]+Table4[Number_Hispanic_One_or_More_ISS]+Table4[Number_Multi-Rac_One_or_More_ISS]+Table4[Number_Nat_Amer_One_or_More_ISS]+Table4[Number_Pac_Islan_One_or_More_ISS]+Table4[Number_White_One_or_More_ISS]=0,"",Table4[Number_Afr_Amer_One_or_More_ISS]+Table4[Number_Asian_One_or_More_ISS]+Table4[Number_Hispanic_One_or_More_ISS]+Table4[Number_Multi-Rac_One_or_More_ISS]+Table4[Number_Nat_Amer_One_or_More_ISS]+Table4[Number_Pac_Islan_One_or_More_ISS]+Table4[Number_White_One_or_More_ISS]) -> 40 | BB8: 25 | BC8: 0 | BD8: 10 | BE8: 0 | BF8: 0 | BG8: 0 | BH8: 5 | BI8: 19 | BJ8: =IF(Table4[Number_Afr_Amer_One_or_More_OSS]+Table4[Number_Asian_One_or_More_OSS]+Table4[Number_Hispanic_One_or_More_OSS]+Table4[Number_Multi-Rac_One_or_More_OSS]+Table4[Number_Nat_Amer_One_or_More_OSS]+Table4[Number_Pac_Islan_One_or_More_OSS]+Table4[Number_White_One_or_More_OSS]=0,"",Table4[Number_Afr_Amer_One_or_More_OSS]+Table4[Number_Asian_One_or_More_OSS]+Table4[Number_Hispanic_One_or_More_OSS]+Table4[Number_Multi-Rac_One_or_More_OSS]+Table4[Number_Nat_Amer_One_or_More_OSS]+Table4[Number_Pac_Islan_One_or_More_OSS]+Table4[Number_White_One_or_More_OSS]) -> 40 | BL8: =IF(Table4[Number_Afr_Amer_One_or_More_ODR]="","",Table4[Number_Afr_Amer_One_or_More_ODR]/Table4[Enrollment_Afr_Amer]) -> 0.3333333333 | BM8: =IF(Table4[Afr_Amer_ODR_Risk_Ind]="","",Table4[Afr_Amer_ODR_Risk_Ind]/((SUM(Table4[Number_Afr_Amer_One_or_More_ODR]:Table4[Number_White_One_or_More_ODR])-Table4[Number_Afr_Amer_One_or_More_ODR])/(Table4[Student_Enrollment_(Oct)]-Table4[Enrollment_Afr_Amer]))) -> 0.0122874275 | BN8: =IF(Table4[Number_Afr_Amer_One_or_More_ODR]="","",(Table4[Number_Afr_Amer_One_or_More_ODR])-(Table4[Number_Afr_Amer_One_or_More_ODR]/Table4[Afr_Amer_ODR_Risk_Rat])) -> -2009.6 | BO8: =IF(Table4[Number_Asian_One_or_More_ODR]="","",Table4[Number_Asian_One_or_More_ODR]/Table4[Enrollment_Asian]) -> 0 | BP8: =IF(Table4[Asian_ODR_Risk_Ind]="","",Table4[Asian_ODR_Risk_Ind]/((SUM(Table4[Number_Afr_Amer_One_or_More_ODR]:Table4[Number_White_One_or_More_ODR])-Table4[Number_Asian_One_or_More_ODR])/(Table4[Student_Enrollment_(Oct)]-Table4[Enrollment_Asian]))) -> 0 | BQ8: =IF(Table4[Number_Asian_One_or_More_ODR]="","",(Table4[Number_Asian_One_or_More_ODR])-(Table4[Number_Asian_One_or_More_ODR]/Table4[Asian_ODR_Risk_Rat])) ->  | BR8: =IF(Table4[Number_Hispanic_One_or_More_ODR]="","",Table4[Number_Hispanic_One_or_More_ODR]/Table4[Enrollment_Hispanic]) -> 0.1333333333 | BS8: =IF(Table4[Hispanic_ODR_Risk_Ind]="","",Table4[Hispanic_ODR_Risk_Ind]/((SUM(Table4[Number_Afr_Amer_One_or_More_ODR]:Table4[Number_White_One_or_More_ODR])-Table4[Number_Hispanic_One_or_More_ODR])/(Table4[Student_Enrollment_(Oct)]-Table4[Enrollment_Hispanic]))) -> 0.004893325504 | BT8: =IF(Table4[Number_Hispanic_One_or_More_ODR]="","",(Table4[Number_Hispanic_One_or_More_ODR])-(Table4[Number_Hispanic_One_or_More_ODR]/Table4[Hispanic_ODR_Risk_Rat])) -> -2033.6 | BU8: =IF(Table4[Number_Multi-Rac_One_or_More_ODR]="","",Table4[Number_Multi-Rac_One_or_More_ODR]/Table4[Enrollment_Multi-Rac]) ->  | BV8: =IF(Table4[Multi-Rac_ODR_Risk_Index]="","",Table4[Multi-Rac_ODR_Risk_Index]/((SUM(Table4[Number_Afr_Amer_One_or_More_ODR]:Table4[Number_White_One_or_More_ODR])-Table4[Number_Multi-Rac_One_or_More_ODR])/(Table4[Student_Enrollment_(Oct)]-Table4[Enrollment_Multi-Rac]))) ->  | BW8: =IF(Table4[Number_Multi-Rac_One_or_More_ODR]="","",(Table4[Number_Multi-Rac_One_or_More_ODR])-(Table4[Number_Multi-Rac_One_or_More_ODR]/Table4[Multi-Rac_ODR_Risk_Rat])) ->  | BX8: =IF(Table4[Number_Nat_Amer_One_or_More_ODR]="","",Table4[Number_Nat_Amer_One_or_More_ODR]/Table4[Enrollment_Nat_Amer]) ->  | BY8: =IF(Table4[Nat_Amer_ODR_Risk_Ind]="","",Table4[Nat_Amer_ODR_Risk_Ind]/((SUM(Table4[Number_Afr_Amer_One_or_More_ODR]:Table4[Number_White_One_or_More_ODR])-Table4[Number_Nat_Amer_One_or_More_ODR])/(Table4[Student_Enrollment_(Oct)]-Table4[Enrollment_Nat_Amer]))) ->  | BZ8: =IF(Table4[Number_Nat_Amer_One_or_More_ODR]="","",(Table4[Number_Nat_Amer_One_or_More_ODR])-(Table4[Number_Nat_Amer_One_or_More_ODR]/Table4[Nat_Amer_ODR_Risk_Rat])) ->  | CA8: =IF(Table4[Number_Pac_Islan_One_or_More_ODR]="","",Table4[Number_Pac_Islan_One_or_More_ODR]/Table4[Enrollment_Pac._Islan]) ->  | CB8: =IF(Table4[Pac_Islan_ODR_Risk_Ind]="","",Table4[Pac_Islan_ODR_Risk_Ind]/((SUM(Table4[Number_Afr_Amer_One_or_More_ODR]:Table4[Number_White_One_or_More_ODR])-Table4[Number_Pac_Islan_One_or_More_ODR])/(Table4[Student_Enrollment_(Oct)]-Table4[Enrollment_Pac._Islan]))) ->  | CC8: =IF(Table4[Number_Pac_Islan_One_or_More_ODR]="","",(Table4[Number_Pac_Islan_One_or_More_ODR])-(Table4[Number_Pac_Islan_One_or_More_ODR]/Table4[Pac_Islan_ODR_Risk_Rat])) ->  | CD8: =IF(Table4[Number_White_One_or_More_ODR]="","",Table4[Number_White_One_or_More_ODR]/Table4[Enrollment_White]) -> 0.1666666667 | CE8: =IF(Table4[White_ODR_Risk_Ind]="","",Table4[White_ODR_Risk_Ind]/((SUM(Table4[Number_Afr_Amer_One_or_More_ODR]:Table4[Number_White_One_or_More_ODR])-Table4[Number_White_One_or_More_ODR])/(Table4[Student_Enrollment_(Oct)]-Table4[Enrollment_White]))) -> 0.008306459494 | CF8: =IF(Table4[Number_White_One_or_More_ODR]="","",(Table4[Number_White_One_or_More_ODR])-(Table4[Number_White_One_or_More_ODR]/Table4[White_ODR_Risk_Rat])) -> -596.9411765 | CG8: =IF(Table4[Number_IEP_one _or_More_ODR]="","",Table4[Number_IEP_one _or_More_ODR]/Table4[Enrollment_Students_with_IEPs]) -> 0.76 | CH8: =IF(Table4[Students_With_IEP_ODR_Risk_Index]="","",Table4[Students_With_IEP_ODR_Risk_Index]/((SUM(Table4[Number_Afr_Amer_One_or_More_ODR]:Table4[Number_White_One_or_More_ODR])-Table4[Number_IEP_one _or_More_ODR])/(Table4[Student_Enrollment_(Oct)]-Table4[Enrollment_Students_with_IEPs]))) -> 0.03915219311 | CI8: =IF(Table4[Number_IEP_one _or_More_ODR]="","",(Table4[Number_IEP_one _or_More_ODR])-(Table4[Number_IEP_one _or_More_ODR]/Table4[Students_With_IEP_ODR_Risk_Ratio])) -> -466.2857143 | CJ8: =IF(Table4[Number_Afr_Amer_One_or_More_ISS]="","",Table4[Number_Afr_Amer_One_or_More_ISS]/Table4[Enrollment_Afr_Amer]) -> 0.3333333333 | CK8: =IF(Table4[Afr_Amer_ISS_Risk_Ind]="","",Table4[Afr_Amer_ODR_Risk_Ind]/((SUM(Table4[Number_Afr_Amer_One_or_More_ISS]:Table4[Number_White_One_or_More_ISS])-Table4[Number_Afr_Amer_One_or_More_ISS])/(Table4[Student_Enrollment_(Oct)]-Table4[Enrollment_Afr_Amer]))) -> 0.0122874275 | CL8: =IF(Table4[Number_Afr_Amer_One_or_More_ISS]="","",(Table4[Number_Afr_Amer_One_or_More_ISS])-(Table4[Number_Afr_Amer_One_or_More_ISS]/Table4[Afr_Amer_ISS_Risk_Rat])) -> -2009.6 | CM8: =IF(Table4[Number_Asian_One_or_More_ISS]="","",Table4[Number_Asian_One_or_More_ISS]/Table4[Enrollment_Asian]) -> 0 | CN8: =IF(Table4[Asian_ISS_Risk_Ind]="","",Table4[Asian_ISS_Risk_Ind]/((SUM(Table4[Number_Afr_Amer_One_or_More_ISS]:Table4[Number_White_One_or_More_ISS])-Table4[Number_Asian_One_or_More_ISS])/(Table4[Student_Enrollment_(Oct)]-Table4[Enrollment_Asian]))) -> 0 | CO8: =IF(Table4[Number_Asian_One_or_More_ISS]="","",(Table4[Number_Asian_One_or_More_ISS])-(Table4[Number_Asian_One_or_More_ISS]/Table4[Asian_ISS_Risk_Rat])) ->  | CP8: =IF(Table4[Number_Hispanic_One_or_More_ISS]="","",Table4[Number_Hispanic_One_or_More_ISS]/Table4[Enrollment_Hispanic]) -> 0.1333333333 | CQ8: =IF(Table4[Hispanic_ISS_Risk_Ind]="","",Table4[Hispanic_ISS_Risk_Ind]/((SUM(Table4[Number_Afr_Amer_One_or_More_ISS]:Table4[Number_White_One_or_More_ISS])-Table4[Number_Hispanic_One_or_More_ISS])/(Table4[Student_Enrollment_(Oct)]-Table4[Enrollment_Hispanic]))) -> 0.004893325504 | CR8: =IF(Table4[Number_Hispanic_One_or_More_ISS]="","",(Table4[Number_Hispanic_One_or_More_ISS])-(Table4[Number_Hispanic_One_or_More_ISS]/Table4[Hispanic_ISS_Risk_Rat])) -> -2033.6 | CS8: =IF(Table4[Number_Multi-Rac_One_or_More_ISS]="","",Table4[Number_Multi-Rac_One_or_More_ISS]/Table4[Enrollment_Multi-Rac]) ->  | CT8: =IF(Table4[Multi-Rac_ISS_Risk_Index]="","",Table4[Multi-Rac_ISS_Risk_Index]/((SUM(Table4[Number_Afr_Amer_One_or_More_ISS]:Table4[Number_White_One_or_More_ISS])-Table4[Number_Multi-Rac_One_or_More_ISS])/(Table4[Student_Enrollment_(Oct)]-Table4[Enrollment_Multi-Rac]))) ->  | CU8: =IF(Table4[Number_Multi-Rac_One_or_More_ISS]="","",(Table4[Number_Multi-Rac_One_or_More_ISS])-(Table4[Number_Multi-Rac_One_or_More_ISS]/Table4[Multi-Rac_ISS_Risk_Rat])) ->  | CV8: =IF(Table4[Number_Nat_Amer_One_or_More_ISS]="","",Table4[Number_Nat_Amer_One_or_More_ISS]/Table4[Enrollment_Nat_Amer]) ->  | CW8: =IF(Table4[Nat_Amer_ISS_Risk_Ind]="","",Table4[Nat_Amer_ISS_Risk_Ind]/((SUM(Table4[Number_Afr_Amer_One_or_More_ISS]:Table4[Number_White_One_or_More_ISS])-Table4[Number_Nat_Amer_One_or_More_ISS])/(Table4[Student_Enrollment_(Oct)]-Table4[Enrollment_Nat_Amer]))) ->  | CX8: =IF(Table4[Number_Nat_Amer_One_or_More_ISS]="","",(Table4[Number_Nat_Amer_One_or_More_ISS])-(Table4[Number_Nat_Amer_One_or_More_ISS]/Table4[Nat_Amer_ISS_Risk_Rat])) ->  | CY8: =IF(Table4[Number_Pac_Islan_One_or_More_ISS]="","",Table4[Number_Pac_Islan_One_or_More_ISS]/Table4[Enrollment_Pac._Islan]) ->  | CZ8: =IF(Table4[Pac_Islan_ISS_Risk_Ind]="","",Table4[Pac_Islan_ISS_Risk_Ind]/((SUM(Table4[Number_Afr_Amer_One_or_More_ISS]:Table4[Number_White_One_or_More_ISS])-Table4[Number_Pac_Islan_One_or_More_ISS])/(Table4[Student_Enrollment_(Oct)]-Table4[Enrollment_Pac._Islan]))) ->  | DA8: =IF(Table4[Number_Pac_Islan_One_or_More_ISS]="","",(Table4[Number_Pac_Islan_One_or_More_ISS])-(Table4[Number_Pac_Islan_One_or_More_ISS]/Table4[Pac_Islan_ISS_Risk_Rat])) ->  | DB8: =IF(Table4[Number_White_One_or_More_ISS]="","",Table4[Number_White_One_or_More_ISS]/Table4[Enrollment_White]) -> 0.1666666667 | DC8: =IF(Table4[White_ISS_Risk_Ind]="","",Table4[White_ISS_Risk_Ind]/((SUM(Table4[Number_Afr_Amer_One_or_More_ISS]:Table4[Number_White_One_or_More_ISS])-Table4[Number_White_One_or_More_ISS])/(Table4[Student_Enrollment_(Oct)]-Table4[Enrollment_Pac._Islan]))) -> 0.009772305287 | DD8: =IF(Table4[Number_White_One_or_More_ISS]="","",(Table4[Number_White_One_or_More_ISS])-(Table4[Number_White_One_or_More_ISS]/Table4[White_ISS_Risk_Rat])) -> -506.65 | DE8: =IF(Table4[Number_IEP_one _or_More_ISS]="","",Table4[Number_IEP_one _or_More_ISS]/Table4[Enrollment_Students_with_IEPs]) -> 0.76 | DF8: =IF(Table4[Students_With_IEP_ODR_Risk_Index]="","",Table4[Students_With_IEP_ODR_Risk_Index]/((SUM(Table4[Number_Afr_Amer_One_or_More_ISS]:Table4[Number_White_One_or_More_ISS])-Table4[Number_IEP_one _or_More_ODR])/(Table4[Student_Enrollment_(Oct)]-Table4[Enrollment_Students_with_IEPs]))) -> 0.03915219311 | DG8: =IF(Table4[Number_IEP_one _or_More_ODR]="","",(Table4[Number_IEP_one _or_More_ODR])-(Table4[Number_IEP_one _or_More_ODR]/Table4[Students_With_IEP_ODR_Risk_Ratio])) -> -466.2857143 | DH8: =IF(Table4[Number_Afr_Amer_One_or_More_OSS]="","",Table4[Number_Afr_Amer_One_or_More_OSS]/Table4[Enrollment_Afr_Amer]) -> 0.3333333333 | DI8: =IF(Table4[Afr_Amer_OSS_Risk_Ind]="","",Table4[Afr_Amer_OSS_Risk_Ind]/((SUM(Table4[Number_Afr_Amer_One_or_More_OSS]:Table4[Number_White_One_or_More_OSS])-Table4[Number_Afr_Amer_One_or_More_OSS])/(Table4[Student_Enrollment_(Oct)]-Table4[Enrollment_Afr_Amer]))) -> 0.0122874275 | DJ8: =IF(Table4[Number_Afr_Amer_One_or_More_OSS]="","",(Table4[Number_Afr_Amer_One_or_More_OSS])-(Table4[Number_Afr_Amer_One_or_More_OSS]/Table4[Afr_Amer_OSS_Risk_Rat])) -> -2009.6 | DK8: =IF(Table4[Number_Asian_One_or_More_OSS]="","",Table4[Number_Asian_One_or_More_OSS]/Table4[Enrollment_Asian]) -> 0 | DL8: =IF(Table4[Asian_OSS_Risk_Ind]="","",Table4[Asian_OSS_Risk_Ind]/((SUM(Table4[Number_Afr_Amer_One_or_More_OSS]:Table4[Number_White_One_or_More_OSS])-Table4[Number_Asian_One_or_More_OSS])/(Table4[Student_Enrollment_(Oct)]-Table4[Enrollment_Asian]))) -> 0 | DM8: =IF(Table4[Number_Asian_One_or_More_OSS]="","",(Table4[Number_Asian_One_or_More_OSS])-(Table4[Number_Asian_One_or_More_OSS]/Table4[Asian_OSS_Risk_Rat])) ->  | DN8: =IF(Table4[Number_Hispanic_One_or_More_OSS]="","",Table4[Number_Hispanic_One_or_More_OSS]/Table4[Enrollment_Hispanic]) -> 0.1333333333 | DO8: =IF(Table4[Hispanic_OSS_Risk_Ind]="","",Table4[Hispanic_OSS_Risk_Ind]/((SUM(Table4[Number_Afr_Amer_One_or_More_OSS]:Table4[Number_White_One_or_More_OSS])-Table4[Number_Hispanic_One_or_More_OSS])/(Table4[Student_Enrollment_(Oct)]-Table4[Enrollment_Hispanic]))) -> 0.004893325504 | DP8: =IF(Table4[Number_Hispanic_One_or_More_OSS]="","",(Table4[Number_Hispanic_One_or_More_OSS])-(Table4[Number_Hispanic_One_or_More_OSS]/Table4[Hispanic_ODR_Risk_Rat])) -> -2033.6 | DQ8: =IF(Table4[Number_Multi-Rac_One_or_More_OSS]="","",Table4[Number_Multi-Rac_One_or_More_OSS]/Table4[Enrollment_Multi-Rac]) ->  | DR8: =IF(Table4[Multi-Rac_ODR_Risk_Index]="","",Table4[Multi-Rac_ODR_Risk_Index]/((SUM(Table4[Number_Afr_Amer_One_or_More_OSS]:Table4[Number_White_One_or_More_OSS])-Table4[Number_Multi-Rac_One_or_More_OSS])/(Table4[Student_Enrollment_(Oct)]-Table4[Enrollment_Multi-Rac]))) ->  | DS8: =IF(Table4[Number_Multi-Rac_One_or_More_OSS]="","",(Table4[Number_Multi-Rac_One_or_More_OSS])-(Table4[Number_Multi-Rac_One_or_More_OSS]/Table4[Multi-Rac_OSS_Risk_Rat])) ->  | DT8: =IF(Table4[Number_Nat_Amer_One_or_More_OSS]="","",Table4[Number_Nat_Amer_One_or_More_OSS]/Table4[Enrollment_Nat_Amer]) ->  | DU8: =IF(Table4[Nat_Amer_OSS_Risk_Ind]="","",Table4[Nat_Amer_OSS_Risk_Ind]/((SUM(Table4[Number_Afr_Amer_One_or_More_OSS]:Table4[Number_White_One_or_More_OSS])-Table4[Number_Nat_Amer_One_or_More_OSS])/(Table4[Student_Enrollment_(Oct)]-Table4[Enrollment_Nat_Amer]))) ->  | DV8: =IF(Table4[Number_Nat_Amer_One_or_More_OSS]="","",(Table4[Number_Nat_Amer_One_or_More_OSS])-(Table4[Number_Nat_Amer_One_or_More_OSS]/Table4[Nat_Amer_OSS_Risk_Rat])) ->  | DW8: =IF(Table4[Number_Pac_Islan_One_or_More_OSS]="","",Table4[Number_Pac_Islan_One_or_More_OSS]/Table4[Enrollment_Pac._Islan]) ->  | DX8: =IF(Table4[Pac_Islan_OSS_Risk_Ind]="","",Table4[Pac_Islan_OSS_Risk_Ind]/((SUM(Table4[Number_Afr_Amer_One_or_More_OSS]:Table4[Number_White_One_or_More_OSS])-Table4[Number_Pac_Islan_One_or_More_OSS])/(Table4[Student_Enrollment_(Oct)]-Table4[Enrollment_Pac._Islan]))) ->  | DY8: =IF(Table4[Number_Pac_Islan_One_or_More_OSS]="","",(Table4[Number_Pac_Islan_One_or_More_OSS])-(Table4[Number_Pac_Islan_One_or_More_OSS]/Table4[Pac_Islan_OSS_Risk_Rat])) ->  | DZ8: =IF(Table4[Number_White_One_or_More_OSS]="","",Table4[Number_White_One_or_More_OSS]/Table4[Enrollment_White]) -> 0.1666666667 | EA8: =IF(Table4[White_OSS_Risk_Ind]="","",Table4[White_OSS_Risk_Ind]/((SUM(Table4[Number_Afr_Amer_One_or_More_OSS]:Table4[Number_White_One_or_More_OSS])-Table4[Number_White_One_or_More_OSS])/(Table4[Student_Enrollment_(Oct)]-Table4[Enrollment_White]))) -> 0.008306459494 | EB8: =IF(Table4[Number_White_One_or_More_OSS]="","",(Table4[Number_White_One_or_More_OSS])-(Table4[Number_White_One_or_More_OSS]/Table4[White_OSS_Risk_Rat])) -> -596.9411765 | EC8: =IF(Table4[Number_Students_With_IEP_One_or_More_OSS]="","",Table4[Number_Students_With_IEP_One_or_More_OSS]/Table4[Enrollment_Students_with_IEPs]) -> 0.76 | ED8: =IF(Table4[Students_With_IEP_OSS_Risk_Index]="","",Table4[Students_With_IEP_OSS_Risk_Index]/((SUM(Table4[Number_Afr_Amer_One_or_More_OSS]:Table4[Number_White_One_or_More_OSS])-Table4[Number_Students_With_IEP_One_or_More_OSS])/(Table4[Student_Enrollment_(Oct)]-Table4[Enrollment_Students_with_IEPs]))) -> 0.03915219311 | EE8: =IF(Table4[Number_Students_With_IEP_One_or_More_OSS]="","",Table4[Number_Students_With_IEP_One_or_More_OSS]-(Table4[Number_Students_With_IEP_One_or_More_OSS]/Table4[Students_With_IEP_OSS_Risk_Ratio])) -> -466.2857143
A9: 9999999 | B9: F Elementary | C9: 202122 | D9: Tier 2 | E9: Tier 1 | F9: Elementary | G9: 200 | H9: 150 | I9: =IF(Table4[Student_Enrollment_(Oct)]="","",Table4[Enrollment_Afr_Amer]/Table4[Student_Enrollment_(Oct)]) -> 0.75 | J9: 10 | K9: =IF(Table4[Student_Enrollment_(Oct)]="","",Table4[Enrollment_Asian]/Table4[Student_Enrollment_(Oct)]) -> 0.05 | L9: 0 | M9: =IF(Table4[Student_Enrollment_(Oct)]="","",Table4[Enrollment_Hispanic]/Table4[Student_Enrollment_(Oct)]) -> 0 | N9: 0 | O9: =IF(Table4[Student_Enrollment_(Oct)]="","",Table4[Enrollment_Multi-Rac]/Table4[Student_Enrollment_(Oct)]) -> 0 | P9: 0 | Q9: =IF(Table4[Student_Enrollment_(Oct)]="","",Table4[Enrollment_Nat_Amer]/Table4[Student_Enrollment_(Oct)]) -> 0 | R9: 0 | S9: =IF(Table4[Student_Enrollment_(Oct)]="","",Table4[Enrollment_Pac._Islan]/Table4[Student_Enrollment_(Oct)]) -> 0 | T9: 15 | U9: =IF(Table4[Student_Enrollment_(Oct)]="","",Table4[Enrollment_White]/Table4[Student_Enrollment_(Oct)]) -> 0.075 | V9: 15 | W9: =IF(Table4[Enrollment_Students_with_IEPs]="","",Table4[Enrollment_Students_with_IEPs]/Table4[Student_Enrollment_(Oct)]) -> 0.075 | X9: 95 | Y9: 2000 | Z9: 150 | AA9: 25 | AB9: =IF(Table4[Number_of_Students_with_1_ODR]+Table4[Number_Students_With_0_ODRs]=0,"",Table4[Number_of_Students_with_1_ODR]+Table4[Number_Students_With_0_ODRs]) -> 175 | AC9: 15 | AD9: 10 | AE9: =IF(Table4[Number_of_Students_with_0-1_ODRs]="","",Table4[Number_of_Students_with_0-1_ODRs]/(Table4[Number_of_Students_with_0-1_ODRs]+Table4[Number_of_Students_with_2-5_ODRs]+Table4[Number_of_Students_with_6+_ODRs])) -> 0.875 | AF9: =IF(Table4[Number_of_Students_with_2-5_ODRs]="","",Table4[Number_of_Students_with_2-5_ODRs]/(Table4[Number_of_Students_with_0-1_ODRs]+Table4[Number_of_Students_with_2-5_ODRs]+Table4[Number_of_Students_with_6+_ODRs])) -> 0.075 | AG9: =IF(Table4[Number_of_Students_with_6+_ODRs]="","",Table4[Number_of_Students_with_6+_ODRs]/(Table4[Number_of_Students_with_0-1_ODRs]+Table4[Number_of_Students_with_2-5_ODRs]+Table4[Number_of_Students_with_6+_ODRs])) -> 0.05 | AH9: 300 | AI9: 30 | AJ9: 125 | AK9: 2 | AL9: 0 | AM9: 0 | AN9: 0 | AO9: 0 | AP9: 15 | AQ9: 5 | AR9: =IF(Table4[Number_Afr_Amer_One_or_More_ODR]+Table4[Number_Asian_One_or_More_ODR]+Table4[Number_Hispanic_One_or_More_ODR]+Table4[Number_Multi-Rac_One_or_More_ODR]+Table4[Number_Nat_Amer_One_or_More_ODR]+Table4[Number_Pac_Islan_One_or_More_ODR]+Table4[Number_White_One_or_More_ODR]=0,"",Table4[Number_Afr_Amer_One_or_More_ODR]+Table4[Number_Asian_One_or_More_ODR]+Table4[Number_Hispanic_One_or_More_ODR]+Table4[Number_Multi-Rac_One_or_More_ODR]+Table4[Number_Nat_Amer_One_or_More_ODR]+Table4[Number_Pac_Islan_One_or_More_ODR]+Table4[Number_White_One_or_More_ODR]) -> 142 | AS9: 125 | AT9: 2 | AU9: 0 | AV9: 0 | AW9: 0 | AX9: 0 | AY9: 15 | AZ9: 5 | BA9: =IF(Table4[Number_Afr_Amer_One_or_More_ISS]+Table4[Number_Asian_One_or_More_ISS]+Table4[Number_Hispanic_One_or_More_ISS]+Table4[Number_Multi-Rac_One_or_More_ISS]+Table4[Number_Nat_Amer_One_or_More_ISS]+Table4[Number_Pac_Islan_One_or_More_ISS]+Table4[Number_White_One_or_More_ISS]=0,"",Table4[Number_Afr_Amer_One_or_More_ISS]+Table4[Number_Asian_One_or_More_ISS]+Table4[Number_Hispanic_One_or_More_ISS]+Table4[Number_Multi-Rac_One_or_More_ISS]+Table4[Number_Nat_Amer_One_or_More_ISS]+Table4[Number_Pac_Islan_One_or_More_ISS]+Table4[Number_White_One_or_More_ISS]) -> 142 | BB9: 125 | BC9: 2 | BD9: 0 | BE9: 0 | BF9: 0 | BG9: 0 | BH9: 15 | BI9: 5 | BJ9: =IF(Table4[Number_Afr_Amer_One_or_More_OSS]+Table4[Number_Asian_One_or_More_OSS]+Table4[Number_Hispanic_One_or_More_OSS]+Table4[Number_Multi-Rac_One_or_More_OSS]+Table4[Number_Nat_Amer_One_or_More_OSS]+Table4[Number_Pac_Islan_One_or_More_OSS]+Table4[Number_White_One_or_More_OSS]=0,"",Table4[Number_Afr_Amer_One_or_More_OSS]+Table4[Number_Asian_One_or_More_OSS]+Table4[Number_Hispanic_One_or_More_OSS]+Table4[Number_Multi-Rac_One_or_More_OSS]+Table4[Number_Nat_Amer_One_or_More_OSS]+Table4[Number_Pac_Islan_One_or_More_OSS]+Table4[Number_White_One_or_More_OSS]) -> 142 | BL9: =IF(Table4[Number_Afr_Amer_One_or_More_ODR]="","",Table4[Number_Afr_Amer_One_or_More_ODR]/Table4[Enrollment_Afr_Amer]) -> 0.8333333333 | BM9: =IF(Table4[Afr_Amer_ODR_Risk_Ind]="","",Table4[Afr_Amer_ODR_Risk_Ind]/((SUM(Table4[Number_Afr_Amer_One_or_More_ODR]:Table4[Number_White_One_or_More_ODR])-Table4[Number_Afr_Amer_One_or_More_ODR])/(Table4[Student_Enrollment_(Oct)]-Table4[Enrollment_Afr_Amer]))) -> 0.01266079206 | BN9: =IF(Table4[Number_Afr_Amer_One_or_More_ODR]="","",(Table4[Number_Afr_Amer_One_or_More_ODR])-(Table4[Number_Afr_Amer_One_or_More_ODR]/Table4[Afr_Amer_ODR_Risk_Rat])) -> -9748 | BO9: =IF(Table4[Number_Asian_One_or_More_ODR]="","",Table4[Number_Asian_One_or_More_ODR]/Table4[Enrollment_Asian]) -> 0.2 | BP9: =IF(Table4[Asian_ODR_Risk_Ind]="","",Table4[Asian_ODR_Risk_Ind]/((SUM(Table4[Number_Afr_Amer_One_or_More_ODR]:Table4[Number_White_One_or_More_ODR])-Table4[Number_Asian_One_or_More_ODR])/(Table4[Student_Enrollment_(Oct)]-Table4[Enrollment_Asian]))) -> 0.01113063855 | BQ9: =IF(Table4[Number_Asian_One_or_More_ODR]="","",(Table4[Number_Asian_One_or_More_ODR])-(Table4[Number_Asian_One_or_More_ODR]/Table4[Asian_ODR_Risk_Rat])) -> -177.6842105 | BR9: =IF(Table4[Number_Hispanic_One_or_More_ODR]="","",Table4[Number_Hispanic_One_or_More_ODR]/Table4[Enrollment_Hispanic]) ->  | BS9: =IF(Table4[Hispanic_ODR_Risk_Ind]="","",Table4[Hispanic_ODR_Risk_Ind]/((SUM(Table4[Number_Afr_Amer_One_or_More_ODR]:Table4[Number_White_One_or_More_ODR])-Table4[Number_Hispanic_One_or_More_ODR])/(Table4[Student_Enrollment_(Oct)]-Table4[Enrollment_Hispanic]))) ->  | BT9: =IF(Table4[Number_Hispanic_One_or_More_ODR]="","",(Table4[Number_Hispanic_One_or_More_ODR])-(Table4[Number_Hispanic_One_or_More_ODR]/Table4[Hispanic_ODR_Risk_Rat])) ->  | BU9: =IF(Table4[Number_Multi-Rac_One_or_More_ODR]="","",Table4[Number_Multi-Rac_One_or_More_ODR]/Table4[Enrollment_Multi-Rac]) ->  | BV9: =IF(Table4[Multi-Rac_ODR_Risk_Index]="","",Table4[Multi-Rac_ODR_Risk_Index]/((SUM(Table4[Number_Afr_Amer_One_or_More_ODR]:Table4[Number_White_One_or_More_ODR])-Table4[Number_Multi-Rac_One_or_More_ODR])/(Table4[Student_Enrollment_(Oct)]-Table4[Enrollment_Multi-Rac]))) ->  | BW9: =IF(Table4[Number_Multi-Rac_One_or_More_ODR]="","",(Table4[Number_Multi-Rac_One_or_More_ODR])-(Table4[Number_Multi-Rac_One_or_More_ODR]/Table4[Multi-Rac_ODR_Risk_Rat])) ->  | BX9: =IF(Table4[Number_Nat_Amer_One_or_More_ODR]="","",Table4[Number_Nat_Amer_One_or_More_ODR]/Table4[Enrollment_Nat_Amer]) ->  | BY9: =IF(Table4[Nat_Amer_ODR_Risk_Ind]="","",Table4[Nat_Amer_ODR_Risk_Ind]/((SUM(Table4[Number_Afr_Amer_One_or_More_ODR]:Table4[Number_White_One_or_More_ODR])-Table4[Number_Nat_Amer_One_or_More_ODR])/(Table4[Student_Enrollment_(Oct)]-Table4[Enrollment_Nat_Amer]))) ->  | BZ9: =IF(Table4[Number_Nat_Amer_One_or_More_ODR]="","",(Table4[Number_Nat_Amer_One_or_More_ODR])-(Table4[Number_Nat_Amer_One_or_More_ODR]/Table4[Nat_Amer_ODR_Risk_Rat])) ->  | CA9: =IF(Table4[Number_Pac_Islan_One_or_More_ODR]="","",Table4[Number_Pac_Islan_One_or_More_ODR]/Table4[Enrollment_Pac._Islan]) ->  | CB9: =IF(Table4[Pac_Islan_ODR_Risk_Ind]="","",Table4[Pac_Islan_ODR_Risk_Ind]/((SUM(Table4[Number_Afr_Amer_One_or_More_ODR]:Table4[Number_White_One_or_More_ODR])-Table4[Number_Pac_Islan_One_or_More_ODR])/(Table4[Student_Enrollment_(Oct)]-Table4[Enrollment_Pac._Islan]))) ->  | CC9: =IF(Table4[Number_Pac_Islan_One_or_More_ODR]="","",(Table4[Number_Pac_Islan_One_or_More_ODR])-(Table4[Number_Pac_Islan_One_or_More_ODR]/Table4[Pac_Islan_ODR_Risk_Rat])) ->  | CD9: =IF(Table4[Number_White_One_or_More_ODR]="","",Table4[Number_White_One_or_More_ODR]/Table4[Enrollment_White]) -> 1 | CE9: =IF(Table4[White_ODR_Risk_Ind]="","",Table4[White_ODR_Risk_Ind]/((SUM(Table4[Number_Afr_Amer_One_or_More_ODR]:Table4[Number_White_One_or_More_ODR])-Table4[Number_White_One_or_More_ODR])/(Table4[Student_Enrollment_(Oct)]-Table4[Enrollment_White]))) -> 0.05439576595 | CF9: =IF(Table4[Number_White_One_or_More_ODR]="","",(Table4[Number_White_One_or_More_ODR])-(Table4[Number_White_One_or_More_ODR]/Table4[White_ODR_Risk_Rat])) -> -260.7567568 | CG9: =IF(Table4[Number_IEP_one _or_More_ODR]="","",Table4[Number_IEP_one _or_More_ODR]/Table4[Enrollment_Students_with_IEPs]) -> 0.3333333333 | CH9: =IF(Table4[Students_With_IEP_ODR_Risk_Index]="","",Table4[Students_With_IEP_ODR_Risk_Index]/((SUM(Table4[Number_Afr_Amer_One_or_More_ODR]:Table4[Number_White_One_or_More_ODR])-Table4[Number_IEP_one _or_More_ODR])/(Table4[Student_Enrollment_(Oct)]-Table4[Enrollment_Students_with_IEPs]))) -> 0.01807876478 | CI9: =IF(Table4[Number_IEP_one _or_More_ODR]="","",(Table4[Number_IEP_one _or_More_ODR])-(Table4[Number_IEP_one _or_More_ODR]/Table4[Students_With_IEP_ODR_Risk_Ratio])) -> -271.5675676 | CJ9: =IF(Table4[Number_Afr_Amer_One_or_More_ISS]="","",Table4[Number_Afr_Amer_One_or_More_ISS]/Table4[Enrollment_Afr_Amer]) -> 0.8333333333 | CK9: =IF(Table4[Afr_Amer_ISS_Risk_Ind]="","",Table4[Afr_Amer_ODR_Risk_Ind]/((SUM(Table4[Number_Afr_Amer_One_or_More_ISS]:Table4[Number_White_One_or_More_ISS])-Table4[Number_Afr_Amer_One_or_More_ISS])/(Table4[Student_Enrollment_(Oct)]-Table4[Enrollment_Afr_Amer]))) -> 0.01266079206 | CL9: =IF(Table4[Number_Afr_Amer_One_or_More_ISS]="","",(Table4[Number_Afr_Amer_One_or_More_ISS])-(Table4[Number_Afr_Amer_One_or_More_ISS]/Table4[Afr_Amer_ISS_Risk_Rat])) -> -9748 | CM9: =IF(Table4[Number_Asian_One_or_More_ISS]="","",Table4[Number_Asian_One_or_More_ISS]/Table4[Enrollment_Asian]) -> 0.2 | CN9: =IF(Table4[Asian_ISS_Risk_Ind]="","",Table4[Asian_ISS_Risk_Ind]/((SUM(Table4[Number_Afr_Amer_One_or_More_ISS]:Table4[Number_White_One_or_More_ISS])-Table4[Number_Asian_One_or_More_ISS])/(Table4[Student_Enrollment_(Oct)]-Table4[Enrollment_Asian]))) -> 0.01113063855 | CO9: =IF(Table4[Number_Asian_One_or_More_ISS]="","",(Table4[Number_Asian_One_or_More_ISS])-(Table4[Number_Asian_One_or_More_ISS]/Table4[Asian_ISS_Risk_Rat])) -> -177.6842105 | CP9: =IF(Table4[Number_Hispanic_One_or_More_ISS]="","",Table4[Number_Hispanic_One_or_More_ISS]/Table4[Enrollment_Hispanic]) ->  | CQ9: =IF(Table4[Hispanic_ISS_Risk_Ind]="","",Table4[Hispanic_ISS_Risk_Ind]/((SUM(Table4[Number_Afr_Amer_One_or_More_ISS]:Table4[Number_White_One_or_More_ISS])-Table4[Number_Hispanic_One_or_More_ISS])/(Table4[Student_Enrollment_(Oct)]-Table4[Enrollment_Hispanic]))) ->  | CR9: =IF(Table4[Number_Hispanic_One_or_More_ISS]="","",(Table4[Number_Hispanic_One_or_More_ISS])-(Table4[Number_Hispanic_One_or_More_ISS]/Table4[Hispanic_ISS_Risk_Rat])) ->  | CS9: =IF(Table4[Number_Multi-Rac_One_or_More_ISS]="","",Table4[Number_Multi-Rac_One_or_More_ISS]/Table4[Enrollment_Multi-Rac]) ->  | CT9: =IF(Table4[Multi-Rac_ISS_Risk_Index]="","",Table4[Multi-Rac_ISS_Risk_Index]/((SUM(Table4[Number_Afr_Amer_One_or_More_ISS]:Table4[Number_White_One_or_More_ISS])-Table4[Number_Multi-Rac_One_or_More_ISS])/(Table4[Student_Enrollment_(Oct)]-Table4[Enrollment_Multi-Rac]))) ->  | CU9: =IF(Table4[Number_Multi-Rac_One_or_More_ISS]="","",(Table4[Number_Multi-Rac_One_or_More_ISS])-(Table4[Number_Multi-Rac_One_or_More_ISS]/Table4[Multi-Rac_ISS_Risk_Rat])) ->  | CV9: =IF(Table4[Number_Nat_Amer_One_or_More_ISS]="","",Table4[Number_Nat_Amer_One_or_More_ISS]/Table4[Enrollment_Nat_Amer]) ->  | CW9: =IF(Table4[Nat_Amer_ISS_Risk_Ind]="","",Table4[Nat_Amer_ISS_Risk_Ind]/((SUM(Table4[Number_Afr_Amer_One_or_More_ISS]:Table4[Number_White_One_or_More_ISS])-Table4[Number_Nat_Amer_One_or_More_ISS])/(Table4[Student_Enrollment_(Oct)]-Table4[Enrollment_Nat_Amer]))) ->  | CX9: =IF(Table4[Number_Nat_Amer_One_or_More_ISS]="","",(Table4[Number_Nat_Amer_One_or_More_ISS])-(Table4[Number_Nat_Amer_One_or_More_ISS]/Table4[Nat_Amer_ISS_Risk_Rat])) ->  | CY9: =IF(Table4[Number_Pac_Islan_One_or_More_ISS]="","",Table4[Number_Pac_Islan_One_or_More_ISS]/Table4[Enrollment_Pac._Islan]) ->  | CZ9: =IF(Table4[Pac_Islan_ISS_Risk_Ind]="","",Table4[Pac_Islan_ISS_Risk_Ind]/((SUM(Table4[Number_Afr_Amer_One_or_More_ISS]:Table4[Number_White_One_or_More_ISS])-Table4[Number_Pac_Islan_One_or_More_ISS])/(Table4[Student_Enrollment_(Oct)]-Table4[Enrollment_Pac._Islan]))) ->  | DA9: =IF(Table4[Number_Pac_Islan_One_or_More_ISS]="","",(Table4[Number_Pac_Islan_One_or_More_ISS])-(Table4[Number_Pac_Islan_One_or_More_ISS]/Table4[Pac_Islan_ISS_Risk_Rat])) ->  | DB9: =IF(Table4[Number_White_One_or_More_ISS]="","",Table4[Number_White_One_or_More_ISS]/Table4[Enrollment_White]) -> 1 | DC9: =IF(Table4[White_ISS_Risk_Ind]="","",Table4[White_ISS_Risk_Ind]/((SUM(Table4[Number_Afr_Amer_One_or_More_ISS]:Table4[Number_White_One_or_More_ISS])-Table4[Number_White_One_or_More_ISS])/(Table4[Student_Enrollment_(Oct)]-Table4[Enrollment_Pac._Islan]))) -> 0.05880623346 | DD9: =IF(Table4[Number_White_One_or_More_ISS]="","",(Table4[Number_White_One_or_More_ISS])-(Table4[Number_White_One_or_More_ISS]/Table4[White_ISS_Risk_Rat])) -> -240.075 | DE9: =IF(Table4[Number_IEP_one _or_More_ISS]="","",Table4[Number_IEP_one _or_More_ISS]/Table4[Enrollment_Students_with_IEPs]) -> 0.3333333333 | DF9: =IF(Table4[Students_With_IEP_ODR_Risk_Index]="","",Table4[Students_With_IEP_ODR_Risk_Index]/((SUM(Table4[Number_Afr_Amer_One_or_More_ISS]:Table4[Number_White_One_or_More_ISS])-Table4[Number_IEP_one _or_More_ODR])/(Table4[Student_Enrollment_(Oct)]-Table4[Enrollment_Students_with_IEPs]))) -> 0.01807876478 | DG9: =IF(Table4[Number_IEP_one _or_More_ODR]="","",(Table4[Number_IEP_one _or_More_ODR])-(Table4[Number_IEP_one _or_More_ODR]/Table4[Students_With_IEP_ODR_Risk_Ratio])) -> -271.5675676 | DH9: =IF(Table4[Number_Afr_Amer_One_or_More_OSS]="","",Table4[Number_Afr_Amer_One_or_More_OSS]/Table4[Enrollment_Afr_Amer]) -> 0.8333333333 | DI9: =IF(Table4[Afr_Amer_OSS_Risk_Ind]="","",Table4[Afr_Amer_OSS_Risk_Ind]/((SUM(Table4[Number_Afr_Amer_One_or_More_OSS]:Table4[Number_White_One_or_More_OSS])-Table4[Number_Afr_Amer_One_or_More_OSS])/(Table4[Student_Enrollment_(Oct)]-Table4[Enrollment_Afr_Amer]))) -> 0.01266079206 | DJ9: =IF(Table4[Number_Afr_Amer_One_or_More_OSS]="","",(Table4[Number_Afr_Amer_One_or_More_OSS])-(Table4[Number_Afr_Amer_One_or_More_OSS]/Table4[Afr_Amer_OSS_Risk_Rat])) -> -9748 | DK9: =IF(Table4[Number_Asian_One_or_More_OSS]="","",Table4[Number_Asian_One_or_More_OSS]/Table4[Enrollment_Asian]) -> 0.2 | DL9: =IF(Table4[Asian_OSS_Risk_Ind]="","",Table4[Asian_OSS_Risk_Ind]/((SUM(Table4[Number_Afr_Amer_One_or_More_OSS]:Table4[Number_White_One_or_More_OSS])-Table4[Number_Asian_One_or_More_OSS])/(Table4[Student_Enrollment_(Oct)]-Table4[Enrollment_Asian]))) -> 0.01113063855 | DM9: =IF(Table4[Number_Asian_One_or_More_OSS]="","",(Table4[Number_Asian_One_or_More_OSS])-(Table4[Number_Asian_One_or_More_OSS]/Table4[Asian_OSS_Risk_Rat])) -> -177.6842105 | DN9: =IF(Table4[Number_Hispanic_One_or_More_OSS]="","",Table4[Number_Hispanic_One_or_More_OSS]/Table4[Enrollment_Hispanic]) ->  | DO9: =IF(Table4[Hispanic_OSS_Risk_Ind]="","",Table4[Hispanic_OSS_Risk_Ind]/((SUM(Table4[Number_Afr_Amer_One_or_More_OSS]:Table4[Number_White_One_or_More_OSS])-Table4[Number_Hispanic_One_or_More_OSS])/(Table4[Student_Enrollment_(Oct)]-Table4[Enrollment_Hispanic]))) ->  | DP9: =IF(Table4[Number_Hispanic_One_or_More_OSS]="","",(Table4[Number_Hispanic_One_or_More_OSS])-(Table4[Number_Hispanic_One_or_More_OSS]/Table4[Hispanic_ODR_Risk_Rat])) ->  | DQ9: =IF(Table4[Number_Multi-Rac_One_or_More_OSS]="","",Table4[Number_Multi-Rac_One_or_More_OSS]/Table4[Enrollment_Multi-Rac]) ->  | DR9: =IF(Table4[Multi-Rac_ODR_Risk_Index]="","",Table4[Multi-Rac_ODR_Risk_Index]/((SUM(Table4[Number_Afr_Amer_One_or_More_OSS]:Table4[Number_White_One_or_More_OSS])-Table4[Number_Multi-Rac_One_or_More_OSS])/(Table4[Student_Enrollment_(Oct)]-Table4[Enrollment_Multi-Rac]))) ->  | DS9: =IF(Table4[Number_Multi-Rac_One_or_More_OSS]="","",(Table4[Number_Multi-Rac_One_or_More_OSS])-(Table4[Number_Multi-Rac_One_or_More_OSS]/Table4[Multi-Rac_OSS_Risk_Rat])) ->  | DT9: =IF(Table4[Number_Nat_Amer_One_or_More_OSS]="","",Table4[Number_Nat_Amer_One_or_More_OSS]/Table4[Enrollment_Nat_Amer]) ->  | DU9: =IF(Table4[Nat_Amer_OSS_Risk_Ind]="","",Table4[Nat_Amer_OSS_Risk_Ind]/((SUM(Table4[Number_Afr_Amer_One_or_More_OSS]:Table4[Number_White_One_or_More_OSS])-Table4[Number_Nat_Amer_One_or_More_OSS])/(Table4[Student_Enrollment_(Oct)]-Table4[Enrollment_Nat_Amer]))) ->  | DV9: =IF(Table4[Number_Nat_Amer_One_or_More_OSS]="","",(Table4[Number_Nat_Amer_One_or_More_OSS])-(Table4[Number_Nat_Amer_One_or_More_OSS]/Table4[Nat_Amer_OSS_Risk_Rat])) ->  | DW9: =IF(Table4[Number_Pac_Islan_One_or_More_OSS]="","",Table4[Number_Pac_Islan_One_or_More_OSS]/Table4[Enrollment_Pac._Islan]) ->  | DX9: =IF(Table4[Pac_Islan_OSS_Risk_Ind]="","",Table4[Pac_Islan_OSS_Risk_Ind]/((SUM(Table4[Number_Afr_Amer_One_or_More_OSS]:Table4[Number_White_One_or_More_OSS])-Table4[Number_Pac_Islan_One_or_More_OSS])/(Table4[Student_Enrollment_(Oct)]-Table4[Enrollment_Pac._Islan]))) ->  | DY9: =IF(Table4[Number_Pac_Islan_One_or_More_OSS]="","",(Table4[Number_Pac_Islan_One_or_More_OSS])-(Table4[Number_Pac_Islan_One_or_More_OSS]/Table4[Pac_Islan_OSS_Risk_Rat])) ->  | DZ9: =IF(Table4[Number_White_One_or_More_OSS]="","",Table4[Number_White_One_or_More_OSS]/Table4[Enrollment_White]) -> 1 | EA9: =IF(Table4[White_OSS_Risk_Ind]="","",Table4[White_OSS_Risk_Ind]/((SUM(Table4[Number_Afr_Amer_One_or_More_OSS]:Table4[Number_White_One_or_More_OSS])-Table4[Number_White_One_or_More_OSS])/(Table4[Student_Enrollment_(Oct)]-Table4[Enrollment_White]))) -> 0.05439576595 | EB9: =IF(Table4[Number_White_One_or_More_OSS]="","",(Table4[Number_White_One_or_More_OSS])-(Table4[Number_White_One_or_More_OSS]/Table4[White_OSS_Risk_Rat])) -> -260.7567568 | EC9: =IF(Table4[Number_Students_With_IEP_One_or_More_OSS]="","",Table4[Number_Students_With_IEP_One_or_More_OSS]/Table4[Enrollment_Students_with_IEPs]) -> 0.3333333333 | ED9: =IF(Table4[Students_With_IEP_OSS_Risk_Index]="","",Table4[Students_With_IEP_OSS_Risk_Index]/((SUM(Table4[Number_Afr_Amer_One_or_More_OSS]:Table4[Number_White_One_or_More_OSS])-Table4[Number_Students_With_IEP_One_or_More_OSS])/(Table4[Student_Enrollment_(Oct)]-Table4[Enrollment_Students_with_IEPs]))) -> 0.01807876478 | EE9: =IF(Table4[Number_Students_With_IEP_One_or_More_OSS]="","",Table4[Number_Students_With_IEP_One_or_More_OSS]-(Table4[Number_Students_With_IEP_One_or_More_OSS]/Table4[Students_With_IEP_OSS_Risk_Ratio])) -> -271.5675676
A10: 9999999 | B10: B Middle | C10: 202122 | D10: Tier 1 | E10: Tier 1 | F10: Middle/Jr. High | G10: 700 | H10: 500 | I10: =IF(Table4[Student_Enrollment_(Oct)]="","",Table4[Enrollment_Afr_Amer]/Table4[Student_Enrollment_(Oct)]) -> 0.7142857143 | J10: 50 | K10: =IF(Table4[Student_Enrollment_(Oct)]="","",Table4[Enrollment_Asian]/Table4[Student_Enrollment_(Oct)]) -> 0.07142857143 | L10: 0 | M10: =IF(Table4[Student_Enrollment_(Oct)]="","",Table4[Enrollment_Hispanic]/Table4[Student_Enrollment_(Oct)]) -> 0 | N10: 0 | O10: =IF(Table4[Student_Enrollment_(Oct)]="","",Table4[Enrollment_Multi-Rac]/Table4[Student_Enrollment_(Oct)]) -> 0 | P10: 0 | Q10: =IF(Table4[Student_Enrollment_(Oct)]="","",Table4[Enrollment_Nat_Amer]/Table4[Student_Enrollment_(Oct)]) -> 0 | R10: 0 | S10: =IF(Table4[Student_Enrollment_(Oct)]="","",Table4[Enrollment_Pac._Islan]/Table4[Student_Enrollment_(Oct)]) -> 0 | T10: 150 | U10: =IF(Table4[Student_Enrollment_(Oct)]="","",Table4[Enrollment_White]/Table4[Student_Enrollment_(Oct)]) -> 0.2142857143 | V10: 80 | W10: =IF(Table4[Enrollment_Students_with_IEPs]="","",Table4[Enrollment_Students_with_IEPs]/Table4[Student_Enrollment_(Oct)]) -> 0.1142857143 | X10: 98 | Y10: 400 | Z10: 300 | AA10: 200 | AB10: =IF(Table4[Number_of_Students_with_1_ODR]+Table4[Number_Students_With_0_ODRs]=0,"",Table4[Number_of_Students_with_1_ODR]+Table4[Number_Students_With_0_ODRs]) -> 500 | AC10: 100 | AD10: 100 | AE10: =IF(Table4[Number_of_Students_with_0-1_ODRs]="","",Table4[Number_of_Students_with_0-1_ODRs]/(Table4[Number_of_Students_with_0-1_ODRs]+Table4[Number_of_Students_with_2-5_ODRs]+Table4[Number_of_Students_with_6+_ODRs])) -> 0.7142857143 | AF10: =IF(Table4[Number_of_Students_with_2-5_ODRs]="","",Table4[Number_of_Students_with_2-5_ODRs]/(Table4[Number_of_Students_with_0-1_ODRs]+Table4[Number_of_Students_with_2-5_ODRs]+Table4[Number_of_Students_with_6+_ODRs])) -> 0.1428571429 | AG10: =IF(Table4[Number_of_Students_with_6+_ODRs]="","",Table4[Number_of_Students_with_6+_ODRs]/(Table4[Number_of_Students_with_0-1_ODRs]+Table4[Number_of_Students_with_2-5_ODRs]+Table4[Number_of_Students_with_6+_ODRs])) -> 0.1428571429 | AH10: 450 | AI10: 60 | AJ10: 475 | AK10: 0 | AL10: 0 | AM10: 0 | AN10: 0 | AO10: 0 | AP10: 60 | AQ10: 45 | AR10: =IF(Table4[Number_Afr_Amer_One_or_More_ODR]+Table4[Number_Asian_One_or_More_ODR]+Table4[Number_Hispanic_One_or_More_ODR]+Table4[Number_Multi-Rac_One_or_More_ODR]+Table4[Number_Nat_Amer_One_or_More_ODR]+Table4[Number_Pac_Islan_One_or_More_ODR]+Table4[Number_White_One_or_More_ODR]=0,"",Table4[Number_Afr_Amer_One_or_More_ODR]+Table4[Number_Asian_One_or_More_ODR]+Table4[Number_Hispanic_One_or_More_ODR]+Table4[Number_Multi-Rac_One_or_More_ODR]+Table4[Number_Nat_Amer_One_or_More_ODR]+Table4[Number_Pac_Islan_One_or_More_ODR]+Table4[Number_White_One_or_More_ODR]) -> 535 | AS10: 475 | AT10: 0 | AU10: 0 | AV10: 0 | AW10: 0 | AX10: 0 | AY10: 60 | AZ10: 45 | BA10: =IF(Table4[Number_Afr_Amer_One_or_More_ISS]+Table4[Number_Asian_One_or_More_ISS]+Table4[Number_Hispanic_One_or_More_ISS]+Table4[Number_Multi-Rac_One_or_More_ISS]+Table4[Number_Nat_Amer_One_or_More_ISS]+Table4[Number_Pac_Islan_One_or_More_ISS]+Table4[Number_White_One_or_More_ISS]=0,"",Table4[Number_Afr_Amer_One_or_More_ISS]+Table4[Number_Asian_One_or_More_ISS]+Table4[Number_Hispanic_One_or_More_ISS]+Table4[Number_Multi-Rac_One_or_More_ISS]+Table4[Number_Nat_Amer_One_or_More_ISS]+Table4[Number_Pac_Islan_One_or_More_ISS]+Table4[Number_White_One_or_More_ISS]) -> 535 | BB10: 475 | BC10: 0 | BD10: 0 | BE10: 0 | BF10: 0 | BG10: 0 | BH10: 60 | BI10: 45 | BJ10: =IF(Table4[Number_Afr_Amer_One_or_More_OSS]+Table4[Number_Asian_One_or_More_OSS]+Table4[Number_Hispanic_One_or_More_OSS]+Table4[Number_Multi-Rac_One_or_More_OSS]+Table4[Number_Nat_Amer_One_or_More_OSS]+Table4[Number_Pac_Islan_One_or_More_OSS]+Table4[Number_White_One_or_More_OSS]=0,"",Table4[Number_Afr_Amer_One_or_More_OSS]+Table4[Number_Asian_One_or_More_OSS]+Table4[Number_Hispanic_One_or_More_OSS]+Table4[Number_Multi-Rac_One_or_More_OSS]+Table4[Number_Nat_Amer_One_or_More_OSS]+Table4[Number_Pac_Islan_One_or_More_OSS]+Table4[Number_White_One_or_More_OSS]) -> 535 | BL10: =IF(Table4[Number_Afr_Amer_One_or_More_ODR]="","",Table4[Number_Afr_Amer_One_or_More_ODR]/Table4[Enrollment_Afr_Amer]) -> 0.95 | BM10: =IF(Table4[Afr_Amer_ODR_Risk_Ind]="","",Table4[Afr_Amer_ODR_Risk_Ind]/((SUM(Table4[Number_Afr_Amer_One_or_More_ODR]:Table4[Number_White_One_or_More_ODR])-Table4[Number_Afr_Amer_One_or_More_ODR])/(Table4[Student_Enrollment_(Oct)]-Table4[Enrollment_Afr_Amer]))) -> 0.06460387623 | BN10: =IF(Table4[Number_Afr_Amer_One_or_More_ODR]="","",(Table4[Number_Afr_Amer_One_or_More_ODR])-(Table4[Number_Afr_Amer_One_or_More_ODR]/Table4[Afr_Amer_ODR_Risk_Rat])) -> -6877.5 | BO10: =IF(Table4[Number_Asian_One_or_More_ODR]="","",Table4[Number_Asian_One_or_More_ODR]/Table4[Enrollment_Asian]) -> 0 | BP10: =IF(Table4[Asian_ODR_Risk_Ind]="","",Table4[Asian_ODR_Risk_Ind]/((SUM(Table4[Number_Afr_Amer_One_or_More_ODR]:Table4[Number_White_One_or_More_ODR])-Table4[Number_Asian_One_or_More_ODR])/(Table4[Student_Enrollment_(Oct)]-Table4[Enrollment_Asian]))) -> 0 | BQ10: =IF(Table4[Number_Asian_One_or_More_ODR]="","",(Table4[Number_Asian_One_or_More_ODR])-(Table4[Number_Asian_One_or_More_ODR]/Table4[Asian_ODR_Risk_Rat])) ->  | BR10: =IF(Table4[Number_Hispanic_One_or_More_ODR]="","",Table4[Number_Hispanic_One_or_More_ODR]/Table4[Enrollment_Hispanic]) ->  | BS10: =IF(Table4[Hispanic_ODR_Risk_Ind]="","",Table4[Hispanic_ODR_Risk_Ind]/((SUM(Table4[Number_Afr_Amer_One_or_More_ODR]:Table4[Number_White_One_or_More_ODR])-Table4[Number_Hispanic_One_or_More_ODR])/(Table4[Student_Enrollment_(Oct)]-Table4[Enrollment_Hispanic]))) ->  | BT10: =IF(Table4[Number_Hispanic_One_or_More_ODR]="","",(Table4[Number_Hispanic_One_or_More_ODR])-(Table4[Number_Hispanic_One_or_More_ODR]/Table4[Hispanic_ODR_Risk_Rat])) ->  | BU10: =IF(Table4[Number_Multi-Rac_One_or_More_ODR]="","",Table4[Number_Multi-Rac_One_or_More_ODR]/Table4[Enrollment_Multi-Rac]) ->  | BV10: =IF(Table4[Multi-Rac_ODR_Risk_Index]="","",Table4[Multi-Rac_ODR_Risk_Index]/((SUM(Table4[Number_Afr_Amer_One_or_More_ODR]:Table4[Number_White_One_or_More_ODR])-Table4[Number_Multi-Rac_One_or_More_ODR])/(Table4[Student_Enrollment_(Oct)]-Table4[Enrollment_Multi-Rac]))) ->  | BW10: =IF(Table4[Number_Multi-Rac_One_or_More_ODR]="","",(Table4[Number_Multi-Rac_One_or_More_ODR])-(Table4[Number_Multi-Rac_One_or_More_ODR]/Table4[Multi-Rac_ODR_Risk_Rat])) ->  | BX10: =IF(Table4[Number_Nat_Amer_One_or_More_ODR]="","",Table4[Number_Nat_Amer_One_or_More_ODR]/Table4[Enrollment_Nat_Amer]) ->  | BY10: =IF(Table4[Nat_Amer_ODR_Risk_Ind]="","",Table4[Nat_Amer_ODR_Risk_Ind]/((SUM(Table4[Number_Afr_Amer_One_or_More_ODR]:Table4[Number_White_One_or_More_ODR])-Table4[Number_Nat_Amer_One_or_More_ODR])/(Table4[Student_Enrollment_(Oct)]-Table4[Enrollment_Nat_Amer]))) ->  | BZ10: =IF(Table4[Number_Nat_Amer_One_or_More_ODR]="","",(Table4[Number_Nat_Amer_One_or_More_ODR])-(Table4[Number_Nat_Amer_One_or_More_ODR]/Table4[Nat_Amer_ODR_Risk_Rat])) ->  | CA10: =IF(Table4[Number_Pac_Islan_One_or_More_ODR]="","",Table4[Number_Pac_Islan_One_or_More_ODR]/Table4[Enrollment_Pac._Islan]) ->  | CB10: =IF(Table4[Pac_Islan_ODR_Risk_Ind]="","",Table4[Pac_Islan_ODR_Risk_Ind]/((SUM(Table4[Number_Afr_Amer_One_or_More_ODR]:Table4[Number_White_One_or_More_ODR])-Table4[Number_Pac_Islan_One_or_More_ODR])/(Table4[Student_Enrollment_(Oct)]-Table4[Enrollment_Pac._Islan]))) ->  | CC10: =IF(Table4[Number_Pac_Islan_One_or_More_ODR]="","",(Table4[Number_Pac_Islan_One_or_More_ODR])-(Table4[Number_Pac_Islan_One_or_More_ODR]/Table4[Pac_Islan_ODR_Risk_Rat])) ->  | CD10: =IF(Table4[Number_White_One_or_More_ODR]="","",Table4[Number_White_One_or_More_ODR]/Table4[Enrollment_White]) -> 0.4 | CE10: =IF(Table4[White_ODR_Risk_Ind]="","",Table4[White_ODR_Risk_Ind]/((SUM(Table4[Number_Afr_Amer_One_or_More_ODR]:Table4[Number_White_One_or_More_ODR])-Table4[Number_White_One_or_More_ODR])/(Table4[Student_Enrollment_(Oct)]-Table4[Enrollment_White]))) -> 0.06555423123 | CF10: =IF(Table4[Number_White_One_or_More_ODR]="","",(Table4[Number_White_One_or_More_ODR])-(Table4[Number_White_One_or_More_ODR]/Table4[White_ODR_Risk_Rat])) -> -855.2727273 | CG10: =IF(Table4[Number_IEP_one _or_More_ODR]="","",Table4[Number_IEP_one _or_More_ODR]/Table4[Enrollment_Students_with_IEPs]) -> 0.5625 | CH10: =IF(Table4[Students_With_IEP_ODR_Risk_Index]="","",Table4[Students_With_IEP_ODR_Risk_Index]/((SUM(Table4[Number_Afr_Amer_One_or_More_ODR]:Table4[Number_White_One_or_More_ODR])-Table4[Number_IEP_one _or_More_ODR])/(Table4[Student_Enrollment_(Oct)]-Table4[Enrollment_Students_with_IEPs]))) -> 0.1034559478 | CI10: =IF(Table4[Number_IEP_one _or_More_ODR]="","",(Table4[Number_IEP_one _or_More_ODR])-(Table4[Number_IEP_one _or_More_ODR]/Table4[Students_With_IEP_ODR_Risk_Ratio])) -> -389.9677419 | CJ10: =IF(Table4[Number_Afr_Amer_One_or_More_ISS]="","",Table4[Number_Afr_Amer_One_or_More_ISS]/Table4[Enrollment_Afr_Amer]) -> 0.95 | CK10: =IF(Table4[Afr_Amer_ISS_Risk_Ind]="","",Table4[Afr_Amer_ODR_Risk_Ind]/((SUM(Table4[Number_Afr_Amer_One_or_More_ISS]:Table4[Number_White_One_or_More_ISS])-Table4[Number_Afr_Amer_One_or_More_ISS])/(Table4[Student_Enrollment_(Oct)]-Table4[Enrollment_Afr_Amer]))) -> 0.06460387623 | CL10: =IF(Table4[Number_Afr_Amer_One_or_More_ISS]="","",(Table4[Number_Afr_Amer_One_or_More_ISS])-(Table4[Number_Afr_Amer_One_or_More_ISS]/Table4[Afr_Amer_ISS_Risk_Rat])) -> -6877.5 | CM10: =IF(Table4[Number_Asian_One_or_More_ISS]="","",Table4[Number_Asian_One_or_More_ISS]/Table4[Enrollment_Asian]) -> 0 | CN10: =IF(Table4[Asian_ISS_Risk_Ind]="","",Table4[Asian_ISS_Risk_Ind]/((SUM(Table4[Number_Afr_Amer_One_or_More_ISS]:Table4[Number_White_One_or_More_ISS])-Table4[Number_Asian_One_or_More_ISS])/(Table4[Student_Enrollment_(Oct)]-Table4[Enrollment_Asian]))) -> 0 | CO10: =IF(Table4[Number_Asian_One_or_More_ISS]="","",(Table4[Number_Asian_One_or_More_ISS])-(Table4[Number_Asian_One_or_More_ISS]/Table4[Asian_ISS_Risk_Rat])) ->  | CP10: =IF(Table4[Number_Hispanic_One_or_More_ISS]="","",Table4[Number_Hispanic_One_or_More_ISS]/Table4[Enrollment_Hispanic]) ->  | CQ10: =IF(Table4[Hispanic_ISS_Risk_Ind]="","",Table4[Hispanic_ISS_Risk_Ind]/((SUM(Table4[Number_Afr_Amer_One_or_More_ISS]:Table4[Number_White_One_or_More_ISS])-Table4[Number_Hispanic_One_or_More_ISS])/(Table4[Student_Enrollment_(Oct)]-Table4[Enrollment_Hispanic]))) ->  | CR10: =IF(Table4[Number_Hispanic_One_or_More_ISS]="","",(Table4[Number_Hispanic_One_or_More_ISS])-(Table4[Number_Hispanic_One_or_More_ISS]/Table4[Hispanic_ISS_Risk_Rat])) ->  | CS10: =IF(Table4[Number_Multi-Rac_One_or_More_ISS]="","",Table4[Number_Multi-Rac_One_or_More_ISS]/Table4[Enrollment_Multi-Rac]) ->  | CT10: =IF(Table4[Multi-Rac_ISS_Risk_Index]="","",Table4[Multi-Rac_ISS_Risk_Index]/((SUM(Table4[Number_Afr_Amer_One_or_More_ISS]:Table4[Number_White_One_or_More_ISS])-Table4[Number_Multi-Rac_One_or_More_ISS])/(Table4[Student_Enrollment_(Oct)]-Table4[Enrollment_Multi-Rac]))) ->  | CU10: =IF(Table4[Number_Multi-Rac_One_or_More_ISS]="","",(Table4[Number_Multi-Rac_One_or_More_ISS])-(Table4[Number_Multi-Rac_One_or_More_ISS]/Table4[Multi-Rac_ISS_Risk_Rat])) ->  | CV10: =IF(Table4[Number_Nat_Amer_One_or_More_ISS]="","",Table4[Number_Nat_Amer_One_or_More_ISS]/Table4[Enrollment_Nat_Amer]) ->  | CW10: =IF(Table4[Nat_Amer_ISS_Risk_Ind]="","",Table4[Nat_Amer_ISS_Risk_Ind]/((SUM(Table4[Number_Afr_Amer_One_or_More_ISS]:Table4[Number_White_One_or_More_ISS])-Table4[Number_Nat_Amer_One_or_More_ISS])/(Table4[Student_Enrollment_(Oct)]-Table4[Enrollment_Nat_Amer]))) ->  | CX10: =IF(Table4[Number_Nat_Amer_One_or_More_ISS]="","",(Table4[Number_Nat_Amer_One_or_More_ISS])-(Table4[Number_Nat_Amer_One_or_More_ISS]/Table4[Nat_Amer_ISS_Risk_Rat])) ->  | CY10: =IF(Table4[Number_Pac_Islan_One_or_More_ISS]="","",Table4[Number_Pac_Islan_One_or_More_ISS]/Table4[Enrollment_Pac._Islan]) ->  | CZ10: =IF(Table4[Pac_Islan_ISS_Risk_Ind]="","",Table4[Pac_Islan_ISS_Risk_Ind]/((SUM(Table4[Number_Afr_Amer_One_or_More_ISS]:Table4[Number_White_One_or_More_ISS])-Table4[Number_Pac_Islan_One_or_More_ISS])/(Table4[Student_Enrollment_(Oct)]-Table4[Enrollment_Pac._Islan]))) ->  | DA10: =IF(Table4[Number_Pac_Islan_One_or_More_ISS]="","",(Table4[Number_Pac_Islan_One_or_More_ISS])-(Table4[Number_Pac_Islan_One_or_More_ISS]/Table4[Pac_Islan_ISS_Risk_Rat])) ->  | DB10: =IF(Table4[Number_White_One_or_More_ISS]="","",Table4[Number_White_One_or_More_ISS]/Table4[Enrollment_White]) -> 0.4 | DC10: =IF(Table4[White_ISS_Risk_Ind]="","",Table4[White_ISS_Risk_Ind]/((SUM(Table4[Number_Afr_Amer_One_or_More_ISS]:Table4[Number_White_One_or_More_ISS])-Table4[Number_White_One_or_More_ISS])/(Table4[Student_Enrollment_(Oct)]-Table4[Enrollment_Pac._Islan]))) -> 0.08343265793 | DD10: =IF(Table4[Number_White_One_or_More_ISS]="","",(Table4[Number_White_One_or_More_ISS])-(Table4[Number_White_One_or_More_ISS]/Table4[White_ISS_Risk_Rat])) -> -659.1428571 | DE10: =IF(Table4[Number_IEP_one _or_More_ISS]="","",Table4[Number_IEP_one _or_More_ISS]/Table4[Enrollment_Students_with_IEPs]) -> 0.5625 | DF10: =IF(Table4[Students_With_IEP_ODR_Risk_Index]="","",Table4[Students_With_IEP_ODR_Risk_Index]/((SUM(Table4[Number_Afr_Amer_One_or_More_ISS]:Table4[Number_White_One_or_More_ISS])-Table4[Number_IEP_one _or_More_ODR])/(Table4[Student_Enrollment_(Oct)]-Table4[Enrollment_Students_with_IEPs]))) -> 0.1034559478 | DG10: =IF(Table4[Number_IEP_one _or_More_ODR]="","",(Table4[Number_IEP_one _or_More_ODR])-(Table4[Number_IEP_one _or_More_ODR]/Table4[Students_With_IEP_ODR_Risk_Ratio])) -> -389.9677419 | DH10: =IF(Table4[Number_Afr_Amer_One_or_More_OSS]="","",Table4[Number_Afr_Amer_One_or_More_OSS]/Table4[Enrollment_Afr_Amer]) -> 0.95 | DI10: =IF(Table4[Afr_Amer_OSS_Risk_Ind]="","",Table4[Afr_Amer_OSS_Risk_Ind]/((SUM(Table4[Number_Afr_Amer_One_or_More_OSS]:Table4[Number_White_One_or_More_OSS])-Table4[Number_Afr_Amer_One_or_More_OSS])/(Table4[Student_Enrollment_(Oct)]-Table4[Enrollment_Afr_Amer]))) -> 0.06460387623 | DJ10: =IF(Table4[Number_Afr_Amer_One_or_More_OSS]="","",(Table4[Number_Afr_Amer_One_or_More_OSS])-(Table4[Number_Afr_Amer_One_or_More_OSS]/Table4[Afr_Amer_OSS_Risk_Rat])) -> -6877.5 | DK10: =IF(Table4[Number_Asian_One_or_More_OSS]="","",Table4[Number_Asian_One_or_More_OSS]/Table4[Enrollment_Asian]) -> 0 | DL10: =IF(Table4[Asian_OSS_Risk_Ind]="","",Table4[Asian_OSS_Risk_Ind]/((SUM(Table4[Number_Afr_Amer_One_or_More_OSS]:Table4[Number_White_One_or_More_OSS])-Table4[Number_Asian_One_or_More_OSS])/(Table4[Student_Enrollment_(Oct)]-Table4[Enrollment_Asian]))) -> 0 | DM10: =IF(Table4[Number_Asian_One_or_More_OSS]="","",(Table4[Number_Asian_One_or_More_OSS])-(Table4[Number_Asian_One_or_More_OSS]/Table4[Asian_OSS_Risk_Rat])) ->  | DN10: =IF(Table4[Number_Hispanic_One_or_More_OSS]="","",Table4[Number_Hispanic_One_or_More_OSS]/Table4[Enrollment_Hispanic]) ->  | DO10: =IF(Table4[Hispanic_OSS_Risk_Ind]="","",Table4[Hispanic_OSS_Risk_Ind]/((SUM(Table4[Number_Afr_Amer_One_or_More_OSS]:Table4[Number_White_One_or_More_OSS])-Table4[Number_Hispanic_One_or_More_OSS])/(Table4[Student_Enrollment_(Oct)]-Table4[Enrollment_Hispanic]))) ->  | DP10: =IF(Table4[Number_Hispanic_One_or_More_OSS]="","",(Table4[Number_Hispanic_One_or_More_OSS])-(Table4[Number_Hispanic_One_or_More_OSS]/Table4[Hispanic_ODR_Risk_Rat])) ->  | DQ10: =IF(Table4[Number_Multi-Rac_One_or_More_OSS]="","",Table4[Number_Multi-Rac_One_or_More_OSS]/Table4[Enrollment_Multi-Rac]) ->  | DR10: =IF(Table4[Multi-Rac_ODR_Risk_Index]="","",Table4[Multi-Rac_ODR_Risk_Index]/((SUM(Table4[Number_Afr_Amer_One_or_More_OSS]:Table4[Number_White_One_or_More_OSS])-Table4[Number_Multi-Rac_One_or_More_OSS])/(Table4[Student_Enrollment_(Oct)]-Table4[Enrollment_Multi-Rac]))) ->  | DS10: =IF(Table4[Number_Multi-Rac_One_or_More_OSS]="","",(Table4[Number_Multi-Rac_One_or_More_OSS])-(Table4[Number_Multi-Rac_One_or_More_OSS]/Table4[Multi-Rac_OSS_Risk_Rat])) ->  | DT10: =IF(Table4[Number_Nat_Amer_One_or_More_OSS]="","",Table4[Number_Nat_Amer_One_or_More_OSS]/Table4[Enrollment_Nat_Amer]) ->  | DU10: =IF(Table4[Nat_Amer_OSS_Risk_Ind]="","",Table4[Nat_Amer_OSS_Risk_Ind]/((SUM(Table4[Number_Afr_Amer_One_or_More_OSS]:Table4[Number_White_One_or_More_OSS])-Table4[Number_Nat_Amer_One_or_More_OSS])/(Table4[Student_Enrollment_(Oct)]-Table4[Enrollment_Nat_Amer]))) ->  | DV10: =IF(Table4[Number_Nat_Amer_One_or_More_OSS]="","",(Table4[Number_Nat_Amer_One_or_More_OSS])-(Table4[Number_Nat_Amer_One_or_More_OSS]/Table4[Nat_Amer_OSS_Risk_Rat])) ->  | DW10: =IF(Table4[Number_Pac_Islan_One_or_More_OSS]="","",Table4[Number_Pac_Islan_One_or_More_OSS]/Table4[Enrollment_Pac._Islan]) ->  | DX10: =IF(Table4[Pac_Islan_OSS_Risk_Ind]="","",Table4[Pac_Islan_OSS_Risk_Ind]/((SUM(Table4[Number_Afr_Amer_One_or_More_OSS]:Table4[Number_White_One_or_More_OSS])-Table4[Number_Pac_Islan_One_or_More_OSS])/(Table4[Student_Enrollment_(Oct)]-Table4[Enrollment_Pac._Islan]))) ->  | DY10: =IF(Table4[Number_Pac_Islan_One_or_More_OSS]="","",(Table4[Number_Pac_Islan_One_or_More_OSS])-(Table4[Number_Pac_Islan_One_or_More_OSS]/Table4[Pac_Islan_OSS_Risk_Rat])) ->  | DZ10: =IF(Table4[Number_White_One_or_More_OSS]="","",Table4[Number_White_One_or_More_OSS]/Table4[Enrollment_White]) -> 0.4 | EA10: =IF(Table4[White_OSS_Risk_Ind]="","",Table4[White_OSS_Risk_Ind]/((SUM(Table4[Number_Afr_Amer_One_or_More_OSS]:Table4[Number_White_One_or_More_OSS])-Table4[Number_White_One_or_More_OSS])/(Table4[Student_Enrollment_(Oct)]-Table4[Enrollment_White]))) -> 0.06555423123 | EB10: =IF(Table4[Number_White_One_or_More_OSS]="","",(Table4[Number_White_One_or_More_OSS])-(Table4[Number_White_One_or_More_OSS]/Table4[White_OSS_Risk_Rat])) -> -855.2727273 | EC10: =IF(Table4[Number_Students_With_IEP_One_or_More_OSS]="","",Table4[Number_Students_With_IEP_One_or_More_OSS]/Table4[Enrollment_Students_with_IEPs]) -> 0.5625 | ED10: =IF(Table4[Students_With_IEP_OSS_Risk_Index]="","",Table4[Students_With_IEP_OSS_Risk_Index]/((SUM(Table4[Number_Afr_Amer_One_or_More_OSS]:Table4[Number_White_One_or_More_OSS])-Table4[Number_Students_With_IEP_One_or_More_OSS])/(Table4[Student_Enrollment_(Oct)]-Table4[Enrollment_Students_with_IEPs]))) -> 0.1034559478 | EE10: =IF(Table4[Number_Students_With_IEP_One_or_More_OSS]="","",Table4[Number_Students_With_IEP_One_or_More_OSS]-(Table4[Number_Students_With_IEP_One_or_More_OSS]/Table4[Students_With_IEP_OSS_Risk_Ratio])) -> -389.9677419
A11: 9999999 | B11: E Elementary | C11: 202122 | D11: Tier 1 | F11: Elementary | G11: 300 | H11: 150 | I11: =IF(Table4[Student_Enrollment_(Oct)]="","",Table4[Enrollment_Afr_Amer]/Table4[Student_Enrollment_(Oct)]) -> 0.5 | J11: 0 | K11: =IF(Table4[Student_Enrollment_(Oct)]="","",Table4[Enrollment_Asian]/Table4[Student_Enrollment_(Oct)]) -> 0 | L11: 0 | M11: =IF(Table4[Student_Enrollment_(Oct)]="","",Table4[Enrollment_Hispanic]/Table4[Student_Enrollment_(Oct)]) -> 0 | N11: 0 | O11: =IF(Table4[Student_Enrollment_(Oct)]="","",Table4[Enrollment_Multi-Rac]/Table4[Student_Enrollment_(Oct)]) -> 0 | P11: 0 | Q11: =IF(Table4[Student_Enrollment_(Oct)]="","",Table4[Enrollment_Nat_Amer]/Table4[Student_Enrollment_(Oct)]) -> 0 | R11: 0 | S11: =IF(Table4[Student_Enrollment_(Oct)]="","",Table4[Enrollment_Pac._Islan]/Table4[Student_Enrollment_(Oct)]) -> 0 | T11: 150 | U11: =IF(Table4[Student_Enrollment_(Oct)]="","",Table4[Enrollment_White]/Table4[Student_Enrollment_(Oct)]) -> 0.5 | V11: 30 | W11: =IF(Table4[Enrollment_Students_with_IEPs]="","",Table4[Enrollment_Students_with_IEPs]/Table4[Student_Enrollment_(Oct)]) -> 0.1 | X11: 98 | Y11: 500 | Z11: 100 | AA11: 50 | AB11: =IF(Table4[Number_of_Students_with_1_ODR]+Table4[Number_Students_With_0_ODRs]=0,"",Table4[Number_of_Students_with_1_ODR]+Table4[Number_Students_With_0_ODRs]) -> 150 | AC11: 175 | AD11: 25 | AE11: =IF(Table4[Number_of_Students_with_0-1_ODRs]="","",Table4[Number_of_Students_with_0-1_ODRs]/(Table4[Number_of_Students_with_0-1_ODRs]+Table4[Number_of_Students_with_2-5_ODRs]+Table4[Number_of_Students_with_6+_ODRs])) -> 0.4285714286 | AF11: =IF(Table4[Number_of_Students_with_2-5_ODRs]="","",Table4[Number_of_Students_with_2-5_ODRs]/(Table4[Number_of_Students_with_0-1_ODRs]+Table4[Number_of_Students_with_2-5_ODRs]+Table4[Number_of_Students_with_6+_ODRs])) -> 0.5 | AG11: =IF(Table4[Number_of_Students_with_6+_ODRs]="","",Table4[Number_of_Students_with_6+_ODRs]/(Table4[Number_of_Students_with_0-1_ODRs]+Table4[Number_of_Students_with_2-5_ODRs]+Table4[Number_of_Students_with_6+_ODRs])) -> 0.07142857143 | AH11: 250 | AI11: 350 | AJ11: 125 | AK11: 0 | AL11: 0 | AM11: 0 | AN11: 0 | AO11: 0 | AP11: 25 | AQ11: 3 | AR11: =IF(Table4[Number_Afr_Amer_One_or_More_ODR]+Table4[Number_Asian_One_or_More_ODR]+Table4[Number_Hispanic_One_or_More_ODR]+Table4[Number_Multi-Rac_One_or_More_ODR]+Table4[Number_Nat_Amer_One_or_More_ODR]+Table4[Number_Pac_Islan_One_or_More_ODR]+Table4[Number_White_One_or_More_ODR]=0,"",Table4[Number_Afr_Amer_One_or_More_ODR]+Table4[Number_Asian_One_or_More_ODR]+Table4[Number_Hispanic_One_or_More_ODR]+Table4[Number_Multi-Rac_One_or_More_ODR]+Table4[Number_Nat_Amer_One_or_More_ODR]+Table4[Number_Pac_Islan_One_or_More_ODR]+Table4[Number_White_One_or_More_ODR]) -> 150 | AS11: 125 | AT11: 0 | AU11: 0 | AV11: 0 | AW11: 0 | AX11: 0 | AY11: 25 | AZ11: 3 | BA11: =IF(Table4[Number_Afr_Amer_One_or_More_ISS]+Table4[Number_Asian_One_or_More_ISS]+Table4[Number_Hispanic_One_or_More_ISS]+Table4[Number_Multi-Rac_One_or_More_ISS]+Table4[Number_Nat_Amer_One_or_More_ISS]+Table4[Number_Pac_Islan_One_or_More_ISS]+Table4[Number_White_One_or_More_ISS]=0,"",Table4[Number_Afr_Amer_One_or_More_ISS]+Table4[Number_Asian_One_or_More_ISS]+Table4[Number_Hispanic_One_or_More_ISS]+Table4[Number_Multi-Rac_One_or_More_ISS]+Table4[Number_Nat_Amer_One_or_More_ISS]+Table4[Number_Pac_Islan_One_or_More_ISS]+Table4[Number_White_One_or_More_ISS]) -> 150 | BB11: 125 | BC11: 0 | BD11: 0 | BE11: 0 | BF11: 0 | BG11: 0 | BH11: 25 | BI11: 3 | BJ11: =IF(Table4[Number_Afr_Amer_One_or_More_OSS]+Table4[Number_Asian_One_or_More_OSS]+Table4[Number_Hispanic_One_or_More_OSS]+Table4[Number_Multi-Rac_One_or_More_OSS]+Table4[Number_Nat_Amer_One_or_More_OSS]+Table4[Number_Pac_Islan_One_or_More_OSS]+Table4[Number_White_One_or_More_OSS]=0,"",Table4[Number_Afr_Amer_One_or_More_OSS]+Table4[Number_Asian_One_or_More_OSS]+Table4[Number_Hispanic_One_or_More_OSS]+Table4[Number_Multi-Rac_One_or_More_OSS]+Table4[Number_Nat_Amer_One_or_More_OSS]+Table4[Number_Pac_Islan_One_or_More_OSS]+Table4[Number_White_One_or_More_OSS]) -> 150 | BL11: =IF(Table4[Number_Afr_Amer_One_or_More_ODR]="","",Table4[Number_Afr_Amer_One_or_More_ODR]/Table4[Enrollment_Afr_Amer]) -> 0.8333333333 | BM11: =IF(Table4[Afr_Amer_ODR_Risk_Ind]="","",Table4[Afr_Amer_ODR_Risk_Ind]/((SUM(Table4[Number_Afr_Amer_One_or_More_ODR]:Table4[Number_White_One_or_More_ODR])-Table4[Number_Afr_Amer_One_or_More_ODR])/(Table4[Student_Enrollment_(Oct)]-Table4[Enrollment_Afr_Amer]))) -> 0.03798237618 | BN11: =IF(Table4[Number_Afr_Amer_One_or_More_ODR]="","",(Table4[Number_Afr_Amer_One_or_More_ODR])-(Table4[Number_Afr_Amer_One_or_More_ODR]/Table4[Afr_Amer_ODR_Risk_Rat])) -> -3166 | BO11: =IF(Table4[Number_Asian_One_or_More_ODR]="","",Table4[Number_Asian_One_or_More_ODR]/Table4[Enrollment_Asian]) ->  | BP11: =IF(Table4[Asian_ODR_Risk_Ind]="","",Table4[Asian_ODR_Risk_Ind]/((SUM(Table4[Number_Afr_Amer_One_or_More_ODR]:Table4[Number_White_One_or_More_ODR])-Table4[Number_Asian_One_or_More_ODR])/(Table4[Student_Enrollment_(Oct)]-Table4[Enrollment_Asian]))) ->  | BQ11: =IF(Table4[Number_Asian_One_or_More_ODR]="","",(Table4[Number_Asian_One_or_More_ODR])-(Table4[Number_Asian_One_or_More_ODR]/Table4[Asian_ODR_Risk_Rat])) ->  | BR11: =IF(Table4[Number_Hispanic_One_or_More_ODR]="","",Table4[Number_Hispanic_One_or_More_ODR]/Table4[Enrollment_Hispanic]) ->  | BS11: =IF(Table4[Hispanic_ODR_Risk_Ind]="","",Table4[Hispanic_ODR_Risk_Ind]/((SUM(Table4[Number_Afr_Amer_One_or_More_ODR]:Table4[Number_White_One_or_More_ODR])-Table4[Number_Hispanic_One_or_More_ODR])/(Table4[Student_Enrollment_(Oct)]-Table4[Enrollment_Hispanic]))) ->  | BT11: =IF(Table4[Number_Hispanic_One_or_More_ODR]="","",(Table4[Number_Hispanic_One_or_More_ODR])-(Table4[Number_Hispanic_One_or_More_ODR]/Table4[Hispanic_ODR_Risk_Rat])) ->  | BU11: =IF(Table4[Number_Multi-Rac_One_or_More_ODR]="","",Table4[Number_Multi-Rac_One_or_More_ODR]/Table4[Enrollment_Multi-Rac]) ->  | BV11: =IF(Table4[Multi-Rac_ODR_Risk_Index]="","",Table4[Multi-Rac_ODR_Risk_Index]/((SUM(Table4[Number_Afr_Amer_One_or_More_ODR]:Table4[Number_White_One_or_More_ODR])-Table4[Number_Multi-Rac_One_or_More_ODR])/(Table4[Student_Enrollment_(Oct)]-Table4[Enrollment_Multi-Rac]))) ->  | BW11: =IF(Table4[Number_Multi-Rac_One_or_More_ODR]="","",(Table4[Number_Multi-Rac_One_or_More_ODR])-(Table4[Number_Multi-Rac_One_or_More_ODR]/Table4[Multi-Rac_ODR_Risk_Rat])) ->  | BX11: =IF(Table4[Number_Nat_Amer_One_or_More_ODR]="","",Table4[Number_Nat_Amer_One_or_More_ODR]/Table4[Enrollment_Nat_Amer]) ->  | BY11: =IF(Table4[Nat_Amer_ODR_Risk_Ind]="","",Table4[Nat_Amer_ODR_Risk_Ind]/((SUM(Table4[Number_Afr_Amer_One_or_More_ODR]:Table4[Number_White_One_or_More_ODR])-Table4[Number_Nat_Amer_One_or_More_ODR])/(Table4[Student_Enrollment_(Oct)]-Table4[Enrollment_Nat_Amer]))) ->  | BZ11: =IF(Table4[Number_Nat_Amer_One_or_More_ODR]="","",(Table4[Number_Nat_Amer_One_or_More_ODR])-(Table4[Number_Nat_Amer_One_or_More_ODR]/Table4[Nat_Amer_ODR_Risk_Rat])) ->  | CA11: =IF(Table4[Number_Pac_Islan_One_or_More_ODR]="","",Table4[Number_Pac_Islan_One_or_More_ODR]/Table4[Enrollment_Pac._Islan]) ->  | CB11: =IF(Table4[Pac_Islan_ODR_Risk_Ind]="","",Table4[Pac_Islan_ODR_Risk_Ind]/((SUM(Table4[Number_Afr_Amer_One_or_More_ODR]:Table4[Number_White_One_or_More_ODR])-Table4[Number_Pac_Islan_One_or_More_ODR])/(Table4[Student_Enrollment_(Oct)]-Table4[Enrollment_Pac._Islan]))) ->  | CC11: =IF(Table4[Number_Pac_Islan_One_or_More_ODR]="","",(Table4[Number_Pac_Islan_One_or_More_ODR])-(Table4[Number_Pac_Islan_One_or_More_ODR]/Table4[Pac_Islan_ODR_Risk_Rat])) ->  | CD11: =IF(Table4[Number_White_One_or_More_ODR]="","",Table4[Number_White_One_or_More_ODR]/Table4[Enrollment_White]) -> 0.1666666667 | CE11: =IF(Table4[White_ODR_Risk_Ind]="","",Table4[White_ODR_Risk_Ind]/((SUM(Table4[Number_Afr_Amer_One_or_More_ODR]:Table4[Number_White_One_or_More_ODR])-Table4[Number_White_One_or_More_ODR])/(Table4[Student_Enrollment_(Oct)]-Table4[Enrollment_White]))) -> 0.007372456503 | CF11: =IF(Table4[Number_White_One_or_More_ODR]="","",(Table4[Number_White_One_or_More_ODR])-(Table4[Number_White_One_or_More_ODR]/Table4[White_ODR_Risk_Rat])) -> -3366 | CG11: =IF(Table4[Number_IEP_one _or_More_ODR]="","",Table4[Number_IEP_one _or_More_ODR]/Table4[Enrollment_Students_with_IEPs]) -> 0.1 | CH11: =IF(Table4[Students_With_IEP_ODR_Risk_Index]="","",Table4[Students_With_IEP_ODR_Risk_Index]/((SUM(Table4[Number_Afr_Amer_One_or_More_ODR]:Table4[Number_White_One_or_More_ODR])-Table4[Number_IEP_one _or_More_ODR])/(Table4[Student_Enrollment_(Oct)]-Table4[Enrollment_Students_with_IEPs]))) -> 0.007910928802 | CI11: =IF(Table4[Number_IEP_one _or_More_ODR]="","",(Table4[Number_IEP_one _or_More_ODR])-(Table4[Number_IEP_one _or_More_ODR]/Table4[Students_With_IEP_ODR_Risk_Ratio])) -> -376.2222222 | CJ11: =IF(Table4[Number_Afr_Amer_One_or_More_ISS]="","",Table4[Number_Afr_Amer_One_or_More_ISS]/Table4[Enrollment_Afr_Amer]) -> 0.8333333333 | CK11: =IF(Table4[Afr_Amer_ISS_Risk_Ind]="","",Table4[Afr_Amer_ODR_Risk_Ind]/((SUM(Table4[Number_Afr_Amer_One_or_More_ISS]:Table4[Number_White_One_or_More_ISS])-Table4[Number_Afr_Amer_One_or_More_ISS])/(Table4[Student_Enrollment_(Oct)]-Table4[Enrollment_Afr_Amer]))) -> 0.03798237618 | CL11: =IF(Table4[Number_Afr_Amer_One_or_More_ISS]="","",(Table4[Number_Afr_Amer_One_or_More_ISS])-(Table4[Number_Afr_Amer_One_or_More_ISS]/Table4[Afr_Amer_ISS_Risk_Rat])) -> -3166 | CM11: =IF(Table4[Number_Asian_One_or_More_ISS]="","",Table4[Number_Asian_One_or_More_ISS]/Table4[Enrollment_Asian]) ->  | CN11: =IF(Table4[Asian_ISS_Risk_Ind]="","",Table4[Asian_ISS_Risk_Ind]/((SUM(Table4[Number_Afr_Amer_One_or_More_ISS]:Table4[Number_White_One_or_More_ISS])-Table4[Number_Asian_One_or_More_ISS])/(Table4[Student_Enrollment_(Oct)]-Table4[Enrollment_Asian]))) ->  | CO11: =IF(Table4[Number_Asian_One_or_More_ISS]="","",(Table4[Number_Asian_One_or_More_ISS])-(Table4[Number_Asian_One_or_More_ISS]/Table4[Asian_ISS_Risk_Rat])) ->  | CP11: =IF(Table4[Number_Hispanic_One_or_More_ISS]="","",Table4[Number_Hispanic_One_or_More_ISS]/Table4[Enrollment_Hispanic]) ->  | CQ11: =IF(Table4[Hispanic_ISS_Risk_Ind]="","",Table4[Hispanic_ISS_Risk_Ind]/((SUM(Table4[Number_Afr_Amer_One_or_More_ISS]:Table4[Number_White_One_or_More_ISS])-Table4[Number_Hispanic_One_or_More_ISS])/(Table4[Student_Enrollment_(Oct)]-Table4[Enrollment_Hispanic]))) ->  | CR11: =IF(Table4[Number_Hispanic_One_or_More_ISS]="","",(Table4[Number_Hispanic_One_or_More_ISS])-(Table4[Number_Hispanic_One_or_More_ISS]/Table4[Hispanic_ISS_Risk_Rat])) ->  | CS11: =IF(Table4[Number_Multi-Rac_One_or_More_ISS]="","",Table4[Number_Multi-Rac_One_or_More_ISS]/Table4[Enrollment_Multi-Rac]) ->  | CT11: =IF(Table4[Multi-Rac_ISS_Risk_Index]="","",Table4[Multi-Rac_ISS_Risk_Index]/((SUM(Table4[Number_Afr_Amer_One_or_More_ISS]:Table4[Number_White_One_or_More_ISS])-Table4[Number_Multi-Rac_One_or_More_ISS])/(Table4[Student_Enrollment_(Oct)]-Table4[Enrollment_Multi-Rac]))) ->  | CU11: =IF(Table4[Number_Multi-Rac_One_or_More_ISS]="","",(Table4[Number_Multi-Rac_One_or_More_ISS])-(Table4[Number_Multi-Rac_One_or_More_ISS]/Table4[Multi-Rac_ISS_Risk_Rat])) ->  | CV11: =IF(Table4[Number_Nat_Amer_One_or_More_ISS]="","",Table4[Number_Nat_Amer_One_or_More_ISS]/Table4[Enrollment_Nat_Amer]) ->  | CW11: =IF(Table4[Nat_Amer_ISS_Risk_Ind]="","",Table4[Nat_Amer_ISS_Risk_Ind]/((SUM(Table4[Number_Afr_Amer_One_or_More_ISS]:Table4[Number_White_One_or_More_ISS])-Table4[Number_Nat_Amer_One_or_More_ISS])/(Table4[Student_Enrollment_(Oct)]-Table4[Enrollment_Nat_Amer]))) ->  | CX11: =IF(Table4[Number_Nat_Amer_One_or_More_ISS]="","",(Table4[Number_Nat_Amer_One_or_More_ISS])-(Table4[Number_Nat_Amer_One_or_More_ISS]/Table4[Nat_Amer_ISS_Risk_Rat])) ->  | CY11: =IF(Table4[Number_Pac_Islan_One_or_More_ISS]="","",Table4[Number_Pac_Islan_One_or_More_ISS]/Table4[Enrollment_Pac._Islan]) ->  | CZ11: =IF(Table4[Pac_Islan_ISS_Risk_Ind]="","",Table4[Pac_Islan_ISS_Risk_Ind]/((SUM(Table4[Number_Afr_Amer_One_or_More_ISS]:Table4[Number_White_One_or_More_ISS])-Table4[Number_Pac_Islan_One_or_More_ISS])/(Table4[Student_Enrollment_(Oct)]-Table4[Enrollment_Pac._Islan]))) ->  | DA11: =IF(Table4[Number_Pac_Islan_One_or_More_ISS]="","",(Table4[Number_Pac_Islan_One_or_More_ISS])-(Table4[Number_Pac_Islan_One_or_More_ISS]/Table4[Pac_Islan_ISS_Risk_Rat])) ->  | DB11: =IF(Table4[Number_White_One_or_More_ISS]="","",Table4[Number_White_One_or_More_ISS]/Table4[Enrollment_White]) -> 0.1666666667 | DC11: =IF(Table4[White_ISS_Risk_Ind]="","",Table4[White_ISS_Risk_Ind]/((SUM(Table4[Number_Afr_Amer_One_or_More_ISS]:Table4[Number_White_One_or_More_ISS])-Table4[Number_White_One_or_More_ISS])/(Table4[Student_Enrollment_(Oct)]-Table4[Enrollment_Pac._Islan]))) -> 0.01474491301 | DD11: =IF(Table4[Number_White_One_or_More_ISS]="","",(Table4[Number_White_One_or_More_ISS])-(Table4[Number_White_One_or_More_ISS]/Table4[White_ISS_Risk_Rat])) -> -1670.5 | DE11: =IF(Table4[Number_IEP_one _or_More_ISS]="","",Table4[Number_IEP_one _or_More_ISS]/Table4[Enrollment_Students_with_IEPs]) -> 0.1 | DF11: =IF(Table4[Students_With_IEP_ODR_Risk_Index]="","",Table4[Students_With_IEP_ODR_Risk_Index]/((SUM(Table4[Number_Afr_Amer_One_or_More_ISS]:Table4[Number_White_One_or_More_ISS])-Table4[Number_IEP_one _or_More_ODR])/(Table4[Student_Enrollment_(Oct)]-Table4[Enrollment_Students_with_IEPs]))) -> 0.007910928802 | DG11: =IF(Table4[Number_IEP_one _or_More_ODR]="","",(Table4[Number_IEP_one _or_More_ODR])-(Table4[Number_IEP_one _or_More_ODR]/Table4[Students_With_IEP_ODR_Risk_Ratio])) -> -376.2222222 | DH11: =IF(Table4[Number_Afr_Amer_One_or_More_OSS]="","",Table4[Number_Afr_Amer_One_or_More_OSS]/Table4[Enrollment_Afr_Amer]) -> 0.8333333333 | DI11: =IF(Table4[Afr_Amer_OSS_Risk_Ind]="","",Table4[Afr_Amer_OSS_Risk_Ind]/((SUM(Table4[Number_Afr_Amer_One_or_More_OSS]:Table4[Number_White_One_or_More_OSS])-Table4[Number_Afr_Amer_One_or_More_OSS])/(Table4[Student_Enrollment_(Oct)]-Table4[Enrollment_Afr_Amer]))) -> 0.03798237618 | DJ11: =IF(Table4[Number_Afr_Amer_One_or_More_OSS]="","",(Table4[Number_Afr_Amer_One_or_More_OSS])-(Table4[Number_Afr_Amer_One_or_More_OSS]/Table4[Afr_Amer_OSS_Risk_Rat])) -> -3166 | DK11: =IF(Table4[Number_Asian_One_or_More_OSS]="","",Table4[Number_Asian_One_or_More_OSS]/Table4[Enrollment_Asian]) ->  | DL11: =IF(Table4[Asian_OSS_Risk_Ind]="","",Table4[Asian_OSS_Risk_Ind]/((SUM(Table4[Number_Afr_Amer_One_or_More_OSS]:Table4[Number_White_One_or_More_OSS])-Table4[Number_Asian_One_or_More_OSS])/(Table4[Student_Enrollment_(Oct)]-Table4[Enrollment_Asian]))) ->  | DM11: =IF(Table4[Number_Asian_One_or_More_OSS]="","",(Table4[Number_Asian_One_or_More_OSS])-(Table4[Number_Asian_One_or_More_OSS]/Table4[Asian_OSS_Risk_Rat])) ->  | DN11: =IF(Table4[Number_Hispanic_One_or_More_OSS]="","",Table4[Number_Hispanic_One_or_More_OSS]/Table4[Enrollment_Hispanic]) ->  | DO11: =IF(Table4[Hispanic_OSS_Risk_Ind]="","",Table4[Hispanic_OSS_Risk_Ind]/((SUM(Table4[Number_Afr_Amer_One_or_More_OSS]:Table4[Number_White_One_or_More_OSS])-Table4[Number_Hispanic_One_or_More_OSS])/(Table4[Student_Enrollment_(Oct)]-Table4[Enrollment_Hispanic]))) ->  | DP11: =IF(Table4[Number_Hispanic_One_or_More_OSS]="","",(Table4[Number_Hispanic_One_or_More_OSS])-(Table4[Number_Hispanic_One_or_More_OSS]/Table4[Hispanic_ODR_Risk_Rat])) ->  | DQ11: =IF(Table4[Number_Multi-Rac_One_or_More_OSS]="","",Table4[Number_Multi-Rac_One_or_More_OSS]/Table4[Enrollment_Multi-Rac]) ->  | DR11: =IF(Table4[Multi-Rac_ODR_Risk_Index]="","",Table4[Multi-Rac_ODR_Risk_Index]/((SUM(Table4[Number_Afr_Amer_One_or_More_OSS]:Table4[Number_White_One_or_More_OSS])-Table4[Number_Multi-Rac_One_or_More_OSS])/(Table4[Student_Enrollment_(Oct)]-Table4[Enrollment_Multi-Rac]))) ->  | DS11: =IF(Table4[Number_Multi-Rac_One_or_More_OSS]="","",(Table4[Number_Multi-Rac_One_or_More_OSS])-(Table4[Number_Multi-Rac_One_or_More_OSS]/Table4[Multi-Rac_OSS_Risk_Rat])) ->  | DT11: =IF(Table4[Number_Nat_Amer_One_or_More_OSS]="","",Table4[Number_Nat_Amer_One_or_More_OSS]/Table4[Enrollment_Nat_Amer]) ->  | DU11: =IF(Table4[Nat_Amer_OSS_Risk_Ind]="","",Table4[Nat_Amer_OSS_Risk_Ind]/((SUM(Table4[Number_Afr_Amer_One_or_More_OSS]:Table4[Number_White_One_or_More_OSS])-Table4[Number_Nat_Amer_One_or_More_OSS])/(Table4[Student_Enrollment_(Oct)]-Table4[Enrollment_Nat_Amer]))) ->  | DV11: =IF(Table4[Number_Nat_Amer_One_or_More_OSS]="","",(Table4[Number_Nat_Amer_One_or_More_OSS])-(Table4[Number_Nat_Amer_One_or_More_OSS]/Table4[Nat_Amer_OSS_Risk_Rat])) ->  | DW11: =IF(Table4[Number_Pac_Islan_One_or_More_OSS]="","",Table4[Number_Pac_Islan_One_or_More_OSS]/Table4[Enrollment_Pac._Islan]) ->  | DX11: =IF(Table4[Pac_Islan_OSS_Risk_Ind]="","",Table4[Pac_Islan_OSS_Risk_Ind]/((SUM(Table4[Number_Afr_Amer_One_or_More_OSS]:Table4[Number_White_One_or_More_OSS])-Table4[Number_Pac_Islan_One_or_More_OSS])/(Table4[Student_Enrollment_(Oct)]-Table4[Enrollment_Pac._Islan]))) ->  | DY11: =IF(Table4[Number_Pac_Islan_One_or_More_OSS]="","",(Table4[Number_Pac_Islan_One_or_More_OSS])-(Table4[Number_Pac_Islan_One_or_More_OSS]/Table4[Pac_Islan_OSS_Risk_Rat])) ->  | DZ11: =IF(Table4[Number_White_One_or_More_OSS]="","",Table4[Number_White_One_or_More_OSS]/Table4[Enrollment_White]) -> 0.1666666667 | EA11: =IF(Table4[White_OSS_Risk_Ind]="","",Table4[White_OSS_Risk_Ind]/((SUM(Table4[Number_Afr_Amer_One_or_More_OSS]:Table4[Number_White_One_or_More_OSS])-Table4[Number_White_One_or_More_OSS])/(Table4[Student_Enrollment_(Oct)]-Table4[Enrollment_White]))) -> 0.007372456503 | EB11: =IF(Table4[Number_White_One_or_More_OSS]="","",(Table4[Number_White_One_or_More_OSS])-(Table4[Number_White_One_or_More_OSS]/Table4[White_OSS_Risk_Rat])) -> -3366 | EC11: =IF(Table4[Number_Students_With_IEP_One_or_More_OSS]="","",Table4[Number_Students_With_IEP_One_or_More_OSS]/Table4[Enrollment_Students_with_IEPs]) -> 0.1 | ED11: =IF(Table4[Students_With_IEP_OSS_Risk_Index]="","",Table4[Students_With_IEP_OSS_Risk_Index]/((SUM(Table4[Number_Afr_Amer_One_or_More_OSS]:Table4[Number_White_One_or_More_OSS])-Table4[Number_Students_With_IEP_One_or_More_OSS])/(Table4[Student_Enrollment_(Oct)]-Table4[Enrollment_Students_with_IEPs]))) -> 0.007910928802 | EE11: =IF(Table4[Number_Students_With_IEP_One_or_More_OSS]="","",Table4[Number_Students_With_IEP_One_or_More_OSS]-(Table4[Number_Students_With_IEP_One_or_More_OSS]/Table4[Students_With_IEP_OSS_Risk_Ratio])) -> -376.2222222
A12: 999999999 | B12: C Elementary | C12: 202122 | D12: Tier 1 | E12: Tier 1 | F12: Elementary | G12: 200 | H12: 25 | I12: =IF(Table4[Student_Enrollment_(Oct)]="","",Table4[Enrollment_Afr_Amer]/Table4[Student_Enrollment_(Oct)]) -> 0.125 | J12: 0 | K12: =IF(Table4[Student_Enrollment_(Oct)]="","",Table4[Enrollment_Asian]/Table4[Student_Enrollment_(Oct)]) -> 0 | L12: 25 | M12: =IF(Table4[Student_Enrollment_(Oct)]="","",Table4[Enrollment_Hispanic]/Table4[Student_Enrollment_(Oct)]) -> 0.125 | N12: 0 | O12: =IF(Table4[Student_Enrollment_(Oct)]="","",Table4[Enrollment_Multi-Rac]/Table4[Student_Enrollment_(Oct)]) -> 0 | P12: 0 | Q12: =IF(Table4[Student_Enrollment_(Oct)]="","",Table4[Enrollment_Nat_Amer]/Table4[Student_Enrollment_(Oct)]) -> 0 | R12: 0 | S12: =IF(Table4[Student_Enrollment_(Oct)]="","",Table4[Enrollment_Pac._Islan]/Table4[Student_Enrollment_(Oct)]) -> 0 | T12: 150 | U12: =IF(Table4[Student_Enrollment_(Oct)]="","",Table4[Enrollment_White]/Table4[Student_Enrollment_(Oct)]) -> 0.75 | V12: 50 | W12: =IF(Table4[Enrollment_Students_with_IEPs]="","",Table4[Enrollment_Students_with_IEPs]/Table4[Student_Enrollment_(Oct)]) -> 0.25 | X12: 97 | Y12: 600 | Z12: 75 | AA12: 75 | AB12: =IF(Table4[Number_of_Students_with_1_ODR]+Table4[Number_Students_With_0_ODRs]=0,"",Table4[Number_of_Students_with_1_ODR]+Table4[Number_Students_With_0_ODRs]) -> 150 | AC12: 25 | AD12: 25 | AE12: =IF(Table4[Number_of_Students_with_0-1_ODRs]="","",Table4[Number_of_Students_with_0-1_ODRs]/(Table4[Number_of_Students_with_0-1_ODRs]+Table4[Number_of_Students_with_2-5_ODRs]+Table4[Number_of_Students_with_6+_ODRs])) -> 0.75 | AF12: =IF(Table4[Number_of_Students_with_2-5_ODRs]="","",Table4[Number_of_Students_with_2-5_ODRs]/(Table4[Number_of_Students_with_0-1_ODRs]+Table4[Number_of_Students_with_2-5_ODRs]+Table4[Number_of_Students_with_6+_ODRs])) -> 0.125 | AG12: =IF(Table4[Number_of_Students_with_6+_ODRs]="","",Table4[Number_of_Students_with_6+_ODRs]/(Table4[Number_of_Students_with_0-1_ODRs]+Table4[Number_of_Students_with_2-5_ODRs]+Table4[Number_of_Students_with_6+_ODRs])) -> 0.125 | AH12: 25 | AI12: 10 | AJ12: 20 | AK12: 0 | AL12: 3 | AM12: 0 | AN12: 0 | AO12: 0 | AP12: 10 | AQ12: 5 | AR12: =IF(Table4[Number_Afr_Amer_One_or_More_ODR]+Table4[Number_Asian_One_or_More_ODR]+Table4[Number_Hispanic_One_or_More_ODR]+Table4[Number_Multi-Rac_One_or_More_ODR]+Table4[Number_Nat_Amer_One_or_More_ODR]+Table4[Number_Pac_Islan_One_or_More_ODR]+Table4[Number_White_One_or_More_ODR]=0,"",Table4[Number_Afr_Amer_One_or_More_ODR]+Table4[Number_Asian_One_or_More_ODR]+Table4[Number_Hispanic_One_or_More_ODR]+Table4[Number_Multi-Rac_One_or_More_ODR]+Table4[Number_Nat_Amer_One_or_More_ODR]+Table4[Number_Pac_Islan_One_or_More_ODR]+Table4[Number_White_One_or_More_ODR]) -> 33 | AS12: 20 | AT12: 0 | AU12: 3 | AV12: 0 | AW12: 0 | AX12: 0 | AY12: 10 | AZ12: 5 | BA12: =IF(Table4[Number_Afr_Amer_One_or_More_ISS]+Table4[Number_Asian_One_or_More_ISS]+Table4[Number_Hispanic_One_or_More_ISS]+Table4[Number_Multi-Rac_One_or_More_ISS]+Table4[Number_Nat_Amer_One_or_More_ISS]+Table4[Number_Pac_Islan_One_or_More_ISS]+Table4[Number_White_One_or_More_ISS]=0,"",Table4[Number_Afr_Amer_One_or_More_ISS]+Table4[Number_Asian_One_or_More_ISS]+Table4[Number_Hispanic_One_or_More_ISS]+Table4[Number_Multi-Rac_One_or_More_ISS]+Table4[Number_Nat_Amer_One_or_More_ISS]+Table4[Number_Pac_Islan_One_or_More_ISS]+Table4[Number_White_One_or_More_ISS]) -> 33 | BB12: 20 | BC12: 0 | BD12: 3 | BE12: 0 | BF12: 0 | BG12: 0 | BH12: 10 | BI12: 5 | BJ12: =IF(Table4[Number_Afr_Amer_One_or_More_OSS]+Table4[Number_Asian_One_or_More_OSS]+Table4[Number_Hispanic_One_or_More_OSS]+Table4[Number_Multi-Rac_One_or_More_OSS]+Table4[Number_Nat_Amer_One_or_More_OSS]+Table4[Number_Pac_Islan_One_or_More_OSS]+Table4[Number_White_One_or_More_OSS]=0,"",Table4[Number_Afr_Amer_One_or_More_OSS]+Table4[Number_Asian_One_or_More_OSS]+Table4[Number_Hispanic_One_or_More_OSS]+Table4[Number_Multi-Rac_One_or_More_OSS]+Table4[Number_Nat_Amer_One_or_More_OSS]+Table4[Number_Pac_Islan_One_or_More_OSS]+Table4[Number_White_One_or_More_OSS]) -> 33 | BL12: =IF(Table4[Number_Afr_Amer_One_or_More_ODR]="","",Table4[Number_Afr_Amer_One_or_More_ODR]/Table4[Enrollment_Afr_Amer]) -> 0.8 | BM12: =IF(Table4[Afr_Amer_ODR_Risk_Ind]="","",Table4[Afr_Amer_ODR_Risk_Ind]/((SUM(Table4[Number_Afr_Amer_One_or_More_ODR]:Table4[Number_White_One_or_More_ODR])-Table4[Number_Afr_Amer_One_or_More_ODR])/(Table4[Student_Enrollment_(Oct)]-Table4[Enrollment_Afr_Amer]))) -> 0.04122497055 | BN12: =IF(Table4[Number_Afr_Amer_One_or_More_ODR]="","",(Table4[Number_Afr_Amer_One_or_More_ODR])-(Table4[Number_Afr_Amer_One_or_More_ODR]/Table4[Afr_Amer_ODR_Risk_Rat])) -> -465.1428571 | BO12: =IF(Table4[Number_Asian_One_or_More_ODR]="","",Table4[Number_Asian_One_or_More_ODR]/Table4[Enrollment_Asian]) ->  | BP12: =IF(Table4[Asian_ODR_Risk_Ind]="","",Table4[Asian_ODR_Risk_Ind]/((SUM(Table4[Number_Afr_Amer_One_or_More_ODR]:Table4[Number_White_One_or_More_ODR])-Table4[Number_Asian_One_or_More_ODR])/(Table4[Student_Enrollment_(Oct)]-Table4[Enrollment_Asian]))) ->  | BQ12: =IF(Table4[Number_Asian_One_or_More_ODR]="","",(Table4[Number_Asian_One_or_More_ODR])-(Table4[Number_Asian_One_or_More_ODR]/Table4[Asian_ODR_Risk_Rat])) ->  | BR12: =IF(Table4[Number_Hispanic_One_or_More_ODR]="","",Table4[Number_Hispanic_One_or_More_ODR]/Table4[Enrollment_Hispanic]) -> 0.12 | BS12: =IF(Table4[Hispanic_ODR_Risk_Ind]="","",Table4[Hispanic_ODR_Risk_Ind]/((SUM(Table4[Number_Afr_Amer_One_or_More_ODR]:Table4[Number_White_One_or_More_ODR])-Table4[Number_Hispanic_One_or_More_ODR])/(Table4[Student_Enrollment_(Oct)]-Table4[Enrollment_Hispanic]))) -> 0.006152944623 | BT12: =IF(Table4[Number_Hispanic_One_or_More_ODR]="","",(Table4[Number_Hispanic_One_or_More_ODR])-(Table4[Number_Hispanic_One_or_More_ODR]/Table4[Hispanic_ODR_Risk_Rat])) -> -484.5714286 | BU12: =IF(Table4[Number_Multi-Rac_One_or_More_ODR]="","",Table4[Number_Multi-Rac_One_or_More_ODR]/Table4[Enrollment_Multi-Rac]) ->  | BV12: =IF(Table4[Multi-Rac_ODR_Risk_Index]="","",Table4[Multi-Rac_ODR_Risk_Index]/((SUM(Table4[Number_Afr_Amer_One_or_More_ODR]:Table4[Number_White_One_or_More_ODR])-Table4[Number_Multi-Rac_One_or_More_ODR])/(Table4[Student_Enrollment_(Oct)]-Table4[Enrollment_Multi-Rac]))) ->  | BW12: =IF(Table4[Number_Multi-Rac_One_or_More_ODR]="","",(Table4[Number_Multi-Rac_One_or_More_ODR])-(Table4[Number_Multi-Rac_One_or_More_ODR]/Table4[Multi-Rac_ODR_Risk_Rat])) ->  | BX12: =IF(Table4[Number_Nat_Amer_One_or_More_ODR]="","",Table4[Number_Nat_Amer_One_or_More_ODR]/Table4[Enrollment_Nat_Amer]) ->  | BY12: =IF(Table4[Nat_Amer_ODR_Risk_Ind]="","",Table4[Nat_Amer_ODR_Risk_Ind]/((SUM(Table4[Number_Afr_Amer_One_or_More_ODR]:Table4[Number_White_One_or_More_ODR])-Table4[Number_Nat_Amer_One_or_More_ODR])/(Table4[Student_Enrollment_(Oct)]-Table4[Enrollment_Nat_Amer]))) ->  | BZ12: =IF(Table4[Number_Nat_Amer_One_or_More_ODR]="","",(Table4[Number_Nat_Amer_One_or_More_ODR])-(Table4[Number_Nat_Amer_One_or_More_ODR]/Table4[Nat_Amer_ODR_Risk_Rat])) ->  | CA12: =IF(Table4[Number_Pac_Islan_One_or_More_ODR]="","",Table4[Number_Pac_Islan_One_or_More_ODR]/Table4[Enrollment_Pac._Islan]) ->  | CB12: =IF(Table4[Pac_Islan_ODR_Risk_Ind]="","",Table4[Pac_Islan_ODR_Risk_Ind]/((SUM(Table4[Number_Afr_Amer_One_or_More_ODR]:Table4[Number_White_One_or_More_ODR])-Table4[Number_Pac_Islan_One_or_More_ODR])/(Table4[Student_Enrollment_(Oct)]-Table4[Enrollment_Pac._Islan]))) ->  | CC12: =IF(Table4[Number_Pac_Islan_One_or_More_ODR]="","",(Table4[Number_Pac_Islan_One_or_More_ODR])-(Table4[Number_Pac_Islan_One_or_More_ODR]/Table4[Pac_Islan_ODR_Risk_Rat])) ->  | CD12: =IF(Table4[Number_White_One_or_More_ODR]="","",Table4[Number_White_One_or_More_ODR]/Table4[Enrollment_White]) -> 0.06666666667 | CE12: =IF(Table4[White_ODR_Risk_Ind]="","",Table4[White_ODR_Risk_Ind]/((SUM(Table4[Number_Afr_Amer_One_or_More_ODR]:Table4[Number_White_One_or_More_ODR])-Table4[Number_White_One_or_More_ODR])/(Table4[Student_Enrollment_(Oct)]-Table4[Enrollment_White]))) -> 0.0009786651008 | CF12: =IF(Table4[Number_White_One_or_More_ODR]="","",(Table4[Number_White_One_or_More_ODR])-(Table4[Number_White_One_or_More_ODR]/Table4[White_ODR_Risk_Rat])) -> -10208 | CG12: =IF(Table4[Number_IEP_one _or_More_ODR]="","",Table4[Number_IEP_one _or_More_ODR]/Table4[Enrollment_Students_with_IEPs]) -> 0.1 | CH12: =IF(Table4[Students_With_IEP_ODR_Risk_Index]="","",Table4[Students_With_IEP_ODR_Risk_Index]/((SUM(Table4[Number_Afr_Amer_One_or_More_ODR]:Table4[Number_White_One_or_More_ODR])-Table4[Number_IEP_one _or_More_ODR])/(Table4[Student_Enrollment_(Oct)]-Table4[Enrollment_Students_with_IEPs]))) -> 0.004397537379 | CI12: =IF(Table4[Number_IEP_one _or_More_ODR]="","",(Table4[Number_IEP_one _or_More_ODR])-(Table4[Number_IEP_one _or_More_ODR]/Table4[Students_With_IEP_ODR_Risk_Ratio])) -> -1132 | CJ12: =IF(Table4[Number_Afr_Amer_One_or_More_ISS]="","",Table4[Number_Afr_Amer_One_or_More_ISS]/Table4[Enrollment_Afr_Amer]) -> 0.8 | CK12: =IF(Table4[Afr_Amer_ISS_Risk_Ind]="","",Table4[Afr_Amer_ODR_Risk_Ind]/((SUM(Table4[Number_Afr_Amer_One_or_More_ISS]:Table4[Number_White_One_or_More_ISS])-Table4[Number_Afr_Amer_One_or_More_ISS])/(Table4[Student_Enrollment_(Oct)]-Table4[Enrollment_Afr_Amer]))) -> 0.04122497055 | CL12: =IF(Table4[Number_Afr_Amer_One_or_More_ISS]="","",(Table4[Number_Afr_Amer_One_or_More_ISS])-(Table4[Number_Afr_Amer_One_or_More_ISS]/Table4[Afr_Amer_ISS_Risk_Rat])) -> -465.1428571 | CM12: =IF(Table4[Number_Asian_One_or_More_ISS]="","",Table4[Number_Asian_One_or_More_ISS]/Table4[Enrollment_Asian]) ->  | CN12: =IF(Table4[Asian_ISS_Risk_Ind]="","",Table4[Asian_ISS_Risk_Ind]/((SUM(Table4[Number_Afr_Amer_One_or_More_ISS]:Table4[Number_White_One_or_More_ISS])-Table4[Number_Asian_One_or_More_ISS])/(Table4[Student_Enrollment_(Oct)]-Table4[Enrollment_Asian]))) ->  | CO12: =IF(Table4[Number_Asian_One_or_More_ISS]="","",(Table4[Number_Asian_One_or_More_ISS])-(Table4[Number_Asian_One_or_More_ISS]/Table4[Asian_ISS_Risk_Rat])) ->  | CP12: =IF(Table4[Number_Hispanic_One_or_More_ISS]="","",Table4[Number_Hispanic_One_or_More_ISS]/Table4[Enrollment_Hispanic]) -> 0.12 | CQ12: =IF(Table4[Hispanic_ISS_Risk_Ind]="","",Table4[Hispanic_ISS_Risk_Ind]/((SUM(Table4[Number_Afr_Amer_One_or_More_ISS]:Table4[Number_White_One_or_More_ISS])-Table4[Number_Hispanic_One_or_More_ISS])/(Table4[Student_Enrollment_(Oct)]-Table4[Enrollment_Hispanic]))) -> 0.006152944623 | CR12: =IF(Table4[Number_Hispanic_One_or_More_ISS]="","",(Table4[Number_Hispanic_One_or_More_ISS])-(Table4[Number_Hispanic_One_or_More_ISS]/Table4[Hispanic_ISS_Risk_Rat])) -> -484.5714286 | CS12: =IF(Table4[Number_Multi-Rac_One_or_More_ISS]="","",Table4[Number_Multi-Rac_One_or_More_ISS]/Table4[Enrollment_Multi-Rac]) ->  | CT12: =IF(Table4[Multi-Rac_ISS_Risk_Index]="","",Table4[Multi-Rac_ISS_Risk_Index]/((SUM(Table4[Number_Afr_Amer_One_or_More_ISS]:Table4[Number_White_One_or_More_ISS])-Table4[Number_Multi-Rac_One_or_More_ISS])/(Table4[Student_Enrollment_(Oct)]-Table4[Enrollment_Multi-Rac]))) ->  | CU12: =IF(Table4[Number_Multi-Rac_One_or_More_ISS]="","",(Table4[Number_Multi-Rac_One_or_More_ISS])-(Table4[Number_Multi-Rac_One_or_More_ISS]/Table4[Multi-Rac_ISS_Risk_Rat])) ->  | CV12: =IF(Table4[Number_Nat_Amer_One_or_More_ISS]="","",Table4[Number_Nat_Amer_One_or_More_ISS]/Table4[Enrollment_Nat_Amer]) ->  | CW12: =IF(Table4[Nat_Amer_ISS_Risk_Ind]="","",Table4[Nat_Amer_ISS_Risk_Ind]/((SUM(Table4[Number_Afr_Amer_One_or_More_ISS]:Table4[Number_White_One_or_More_ISS])-Table4[Number_Nat_Amer_One_or_More_ISS])/(Table4[Student_Enrollment_(Oct)]-Table4[Enrollment_Nat_Amer]))) ->  | CX12: =IF(Table4[Number_Nat_Amer_One_or_More_ISS]="","",(Table4[Number_Nat_Amer_One_or_More_ISS])-(Table4[Number_Nat_Amer_One_or_More_ISS]/Table4[Nat_Amer_ISS_Risk_Rat])) ->  | CY12: =IF(Table4[Number_Pac_Islan_One_or_More_ISS]="","",Table4[Number_Pac_Islan_One_or_More_ISS]/Table4[Enrollment_Pac._Islan]) ->  | CZ12: =IF(Table4[Pac_Islan_ISS_Risk_Ind]="","",Table4[Pac_Islan_ISS_Risk_Ind]/((SUM(Table4[Number_Afr_Amer_One_or_More_ISS]:Table4[Number_White_One_or_More_ISS])-Table4[Number_Pac_Islan_One_or_More_ISS])/(Table4[Student_Enrollment_(Oct)]-Table4[Enrollment_Pac._Islan]))) ->  | DA12: =IF(Table4[Number_Pac_Islan_One_or_More_ISS]="","",(Table4[Number_Pac_Islan_One_or_More_ISS])-(Table4[Number_Pac_Islan_One_or_More_ISS]/Table4[Pac_Islan_ISS_Risk_Rat])) ->  | DB12: =IF(Table4[Number_White_One_or_More_ISS]="","",Table4[Number_White_One_or_More_ISS]/Table4[Enrollment_White]) -> 0.06666666667 | DC12: =IF(Table4[White_ISS_Risk_Ind]="","",Table4[White_ISS_Risk_Ind]/((SUM(Table4[Number_Afr_Amer_One_or_More_ISS]:Table4[Number_White_One_or_More_ISS])-Table4[Number_White_One_or_More_ISS])/(Table4[Student_Enrollment_(Oct)]-Table4[Enrollment_Pac._Islan]))) -> 0.003914660403 | DD12: =IF(Table4[Number_White_One_or_More_ISS]="","",(Table4[Number_White_One_or_More_ISS])-(Table4[Number_White_One_or_More_ISS]/Table4[White_ISS_Risk_Rat])) -> -2544.5 | DE12: =IF(Table4[Number_IEP_one _or_More_ISS]="","",Table4[Number_IEP_one _or_More_ISS]/Table4[Enrollment_Students_with_IEPs]) -> 0.1 | DF12: =IF(Table4[Students_With_IEP_ODR_Risk_Index]="","",Table4[Students_With_IEP_ODR_Risk_Index]/((SUM(Table4[Number_Afr_Amer_One_or_More_ISS]:Table4[Number_White_One_or_More_ISS])-Table4[Number_IEP_one _or_More_ODR])/(Table4[Student_Enrollment_(Oct)]-Table4[Enrollment_Students_with_IEPs]))) -> 0.004397537379 | DG12: =IF(Table4[Number_IEP_one _or_More_ODR]="","",(Table4[Number_IEP_one _or_More_ODR])-(Table4[Number_IEP_one _or_More_ODR]/Table4[Students_With_IEP_ODR_Risk_Ratio])) -> -1132 | DH12: =IF(Table4[Number_Afr_Amer_One_or_More_OSS]="","",Table4[Number_Afr_Amer_One_or_More_OSS]/Table4[Enrollment_Afr_Amer]) -> 0.8 | DI12: =IF(Table4[Afr_Amer_OSS_Risk_Ind]="","",Table4[Afr_Amer_OSS_Risk_Ind]/((SUM(Table4[Number_Afr_Amer_One_or_More_OSS]:Table4[Number_White_One_or_More_OSS])-Table4[Number_Afr_Amer_One_or_More_OSS])/(Table4[Student_Enrollment_(Oct)]-Table4[Enrollment_Afr_Amer]))) -> 0.04122497055 | DJ12: =IF(Table4[Number_Afr_Amer_One_or_More_OSS]="","",(Table4[Number_Afr_Amer_One_or_More_OSS])-(Table4[Number_Afr_Amer_One_or_More_OSS]/Table4[Afr_Amer_OSS_Risk_Rat])) -> -465.1428571 | DK12: =IF(Table4[Number_Asian_One_or_More_OSS]="","",Table4[Number_Asian_One_or_More_OSS]/Table4[Enrollment_Asian]) ->  | DL12: =IF(Table4[Asian_OSS_Risk_Ind]="","",Table4[Asian_OSS_Risk_Ind]/((SUM(Table4[Number_Afr_Amer_One_or_More_OSS]:Table4[Number_White_One_or_More_OSS])-Table4[Number_Asian_One_or_More_OSS])/(Table4[Student_Enrollment_(Oct)]-Table4[Enrollment_Asian]))) ->  | DM12: =IF(Table4[Number_Asian_One_or_More_OSS]="","",(Table4[Number_Asian_One_or_More_OSS])-(Table4[Number_Asian_One_or_More_OSS]/Table4[Asian_OSS_Risk_Rat])) ->  | DN12: =IF(Table4[Number_Hispanic_One_or_More_OSS]="","",Table4[Number_Hispanic_One_or_More_OSS]/Table4[Enrollment_Hispanic]) -> 0.12 | DO12: =IF(Table4[Hispanic_OSS_Risk_Ind]="","",Table4[Hispanic_OSS_Risk_Ind]/((SUM(Table4[Number_Afr_Amer_One_or_More_OSS]:Table4[Number_White_One_or_More_OSS])-Table4[Number_Hispanic_One_or_More_OSS])/(Table4[Student_Enrollment_(Oct)]-Table4[Enrollment_Hispanic]))) -> 0.006152944623 | DP12: =IF(Table4[Number_Hispanic_One_or_More_OSS]="","",(Table4[Number_Hispanic_One_or_More_OSS])-(Table4[Number_Hispanic_One_or_More_OSS]/Table4[Hispanic_ODR_Risk_Rat])) -> -484.5714286 | DQ12: =IF(Table4[Number_Multi-Rac_One_or_More_OSS]="","",Table4[Number_Multi-Rac_One_or_More_OSS]/Table4[Enrollment_Multi-Rac]) ->  | DR12: =IF(Table4[Multi-Rac_ODR_Risk_Index]="","",Table4[Multi-Rac_ODR_Risk_Index]/((SUM(Table4[Number_Afr_Amer_One_or_More_OSS]:Table4[Number_White_One_or_More_OSS])-Table4[Number_Multi-Rac_One_or_More_OSS])/(Table4[Student_Enrollment_(Oct)]-Table4[Enrollment_Multi-Rac]))) ->  | DS12: =IF(Table4[Number_Multi-Rac_One_or_More_OSS]="","",(Table4[Number_Multi-Rac_One_or_More_OSS])-(Table4[Number_Multi-Rac_One_or_More_OSS]/Table4[Multi-Rac_OSS_Risk_Rat])) ->  | DT12: =IF(Table4[Number_Nat_Amer_One_or_More_OSS]="","",Table4[Number_Nat_Amer_One_or_More_OSS]/Table4[Enrollment_Nat_Amer]) ->  | DU12: =IF(Table4[Nat_Amer_OSS_Risk_Ind]="","",Table4[Nat_Amer_OSS_Risk_Ind]/((SUM(Table4[Number_Afr_Amer_One_or_More_OSS]:Table4[Number_White_One_or_More_OSS])-Table4[Number_Nat_Amer_One_or_More_OSS])/(Table4[Student_Enrollment_(Oct)]-Table4[Enrollment_Nat_Amer]))) ->  | DV12: =IF(Table4[Number_Nat_Amer_One_or_More_OSS]="","",(Table4[Number_Nat_Amer_One_or_More_OSS])-(Table4[Number_Nat_Amer_One_or_More_OSS]/Table4[Nat_Amer_OSS_Risk_Rat])) ->  | DW12: =IF(Table4[Number_Pac_Islan_One_or_More_OSS]="","",Table4[Number_Pac_Islan_One_or_More_OSS]/Table4[Enrollment_Pac._Islan]) ->  | DX12: =IF(Table4[Pac_Islan_OSS_Risk_Ind]="","",Table4[Pac_Islan_OSS_Risk_Ind]/((SUM(Table4[Number_Afr_Amer_One_or_More_OSS]:Table4[Number_White_One_or_More_OSS])-Table4[Number_Pac_Islan_One_or_More_OSS])/(Table4[Student_Enrollment_(Oct)]-Table4[Enrollment_Pac._Islan]))) ->  | DY12: =IF(Table4[Number_Pac_Islan_One_or_More_OSS]="","",(Table4[Number_Pac_Islan_One_or_More_OSS])-(Table4[Number_Pac_Islan_One_or_More_OSS]/Table4[Pac_Islan_OSS_Risk_Rat])) ->  | DZ12: =IF(Table4[Number_White_One_or_More_OSS]="","",Table4[Number_White_One_or_More_OSS]/Table4[Enrollment_White]) -> 0.06666666667 | EA12: =IF(Table4[White_OSS_Risk_Ind]="","",Table4[White_OSS_Risk_Ind]/((SUM(Table4[Number_Afr_Amer_One_or_More_OSS]:Table4[Number_White_One_or_More_OSS])-Table4[Number_White_One_or_More_OSS])/(Table4[Student_Enrollment_(Oct)]-Table4[Enrollment_White]))) -> 0.0009786651008 | EB12: =IF(Table4[Number_White_One_or_More_OSS]="","",(Table4[Number_White_One_or_More_OSS])-(Table4[Number_White_One_or_More_OSS]/Table4[White_OSS_Risk_Rat])) -> -10208 | EC12: =IF(Table4[Number_Students_With_IEP_One_or_More_OSS]="","",Table4[Number_Students_With_IEP_One_or_More_OSS]/Table4[Enrollment_Students_with_IEPs]) -> 0.1 | ED12: =IF(Table4[Students_With_IEP_OSS_Risk_Index]="","",Table4[Students_With_IEP_OSS_Risk_Index]/((SUM(Table4[Number_Afr_Amer_One_or_More_OSS]:Table4[Number_White_One_or_More_OSS])-Table4[Number_Students_With_IEP_One_or_More_OSS])/(Table4[Student_Enrollment_(Oct)]-Table4[Enrollment_Students_with_IEPs]))) -> 0.004397537379 | EE12: =IF(Table4[Number_Students_With_IEP_One_or_More_OSS]="","",Table4[Number_Students_With_IEP_One_or_More_OSS]-(Table4[Number_Students_With_IEP_One_or_More_OSS]/Table4[Students_With_IEP_OSS_Risk_Ratio])) -> -1132
I13: =IF(Table4[Student_Enrollment_(Oct)]="","",Table4[Enrollment_Afr_Amer]/Table4[Student_Enrollment_(Oct)]) ->  | K13: =IF(Table4[Student_Enrollment_(Oct)]="","",Table4[Enrollment_Asian]/Table4[Student_Enrollment_(Oct)]) ->  | M13: =IF(Table4[[#This Row],[Student_Enrollment_(Oct)]]="","",Table4[[#This Row],[Enrollment_Hispanic]]/Table4[[#This Row],[Student_Enrollment_(Oct)]]) ->  | O13: =IF(Table4[Student_Enrollment_(Oct)]="","",Table4[Enrollment_Multi-Rac]/Table4[Student_Enrollment_(Oct)]) ->  | Q13: =IF(Table4[Student_Enrollment_(Oct)]="","",Table4[Enrollment_Nat_Amer]/Table4[Student_Enrollment_(Oct)]) ->  | S13: =IF(Table4[Student_Enrollment_(Oct)]="","",Table4[Enrollment_Pac._Islan]/Table4[Student_Enrollment_(Oct)]) ->  | U13: =IF(Table4[Student_Enrollment_(Oct)]="","",Table4[Enrollment_White]/Table4[Student_Enrollment_(Oct)]) ->  | W13: =IF(Table4[Enrollment_Students_with_IEPs]="","",Table4[Enrollment_Students_with_IEPs]/Table4[Student_Enrollment_(Oct)]) ->  | AB13: =IF(Table4[Number_of_Students_with_1_ODR]+Table4[Number_Students_With_0_ODRs]=0,"",Table4[Number_of_Students_with_1_ODR]+Table4[Number_Students_With_0_ODRs]) ->  | AE13: =IF(Table4[Number_of_Students_with_0-1_ODRs]="","",Table4[Number_of_Students_with_0-1_ODRs]/(Table4[Number_of_Students_with_0-1_ODRs]+Table4[Number_of_Students_with_2-5_ODRs]+Table4[Number_of_Students_with_6+_ODRs])) ->  | AF13: =IF(Table4[Number_of_Students_with_2-5_ODRs]="","",Table4[Number_of_Students_with_2-5_ODRs]/(Table4[Number_of_Students_with_0-1_ODRs]+Table4[Number_of_Students_with_2-5_ODRs]+Table4[Number_of_Students_with_6+_ODRs])) ->  | AG13: =IF(Table4[Number_of_Students_with_6+_ODRs]="","",Table4[Number_of_Students_with_6+_ODRs]/(Table4[Number_of_Students_with_0-1_ODRs]+Table4[Number_of_Students_with_2-5_ODRs]+Table4[Number_of_Students_with_6+_ODRs])) ->  | AR13: =IF(Table4[Number_Afr_Amer_One_or_More_ODR]+Table4[Number_Asian_One_or_More_ODR]+Table4[Number_Hispanic_One_or_More_ODR]+Table4[Number_Multi-Rac_One_or_More_ODR]+Table4[Number_Nat_Amer_One_or_More_ODR]+Table4[Number_Pac_Islan_One_or_More_ODR]+Table4[Number_White_One_or_More_ODR]=0,"",Table4[Number_Afr_Amer_One_or_More_ODR]+Table4[Number_Asian_One_or_More_ODR]+Table4[Number_Hispanic_One_or_More_ODR]+Table4[Number_Multi-Rac_One_or_More_ODR]+Table4[Number_Nat_Amer_One_or_More_ODR]+Table4[Number_Pac_Islan_One_or_More_ODR]+Table4[Number_White_One_or_More_ODR]) ->  | BA13: =IF(Table4[Number_Afr_Amer_One_or_More_ISS]+Table4[Number_Asian_One_or_More_ISS]+Table4[Number_Hispanic_One_or_More_ISS]+Table4[Number_Multi-Rac_One_or_More_ISS]+Table4[Number_Nat_Amer_One_or_More_ISS]+Table4[Number_Pac_Islan_One_or_More_ISS]+Table4[Number_White_One_or_More_ISS]=0,"",Table4[Number_Afr_Amer_One_or_More_ISS]+Table4[Number_Asian_One_or_More_ISS]+Table4[Number_Hispanic_One_or_More_ISS]+Table4[Number_Multi-Rac_One_or_More_ISS]+Table4[Number_Nat_Amer_One_or_More_ISS]+Table4[Number_Pac_Islan_One_or_More_ISS]+Table4[Number_White_One_or_More_ISS]) ->  | BJ13: =IF(Table4[Number_Afr_Amer_One_or_More_OSS]+Table4[Number_Asian_One_or_More_OSS]+Table4[Number_Hispanic_One_or_More_OSS]+Table4[Number_Multi-Rac_One_or_More_OSS]+Table4[Number_Nat_Amer_One_or_More_OSS]+Table4[Number_Pac_Islan_One_or_More_OSS]+Table4[Number_White_One_or_More_OSS]=0,"",Table4[Number_Afr_Amer_One_or_More_OSS]+Table4[Number_Asian_One_or_More_OSS]+Table4[Number_Hispanic_One_or_More_OSS]+Table4[Number_Multi-Rac_One_or_More_OSS]+Table4[Number_Nat_Amer_One_or_More_OSS]+Table4[Number_Pac_Islan_One_or_More_OSS]+Table4[Number_White_One_or_More_OSS]) ->  | BL13: =IF(Table4[Number_Afr_Amer_One_or_More_ODR]="","",Table4[Number_Afr_Amer_One_or_More_ODR]/Table4[Enrollment_Afr_Amer]) ->  | BM13: =IF(Table4[Afr_Amer_ODR_Risk_Ind]="","",Table4[Afr_Amer_ODR_Risk_Ind]/((SUM(Table4[Number_Afr_Amer_One_or_More_ODR]:Table4[Number_White_One_or_More_ODR])-Table4[Number_Afr_Amer_One_or_More_ODR])/(Table4[Student_Enrollment_(Oct)]-Table4[Enrollment_Afr_Amer]))) ->  | BN13: =IF(Table4[Number_Afr_Amer_One_or_More_ODR]="","",(Table4[Number_Afr_Amer_One_or_More_ODR])-(Table4[Number_Afr_Amer_One_or_More_ODR]/Table4[Afr_Amer_ODR_Risk_Rat])) ->  | BO13: =IF(Table4[Number_Asian_One_or_More_ODR]="","",Table4[Number_Asian_One_or_More_ODR]/Table4[Enrollment_Asian]) ->  | BP13: =IF(Table4[Asian_ODR_Risk_Ind]="","",Table4[Asian_ODR_Risk_Ind]/((SUM(Table4[Number_Afr_Amer_One_or_More_ODR]:Table4[Number_White_One_or_More_ODR])-Table4[Number_Asian_One_or_More_ODR])/(Table4[Student_Enrollment_(Oct)]-Table4[Enrollment_Asian]))) ->  | BQ13: =IF(Table4[Number_Asian_One_or_More_ODR]="","",(Table4[Number_Asian_One_or_More_ODR])-(Table4[Number_Asian_One_or_More_ODR]/Table4[Asian_ODR_Risk_Rat])) ->  | BR13: =IF(Table4[Number_Hispanic_One_or_More_ODR]="","",Table4[Number_Hispanic_One_or_More_ODR]/Table4[Enrollment_Hispanic]) ->  | BS13: =IF(Table4[Hispanic_ODR_Risk_Ind]="","",Table4[Hispanic_ODR_Risk_Ind]/((SUM(Table4[Number_Afr_Amer_One_or_More_ODR]:Table4[Number_White_One_or_More_ODR])-Table4[Number_Hispanic_One_or_More_ODR])/(Table4[Student_Enrollment_(Oct)]-Table4[Enrollment_Hispanic]))) ->  | BT13: =IF(Table4[Number_Hispanic_One_or_More_ODR]="","",(Table4[Number_Hispanic_One_or_More_ODR])-(Table4[Number_Hispanic_One_or_More_ODR]/Table4[Hispanic_ODR_Risk_Rat])) ->  | BU13: =IF(Table4[Number_Multi-Rac_One_or_More_ODR]="","",Table4[Number_Multi-Rac_One_or_More_ODR]/Table4[Enrollment_Multi-Rac]) ->  | BV13: =IF(Table4[Multi-Rac_ODR_Risk_Index]="","",Table4[Multi-Rac_ODR_Risk_Index]/((SUM(Table4[Number_Afr_Amer_One_or_More_ODR]:Table4[Number_White_One_or_More_ODR])-Table4[Number_Multi-Rac_One_or_More_ODR])/(Table4[Student_Enrollment_(Oct)]-Table4[Enrollment_Multi-Rac]))) ->  | BW13: =IF(Table4[Number_Multi-Rac_One_or_More_ODR]="","",(Table4[Number_Multi-Rac_One_or_More_ODR])-(Table4[Number_Multi-Rac_One_or_More_ODR]/Table4[Multi-Rac_ODR_Risk_Rat])) ->  | BX13: =IF(Table4[Number_Nat_Amer_One_or_More_ODR]="","",Table4[Number_Nat_Amer_One_or_More_ODR]/Table4[Enrollment_Nat_Amer]) ->  | BY13: =IF(Table4[Nat_Amer_ODR_Risk_Ind]="","",Table4[Nat_Amer_ODR_Risk_Ind]/((SUM(Table4[Number_Afr_Amer_One_or_More_ODR]:Table4[Number_White_One_or_More_ODR])-Table4[Number_Nat_Amer_One_or_More_ODR])/(Table4[Student_Enrollment_(Oct)]-Table4[Enrollment_Nat_Amer]))) ->  | BZ13: =IF(Table4[Number_Nat_Amer_One_or_More_ODR]="","",(Table4[Number_Nat_Amer_One_or_More_ODR])-(Table4[Number_Nat_Amer_One_or_More_ODR]/Table4[Nat_Amer_ODR_Risk_Rat])) ->  | CA13: =IF(Table4[Number_Pac_Islan_One_or_More_ODR]="","",Table4[Number_Pac_Islan_One_or_More_ODR]/Table4[Enrollment_Pac._Islan]) ->  | CB13: =IF(Table4[Pac_Islan_ODR_Risk_Ind]="","",Table4[Pac_Islan_ODR_Risk_Ind]/((SUM(Table4[Number_Afr_Amer_One_or_More_ODR]:Table4[Number_White_One_or_More_ODR])-Table4[Number_Pac_Islan_One_or_More_ODR])/(Table4[Student_Enrollment_(Oct)]-Table4[Enrollment_Pac._Islan]))) ->  | CC13: =IF(Table4[Number_Pac_Islan_One_or_More_ODR]="","",(Table4[Number_Pac_Islan_One_or_More_ODR])-(Table4[Number_Pac_Islan_One_or_More_ODR]/Table4[Pac_Islan_ODR_Risk_Rat])) ->  | CD13: =IF(Table4[Number_White_One_or_More_ODR]="","",Table4[Number_White_One_or_More_ODR]/Table4[Enrollment_White]) ->  | CE13: =IF(Table4[White_ODR_Risk_Ind]="","",Table4[White_ODR_Risk_Ind]/((SUM(Table4[Number_Afr_Amer_One_or_More_ODR]:Table4[Number_White_One_or_More_ODR])-Table4[Number_White_One_or_More_ODR])/(Table4[Student_Enrollment_(Oct)]-Table4[Enrollment_White]))) ->  | CF13: =IF(Table4[Number_White_One_or_More_ODR]="","",(Table4[Number_White_One_or_More_ODR])-(Table4[Number_White_One_or_More_ODR]/Table4[White_ODR_Risk_Rat])) ->  | CG13: =IF(Table4[Number_IEP_one _or_More_ODR]="","",Table4[Number_IEP_one _or_More_ODR]/Table4[Enrollment_Students_with_IEPs]) ->  | CH13: =IF(Table4[Students_With_IEP_ODR_Risk_Index]="","",Table4[Students_With_IEP_ODR_Risk_Index]/((SUM(Table4[Number_Afr_Amer_One_or_More_ODR]:Table4[Number_White_One_or_More_ODR])-Table4[Number_IEP_one _or_More_ODR])/(Table4[Student_Enrollment_(Oct)]-Table4[Enrollment_Students_with_IEPs]))) ->  | CI13: =IF(Table4[Number_IEP_one _or_More_ODR]="","",(Table4[Number_IEP_one _or_More_ODR])-(Table4[Number_IEP_one _or_More_ODR]/Table4[Students_With_IEP_ODR_Risk_Ratio])) ->  | CJ13: =IF(Table4[Number_Afr_Amer_One_or_More_ISS]="","",Table4[Number_Afr_Amer_One_or_More_ISS]/Table4[Enrollment_Afr_Amer]) ->  | CK13: =IF(Table4[Afr_Amer_ISS_Risk_Ind]="","",Table4[Afr_Amer_ODR_Risk_Ind]/((SUM(Table4[Number_Afr_Amer_One_or_More_ISS]:Table4[Number_White_One_or_More_ISS])-Table4[Number_Afr_Amer_One_or_More_ISS])/(Table4[Student_Enrollment_(Oct)]-Table4[Enrollment_Afr_Amer]))) ->  | CL13: =IF(Table4[Number_Afr_Amer_One_or_More_ISS]="","",(Table4[Number_Afr_Amer_One_or_More_ISS])-(Table4[Number_Afr_Amer_One_or_More_ISS]/Table4[Afr_Amer_ISS_Risk_Rat])) ->  | CM13: =IF(Table4[Number_Asian_One_or_More_ISS]="","",Table4[Number_Asian_One_or_More_ISS]/Table4[Enrollment_Asian]) ->  | CN13: =IF(Table4[Asian_ISS_Risk_Ind]="","",Table4[Asian_ISS_Risk_Ind]/((SUM(Table4[Number_Afr_Amer_One_or_More_ISS]:Table4[Number_White_One_or_More_ISS])-Table4[Number_Asian_One_or_More_ISS])/(Table4[Student_Enrollment_(Oct)]-Table4[Enrollment_Asian]))) ->  | CO13: =IF(Table4[Number_Asian_One_or_More_ISS]="","",(Table4[Number_Asian_One_or_More_ISS])-(Table4[Number_Asian_One_or_More_ISS]/Table4[Asian_ISS_Risk_Rat])) ->  | CP13: =IF(Table4[Number_Hispanic_One_or_More_ISS]="","",Table4[Number_Hispanic_One_or_More_ISS]/Table4[Enrollment_Hispanic]) ->  | CQ13: =IF(Table4[Hispanic_ISS_Risk_Ind]="","",Table4[Hispanic_ISS_Risk_Ind]/((SUM(Table4[Number_Afr_Amer_One_or_More_ISS]:Table4[Number_White_One_or_More_ISS])-Table4[Number_Hispanic_One_or_More_ISS])/(Table4[Student_Enrollment_(Oct)]-Table4[Enrollment_Hispanic]))) ->  | CR13: =IF(Table4[Number_Hispanic_One_or_More_ISS]="","",(Table4[Number_Hispanic_One_or_More_ISS])-(Table4[Number_Hispanic_One_or_More_ISS]/Table4[Hispanic_ISS_Risk_Rat])) ->  | CS13: =IF(Table4[Number_Multi-Rac_One_or_More_ISS]="","",Table4[Number_Multi-Rac_One_or_More_ISS]/Table4[Enrollment_Multi-Rac]) ->  | CT13: =IF(Table4[Multi-Rac_ISS_Risk_Index]="","",Table4[Multi-Rac_ISS_Risk_Index]/((SUM(Table4[Number_Afr_Amer_One_or_More_ISS]:Table4[Number_White_One_or_More_ISS])-Table4[Number_Multi-Rac_One_or_More_ISS])/(Table4[Student_Enrollment_(Oct)]-Table4[Enrollment_Multi-Rac]))) ->  | CU13: =IF(Table4[Number_Multi-Rac_One_or_More_ISS]="","",(Table4[Number_Multi-Rac_One_or_More_ISS])-(Table4[Number_Multi-Rac_One_or_More_ISS]/Table4[Multi-Rac_ISS_Risk_Rat])) ->  | CV13: =IF(Table4[Number_Nat_Amer_One_or_More_ISS]="","",Table4[Number_Nat_Amer_One_or_More_ISS]/Table4[Enrollment_Nat_Amer]) ->  | CW13: =IF(Table4[Nat_Amer_ISS_Risk_Ind]="","",Table4[Nat_Amer_ISS_Risk_Ind]/((SUM(Table4[Number_Afr_Amer_One_or_More_ISS]:Table4[Number_White_One_or_More_ISS])-Table4[Number_Nat_Amer_One_or_More_ISS])/(Table4[Student_Enrollment_(Oct)]-Table4[Enrollment_Nat_Amer]))) ->  | CX13: =IF(Table4[Number_Nat_Amer_One_or_More_ISS]="","",(Table4[Number_Nat_Amer_One_or_More_ISS])-(Table4[Number_Nat_Amer_One_or_More_ISS]/Table4[Nat_Amer_ISS_Risk_Rat])) ->  | CY13: =IF(Table4[Number_Pac_Islan_One_or_More_ISS]="","",Table4[Number_Pac_Islan_One_or_More_ISS]/Table4[Enrollment_Pac._Islan]) ->  | CZ13: =IF(Table4[Pac_Islan_ISS_Risk_Ind]="","",Table4[Pac_Islan_ISS_Risk_Ind]/((SUM(Table4[Number_Afr_Amer_One_or_More_ISS]:Table4[Number_White_One_or_More_ISS])-Table4[Number_Pac_Islan_One_or_More_ISS])/(Table4[Student_Enrollment_(Oct)]-Table4[Enrollment_Pac._Islan]))) ->  | DA13: =IF(Table4[Number_Pac_Islan_One_or_More_ISS]="","",(Table4[Number_Pac_Islan_One_or_More_ISS])-(Table4[Number_Pac_Islan_One_or_More_ISS]/Table4[Pac_Islan_ISS_Risk_Rat])) ->  | DB13: =IF(Table4[Number_White_One_or_More_ISS]="","",Table4[Number_White_One_or_More_ISS]/Table4[Enrollment_White]) ->  | DC13: =IF(Table4[White_ISS_Risk_Ind]="","",Table4[White_ISS_Risk_Ind]/((SUM(Table4[Number_Afr_Amer_One_or_More_ISS]:Table4[Number_White_One_or_More_ISS])-Table4[Number_White_One_or_More_ISS])/(Table4[Student_Enrollment_(Oct)]-Table4[Enrollment_Pac._Islan]))) ->  | DD13: =IF(Table4[Number_White_One_or_More_ISS]="","",(Table4[Number_White_One_or_More_ISS])-(Table4[Number_White_One_or_More_ISS]/Table4[White_ISS_Risk_Rat])) ->  | DE13: =IF(Table4[Number_IEP_one _or_More_ISS]="","",Table4[Number_IEP_one _or_More_ISS]/Table4[Enrollment_Students_with_IEPs]) ->  | DF13: =IF(Table4[Students_With_IEP_ODR_Risk_Index]="","",Table4[Students_With_IEP_ODR_Risk_Index]/((SUM(Table4[Number_Afr_Amer_One_or_More_ISS]:Table4[Number_White_One_or_More_ISS])-Table4[Number_IEP_one _or_More_ODR])/(Table4[Student_Enrollment_(Oct)]-Table4[Enrollment_Students_with_IEPs]))) ->  | DG13: =IF(Table4[Number_IEP_one _or_More_ODR]="","",(Table4[Number_IEP_one _or_More_ODR])-(Table4[Number_IEP_one _or_More_ODR]/Table4[Students_With_IEP_ODR_Risk_Ratio])) ->  | DH13: =IF(Table4[Number_Afr_Amer_One_or_More_OSS]="","",Table4[Number_Afr_Amer_One_or_More_OSS]/Table4[Enrollment_Afr_Amer]) ->  | DI13: =IF(Table4[Afr_Amer_OSS_Risk_Ind]="","",Table4[Afr_Amer_OSS_Risk_Ind]/((SUM(Table4[Number_Afr_Amer_One_or_More_OSS]:Table4[Number_White_One_or_More_OSS])-Table4[Number_Afr_Amer_One_or_More_OSS])/(Table4[Student_Enrollment_(Oct)]-Table4[Enrollment_Afr_Amer]))) ->  | DJ13: =IF(Table4[Number_Afr_Amer_One_or_More_OSS]="","",(Table4[Number_Afr_Amer_One_or_More_OSS])-(Table4[Number_Afr_Amer_One_or_More_OSS]/Table4[Afr_Amer_OSS_Risk_Rat])) ->  | DK13: =IF(Table4[Number_Asian_One_or_More_OSS]="","",Table4[Number_Asian_One_or_More_OSS]/Table4[Enrollment_Asian]) ->  | DL13: =IF(Table4[Asian_OSS_Risk_Ind]="","",Table4[Asian_OSS_Risk_Ind]/((SUM(Table4[Number_Afr_Amer_One_or_More_OSS]:Table4[Number_White_One_or_More_OSS])-Table4[Number_Asian_One_or_More_OSS])/(Table4[Student_Enrollment_(Oct)]-Table4[Enrollment_Asian]))) ->  | DM13: =IF(Table4[Number_Asian_One_or_More_OSS]="","",(Table4[Number_Asian_One_or_More_OSS])-(Table4[Number_Asian_One_or_More_OSS]/Table4[Asian_OSS_Risk_Rat])) ->  | DN13: =IF(Table4[Number_Hispanic_One_or_More_OSS]="","",Table4[Number_Hispanic_One_or_More_OSS]/Table4[Enrollment_Hispanic]) ->  | DO13: =IF(Table4[Hispanic_OSS_Risk_Ind]="","",Table4[Hispanic_OSS_Risk_Ind]/((SUM(Table4[Number_Afr_Amer_One_or_More_OSS]:Table4[Number_White_One_or_More_OSS])-Table4[Number_Hispanic_One_or_More_OSS])/(Table4[Student_Enrollment_(Oct)]-Table4[Enrollment_Hispanic]))) ->  | DP13: =IF(Table4[Number_Hispanic_One_or_More_OSS]="","",(Table4[Number_Hispanic_One_or_More_OSS])-(Table4[Number_Hispanic_One_or_More_OSS]/Table4[Hispanic_ODR_Risk_Rat])) ->  | DQ13: =IF(Table4[Number_Multi-Rac_One_or_More_OSS]="","",Table4[Number_Multi-Rac_One_or_More_OSS]/Table4[Enrollment_Multi-Rac]) ->  | DR13: =IF(Table4[Multi-Rac_ODR_Risk_Index]="","",Table4[Multi-Rac_ODR_Risk_Index]/((SUM(Table4[Number_Afr_Amer_One_or_More_OSS]:Table4[Number_White_One_or_More_OSS])-Table4[Number_Multi-Rac_One_or_More_OSS])/(Table4[Student_Enrollment_(Oct)]-Table4[Enrollment_Multi-Rac]))) ->  | DS13: =IF(Table4[Number_Multi-Rac_One_or_More_OSS]="","",(Table4[Number_Multi-Rac_One_or_More_OSS])-(Table4[Number_Multi-Rac_One_or_More_OSS]/Table4[Multi-Rac_OSS_Risk_Rat])) ->  | DT13: =IF(Table4[Number_Nat_Amer_One_or_More_OSS]="","",Table4[Number_Nat_Amer_One_or_More_OSS]/Table4[Enrollment_Nat_Amer]) ->  | DU13: =IF(Table4[Nat_Amer_OSS_Risk_Ind]="","",Table4[Nat_Amer_OSS_Risk_Ind]/((SUM(Table4[Number_Afr_Amer_One_or_More_OSS]:Table4[Number_White_One_or_More_OSS])-Table4[Number_Nat_Amer_One_or_More_OSS])/(Table4[Student_Enrollment_(Oct)]-Table4[Enrollment_Nat_Amer]))) ->  | DV13: =IF(Table4[Number_Nat_Amer_One_or_More_OSS]="","",(Table4[Number_Nat_Amer_One_or_More_OSS])-(Table4[Number_Nat_Amer_One_or_More_OSS]/Table4[Nat_Amer_OSS_Risk_Rat])) ->  | DW13: =IF(Table4[Number_Pac_Islan_One_or_More_OSS]="","",Table4[Number_Pac_Islan_One_or_More_OSS]/Table4[Enrollment_Pac._Islan]) ->  | DX13: =IF(Table4[Pac_Islan_OSS_Risk_Ind]="","",Table4[Pac_Islan_OSS_Risk_Ind]/((SUM(Table4[Number_Afr_Amer_One_or_More_OSS]:Table4[Number_White_One_or_More_OSS])-Table4[Number_Pac_Islan_One_or_More_OSS])/(Table4[Student_Enrollment_(Oct)]-Table4[Enrollment_Pac._Islan]))) ->  | DY13: =IF(Table4[Number_Pac_Islan_One_or_More_OSS]="","",(Table4[Number_Pac_Islan_One_or_More_OSS])-(Table4[Number_Pac_Islan_One_or_More_OSS]/Table4[Pac_Islan_OSS_Risk_Rat])) ->  | DZ13: =IF(Table4[Number_White_One_or_More_OSS]="","",Table4[Number_White_One_or_More_OSS]/Table4[Enrollment_White]) ->  | EA13: =IF(Table4[White_OSS_Risk_Ind]="","",Table4[White_OSS_Risk_Ind]/((SUM(Table4[Number_Afr_Amer_One_or_More_OSS]:Table4[Number_White_One_or_More_OSS])-Table4[Number_White_One_or_More_OSS])/(Table4[Student_Enrollment_(Oct)]-Table4[Enrollment_White]))) ->  | EB13: =IF(Table4[Number_White_One_or_More_OSS]="","",(Table4[Number_White_One_or_More_OSS])-(Table4[Number_White_One_or_More_OSS]/Table4[White_OSS_Risk_Rat])) ->  | EC13: =IF(Table4[Number_Students_With_IEP_One_or_More_OSS]="","",Table4[Number_Students_With_IEP_One_or_More_OSS]/Table4[Enrollment_Students_with_IEPs]) ->  | ED13: =IF(Table4[Students_With_IEP_OSS_Risk_Index]="","",Table4[Students_With_IEP_OSS_Risk_Index]/((SUM(Table4[Number_Afr_Amer_One_or_More_OSS]:Table4[Number_White_One_or_More_OSS])-Table4[Number_Students_With_IEP_One_or_More_OSS])/(Table4[Student_Enrollment_(Oct)]-Table4[Enrollment_Students_with_IEPs]))) ->  | EE13: =IF(Table4[Number_Students_With_IEP_One_or_More_OSS]="","",Table4[Number_Students_With_IEP_One_or_More_OSS]-(Table4[Number_Students_With_IEP_One_or_More_OSS]/Table4[Students_With_IEP_OSS_Risk_Ratio])) -> 

Sheet ISS_Days_per_100
A1: School_Year (****** i.e. 202122) | B1: (All)
A3: Sum of ISS Per 100 Students
A4: 146.0144928

Sheet ODR_Imp_Tier
A1: School_Year (****** i.e. 202122) | B1: (All)
A2: School_Name | B2: (All)
A4: Sum of ODRs per 100
A5: 149.2753623

Sheet ODR_RI_Table
A1: Implementation_Tier | B1: (All)
A2: School_Year (****** i.e. 202122) | B2: (All)
A4: Values
A5: Sum of African American ODR Risk Index | B5: 0.8436363636
A6: Sum of Asian ODR Risk Index | B6: 0.06478873239
A7: Sum of Hispanic ODR Risk Index | B7: 0.56
A8: Sum of Multi-Racial ODR Risk Index | B8: 0.425
A9: Sum of Native American ODR Risk INdex | B9: 0.6888888889
A10: Sum of Pacific Islander ODR Risk Index | B10: 0.1212121212
A11: Sum of White ODR Risk Index | B11: 0.1594827586
A12: Sum of Students with IEPs ODR Risk Index | B12: 0.2902439024

Sheet ODR_RR_Table
A1: Implementation_Tier | B1: (All)
A2: School_Year (****** i.e. 202122) | B2: (All)
A4: Values
A5: Sum of African American ODR Risk Ratio | B5: 28.7405591
A6: Sum of Asian ODR Risk Ratio | B6: 0.1249756126
A7: Sum of Hispanic ODR Risk Ratio | B7: 1.14953271
A8: Sum of Multi-Racial ODR Risk Ratio | B8: 0.851047443
A9: Sum of Native American ODR Risk Ratio | B9: 1.402447588
A10: Sum of Pacific Islander ODR Risk Ratio | B10: 0.2403897634
A11: Sum of White ODR Risk Ratio | B11: 0.239800077
A12: Sum of Students with IEPs ODR Risk Ratio | B12: 0.5552809713

Sheet ODR_RDR_Table
A1: Implementation_Tier | B1: (All)
A2: School_Year (****** i.e. 202122) | B2: (All)
A4: Sum of Afr_Amer_ODR_RDR | B4: Sum of Asian_ODR_RDR | C4: Sum of Hispanic_ODR_RDR | D4: Sum of Multi-Rac_ODR_RDR | E4: Sum of Nat_Amer_ODR_RDR | F4: Sum of Pac_Islan_ODR_RDR | G4: Sum of White_ODR_RDR | H4: Students with IEPs ODR_RDR
A5: -55467.65075 | G5: -26609.54141 | H5: -4633.089422

Sheet ISS_RI_Table
A1: Implementation_Tier | B1: (All)
A2: School_Year (****** i.e. 202122) | B2: (All)
A4: Values
A5: Sum of African American ISS Risk Index | B5: 0.8436363636
A6: Sum of Asian ISS Risk Index | B6: 0.06478873239
A7: Sum of Hispanic ISS Risk Index | B7: 0.56
A8: Sum of Multi-Racial ISS Risk Index | B8: 0.425
A9: Sum of Native American ISS Risk Index | B9: 0.6888888889
A10: Sum of Pacific Islander ISS Risk Index | B10: 0.1212121212
A11: Sum of White ISS Risk Index | B11: 0.1594827586
A12: Sum of Students with IEPs ISS Risk Index | B12: 0.2902439024

Sheet ISS_RR_Table
A1: Implementation_Tier | B1: (All)
A2: School_Year (****** i.e. 202122) | B2: (All)
A4: Values
A5: Sum of African American ISS Risk Ratio | B5: 3.194426012
A6: Sum of Asian ISS Risk Ratio | B6: 0.1249756126
A7: Sum of Hispanic ISS Risk Ratio | B7: 1.14953271
A8: Sum of Multi-Racial ISS Risk Ratio | B8: 0.851047443
A9: Sum of Native American ISS Risk Ratio | B9: 1.402447588
A10: Sum of Pacific Islander ISS Risk Ratio | B10: 0.2403897634
A11: Sum of White ISS Risk Ratio | B11: 0.239800077
A12: Sum of Students with IEPs ISS Risk Ratio | B12: 0.5552809713

Sheet ISS_RDR_Table
A1: Implementation_Tier | B1: (All)
A2: School_Year (****** i.e. 202122) | B2: (All)
A4: Sum of Afr_Amer_ISS_RDR | B4: Sum of Asian_ISS_RDR | C4: Sum of Hispanic_ISS_RDR | D4: Sum of Multi-Rac_ISS_RDR | E4: Sum of Nat_Amer_ISS_RDR | F4: Sum of Pac_Islan_ISS_RDR | G4: Sum of White_ISS_RDR | H4: Sum of IEP_ISS_RDR
A5: -55467.65075 | G5: -9515.978648 | H5: -4633.089422

Sheet OSS_RI_Table
A1: Implementation_Tier | B1: (All)
A3: Values
A4: Sum of African American OSS Risk Index | B4: 0.8436363636
A5: Sum of Asian OSS Risk Index | B5: 0.06478873239
A6: Sum of Hispanic OSS Risk Index | B6: 0.56
A7: Sum of Multi-Racial OSS Risk Index | B7: 0.425
A8: Sum of Native American OSS Risk Index | B8: 0.6888888889
A9: Sum of Pacific Islander OSS Risk Index | B9: 0.1212121212
A10: Sum of White OSS Risk Index | B10: 0.1594827586
A11: Sum of Students with IEPs OSS Risk Index | B11: 0.2902439024

Sheet OSS_RR_Table
A1: Implementation_Tier | B1: (All)
A3: Values
A4: Sum of African American OSS Risk Ratio | B4: 3.194426012
A5: Sum of Asian OSS Risk Ratio | B5: 0.1249756126
A6: Sum of Hispanic OSS Risk Ratio | B6: 1.14953271
A7: Sum of MultiRacial OSS Risk Index | B7: 0.851047443
A8: Sum of Native American OSS Risk Ratio | B8: 1.402447588
A9: Sum of Pacific Islander OSS Risk Ratio | B9: 0.2403897634
A10: Sum of White OSS Risk Ratio | B10: 0.239800077
A11: Sum of Students with IEPs OSS Risk Ratio | B11: 0.5552809713

Sheet OSS_RDR_Table
A1: Implementation_Tier | B1: (All)
A2: School_Year (****** i.e. 202122) | B2: (All)
A4: Sum of Afr_Amer_OSS_RDR | B4: Sum of Asian_OSS_RDR | C4: Sum of Hispanic_OSS_RDR | D4: Sum of Multi-Rac_OSS_RDR | E4: Sum of Nat_Amer_OSS_RDR | F4: Sum of Pac_Islan_RDR | G4: Sum of White_OSS_RDR | H4: Sum of Students_With_IEP_RDR
A5: -55467.65075 | G5: -26609.54141 | H5: -4633.089422

Sheet ODRper100
A1: School_Year (****** i.e. 202122) | B1: (All)
A3: Sum of ODRs Per 100 Students
A4: 49.50724638

Sheet OSS_Days_per_100_Stud
A1: School_Year (****** i.e. 202122) | B1: (All)
A3: Sum of OSS Days Per 100
A4: 12.02898551

Sheet Triangle_Pivot
A1: School_Year (****** i.e. 202122) | B1: (All)
A3: Sum of Percentage 0-1 ORs | B3: Sum of Percentage of 2-5 ODRs | C3: Sum of Percentage 6 or more ODRs
A4: 0.6690647482 | B4: 0.2107913669 | C4: 0.1201438849

Sheet Lists
A1: Training | B1: Implementation | C1: GradeConfiguration
A2: Tier 1 | B2: Tier 1 | C2: Early Childhood
A3: Tier 2 | B3: Tier 2 | C3: Elementary
A4: Tier 3 | B4: Tier 3 | C4: Middle/Jr. High
C5: High
C6: K-8
C7: K-12
C8: Alternative
C9: Voc. Ed.

Sheet DynamicPathTFI
A1: TFI21Id | B1: SchoolId | C1: School | D1: CityName | E1: StateName | F1: Textbox8 | G1: DateCompleted | H1: SchoolBeginYear | I1: SchoolYear | J1: SchoolNCESId | K1: District | L1: DistrictNCESId | M1: TeamMembers | N1: TFIWalkthrough | O1: Tier1TeamComposition | P1: Tier1TeamOpProcedures | Q1: Tier1TeamMaxPoints | R1: Tier1TeamTotalPoints | S1: Tier1TeamTotalRatio | T1: Tier1ImplementBehaveExpect | U1: Tier1ImplementTeachExpect | V1: Tier1ImplementProbBehaveDef | W1: Tier1ImplementDisciplinePolicies | X1: Tier1ImplementProfessionalDev | Y1: Tier1ImplementClassProcedures | Z1: Tier1ImplementFeedback | AA1: Tier1ImplementFacultyInvolve | AB1: Tier1ImplementFamilyInvolve | AC1: Tier1ImplementMaxPoints | AD1: Tier1ImplementTotalPoints | AE1: Tier1ImplementTotalRatio | AF1: Tier1EvaluationDisciplineData | AG1: Tier1EvaluationDecisionMaking | AH1: Tier1EvaluationFidelityData | AI1: Tier1EvaluationAnnualEval | AJ1: Tier1EvaluationTotalPoints | AK1: Tier1EvaluationMaxPoints | AL1: Tier1EvaluationTotalRatio | AM1: Tier1MaxPoints | AN1: Tier1TotalPoints | AO1: Tier1TotalRatio | AP1: Tier2TeamComposition | AQ1: Tier2TeamOpProcedures | AR1: Tier2TeamScreening | AS1: Tier2TeamRequestAssistance | AT1: Tier2TeamTotalPoints | AU1: Tier2TeamMaxPoints | AV1: Tier2TeamTotalRatio | AW1: Tier2InterventionSufficientArray | AX1: Tier2InterventionCriticalFeatures | AY1: Tier2InterventionPracticesMatched | AZ1: Tier2InterventionAccessSupports | BA1: Tier2InterventionProfessionalDev | BB1: Tier2InterventionTotalPoints | BC1: Tier2InterventionMaxPoints | BD1: Tier2InterventionTotalRatio | BE1: Tier2EvaluationLevelOfUse | BF1: Tier2EvaluationFidelityData | BG1: Tier2EvaluationStudentPerformance | BH1: Tier2EvaluationAnnualEval | BI1: Tier2EvaluationTotalPoints | BJ1: Tier2EvaluationMaxPoints | BK1: Tier2EvaluationTotalRatio | BL1: Tier2TotalPoints | BM1: Tier2MaxPoints | BN1: Tier2TotalRatio | BO1: Tier3TeamComposition | BP1: Tier3TeamOpProcedures | BQ1: Tier3TeamScreening | BR1: Tier3TeamStudentSupport | BS1: Tier3TeamTotalPoints | BT1: Tier3TeamMaxPoints | BU1: Tier3TeamTotalRatio | BV1: Tier3ResourcesStaffing | BW1: Tier3ResourcesInvolvement | BX1: Tier3ResourcesProfessionalDev | BY1: Tier3ResourcesTotalPoints | BZ1: Tier3ResourcesMaxPoints | CA1: Tier3ResourcesTotalRatio | CB1: Tier3SupportPlansQualityLife | CC1: Tier3SupportPlansIndicators | CD1: Tier3SupportPlansHypothesis | CE1: Tier3SupportPlansComprehensive | CF1: Tier3SupportPlansNaturalFormal | CG1: Tier3SupportPlansAccessSupport | CH1: Tier3SupportTotalPoints | CI1: Tier3SupportMaxPoints | CJ1: Tier3SupportTotalRatio | CK1: Tier3EvaluationDataSystem | CL1: Tier3EvaluationDecisionMaking | CM1: Tier3EvaluationLevelOfUse | CN1: Tier3EvaluationAnnualEval | CO1: Tier3EvaluationTotalPoints | CP1: Tier3EvaluationMaxPoints | CQ1: Tier3EvaluationTotalRatio | CR1: Tier3TotalPoints | CS1: Tier3MaxPoints | CT1: Tier3TotalRatio | CU1: TotalPoints | CV1: MaxPoints | CW1: TotalRatio | CX1: DateCreated | CY1: DateModified | CZ1: Tier1Assessed | DA1: Tier2Assessed | DB1: Tier3Assessed
A2: 0 | B2: 0 | C2: A Elementary | D2: A Missouri City | E2: Missouri | F2: 2.1 | G2: 2018-03-05 | H2: 2017 | I2: 201718 | J2: 99999999999 | K2: My District | L2: 2900000 | M2: Team without external coach | N2: TFI Walkthrough Tool not completed | O2: 2 | P2: 2 | Q2: 4 | R2: 4 | S2: 1 | T2: 2 | U2: 2 | V2: 2 | W2: 1 | X2: 2 | Y2: 2 | Z2: 0 | AA2: 1 | AB2: 1 | AC2: 18 | AD2: 13 | AE2: 0.7222 | AF2: 2 | AG2: 0 | AH2: 2 | AI2: 1 | AJ2: 5 | AK2: 8 | AL2: 0.625 | AM2: 30 | AN2: 22 | AO2: 0.7333 | AP2: 2 | AQ2: 2 | AR2: 2 | AS2: 1 | AT2: 7 | AU2: 8 | AV2: 0.875 | AW2: 2 | AX2: 1 | AY2: 2 | AZ2: 2 | BA2: 2 | BB2: 9 | BC2: 10 | BD2: 0.9 | BE2: 1 | BF2: 0 | BG2: 2 | BH2: 1 | BI2: 4 | BJ2: 8 | BK2: 0.5 | BL2: 20 | BM2: 26 | BN2: 0.7692 | BS2: 0 | BT2: 8 | BY2: 0 | BZ2: 6 | CH2: 0 | CI2: 12 | CO2: 0 | CP2: 8 | CR2: 0 | CS2: 34 | CU2: 42 | CV2: 90 | CW2: 0.4667 | CX2: 2018-03-07T06:38:00 | CY2: 2021-12-07T16:01:00 | CZ2: TRUE | DA2: TRUE | DB2: FALSE
A3: 0 | B3: 0 | C3: A Middle | D3: A Missouri City | E3: Missouri | F3: 2.1 | G3: 2018-03-13 | H3: 2017 | I3: 201718 | J3: 99999999999 | K3: My District | L3: 2900000 | M3: Team and external coach together | N3: External reviewer | O3: 1 | P3: 2 | Q3: 4 | R3: 3 | S3: 0.75 | T3: 2 | U3: 2 | V3: 2 | W3: 1 | X3: 1 | Y3: 2 | Z3: 1 | AA3: 2 | AB3: 1 | AC3: 18 | AD3: 14 | AE3: 0.7778 | AF3: 2 | AG3: 1 | AH3: 2 | AI3: 1 | AJ3: 6 | AK3: 8 | AL3: 0.75 | AM3: 30 | AN3: 23 | AO3: 0.7667 | AP3: 2 | AQ3: 2 | AR3: 2 | AS3: 2 | AT3: 8 | AU3: 8 | AV3: 1 | AW3: 1 | AX3: 1 | AY3: 1 | AZ3: 2 | BA3: 2 | BB3: 7 | BC3: 10 | BD3: 0.7 | BE3: 1 | BF3: 0 | BG3: 1 | BH3: 0 | BI3: 2 | BJ3: 8 | BK3: 0.25 | BL3: 17 | BM3: 26 | BN3: 0.6538 | BO3: 1 | BP3: 0 | BQ3: 1 | BR3: 1 | BS3: 3 | BT3: 8 | BU3: 0.375 | BV3: 1 | BW3: 2 | BX3: 1 | BY3: 4 | BZ3: 6 | CA3: 0.6667 | CB3: 1 | CC3: 1 | CD3: 1 | CE3: 0 | CF3: 0 | CG3: 2 | CH3: 5 | CI3: 12 | CJ3: 0.4167 | CK3: 0 | CL3: 1 | CM3: 0 | CN3: 0 | CO3: 1 | CP3: 8 | CQ3: 0.125 | CR3: 13 | CS3: 34 | CT3: 0.3824 | CU3: 53 | CV3: 90 | CW3: 0.5889 | CX3: 2018-03-13T12:58:00 | CY3: 2021-12-07T16:01:00 | CZ3: TRUE | DA3: TRUE | DB3: TRUE
A4: 0 | B4: 0 | C4: A High | D4: A Missouri City | E4: Missouri | F4: 2.1 | G4: 2018-03-23 | H4: 2017 | I4: 201718 | J4: 99999999999 | K4: My District | L4: 2900000 | M4: Team and external coach together | N4: TFI Walkthrough Tool not completed | O4: 1 | P4: 2 | Q4: 4 | R4: 3 | S4: 0.75 | T4: 2 | U4: 2 | V4: 2 | W4: 2 | X4: 2 | Y4: 2 | Z4: 1 | AA4: 1 | AB4: 1 | AC4: 18 | AD4: 15 | AE4: 0.8333 | AF4: 1 | AG4: 1 | AH4: 2 | AI4: 1 | AJ4: 5 | AK4: 8 | AL4: 0.625 | AM4: 30 | AN4: 23 | AO4: 0.7667 | AP4: 1 | AQ4: 1 | AR4: 2 | AS4: 1 | AT4: 5 | AU4: 8 | AV4: 0.625 | AW4: 1 | AX4: 1 | AY4: 2 | AZ4: 2 | BA4: 2 | BB4: 8 | BC4: 10 | BD4: 0.8 | BE4: 1 | BF4: 1 | BG4: 1 | BH4: 1 | BI4: 4 | BJ4: 8 | BK4: 0.5 | BL4: 17 | BM4: 26 | BN4: 0.6538 | BS4: 0 | BT4: 8 | BY4: 0 | BZ4: 6 | CH4: 0 | CI4: 12 | CO4: 0 | CP4: 8 | CR4: 0 | CS4: 34 | CU4: 40 | CV4: 90 | CW4: 0.4444 | CX4: 2018-03-23T14:08:00 | CY4: 2021-12-07T16:01:00 | CZ4: TRUE | DA4: TRUE | DB4: FALSE
